Workbook

Sheet Khai bao (hidden)
A1: THÔNG TIN KHÁCH HÀNG | C1: BÁO CÁO TIẾNG VIỆT | D1: BÁO CÁO TIẾNG ANH
A2: Đơn vị chủ quản
A3: Khách hàng (Header) | C3: =UPPER(C4) -> CÔNG TY TNHH TƯ VẤN VÀ ĐÀO TẠO IVC | D3: =UPPER(D4) -> IVC CONSULTING AND TRAINING COMPANY LIMITED
A4: Khách hàng (văn bản) | C4: Công ty TNHH Tư vấn và Đào tạo IVC | D4: IVC Consulting and Training Company Limited
A5: Tên viết tắt | C5: IVC Consulting | D5: =C5 -> IVC Consulting
A6: Địa chỉ
A7: Điện thoại
A8: Fax
A9: Loại hình công ty | C9: TNHH | F9: CP
C10: =IF(C9=F9,"Hội đồng quản trị","Hội đồng thành viên") -> Hội đồng thành viên | D10: =IF(C9=F9,"Board of Director","Board of Members") -> Board of Members | F10: TNHH
A12: Loại hình báo cáo | C12: BÁO CÁO TÀI CHÍNH | D12: =IF(C12=F13,N13,N12) -> FINANCIAL STATEMENTS | F12: BÁO CÁO TÀI CHÍNH | N12: FINANCIAL STATEMENTS
C13: =IF(C12=F13,F15,F14) -> Báo cáo tài chính | D13: =IF(C12=F13,N15,N14) -> Financial statements | F13: BÁO CÁO TÀI CHÍNH HỢP NHẤT | N13: CONSOLIDATED FINANCIAL STATEMENTS
A14: Chuyển đổi BCTC từ ng.tệ sang VND | C14: N | D14: =IF(D13="Consolidated financial statements","consolidated ","") ->  | F14: Báo cáo tài chính | N14: Financial statements
A15: Kỳ báo cáo (Header) | C15: Năm tài chính kết thúc ngày 31/12/2020 | D15: For the fiscal year ended 31/12/2020 | F15: Báo cáo tài chính hợp nhất | N15: Consolidated financial statements
A16: Kỳ báo cáo (văn bản) | C16: ="Cho n"&RIGHT(C15,37) -> Cho năm tài chính kết thúc ngày 31/12/2020 | D16: =D15 -> For the fiscal year ended 31/12/2020 | F16: =RIGHT(LEFT('Khai bao'!C16,17),14) -> năm tài chính | G16: năm tài chính
A17: Ngày cuối kỳ (văn bản) | C17: ="ngày "&DAY(C18)&" tháng "&MONTH(C18)&" năm "&YEAR(C18) -> ngày 31 tháng 12 năm 2020 | D17: 31 December 2020
A18: Ngày cuối kỳ (bảng biểu) | C18: 31/12/2020 | D18: =C18 -> 31/12/2020
C19: Số cuối năm | D19: Ending
A20: Kỳ báo cáo | C20: Năm 2020 | D20: ="Year "&RIGHT(C20,4) -> Year 2020
C21: Năm nay | D21: Current year
A22: Ngày đầu kỳ | C22: 01/01/2020 | D22: =C22 -> 01/01/2020
C23: Số đầu năm | D23: Beginning
A24: Kỳ so sánh | C24: Năm 2019 | D24: ="Year "&RIGHT(C24,4) -> Year 2019
C25: Năm trước | D25: Previous year
A26: Kỳ kế toán | C26: năm | D26: year
A27: năm tài chính/kỳ kế toán | C27: năm tài chính | D27: =IF(C27="năm tài chính","fiscal year","financial period") -> fiscal year
A28: Phê duyệt báo cáo | C28: Ban Giám đốc | D28: =VLOOKUP(C28,K32:AE37,21,0) -> Board of Management
A29: Chức danh | C29: Giám đốc | D29: Director
A30: Họ và tên
A31: Trách nhiệm lập báo cáo | C31: Ban Giám đốc | D31: =VLOOKUP(C31,K32:AE37,21,0) -> Board of Management
C32: BAN GIÁM ĐỐC | D32: =UPPER(D31) -> BOARD OF MANAGEMENT | F32: BAN GIÁM ĐỐC | K32: Ban Giám đốc | R32: BOARD OF MANAGEMENT | AE32: Board of Management
A33: Chức danh | C33: =C29 -> Giám đốc | D33: Director | F33: BAN TỔNG GIÁM ĐỐC | K33: Ban Tổng giám đốc | R33: BOARD OF GENERAL MANAGEMENT | AE33: Board of General Management
A34: Họ và tên | F34: HỘI ĐỒNG QUẢN TRỊ | K34: Hội đồng quản trị | R34: BOARD OF DIRECTOR | AE34: Board of Director
A35: Bộ phận lập Báo cáo | C35: Phòng Kế toán | D35: Accounting Department | F35: HỘI ĐỒNG THÀNH VIÊN | K35: Hội đồng thành viên | R35: BOARD OF MEMBERS | AE35: Board of Members
A36: Chức danh | C36: Kế toán trưởng | D36: Chief Accountant | F36: BAN QUẢN TRỊ | K36: Ban quản trị
A37: Họ và tên | F37: BAN QUẢN LÝ | K37: Ban quản lý
A38: Điện thoại
A39: Chức danh | C39: Người lập | D39: Preparer
A40: Họ và tên
A41: Ngày lập | C41: ngày 23 tháng 03 năm 2021 | D41: 23 March 2021
A42: Điện thoại
A43: Nơi lập | C43: TP. Hà Nội | D43: Hanoi city
A44: Ban kiểm soát | C44: N | F44: Y
F45: N
A46: Ban Tổng Giám đốc
A47: Họ và tên
A48: Chứng chỉ
A50: Kiểm soát chất lượng
A51: Soát xét cấp Phòng
A52: Kiểm toán viên
A53: Chứng chỉ
A55: Tổng hợp báo cáo
A56: Ngày phát hành
A57: Nơi phát hành
A58: Hình thức dịch vụ
A59: Loại hình báo cáo
A61: Hạch toán | B61: Hạch toán lại | C61: Tên tài khoản
A62: 111 | B62: 111 | C62: Tiền mặt tại quỹ | F62: =B62-A62 -> 0
A63: 112 | B63: 112 | C63: Tiền gửi ngân hàng | F63: 0
A64: 113 | B64: 113 | C64: Tiền đang chuyển | F64: 0
A65: 1211 | B65: 1211 | C65: Cổ phiếu | F65: 0
A66: 1212 | B66: 1212 | C66: Trái phiếu | F66: 0
A67: 1218 | B67: 1218 | C67: Chứng khoán và công cụ tài chính khác | F67: 0
A68: 1281 | B68: 1281 | C68: Tiền gửi có kỳ hạn | F68: 0
A69: 1281D | B69: 1281D | C69: Tiền gửi có kỳ hạn trên 12 tháng
A70: 1282 | B70: 1282 | C70: Trái phiếu | F70: 0
A71: 1282D | B71: 1282D | C71: Trái phiếu trên 12 tháng
A72: 1283 | B72: 1283 | C72: Cho vay | F72: 0
A73: 1283D | B73: 1283D | C73: Cho vay dài hạn
A74: 1288 | B74: 1288 | C74: Các khoản đầu tư khác nắm giữ đến ngày đáo hạn | F74: 0
A75: 1288D | B75: 1288D | C75: Các khoản đầu tư khác nắm giữ đến ngày đáo hạn trên 12 tháng
A76: 128T | B76: 128T | C76: Đầu tư nắm giữ đến ngày đáo hạn (Tương đương tiền)
A77: 131 | B77: 131 | C77: Phải thu ngắn hạn của khách hàng | F77: 0
A78: 131D | B78: 131D | C78: Phải thu dài hạn của khách hàng
A79: 131C | B79: 131C | C79: Người mua trả tiền trước ngắn hạn
A80: 131CD | B80: 131CD | C80: Người mua trả tiền trước dài hạn
A81: 133 | B81: 133 | C81: Thuế giá trị gia tăng được khấu trừ | F81: 0
A82: 1361 | B82: 1361 | C82: Vốn kinh doanh ở đơn vị trực thuộc | F82: 0
A83: 1362 | B83: 1362 | C83: Phải thu nội bộ về chênh lệch tỷ giá ngắn hạn | F83: 0
A84: 1363 | B84: 1363 | C84: Phải thu nội bộ về chi phí đi vay đủ điều kiện được vốn hóa ngắn hạn | F84: 0
A85: 1368 | B85: 1368 | C85: Phải thu nội bộ ngắn hạn khác ngắn hạn | F85: 0
A86: 1362C | B86: 1362C | C86: Phải thu nội bộ về chênh lệch tỷ giá ngắn hạn (dư có)
A87: 1363C | B87: 1363C | C87: Phải thu nội bộ về chi phí đi vay đủ điều kiện được vốn hóa ngắn hạn (dư có)
A88: 1368C | B88: 1368C | C88: Phải thu nội bộ ngắn hạn khác ngắn hạn (dư có)
A89: 1362D | B89: 1362D | C89: Phải thu nội bộ về chênh lệch tỷ giá dài hạn
A90: 1363D | B90: 1363D | C90: Phải thu nội bộ về chi phí đi vay đủ điều kiện được vốn hóa dài hạn
A91: 1368D | B91: 1368D | C91: Phải thu nội bộ ngắn hạn khác dài hạn
A92: 1362CD | B92: 1362CD | C92: Phải thu nội bộ về chênh lệch tỷ giá dài hạn (dư có)
A93: 1363CD | B93: 1363CD | C93: Phải thu nội bộ về chi phí đi vay đủ điều kiện được vốn hóa dài hạn (dư có)
A94: 1368CD | B94: 1368CD | C94: Phải thu nội bộ ngắn hạn khác dài hạn (dư có)
A95: 1381 | B95: 1381 | C95: Tài sản thiếu chờ xử lý | F95: 0
A96: 1385 | B96: 1385 | C96: Phải thu về cổ phần hóa | F96: 0
A97: 1385D | B97: 1385D | C97: Phải thu về cổ phần hóa dài hạn
A98: 1388 | B98: 1388 | C98: Phải thu ngắn hạn khác | F98: 0
A99: 1388D | B99: 1388D | C99: Phải thu dài hạn khác
A100: 1388C | B100: 1388C | C100: Phải thu ngắn hạn khác (dư có)
A101: 1388CD | B101: 1388CD | C101: Phải thu dài hạn khác (dư có)
A102: 139 | B102: 139 | C102: Dự phòng phải thu ngắn hạn khó đòi | F102: 0
A103: 139D | B103: 139D | C103: Dự phòng phải thu dài hạn khó đòi
A104: 141 | B104: 141 | C104: Tạm ứng | F104: 0
A105: 141D | B105: 141D | C105: Tạm ứng dài hạn
A106: 141C | B106: 141C | C106: Tạm ứng (dư có)
A107: 141CD | B107: 141CD | C107: Tạm ứng dài hạn (dư có)
A108: 144 | B108: 144 | C108: Các khoản thế chấp, ký quỹ, ký cược ngắn hạn | F108: 0
A109: 151 | B109: 151 | C109: Hàng mua đang đi đường | F109: 0
A110: 152 | B110: 152 | C110: Nguyên vật liệu | F110: 0
A111: 153 | B111: 153 | C111: Công cụ, dụng cụ | F111: 0
A112: 1534D | B112: 1534D | C112: Thiết bị, vật tư, phụ tùng thay thế dài hạn
A113: 154 | B113: 154 | C113: Chi phí sản xuất kinh doanh dở dang | F113: 0
A114: 154D | B114: 154D | C114: Chi phí sản xuất kinh doanh dở dang dài hạn
A115: 155 | B115: 155 | C115: Thành phẩm | F115: 0
A116: 156 | B116: 156 | C116: Hàng hóa | F116: 0
A117: 1567 | B117: 1567 | C117: Hàng hóa bất động sản | F117: 0
A118: 157 | B118: 157 | C118: Hàng gửi bán | F118: 0
A119: 158 | B119: 158 | C119: Hàng hóa kho bảo thuể | F119: 0
A120: 159 | B120: 159 | C120: Dự phòng giảm giá hàng tồn kho | F120: 0
A121: 1611 | B121: 1611 | C121: Chi phí sự nghiệp năm trước | F121: =B121-A121 -> 0
A122: 1612 | B122: 1612 | C122: Chi phí sự nghiệp năm nay | F122: 0
A123: 171 | B123: 171 | C123: Giao dịch mua bán lại trái phiếu Chính phủ | F123: 0
A124: 171C | B124: 171C | C124: Giao dịch mua bán lại trái phiếu Chính phủ (dư có)
A125: 211 | B125: 211 | C125: Tài sản cố định | F125: 0
A126: 2111 | B126: 211 | C126: Nhà cửa, vật kiến trúc | F126: -1900
A127: 2112 | B127: 211 | C127: Máy móc thiết bị | F127: =B127-A127 -> -1901
A128: 2113 | B128: 211 | C128: Phương tiện vận tải | F128: -1902
A129: 2114 | B129: 211 | C129: Thiết bị, dụng cụ quản lý | F129: -1903
A130: 2118 | B130: 211 | C130: Tài sản cố định khác | F130: -1907
A131: 212 | B131: 212 | C131: Tài sản thuê tài chính | F131: 0
A132: 2122 | B132: 212 | C132: Máy móc thiết bị | F132: -1910
A133: 2123 | B133: 212 | C133: Phương tiện vận tải | F133: -1911
A134: 2128 | B134: 212 | C134: Tải sản thuê tài chính khac | F134: -1916
A135: 213 | B135: 213 | C135: Tài sản cố định vô hình | F135: 0
A136: 2131 | B136: 213 | C136: Giá trị quyền sử dụng đất | F136: -1918
A137: 2132 | B137: 213 | C137: Phần mềm | F137: -1919
A138: 2138 | B138: 213 | C138: Tài sản vô hình khác | F138: -1925
A139: 214 | B139: 214 | C139: Khấu hao tài sản cố định | F139: 0
A140: 2141 | B140: 2141 | C140: Khấu hao tài sản cố định hữu hình | F140: 0
A141: 2142 | B141: 2142 | C141: Khấu hao tài sản cố định thuê tài chính | F141: 0
A142: 2143 | B142: 2143 | C142: Khấu hao tài sản cố định vô hình | F142: 0
A143: 217 | B143: 217 | C143: Bất động sản đầu tư | F143: 0
A144: 2147 | B144: 2147 | C144: Khấu hao bất động sản đầu tư | F144: 0
A145: 221 | B145: 221 | C145: Đầu tư vào công ty con | F145: 0
A146: 222 | B146: 222 | C146: Đầu tư vào công ty liên doanh, liên kết | F146: 0
A147: 2281 | B147: 2281 | C147: Đầu tư góp vốn vào đơn vị khác | F147: 0
A148: 2288 | B148: 2288 | C148: Đầu tư khác ngắn hạn | F148: 0
A149: 2288D | B149: 2288D | C149: Đầu tư khác dài hạn
A150: 2291 | B150: 2291 | C150: Dự phòng giảm giá chứng khoán kinh doanh | F150: 0
A151: 2292 | B151: 2292 | C151: Dự phòng tổn thất đầu tư vào đơn vị khác | F151: 0
A152: 2293 | B152: 2293 | C152: Dự phòng phải thu ngắn hạn khó đòi | F152: 0
A153: 2293D | B153: 2293D | C153: Dự phòng phải thu dài hạn khó đòi
A154: 2294 | B154: 2294 | C154: Dự phòng giảm giá hàng tồn kho | F154: 0
A155: 22941D | B155: 22941D | C155: Dự phòng giảm giá chi phí sản xuất kinh doanh dài hạn
A156: 22942D | B156: 22942D | C156: Dự phòng giảm giá thiết bị, vật tư, phụ tùng thay thế dài hạn
A157: 241 | B157: 241 | C157: Đầu tư xây dựng cơ bản dở dang | F157: 0
A158: 2411 | B158: 241 | C158: Xây dựng cơ bản dở dang | F158: -2170
A159: 2412 | B159: 241 | C159: Mua sắm tài sản cố định | F159: -2171
A160: 2413 | B160: 241 | C160: Sửa chữa lớn tài sản cố định | F160: -2172
A161: 242 | B161: 242 | C161: Chi phí trả trước ngắn hạn | F161: 0
A162: 242D | B162: 242D | C162: Chi phí trả trước dài hạn
A163: 243 | B163: 243 | C163: Tài sản thuế thu nhập doanh nghiệp hoãn lại | F163: 0
A164: 244 | B164: 244 | C164: Cầm cố, thế chấp, ký quỹ, ký cược | F164: 0
A165: 244D | B165: 244D | C165: Cầm cố, thế chấp, ký quỹ, ký cược dài hạn
A166: 269 | B166: 269 | C166: Lợi thế thương mại | F166: =B166-A166 -> 0
A167: 331 | B167: 331 | C167: Phải trả người bán ngắn hạn | F167: 0
A168: 331D | B168: 331D | C168: Phải trả người bán dài hạn
A169: 331N | B169: 331N | C169: Trả trước cho người bán ngắn hạn
A170: 331ND | B170: 331ND | C170: Trả trước cho người bán dài hạn
A171: 3331 | B171: 3331 | C171: Thuế GTGT hàng bán | F171: 0
A172: 3332 | B172: 3332 | C172: Thuế Tiêu thụ đặc biệt | F172: 0
A173: 3333 | B173: 3333 | C173: Thuế Xuất khẩu, Nhập khẩu | F173: 0
A174: 3334 | B174: 3334 | C174: Thuế Thu nhập doanh nghiệp | F174: 0
A175: 3335 | B175: 3335 | C175: Thuế TNCN | F175: 0
A176: 3336 | B176: 3336 | C176: Thuế Tài nguyên | F176: 0
A177: 3337 | B177: 3337 | C177: Tiền thuê đất, thuế đất | F177: 0
A178: 33381 | B178: 33381 | C178: Thuế bảo vệ môi trường | F178: 0
A179: 33382 | B179: 33382 | C179: Các loại thuế khác | F179: 0
A180: 3339 | B180: 3339 | C180: Phí, lệ phí | F180: 0
A181: 3331N | B181: 3331N | C181: Thuế GTGT hàng bán (dư nợ)
A182: 3332N | B182: 3332N | C182: Thuế Tiêu thụ đặc biệt (dư nợ)
A183: 3333N | B183: 3333N | C183: Thuế Xuất khẩu, Nhập khẩu (dư nợ)
A184: 3334N | B184: 3334N | C184: Thuế Thu nhập doanh nghiệp (dư nợ)
A185: 3335N | B185: 3335N | C185: Thuế TNCN (dư nợ)
A186: 3336N | B186: 3336N | C186: Thuế Tài nguyên (dư nợ)
A187: 3337N | B187: 3337N | C187: Tiền thuê đất, thuế đất (dư nợ)
A188: 33381N | B188: 33381N | C188: Thuế bảo vệ môi trường (dư nợ)
A189: 33382N | B189: 33382N | C189: Các loại thuế khác (dư nợ)
A190: 3339N | B190: 3339N | C190: Phí, lệ phí (dư nợ)
A191: 334 | B191: 334 | C191: Phải trả người lao động | F191: 0
A192: 334D | B192: 334D | C192: Phải trả người lao động dài hạn | F192: =B192-A192 -> 
A193: 334N | B193: 334N | C193: Phải trả người lao động (dư nợ)
A194: 334ND | B194: 334ND | C194: Phải trả người lao động dài hạn (dư nợ)
A195: 335 | B195: 335 | C195: Chi phí phải trả | F195: 0
A196: 335D | B196: 335D | C196: Chi phí phải trả dài hạn
A197: 3361 | B197: 3361 | C197: Phải trả nội bộ về vốn kinh doanh | F197: 0
A198: 3362 | B198: 3362 | C198: Phải trả nội bộ về chênh lệch tỷ giá ngắn hạn | F198: 0
A199: 3363 | B199: 3363 | C199: Phải trả nội bộ về chi phí đi vay đủ điều kiện được vốn hóa ngắn hạn | F199: 0
A200: 3368 | B200: 3368 | C200: Phải trả nội bộ khác ngắn hạn | F200: 0
A201: 3362N | B201: 3362N | C201: Phải trả nội bộ về chênh lệch tỷ giá ngắn hạn (dư nợ)
A202: 3363N | B202: 3363N | C202: Phải trả nội bộ về chi phí đi vay đủ điều kiện được vốn hóa ngắn hạn (dư nợ)
A203: 3368N | B203: 3368N | C203: Phải trả nội bộ khác ngắn hạn (dư nợ)
A204: 3362D | B204: 3362D | C204: Phải trả nội bộ về chênh lệch tỷ giá dài hạn
... 111 more rows

Sheet B360 (hidden)
J1: B360
A5: ="Khách hàng: "&'Khai bao'!C4 -> Khách hàng: Công ty TNHH Tư vấn và Đào tạo IVC | E5: Prepared by: | G5: ='Khai bao'!$C$55 -> 0 | H5: Date: | J5: 2018-01-27
A6: ="Loại hình báo cáo: "&'Khai bao'!C13 -> Loại hình báo cáo: Báo cáo tài chính | E6: Reviewed by: | G6: ='Khai bao'!$C$51 -> 0 | H6: Date:
A7: ="Kỳ kế toán: "&'Khai bao'!C15 -> Kỳ kế toán: Năm tài chính kết thúc ngày 31/12/2020 | E7: Reviewed by: | G7: ='Khai bao'!$C$50 -> 0 | H7: Date:
A8: Nội dung: Bút toán điều chỉnh | E8: Reviewed by: | G8: ='Khai bao'!$C$47 -> 0 | H8: Date:
A10: Stt | C10: Nội dung nghiệp vụ | D10: Tham chiếu | E10: Điều chỉnh trên KQKD và CĐKT | H10: Điều chỉnh trên CĐKT
E11: TK Nợ | F11: TK Có | G11: Số tiền | H11: TK Nợ | I11: TK Có | J11: Số tiền
A12: =IF(B12<>"",COUNTA($B$12:B12),"") ->  | H12: =IF(ISBLANK(E12),"",IF(ISERROR(VLOOKUP(E12,'Khai bao'!$A$62:$B$315,2,0)),"X",VLOOKUP(E12,'Khai bao'!$A$62:$B$315,2,0))) ->  | I12: =IF(ISBLANK(F12),"",IF(ISERROR(VLOOKUP(F12,'Khai bao'!$A$62:$B$315,2,0)),"X",VLOOKUP(F12,'Khai bao'!$A$62:$B$315,2,0))) ->  | J12: =IF(G12<>0,G12,"") -> 
A13: =IF(B13<>"",COUNTA($B$12:B13),"") ->  | C13: NĂM NAY | H13: =IF(ISBLANK(E13),"",IF(ISERROR(VLOOKUP(E13,'Khai bao'!$A$62:$B$315,2,0)),"X",VLOOKUP(E13,'Khai bao'!$A$62:$B$315,2,0))) ->  | I13: =IF(ISBLANK(F13),"",IF(ISERROR(VLOOKUP(F13,'Khai bao'!$A$62:$B$315,2,0)),"X",VLOOKUP(F13,'Khai bao'!$A$62:$B$315,2,0))) -> 
A14: =IF(B14<>"",COUNTA($B$12:B14),"") ->  | C14: BÚT TOÁN ĐIỀU CHỈNH SAI SÓT TRONG NĂM | H14: =IF(ISBLANK(E14),"",IF(ISERROR(VLOOKUP(E14,'Khai bao'!$A$62:$B$315,2,0)),"X",VLOOKUP(E14,'Khai bao'!$A$62:$B$315,2,0))) ->  | I14: =IF(ISBLANK(F14),"",IF(ISERROR(VLOOKUP(F14,'Khai bao'!$A$62:$B$315,2,0)),"X",VLOOKUP(F14,'Khai bao'!$A$62:$B$315,2,0))) -> 
A15: =IF(B15<>"",COUNTA($B$12:B15),"") ->  | C15: Bút toán điều chỉnh tại công ty mẹ | H15: =IF(ISBLANK(E15),"",IF(ISERROR(VLOOKUP(E15,'Khai bao'!$A$62:$B$315,2,0)),"X",VLOOKUP(E15,'Khai bao'!$A$62:$B$315,2,0))) ->  | I15: =IF(ISBLANK(F15),"",IF(ISERROR(VLOOKUP(F15,'Khai bao'!$A$62:$B$315,2,0)),"X",VLOOKUP(F15,'Khai bao'!$A$62:$B$315,2,0))) -> 
H16: =IF(ISBLANK(E16),"",IF(ISERROR(VLOOKUP(E16,'Khai bao'!$A$62:$B$315,2,0)),"X",VLOOKUP(E16,'Khai bao'!$A$62:$B$315,2,0))) ->  | I16: =IF(ISBLANK(F16),"",IF(ISERROR(VLOOKUP(F16,'Khai bao'!$A$62:$B$315,2,0)),"X",VLOOKUP(F16,'Khai bao'!$A$62:$B$315,2,0))) -> 
H17: =IF(ISBLANK(E17),"",IF(ISERROR(VLOOKUP(E17,'Khai bao'!$A$62:$B$315,2,0)),"X",VLOOKUP(E17,'Khai bao'!$A$62:$B$315,2,0))) ->  | I17: =IF(ISBLANK(F17),"",IF(ISERROR(VLOOKUP(F17,'Khai bao'!$A$62:$B$315,2,0)),"X",VLOOKUP(F17,'Khai bao'!$A$62:$B$315,2,0))) -> 
H18: =IF(ISBLANK(E18),"",IF(ISERROR(VLOOKUP(E18,'Khai bao'!$A$62:$B$315,2,0)),"X",VLOOKUP(E18,'Khai bao'!$A$62:$B$315,2,0))) ->  | I18: =IF(ISBLANK(F18),"",IF(ISERROR(VLOOKUP(F18,'Khai bao'!$A$62:$B$315,2,0)),"X",VLOOKUP(F18,'Khai bao'!$A$62:$B$315,2,0))) -> 
H19: =IF(ISBLANK(E19),"",IF(ISERROR(VLOOKUP(E19,'Khai bao'!$A$62:$B$315,2,0)),"X",VLOOKUP(E19,'Khai bao'!$A$62:$B$315,2,0))) ->  | I19: =IF(ISBLANK(F19),"",IF(ISERROR(VLOOKUP(F19,'Khai bao'!$A$62:$B$315,2,0)),"X",VLOOKUP(F19,'Khai bao'!$A$62:$B$315,2,0))) -> 
H20: =IF(ISBLANK(E20),"",IF(ISERROR(VLOOKUP(E20,'Khai bao'!$A$62:$B$315,2,0)),"X",VLOOKUP(E20,'Khai bao'!$A$62:$B$315,2,0))) ->  | I20: =IF(ISBLANK(F20),"",IF(ISERROR(VLOOKUP(F20,'Khai bao'!$A$62:$B$315,2,0)),"X",VLOOKUP(F20,'Khai bao'!$A$62:$B$315,2,0))) -> 
H21: =IF(ISBLANK(E21),"",IF(ISERROR(VLOOKUP(E21,'Khai bao'!$A$62:$B$315,2,0)),"X",VLOOKUP(E21,'Khai bao'!$A$62:$B$315,2,0))) ->  | I21: =IF(ISBLANK(F21),"",IF(ISERROR(VLOOKUP(F21,'Khai bao'!$A$62:$B$315,2,0)),"X",VLOOKUP(F21,'Khai bao'!$A$62:$B$315,2,0))) -> 
H22: =IF(ISBLANK(E22),"",IF(ISERROR(VLOOKUP(E22,'Khai bao'!$A$62:$B$315,2,0)),"X",VLOOKUP(E22,'Khai bao'!$A$62:$B$315,2,0))) ->  | I22: =IF(ISBLANK(F22),"",IF(ISERROR(VLOOKUP(F22,'Khai bao'!$A$62:$B$315,2,0)),"X",VLOOKUP(F22,'Khai bao'!$A$62:$B$315,2,0))) -> 
H23: =IF(ISBLANK(E23),"",IF(ISERROR(VLOOKUP(E23,'Khai bao'!$A$62:$B$315,2,0)),"X",VLOOKUP(E23,'Khai bao'!$A$62:$B$315,2,0))) ->  | I23: =IF(ISBLANK(F23),"",IF(ISERROR(VLOOKUP(F23,'Khai bao'!$A$62:$B$315,2,0)),"X",VLOOKUP(F23,'Khai bao'!$A$62:$B$315,2,0))) -> 
H24: =IF(ISBLANK(E24),"",IF(ISERROR(VLOOKUP(E24,'Khai bao'!$A$62:$B$315,2,0)),"X",VLOOKUP(E24,'Khai bao'!$A$62:$B$315,2,0))) ->  | I24: =IF(ISBLANK(F24),"",IF(ISERROR(VLOOKUP(F24,'Khai bao'!$A$62:$B$315,2,0)),"X",VLOOKUP(F24,'Khai bao'!$A$62:$B$315,2,0))) -> 
H25: =IF(ISBLANK(E25),"",IF(ISERROR(VLOOKUP(E25,'Khai bao'!$A$62:$B$315,2,0)),"X",VLOOKUP(E25,'Khai bao'!$A$62:$B$315,2,0))) ->  | I25: =IF(ISBLANK(F25),"",IF(ISERROR(VLOOKUP(F25,'Khai bao'!$A$62:$B$315,2,0)),"X",VLOOKUP(F25,'Khai bao'!$A$62:$B$315,2,0))) -> 
A26: =IF(B26<>"",COUNTA($B$12:B26),"") ->  | H26: =IF(ISBLANK(E26),"",IF(ISERROR(VLOOKUP(E26,'Khai bao'!$A$62:$B$315,2,0)),"X",VLOOKUP(E26,'Khai bao'!$A$62:$B$315,2,0))) ->  | I26: =IF(ISBLANK(F26),"",IF(ISERROR(VLOOKUP(F26,'Khai bao'!$A$62:$B$315,2,0)),"X",VLOOKUP(F26,'Khai bao'!$A$62:$B$315,2,0))) -> 
A27: =IF(B27<>"",COUNTA($B$12:B27),"") ->  | H27: =IF(ISBLANK(E27),"",IF(ISERROR(VLOOKUP(E27,'Khai bao'!$A$62:$B$315,2,0)),"X",VLOOKUP(E27,'Khai bao'!$A$62:$B$315,2,0))) ->  | I27: =IF(ISBLANK(F27),"",IF(ISERROR(VLOOKUP(F27,'Khai bao'!$A$62:$B$315,2,0)),"X",VLOOKUP(F27,'Khai bao'!$A$62:$B$315,2,0))) -> 
A28: =IF(B28<>"",COUNTA($B$12:B28),"") ->  | H28: =IF(ISBLANK(E28),"",IF(ISERROR(VLOOKUP(E28,'Khai bao'!$A$62:$B$315,2,0)),"X",VLOOKUP(E28,'Khai bao'!$A$62:$B$315,2,0))) ->  | I28: =IF(ISBLANK(F28),"",IF(ISERROR(VLOOKUP(F28,'Khai bao'!$A$62:$B$315,2,0)),"X",VLOOKUP(F28,'Khai bao'!$A$62:$B$315,2,0))) -> 
A29: =IF(B29<>"",COUNTA($B$12:B29),"") ->  | H29: =IF(ISBLANK(E29),"",IF(ISERROR(VLOOKUP(E29,'Khai bao'!$A$62:$B$315,2,0)),"X",VLOOKUP(E29,'Khai bao'!$A$62:$B$315,2,0))) ->  | I29: =IF(ISBLANK(F29),"",IF(ISERROR(VLOOKUP(F29,'Khai bao'!$A$62:$B$315,2,0)),"X",VLOOKUP(F29,'Khai bao'!$A$62:$B$315,2,0))) -> 
A30: =IF(B30<>"",COUNTA($B$12:B30),"") ->  | H30: =IF(ISBLANK(E30),"",IF(ISERROR(VLOOKUP(E30,'Khai bao'!$A$62:$B$315,2,0)),"X",VLOOKUP(E30,'Khai bao'!$A$62:$B$315,2,0))) ->  | I30: =IF(ISBLANK(F30),"",IF(ISERROR(VLOOKUP(F30,'Khai bao'!$A$62:$B$315,2,0)),"X",VLOOKUP(F30,'Khai bao'!$A$62:$B$315,2,0))) -> 
A31: =IF(B31<>"",COUNTA($B$12:B31),"") ->  | H31: =IF(ISBLANK(E31),"",IF(ISERROR(VLOOKUP(E31,'Khai bao'!$A$62:$B$315,2,0)),"X",VLOOKUP(E31,'Khai bao'!$A$62:$B$315,2,0))) ->  | I31: =IF(ISBLANK(F31),"",IF(ISERROR(VLOOKUP(F31,'Khai bao'!$A$62:$B$315,2,0)),"X",VLOOKUP(F31,'Khai bao'!$A$62:$B$315,2,0))) -> 
A32: =IF(B32<>"",COUNTA($B$12:B32),"") ->  | H32: =IF(ISBLANK(E32),"",IF(ISERROR(VLOOKUP(E32,'Khai bao'!$A$62:$B$315,2,0)),"X",VLOOKUP(E32,'Khai bao'!$A$62:$B$315,2,0))) ->  | I32: =IF(ISBLANK(F32),"",IF(ISERROR(VLOOKUP(F32,'Khai bao'!$A$62:$B$315,2,0)),"X",VLOOKUP(F32,'Khai bao'!$A$62:$B$315,2,0))) -> 
A33: =IF(B33<>"",COUNTA($B$12:B33),"") ->  | H33: =IF(ISBLANK(E33),"",IF(ISERROR(VLOOKUP(E33,'Khai bao'!$A$62:$B$315,2,0)),"X",VLOOKUP(E33,'Khai bao'!$A$62:$B$315,2,0))) ->  | I33: =IF(ISBLANK(F33),"",IF(ISERROR(VLOOKUP(F33,'Khai bao'!$A$62:$B$315,2,0)),"X",VLOOKUP(F33,'Khai bao'!$A$62:$B$315,2,0))) -> 
A34: =IF(B34<>"",COUNTA($B$12:B34),"") ->  | H34: =IF(ISBLANK(E34),"",IF(ISERROR(VLOOKUP(E34,'Khai bao'!$A$62:$B$315,2,0)),"X",VLOOKUP(E34,'Khai bao'!$A$62:$B$315,2,0))) ->  | I34: =IF(ISBLANK(F34),"",IF(ISERROR(VLOOKUP(F34,'Khai bao'!$A$62:$B$315,2,0)),"X",VLOOKUP(F34,'Khai bao'!$A$62:$B$315,2,0))) -> 
A35: =IF(B35<>"",COUNTA($B$12:B35),"") ->  | H35: =IF(ISBLANK(E35),"",IF(ISERROR(VLOOKUP(E35,'Khai bao'!$A$62:$B$315,2,0)),"X",VLOOKUP(E35,'Khai bao'!$A$62:$B$315,2,0))) ->  | I35: =IF(ISBLANK(F35),"",IF(ISERROR(VLOOKUP(F35,'Khai bao'!$A$62:$B$315,2,0)),"X",VLOOKUP(F35,'Khai bao'!$A$62:$B$315,2,0))) -> 
A36: =IF(B36<>"",COUNTA($B$12:B36),"") ->  | H36: =IF(ISBLANK(E36),"",IF(ISERROR(VLOOKUP(E36,'Khai bao'!$A$62:$B$315,2,0)),"X",VLOOKUP(E36,'Khai bao'!$A$62:$B$315,2,0))) ->  | I36: =IF(ISBLANK(F36),"",IF(ISERROR(VLOOKUP(F36,'Khai bao'!$A$62:$B$315,2,0)),"X",VLOOKUP(F36,'Khai bao'!$A$62:$B$315,2,0))) -> 
A47: =IF(B47<>"",COUNTA($B$12:B47),"") ->  | H47: =IF(ISBLANK(E47),"",IF(ISERROR(VLOOKUP(E47,'Khai bao'!$A$62:$B$315,2,0)),"X",VLOOKUP(E47,'Khai bao'!$A$62:$B$315,2,0))) ->  | I47: =IF(ISBLANK(F47),"",IF(ISERROR(VLOOKUP(F47,'Khai bao'!$A$62:$B$315,2,0)),"X",VLOOKUP(F47,'Khai bao'!$A$62:$B$315,2,0))) ->  | J47: =IF(G47<>0,G47,"") -> 
H48: =IF(ISBLANK(E48),"",IF(ISERROR(VLOOKUP(E48,'Khai bao'!$A$62:$B$315,2,0)),"X",VLOOKUP(E48,'Khai bao'!$A$62:$B$315,2,0))) ->  | I48: =IF(ISBLANK(F48),"",IF(ISERROR(VLOOKUP(F48,'Khai bao'!$A$62:$B$315,2,0)),"X",VLOOKUP(F48,'Khai bao'!$A$62:$B$315,2,0))) ->  | J48: =IF(G48<>0,G48,"") -> 
H49: =IF(ISBLANK(E49),"",IF(ISERROR(VLOOKUP(E49,'Khai bao'!$A$62:$B$315,2,0)),"X",VLOOKUP(E49,'Khai bao'!$A$62:$B$315,2,0))) ->  | I49: =IF(ISBLANK(F49),"",IF(ISERROR(VLOOKUP(F49,'Khai bao'!$A$62:$B$315,2,0)),"X",VLOOKUP(F49,'Khai bao'!$A$62:$B$315,2,0))) -> 
G50: 0 | H50: =IF(ISBLANK(E50),"",IF(ISERROR(VLOOKUP(E50,'Khai bao'!$A$62:$B$315,2,0)),"X",VLOOKUP(E50,'Khai bao'!$A$62:$B$315,2,0))) ->  | I50: =IF(ISBLANK(F50),"",IF(ISERROR(VLOOKUP(F50,'Khai bao'!$A$62:$B$315,2,0)),"X",VLOOKUP(F50,'Khai bao'!$A$62:$B$315,2,0))) -> 
A51: =IF(B51<>"",COUNTA($B$12:B51),"") ->  | H51: =IF(ISBLANK(E51),"",IF(ISERROR(VLOOKUP(E51,'Khai bao'!$A$62:$B$315,2,0)),"X",VLOOKUP(E51,'Khai bao'!$A$62:$B$315,2,0))) ->  | I51: =IF(ISBLANK(F51),"",IF(ISERROR(VLOOKUP(F51,'Khai bao'!$A$62:$B$315,2,0)),"X",VLOOKUP(F51,'Khai bao'!$A$62:$B$315,2,0))) -> 
H52: =IF(ISBLANK(E52),"",IF(ISERROR(VLOOKUP(E52,'Khai bao'!$A$62:$B$315,2,0)),"X",VLOOKUP(E52,'Khai bao'!$A$62:$B$315,2,0))) ->  | I52: =IF(ISBLANK(F52),"",IF(ISERROR(VLOOKUP(F52,'Khai bao'!$A$62:$B$315,2,0)),"X",VLOOKUP(F52,'Khai bao'!$A$62:$B$315,2,0))) ->  | J52: =IF(G52<>0,G52,"") -> 
A54: =IF(B54<>"",COUNTA($B$12:B54),"") ->  | H54: =IF(ISBLANK(E54),"",IF(ISERROR(VLOOKUP(E54,'Khai bao'!$A$62:$B$315,2,0)),"X",VLOOKUP(E54,'Khai bao'!$A$62:$B$315,2,0))) ->  | I54: =IF(ISBLANK(F54),"",IF(ISERROR(VLOOKUP(F54,'Khai bao'!$A$62:$B$315,2,0)),"X",VLOOKUP(F54,'Khai bao'!$A$62:$B$315,2,0))) -> 
A55: =IF(B55<>"",COUNTA($B$12:B55),"") ->  | C55: Bút toán điều chỉnh tại công ty con 1 | H55: =IF(ISBLANK(E55),"",IF(ISERROR(VLOOKUP(E55,'Khai bao'!$A$62:$B$315,2,0)),"X",VLOOKUP(E55,'Khai bao'!$A$62:$B$315,2,0))) ->  | I55: =IF(ISBLANK(F55),"",IF(ISERROR(VLOOKUP(F55,'Khai bao'!$A$62:$B$315,2,0)),"X",VLOOKUP(F55,'Khai bao'!$A$62:$B$315,2,0))) -> 
A56: =IF(B56<>"",COUNTA($B$12:B56),"") ->  | H56: =IF(ISBLANK(E56),"",IF(ISERROR(VLOOKUP(E56,'Khai bao'!$A$62:$B$315,2,0)),"X",VLOOKUP(E56,'Khai bao'!$A$62:$B$315,2,0))) ->  | I56: =IF(ISBLANK(F56),"",IF(ISERROR(VLOOKUP(F56,'Khai bao'!$A$62:$B$315,2,0)),"X",VLOOKUP(F56,'Khai bao'!$A$62:$B$315,2,0))) -> 
A57: =IF(B57<>"",COUNTA($B$12:B57),"") ->  | H57: =IF(ISBLANK(E57),"",IF(ISERROR(VLOOKUP(E57,'Khai bao'!$A$62:$B$315,2,0)),"X",VLOOKUP(E57,'Khai bao'!$A$62:$B$315,2,0))) ->  | I57: =IF(ISBLANK(F57),"",IF(ISERROR(VLOOKUP(F57,'Khai bao'!$A$62:$B$315,2,0)),"X",VLOOKUP(F57,'Khai bao'!$A$62:$B$315,2,0))) -> 
A58: =IF(B58<>"",COUNTA($B$12:B58),"") ->  | H58: =IF(ISBLANK(E58),"",IF(ISERROR(VLOOKUP(E58,'Khai bao'!$A$62:$B$315,2,0)),"X",VLOOKUP(E58,'Khai bao'!$A$62:$B$315,2,0))) ->  | I58: =IF(ISBLANK(F58),"",IF(ISERROR(VLOOKUP(F58,'Khai bao'!$A$62:$B$315,2,0)),"X",VLOOKUP(F58,'Khai bao'!$A$62:$B$315,2,0))) -> 
A59: =IF(B59<>"",COUNTA($B$12:B59),"") ->  | H59: =IF(ISBLANK(E59),"",IF(ISERROR(VLOOKUP(E59,'Khai bao'!$A$62:$B$315,2,0)),"X",VLOOKUP(E59,'Khai bao'!$A$62:$B$315,2,0))) ->  | I59: =IF(ISBLANK(F59),"",IF(ISERROR(VLOOKUP(F59,'Khai bao'!$A$62:$B$315,2,0)),"X",VLOOKUP(F59,'Khai bao'!$A$62:$B$315,2,0))) -> 
A60: =IF(B60<>"",COUNTA($B$12:B60),"") ->  | H60: =IF(ISBLANK(E60),"",IF(ISERROR(VLOOKUP(E60,'Khai bao'!$A$62:$B$315,2,0)),"X",VLOOKUP(E60,'Khai bao'!$A$62:$B$315,2,0))) ->  | I60: =IF(ISBLANK(F60),"",IF(ISERROR(VLOOKUP(F60,'Khai bao'!$A$62:$B$315,2,0)),"X",VLOOKUP(F60,'Khai bao'!$A$62:$B$315,2,0))) -> 
A61: =IF(B61<>"",COUNTA($B$12:B61),"") ->  | H61: =IF(ISBLANK(E61),"",IF(ISERROR(VLOOKUP(E61,'Khai bao'!$A$62:$B$315,2,0)),"X",VLOOKUP(E61,'Khai bao'!$A$62:$B$315,2,0))) ->  | I61: =IF(ISBLANK(F61),"",IF(ISERROR(VLOOKUP(F61,'Khai bao'!$A$62:$B$315,2,0)),"X",VLOOKUP(F61,'Khai bao'!$A$62:$B$315,2,0))) -> 
A62: =IF(B62<>"",COUNTA($B$12:B62),"") ->  | H62: =IF(ISBLANK(E62),"",IF(ISERROR(VLOOKUP(E62,'Khai bao'!$A$62:$B$315,2,0)),"X",VLOOKUP(E62,'Khai bao'!$A$62:$B$315,2,0))) ->  | I62: =IF(ISBLANK(F62),"",IF(ISERROR(VLOOKUP(F62,'Khai bao'!$A$62:$B$315,2,0)),"X",VLOOKUP(F62,'Khai bao'!$A$62:$B$315,2,0))) ->  | J62: =IF(G62<>0,G62,"") -> 
A63: =IF(B63<>"",COUNTA($B$12:B63),"") ->  | H63: =IF(ISBLANK(E63),"",IF(ISERROR(VLOOKUP(E63,'Khai bao'!$A$62:$B$315,2,0)),"X",VLOOKUP(E63,'Khai bao'!$A$62:$B$315,2,0))) ->  | I63: =IF(ISBLANK(F63),"",IF(ISERROR(VLOOKUP(F63,'Khai bao'!$A$62:$B$315,2,0)),"X",VLOOKUP(F63,'Khai bao'!$A$62:$B$315,2,0))) -> 
A64: =IF(B64<>"",COUNTA($B$12:B64),"") ->  | H64: =IF(ISBLANK(E64),"",IF(ISERROR(VLOOKUP(E64,'Khai bao'!$A$62:$B$315,2,0)),"X",VLOOKUP(E64,'Khai bao'!$A$62:$B$315,2,0))) ->  | I64: =IF(ISBLANK(F64),"",IF(ISERROR(VLOOKUP(F64,'Khai bao'!$A$62:$B$315,2,0)),"X",VLOOKUP(F64,'Khai bao'!$A$62:$B$315,2,0))) -> 
A65: =IF(B65<>"",COUNTA($B$12:B65),"") ->  | C65: Bút toán điều chỉnh tại công ty con 2 | H65: =IF(ISBLANK(E65),"",IF(ISERROR(VLOOKUP(E65,'Khai bao'!$A$62:$B$315,2,0)),"X",VLOOKUP(E65,'Khai bao'!$A$62:$B$315,2,0))) ->  | I65: =IF(ISBLANK(F65),"",IF(ISERROR(VLOOKUP(F65,'Khai bao'!$A$62:$B$315,2,0)),"X",VLOOKUP(F65,'Khai bao'!$A$62:$B$315,2,0))) -> 
A66: =IF(B66<>"",COUNTA($B$12:B66),"") ->  | H66: =IF(ISBLANK(E66),"",IF(ISERROR(VLOOKUP(E66,'Khai bao'!$A$62:$B$315,2,0)),"X",VLOOKUP(E66,'Khai bao'!$A$62:$B$315,2,0))) ->  | I66: =IF(ISBLANK(F66),"",IF(ISERROR(VLOOKUP(F66,'Khai bao'!$A$62:$B$315,2,0)),"X",VLOOKUP(F66,'Khai bao'!$A$62:$B$315,2,0))) -> 
A67: =IF(B67<>"",COUNTA($B$12:B67),"") ->  | H67: =IF(ISBLANK(E67),"",IF(ISERROR(VLOOKUP(E67,'Khai bao'!$A$62:$B$315,2,0)),"X",VLOOKUP(E67,'Khai bao'!$A$62:$B$315,2,0))) ->  | I67: =IF(ISBLANK(F67),"",IF(ISERROR(VLOOKUP(F67,'Khai bao'!$A$62:$B$315,2,0)),"X",VLOOKUP(F67,'Khai bao'!$A$62:$B$315,2,0))) -> 
A68: =IF(B68<>"",COUNTA($B$12:B68),"") ->  | H68: =IF(ISBLANK(E68),"",IF(ISERROR(VLOOKUP(E68,'Khai bao'!$A$62:$B$315,2,0)),"X",VLOOKUP(E68,'Khai bao'!$A$62:$B$315,2,0))) ->  | I68: =IF(ISBLANK(F68),"",IF(ISERROR(VLOOKUP(F68,'Khai bao'!$A$62:$B$315,2,0)),"X",VLOOKUP(F68,'Khai bao'!$A$62:$B$315,2,0))) -> 
A69: =IF(B69<>"",COUNTA($B$12:B69),"") ->  | H69: =IF(ISBLANK(E69),"",IF(ISERROR(VLOOKUP(E69,'Khai bao'!$A$62:$B$315,2,0)),"X",VLOOKUP(E69,'Khai bao'!$A$62:$B$315,2,0))) ->  | I69: =IF(ISBLANK(F69),"",IF(ISERROR(VLOOKUP(F69,'Khai bao'!$A$62:$B$315,2,0)),"X",VLOOKUP(F69,'Khai bao'!$A$62:$B$315,2,0))) -> 
A70: =IF(B70<>"",COUNTA($B$12:B70),"") ->  | H70: =IF(ISBLANK(E70),"",IF(ISERROR(VLOOKUP(E70,'Khai bao'!$A$62:$B$315,2,0)),"X",VLOOKUP(E70,'Khai bao'!$A$62:$B$315,2,0))) ->  | I70: =IF(ISBLANK(F70),"",IF(ISERROR(VLOOKUP(F70,'Khai bao'!$A$62:$B$315,2,0)),"X",VLOOKUP(F70,'Khai bao'!$A$62:$B$315,2,0))) -> 
A71: =IF(B71<>"",COUNTA($B$12:B71),"") ->  | H71: =IF(ISBLANK(E71),"",IF(ISERROR(VLOOKUP(E71,'Khai bao'!$A$62:$B$315,2,0)),"X",VLOOKUP(E71,'Khai bao'!$A$62:$B$315,2,0))) ->  | I71: =IF(ISBLANK(F71),"",IF(ISERROR(VLOOKUP(F71,'Khai bao'!$A$62:$B$315,2,0)),"X",VLOOKUP(F71,'Khai bao'!$A$62:$B$315,2,0))) -> 
A72: =IF(B72<>"",COUNTA($B$12:B72),"") ->  | H72: =IF(ISBLANK(E72),"",IF(ISERROR(VLOOKUP(E72,'Khai bao'!$A$62:$B$315,2,0)),"X",VLOOKUP(E72,'Khai bao'!$A$62:$B$315,2,0))) ->  | I72: =IF(ISBLANK(F72),"",IF(ISERROR(VLOOKUP(F72,'Khai bao'!$A$62:$B$315,2,0)),"X",VLOOKUP(F72,'Khai bao'!$A$62:$B$315,2,0))) -> 
A73: =IF(B73<>"",COUNTA($B$12:B73),"") ->  | H73: =IF(ISBLANK(E73),"",IF(ISERROR(VLOOKUP(E73,'Khai bao'!$A$62:$B$315,2,0)),"X",VLOOKUP(E73,'Khai bao'!$A$62:$B$315,2,0))) ->  | I73: =IF(ISBLANK(F73),"",IF(ISERROR(VLOOKUP(F73,'Khai bao'!$A$62:$B$315,2,0)),"X",VLOOKUP(F73,'Khai bao'!$A$62:$B$315,2,0))) -> 
A74: =IF(B74<>"",COUNTA($B$12:B74),"") ->  | H74: =IF(ISBLANK(E74),"",IF(ISERROR(VLOOKUP(E74,'Khai bao'!$A$62:$B$315,2,0)),"X",VLOOKUP(E74,'Khai bao'!$A$62:$B$315,2,0))) ->  | I74: =IF(ISBLANK(F74),"",IF(ISERROR(VLOOKUP(F74,'Khai bao'!$A$62:$B$315,2,0)),"X",VLOOKUP(F74,'Khai bao'!$A$62:$B$315,2,0))) -> 
A75: =IF(B75<>"",COUNTA($B$12:B75),"") ->  | H75: =IF(ISBLANK(E75),"",IF(ISERROR(VLOOKUP(E75,'Khai bao'!$A$62:$B$315,2,0)),"X",VLOOKUP(E75,'Khai bao'!$A$62:$B$315,2,0))) ->  | I75: =IF(ISBLANK(F75),"",IF(ISERROR(VLOOKUP(F75,'Khai bao'!$A$62:$B$315,2,0)),"X",VLOOKUP(F75,'Khai bao'!$A$62:$B$315,2,0))) -> 
A76: =IF(B76<>"",COUNTA($B$12:B76),"") ->  | C76: BÚT TOÁN ĐIỀU CHỈNH HỢP NHẤT | H76: =IF(ISBLANK(E76),"",IF(ISERROR(VLOOKUP(E76,'Khai bao'!$A$62:$B$315,2,0)),"X",VLOOKUP(E76,'Khai bao'!$A$62:$B$315,2,0))) ->  | I76: =IF(ISBLANK(F76),"",IF(ISERROR(VLOOKUP(F76,'Khai bao'!$A$62:$B$315,2,0)),"X",VLOOKUP(F76,'Khai bao'!$A$62:$B$315,2,0))) -> 
A77: =IF(B77<>"",COUNTA($B$12:B77),"") ->  | C77: Hợp nhất công ty con 1 | H77: =IF(ISBLANK(E77),"",IF(ISERROR(VLOOKUP(E77,'Khai bao'!$A$62:$B$315,2,0)),"X",VLOOKUP(E77,'Khai bao'!$A$62:$B$315,2,0))) ->  | I77: =IF(ISBLANK(F77),"",IF(ISERROR(VLOOKUP(F77,'Khai bao'!$A$62:$B$315,2,0)),"X",VLOOKUP(F77,'Khai bao'!$A$62:$B$315,2,0))) -> 
A78: =IF(B78<>"",COUNTA($B$12:B78),"") ->  | H78: =IF(ISBLANK(E78),"",IF(ISERROR(VLOOKUP(E78,'Khai bao'!$A$62:$B$315,2,0)),"X",VLOOKUP(E78,'Khai bao'!$A$62:$B$315,2,0))) ->  | I78: =IF(ISBLANK(F78),"",IF(ISERROR(VLOOKUP(F78,'Khai bao'!$A$62:$B$315,2,0)),"X",VLOOKUP(F78,'Khai bao'!$A$62:$B$315,2,0))) ->  | J78: =IF(G78<>0,G78,"") -> 
A79: =IF(B79<>"",COUNTA($B$12:B79),"") ->  | H79: =IF(ISBLANK(E79),"",IF(ISERROR(VLOOKUP(E79,'Khai bao'!$A$62:$B$315,2,0)),"X",VLOOKUP(E79,'Khai bao'!$A$62:$B$315,2,0))) ->  | I79: =IF(ISBLANK(F79),"",IF(ISERROR(VLOOKUP(F79,'Khai bao'!$A$62:$B$315,2,0)),"X",VLOOKUP(F79,'Khai bao'!$A$62:$B$315,2,0))) -> 
A80: =IF(B80<>"",COUNTA($B$12:B80),"") ->  | H80: =IF(ISBLANK(E80),"",IF(ISERROR(VLOOKUP(E80,'Khai bao'!$A$62:$B$315,2,0)),"X",VLOOKUP(E80,'Khai bao'!$A$62:$B$315,2,0))) ->  | I80: =IF(ISBLANK(F80),"",IF(ISERROR(VLOOKUP(F80,'Khai bao'!$A$62:$B$315,2,0)),"X",VLOOKUP(F80,'Khai bao'!$A$62:$B$315,2,0))) -> 
A81: =IF(B81<>"",COUNTA($B$12:B81),"") ->  | H81: =IF(ISBLANK(E81),"",IF(ISERROR(VLOOKUP(E81,'Khai bao'!$A$62:$B$315,2,0)),"X",VLOOKUP(E81,'Khai bao'!$A$62:$B$315,2,0))) ->  | I81: =IF(ISBLANK(F81),"",IF(ISERROR(VLOOKUP(F81,'Khai bao'!$A$62:$B$315,2,0)),"X",VLOOKUP(F81,'Khai bao'!$A$62:$B$315,2,0))) -> 
A82: =IF(B82<>"",COUNTA($B$12:B82),"") ->  | H82: =IF(ISBLANK(E82),"",IF(ISERROR(VLOOKUP(E82,'Khai bao'!$A$62:$B$315,2,0)),"X",VLOOKUP(E82,'Khai bao'!$A$62:$B$315,2,0))) ->  | I82: =IF(ISBLANK(F82),"",IF(ISERROR(VLOOKUP(F82,'Khai bao'!$A$62:$B$315,2,0)),"X",VLOOKUP(F82,'Khai bao'!$A$62:$B$315,2,0))) -> 
A83: =IF(B83<>"",COUNTA($B$12:B83),"") ->  | H83: =IF(ISBLANK(E83),"",IF(ISERROR(VLOOKUP(E83,'Khai bao'!$A$62:$B$315,2,0)),"X",VLOOKUP(E83,'Khai bao'!$A$62:$B$315,2,0))) ->  | I83: =IF(ISBLANK(F83),"",IF(ISERROR(VLOOKUP(F83,'Khai bao'!$A$62:$B$315,2,0)),"X",VLOOKUP(F83,'Khai bao'!$A$62:$B$315,2,0))) -> 
A84: =IF(B84<>"",COUNTA($B$12:B84),"") ->  | H84: =IF(ISBLANK(E84),"",IF(ISERROR(VLOOKUP(E84,'Khai bao'!$A$62:$B$315,2,0)),"X",VLOOKUP(E84,'Khai bao'!$A$62:$B$315,2,0))) ->  | I84: =IF(ISBLANK(F84),"",IF(ISERROR(VLOOKUP(F84,'Khai bao'!$A$62:$B$315,2,0)),"X",VLOOKUP(F84,'Khai bao'!$A$62:$B$315,2,0))) -> 
A85: =IF(B85<>"",COUNTA($B$12:B85),"") ->  | H85: =IF(ISBLANK(E85),"",IF(ISERROR(VLOOKUP(E85,'Khai bao'!$A$62:$B$315,2,0)),"X",VLOOKUP(E85,'Khai bao'!$A$62:$B$315,2,0))) ->  | I85: =IF(ISBLANK(F85),"",IF(ISERROR(VLOOKUP(F85,'Khai bao'!$A$62:$B$315,2,0)),"X",VLOOKUP(F85,'Khai bao'!$A$62:$B$315,2,0))) -> 
A86: =IF(B86<>"",COUNTA($B$12:B86),"") ->  | H86: =IF(ISBLANK(E86),"",IF(ISERROR(VLOOKUP(E86,'Khai bao'!$A$62:$B$315,2,0)),"X",VLOOKUP(E86,'Khai bao'!$A$62:$B$315,2,0))) ->  | I86: =IF(ISBLANK(F86),"",IF(ISERROR(VLOOKUP(F86,'Khai bao'!$A$62:$B$315,2,0)),"X",VLOOKUP(F86,'Khai bao'!$A$62:$B$315,2,0))) -> 
A87: =IF(B87<>"",COUNTA($B$12:B87),"") ->  | C87: Hợp nhất công ty con 1 | H87: =IF(ISBLANK(E87),"",IF(ISERROR(VLOOKUP(E87,'Khai bao'!$A$62:$B$315,2,0)),"X",VLOOKUP(E87,'Khai bao'!$A$62:$B$315,2,0))) ->  | I87: =IF(ISBLANK(F87),"",IF(ISERROR(VLOOKUP(F87,'Khai bao'!$A$62:$B$315,2,0)),"X",VLOOKUP(F87,'Khai bao'!$A$62:$B$315,2,0))) -> 
A88: =IF(B88<>"",COUNTA($B$12:B88),"") ->  | H88: =IF(ISBLANK(E88),"",IF(ISERROR(VLOOKUP(E88,'Khai bao'!$A$62:$B$315,2,0)),"X",VLOOKUP(E88,'Khai bao'!$A$62:$B$315,2,0))) ->  | I88: =IF(ISBLANK(F88),"",IF(ISERROR(VLOOKUP(F88,'Khai bao'!$A$62:$B$315,2,0)),"X",VLOOKUP(F88,'Khai bao'!$A$62:$B$315,2,0))) -> 
A89: =IF(B89<>"",COUNTA($B$12:B89),"") ->  | H89: =IF(ISBLANK(E89),"",IF(ISERROR(VLOOKUP(E89,'Khai bao'!$A$62:$B$315,2,0)),"X",VLOOKUP(E89,'Khai bao'!$A$62:$B$315,2,0))) ->  | I89: =IF(ISBLANK(F89),"",IF(ISERROR(VLOOKUP(F89,'Khai bao'!$A$62:$B$315,2,0)),"X",VLOOKUP(F89,'Khai bao'!$A$62:$B$315,2,0))) -> 
A90: =IF(B90<>"",COUNTA($B$12:B90),"") ->  | H90: =IF(ISBLANK(E90),"",IF(ISERROR(VLOOKUP(E90,'Khai bao'!$A$62:$B$315,2,0)),"X",VLOOKUP(E90,'Khai bao'!$A$62:$B$315,2,0))) ->  | I90: =IF(ISBLANK(F90),"",IF(ISERROR(VLOOKUP(F90,'Khai bao'!$A$62:$B$315,2,0)),"X",VLOOKUP(F90,'Khai bao'!$A$62:$B$315,2,0))) -> 
A91: =IF(B91<>"",COUNTA($B$12:B91),"") ->  | H91: =IF(ISBLANK(E91),"",IF(ISERROR(VLOOKUP(E91,'Khai bao'!$A$62:$B$315,2,0)),"X",VLOOKUP(E91,'Khai bao'!$A$62:$B$315,2,0))) ->  | I91: =IF(ISBLANK(F91),"",IF(ISERROR(VLOOKUP(F91,'Khai bao'!$A$62:$B$315,2,0)),"X",VLOOKUP(F91,'Khai bao'!$A$62:$B$315,2,0))) -> 
A92: =IF(B92<>"",COUNTA($B$12:B92),"") ->  | H92: =IF(ISBLANK(E92),"",IF(ISERROR(VLOOKUP(E92,'Khai bao'!$A$62:$B$315,2,0)),"X",VLOOKUP(E92,'Khai bao'!$A$62:$B$315,2,0))) ->  | I92: =IF(ISBLANK(F92),"",IF(ISERROR(VLOOKUP(F92,'Khai bao'!$A$62:$B$315,2,0)),"X",VLOOKUP(F92,'Khai bao'!$A$62:$B$315,2,0))) -> 
A93: =IF(B93<>"",COUNTA($B$12:B93),"") ->  | H93: =IF(ISBLANK(E93),"",IF(ISERROR(VLOOKUP(E93,'Khai bao'!$A$62:$B$315,2,0)),"X",VLOOKUP(E93,'Khai bao'!$A$62:$B$315,2,0))) ->  | I93: =IF(ISBLANK(F93),"",IF(ISERROR(VLOOKUP(F93,'Khai bao'!$A$62:$B$315,2,0)),"X",VLOOKUP(F93,'Khai bao'!$A$62:$B$315,2,0))) -> 
A94: =IF(B94<>"",COUNTA($B$12:B94),"") ->  | H94: =IF(ISBLANK(E94),"",IF(ISERROR(VLOOKUP(E94,'Khai bao'!$A$62:$B$315,2,0)),"X",VLOOKUP(E94,'Khai bao'!$A$62:$B$315,2,0))) ->  | I94: =IF(ISBLANK(F94),"",IF(ISERROR(VLOOKUP(F94,'Khai bao'!$A$62:$B$315,2,0)),"X",VLOOKUP(F94,'Khai bao'!$A$62:$B$315,2,0))) ->  | J94: =IF(G94<>0,G94,"") -> 
A95: =IF(B95<>"",COUNTA($B$12:B95),"") ->  | H95: =IF(ISBLANK(E95),"",IF(ISERROR(VLOOKUP(E95,'Khai bao'!$A$62:$B$315,2,0)),"X",VLOOKUP(E95,'Khai bao'!$A$62:$B$315,2,0))) ->  | I95: =IF(ISBLANK(F95),"",IF(ISERROR(VLOOKUP(F95,'Khai bao'!$A$62:$B$315,2,0)),"X",VLOOKUP(F95,'Khai bao'!$A$62:$B$315,2,0))) -> 
A96: =IF(B96<>"",COUNTA($B$12:B96),"") ->  | C96: Hợp nhất công ty liên doanh, liên kết | H96: =IF(ISBLANK(E96),"",IF(ISERROR(VLOOKUP(E96,'Khai bao'!$A$62:$B$315,2,0)),"X",VLOOKUP(E96,'Khai bao'!$A$62:$B$315,2,0))) ->  | I96: =IF(ISBLANK(F96),"",IF(ISERROR(VLOOKUP(F96,'Khai bao'!$A$62:$B$315,2,0)),"X",VLOOKUP(F96,'Khai bao'!$A$62:$B$315,2,0))) -> 
A97: =IF(B97<>"",COUNTA($B$12:B97),"") ->  | H97: =IF(ISBLANK(E97),"",IF(ISERROR(VLOOKUP(E97,'Khai bao'!$A$62:$B$315,2,0)),"X",VLOOKUP(E97,'Khai bao'!$A$62:$B$315,2,0))) ->  | I97: =IF(ISBLANK(F97),"",IF(ISERROR(VLOOKUP(F97,'Khai bao'!$A$62:$B$315,2,0)),"X",VLOOKUP(F97,'Khai bao'!$A$62:$B$315,2,0))) -> 
A98: =IF(B98<>"",COUNTA($B$12:B98),"") ->  | H98: =IF(ISBLANK(E98),"",IF(ISERROR(VLOOKUP(E98,'Khai bao'!$A$62:$B$315,2,0)),"X",VLOOKUP(E98,'Khai bao'!$A$62:$B$315,2,0))) ->  | I98: =IF(ISBLANK(F98),"",IF(ISERROR(VLOOKUP(F98,'Khai bao'!$A$62:$B$315,2,0)),"X",VLOOKUP(F98,'Khai bao'!$A$62:$B$315,2,0))) -> 
A99: =IF(B99<>"",COUNTA($B$12:B99),"") ->  | H99: =IF(ISBLANK(E99),"",IF(ISERROR(VLOOKUP(E99,'Khai bao'!$A$62:$B$315,2,0)),"X",VLOOKUP(E99,'Khai bao'!$A$62:$B$315,2,0))) ->  | I99: =IF(ISBLANK(F99),"",IF(ISERROR(VLOOKUP(F99,'Khai bao'!$A$62:$B$315,2,0)),"X",VLOOKUP(F99,'Khai bao'!$A$62:$B$315,2,0))) -> 
A100: =IF(B100<>"",COUNTA($B$12:B100),"") ->  | H100: =IF(ISBLANK(E100),"",IF(ISERROR(VLOOKUP(E100,'Khai bao'!$A$62:$B$315,2,0)),"X",VLOOKUP(E100,'Khai bao'!$A$62:$B$315,2,0))) ->  | I100: =IF(ISBLANK(F100),"",IF(ISERROR(VLOOKUP(F100,'Khai bao'!$A$62:$B$315,2,0)),"X",VLOOKUP(F100,'Khai bao'!$A$62:$B$315,2,0))) -> 
A101: =IF(B101<>"",COUNTA($B$12:B101),"") ->  | H101: =IF(ISBLANK(E101),"",IF(ISERROR(VLOOKUP(E101,'Khai bao'!$A$62:$B$315,2,0)),"X",VLOOKUP(E101,'Khai bao'!$A$62:$B$315,2,0))) ->  | I101: =IF(ISBLANK(F101),"",IF(ISERROR(VLOOKUP(F101,'Khai bao'!$A$62:$B$315,2,0)),"X",VLOOKUP(F101,'Khai bao'!$A$62:$B$315,2,0))) -> 
A102: =IF(B102<>"",COUNTA($B$12:B102),"") ->  | H102: =IF(ISBLANK(E102),"",IF(ISERROR(VLOOKUP(E102,'Khai bao'!$A$62:$B$315,2,0)),"X",VLOOKUP(E102,'Khai bao'!$A$62:$B$315,2,0))) ->  | I102: =IF(ISBLANK(F102),"",IF(ISERROR(VLOOKUP(F102,'Khai bao'!$A$62:$B$315,2,0)),"X",VLOOKUP(F102,'Khai bao'!$A$62:$B$315,2,0))) -> 
A103: =IF(B103<>"",COUNTA($B$12:B103),"") ->  | H103: =IF(ISBLANK(E103),"",IF(ISERROR(VLOOKUP(E103,'Khai bao'!$A$62:$B$315,2,0)),"X",VLOOKUP(E103,'Khai bao'!$A$62:$B$315,2,0))) ->  | I103: =IF(ISBLANK(F103),"",IF(ISERROR(VLOOKUP(F103,'Khai bao'!$A$62:$B$315,2,0)),"X",VLOOKUP(F103,'Khai bao'!$A$62:$B$315,2,0))) -> 
A104: =IF(B104<>"",COUNTA($B$12:B104),"") ->  | H104: =IF(ISBLANK(E104),"",IF(ISERROR(VLOOKUP(E104,'Khai bao'!$A$62:$B$315,2,0)),"X",VLOOKUP(E104,'Khai bao'!$A$62:$B$315,2,0))) ->  | I104: =IF(ISBLANK(F104),"",IF(ISERROR(VLOOKUP(F104,'Khai bao'!$A$62:$B$315,2,0)),"X",VLOOKUP(F104,'Khai bao'!$A$62:$B$315,2,0))) -> 
A105: =IF(B105<>"",COUNTA($B$12:B105),"") ->  | H105: =IF(ISBLANK(E105),"",IF(ISERROR(VLOOKUP(E105,'Khai bao'!$A$62:$B$315,2,0)),"X",VLOOKUP(E105,'Khai bao'!$A$62:$B$315,2,0))) ->  | I105: =IF(ISBLANK(F105),"",IF(ISERROR(VLOOKUP(F105,'Khai bao'!$A$62:$B$315,2,0)),"X",VLOOKUP(F105,'Khai bao'!$A$62:$B$315,2,0))) ->  | J105: =IF(G105<>0,G105,"") -> 
A106: =IF(B106<>"",COUNTA($B$12:B106),"") ->  | H106: =IF(ISBLANK(E106),"",IF(ISERROR(VLOOKUP(E106,'Khai bao'!$A$62:$B$315,2,0)),"X",VLOOKUP(E106,'Khai bao'!$A$62:$B$315,2,0))) ->  | I106: =IF(ISBLANK(F106),"",IF(ISERROR(VLOOKUP(F106,'Khai bao'!$A$62:$B$315,2,0)),"X",VLOOKUP(F106,'Khai bao'!$A$62:$B$315,2,0))) -> 
A107: =IF(B107<>"",COUNTA($B$12:B107),"") ->  | H107: =IF(ISBLANK(E107),"",IF(ISERROR(VLOOKUP(E107,'Khai bao'!$A$62:$B$315,2,0)),"X",VLOOKUP(E107,'Khai bao'!$A$62:$B$315,2,0))) ->  | I107: =IF(ISBLANK(F107),"",IF(ISERROR(VLOOKUP(F107,'Khai bao'!$A$62:$B$315,2,0)),"X",VLOOKUP(F107,'Khai bao'!$A$62:$B$315,2,0))) -> 
A108: =IF(B108<>"",COUNTA($B$12:B108),"") ->  | H108: =IF(ISBLANK(E108),"",IF(ISERROR(VLOOKUP(E108,'Khai bao'!$A$62:$B$315,2,0)),"X",VLOOKUP(E108,'Khai bao'!$A$62:$B$315,2,0))) ->  | I108: =IF(ISBLANK(F108),"",IF(ISERROR(VLOOKUP(F108,'Khai bao'!$A$62:$B$315,2,0)),"X",VLOOKUP(F108,'Khai bao'!$A$62:$B$315,2,0))) -> 
A109: =IF(B109<>"",COUNTA($B$12:B109),"") ->  | H109: =IF(ISBLANK(E109),"",IF(ISERROR(VLOOKUP(E109,'Khai bao'!$A$62:$B$315,2,0)),"X",VLOOKUP(E109,'Khai bao'!$A$62:$B$315,2,0))) ->  | I109: =IF(ISBLANK(F109),"",IF(ISERROR(VLOOKUP(F109,'Khai bao'!$A$62:$B$315,2,0)),"X",VLOOKUP(F109,'Khai bao'!$A$62:$B$315,2,0))) -> 
A110: =IF(B110<>"",COUNTA($B$12:B110),"") ->  | H110: =IF(ISBLANK(E110),"",IF(ISERROR(VLOOKUP(E110,'Khai bao'!$A$62:$B$315,2,0)),"X",VLOOKUP(E110,'Khai bao'!$A$62:$B$315,2,0))) ->  | I110: =IF(ISBLANK(F110),"",IF(ISERROR(VLOOKUP(F110,'Khai bao'!$A$62:$B$315,2,0)),"X",VLOOKUP(F110,'Khai bao'!$A$62:$B$315,2,0))) -> 
A111: =IF(B111<>"",COUNTA($B$12:B111),"") ->  | C111: Cộng năm nay | G111: =SUBTOTAL(109,G12:G110) -> 0 | J111: =SUBTOTAL(109,J12:J110) -> 0
A112: =IF(B112<>"",COUNTA($B$12:B112),"") ->  | C112: NĂM TRƯỚC | H112: =IF(ISBLANK(E112),"",IF(ISERROR(VLOOKUP(E112,'Khai bao'!$A$62:$B$315,2,0)),"X",VLOOKUP(E112,'Khai bao'!$A$62:$B$315,2,0))) ->  | I112: =IF(ISBLANK(F112),"",IF(ISERROR(VLOOKUP(F112,'Khai bao'!$A$62:$B$315,2,0)),"X",VLOOKUP(F112,'Khai bao'!$A$62:$B$315,2,0))) ->  | J112: =IF(G112<>0,G112,"") -> 
A113: =IF(B113<>"",COUNTA($B$12:B113),"") ->  | H113: =IF(ISBLANK(E113),"",IF(ISERROR(VLOOKUP(E113,'Khai bao'!$A$62:$B$315,2,0)),"X",VLOOKUP(E113,'Khai bao'!$A$62:$B$315,2,0))) ->  | I113: =IF(ISBLANK(F113),"",IF(ISERROR(VLOOKUP(F113,'Khai bao'!$A$62:$B$315,2,0)),"X",VLOOKUP(F113,'Khai bao'!$A$62:$B$315,2,0))) ->  | J113: =IF(G113<>0,G113,"") -> 
A114: =IF(B114<>"",COUNTA($B$12:B114),"") ->  | H114: =IF(ISBLANK(E114),"",IF(ISERROR(VLOOKUP(E114,'Khai bao'!$A$62:$B$315,2,0)),"X",VLOOKUP(E114,'Khai bao'!$A$62:$B$315,2,0))) ->  | I114: =IF(ISBLANK(F114),"",IF(ISERROR(VLOOKUP(F114,'Khai bao'!$A$62:$B$315,2,0)),"X",VLOOKUP(F114,'Khai bao'!$A$62:$B$315,2,0))) ->  | J114: =IF(G114<>0,G114,"") -> 
A115: =IF(B115<>"",COUNTA($B$12:B115),"") ->  | H115: =IF(ISBLANK(E115),"",IF(ISERROR(VLOOKUP(E115,'Khai bao'!$A$62:$B$315,2,0)),"X",VLOOKUP(E115,'Khai bao'!$A$62:$B$315,2,0))) ->  | I115: =IF(ISBLANK(F115),"",IF(ISERROR(VLOOKUP(F115,'Khai bao'!$A$62:$B$315,2,0)),"X",VLOOKUP(F115,'Khai bao'!$A$62:$B$315,2,0))) -> 
A116: =IF(B116<>"",COUNTA($B$12:B116),"") ->  | H116: =IF(ISBLANK(E116),"",IF(ISERROR(VLOOKUP(E116,'Khai bao'!$A$62:$B$315,2,0)),"X",VLOOKUP(E116,'Khai bao'!$A$62:$B$315,2,0))) ->  | I116: =IF(ISBLANK(F116),"",IF(ISERROR(VLOOKUP(F116,'Khai bao'!$A$62:$B$315,2,0)),"X",VLOOKUP(F116,'Khai bao'!$A$62:$B$315,2,0))) -> 
A117: =IF(B117<>"",COUNTA($B$12:B117),"") ->  | H117: =IF(ISBLANK(E117),"",IF(ISERROR(VLOOKUP(E117,'Khai bao'!$A$62:$B$315,2,0)),"X",VLOOKUP(E117,'Khai bao'!$A$62:$B$315,2,0))) ->  | I117: =IF(ISBLANK(F117),"",IF(ISERROR(VLOOKUP(F117,'Khai bao'!$A$62:$B$315,2,0)),"X",VLOOKUP(F117,'Khai bao'!$A$62:$B$315,2,0))) -> 
A118: =IF(B118<>"",COUNTA($B$12:B118),"") ->  | H118: =IF(ISBLANK(E118),"",IF(ISERROR(VLOOKUP(E118,'Khai bao'!$A$62:$B$315,2,0)),"X",VLOOKUP(E118,'Khai bao'!$A$62:$B$315,2,0))) ->  | I118: =IF(ISBLANK(F118),"",IF(ISERROR(VLOOKUP(F118,'Khai bao'!$A$62:$B$315,2,0)),"X",VLOOKUP(F118,'Khai bao'!$A$62:$B$315,2,0))) -> 
A119: =IF(B119<>"",COUNTA($B$12:B119),"") ->  | H119: =IF(ISBLANK(E119),"",IF(ISERROR(VLOOKUP(E119,'Khai bao'!$A$62:$B$315,2,0)),"X",VLOOKUP(E119,'Khai bao'!$A$62:$B$315,2,0))) ->  | I119: =IF(ISBLANK(F119),"",IF(ISERROR(VLOOKUP(F119,'Khai bao'!$A$62:$B$315,2,0)),"X",VLOOKUP(F119,'Khai bao'!$A$62:$B$315,2,0))) -> 
A120: =IF(B120<>"",COUNTA($B$12:B120),"") ->  | H120: =IF(ISBLANK(E120),"",IF(ISERROR(VLOOKUP(E120,'Khai bao'!$A$62:$B$315,2,0)),"X",VLOOKUP(E120,'Khai bao'!$A$62:$B$315,2,0))) ->  | I120: =IF(ISBLANK(F120),"",IF(ISERROR(VLOOKUP(F120,'Khai bao'!$A$62:$B$315,2,0)),"X",VLOOKUP(F120,'Khai bao'!$A$62:$B$315,2,0))) -> 
A121: =IF(B121<>"",COUNTA($B$12:B121),"") ->  | H121: =IF(ISBLANK(E121),"",IF(ISERROR(VLOOKUP(E121,'Khai bao'!$A$62:$B$315,2,0)),"X",VLOOKUP(E121,'Khai bao'!$A$62:$B$315,2,0))) ->  | I121: =IF(ISBLANK(F121),"",IF(ISERROR(VLOOKUP(F121,'Khai bao'!$A$62:$B$315,2,0)),"X",VLOOKUP(F121,'Khai bao'!$A$62:$B$315,2,0))) -> 
A122: =IF(B122<>"",COUNTA($B$12:B122),"") ->  | H122: =IF(ISBLANK(E122),"",IF(ISERROR(VLOOKUP(E122,'Khai bao'!$A$62:$B$315,2,0)),"X",VLOOKUP(E122,'Khai bao'!$A$62:$B$315,2,0))) ->  | I122: =IF(ISBLANK(F122),"",IF(ISERROR(VLOOKUP(F122,'Khai bao'!$A$62:$B$315,2,0)),"X",VLOOKUP(F122,'Khai bao'!$A$62:$B$315,2,0))) -> 
A123: =IF(B123<>"",COUNTA($B$12:B123),"") ->  | H123: =IF(ISBLANK(E123),"",IF(ISERROR(VLOOKUP(E123,'Khai bao'!$A$62:$B$315,2,0)),"X",VLOOKUP(E123,'Khai bao'!$A$62:$B$315,2,0))) ->  | I123: =IF(ISBLANK(F123),"",IF(ISERROR(VLOOKUP(F123,'Khai bao'!$A$62:$B$315,2,0)),"X",VLOOKUP(F123,'Khai bao'!$A$62:$B$315,2,0))) -> 
A124: =IF(B124<>"",COUNTA($B$12:B124),"") ->  | H124: =IF(ISBLANK(E124),"",IF(ISERROR(VLOOKUP(E124,'Khai bao'!$A$62:$B$315,2,0)),"X",VLOOKUP(E124,'Khai bao'!$A$62:$B$315,2,0))) ->  | I124: =IF(ISBLANK(F124),"",IF(ISERROR(VLOOKUP(F124,'Khai bao'!$A$62:$B$315,2,0)),"X",VLOOKUP(F124,'Khai bao'!$A$62:$B$315,2,0))) -> 
A125: =IF(B125<>"",COUNTA($B$12:B125),"") ->  | H125: =IF(ISBLANK(E125),"",IF(ISERROR(VLOOKUP(E125,'Khai bao'!$A$62:$B$315,2,0)),"X",VLOOKUP(E125,'Khai bao'!$A$62:$B$315,2,0))) ->  | I125: =IF(ISBLANK(F125),"",IF(ISERROR(VLOOKUP(F125,'Khai bao'!$A$62:$B$315,2,0)),"X",VLOOKUP(F125,'Khai bao'!$A$62:$B$315,2,0))) -> 
A126: =IF(B126<>"",COUNTA($B$12:B126),"") ->  | H126: =IF(ISBLANK(E126),"",IF(ISERROR(VLOOKUP(E126,'Khai bao'!$A$62:$B$315,2,0)),"X",VLOOKUP(E126,'Khai bao'!$A$62:$B$315,2,0))) ->  | I126: =IF(ISBLANK(F126),"",IF(ISERROR(VLOOKUP(F126,'Khai bao'!$A$62:$B$315,2,0)),"X",VLOOKUP(F126,'Khai bao'!$A$62:$B$315,2,0))) -> 
A127: =IF(B127<>"",COUNTA($B$12:B127),"") ->  | H127: =IF(ISBLANK(E127),"",IF(ISERROR(VLOOKUP(E127,'Khai bao'!$A$62:$B$315,2,0)),"X",VLOOKUP(E127,'Khai bao'!$A$62:$B$315,2,0))) ->  | I127: =IF(ISBLANK(F127),"",IF(ISERROR(VLOOKUP(F127,'Khai bao'!$A$62:$B$315,2,0)),"X",VLOOKUP(F127,'Khai bao'!$A$62:$B$315,2,0))) -> 
A128: =IF(B128<>"",COUNTA($B$12:B128),"") ->  | H128: =IF(ISBLANK(E128),"",IF(ISERROR(VLOOKUP(E128,'Khai bao'!$A$62:$B$315,2,0)),"X",VLOOKUP(E128,'Khai bao'!$A$62:$B$315,2,0))) ->  | I128: =IF(ISBLANK(F128),"",IF(ISERROR(VLOOKUP(F128,'Khai bao'!$A$62:$B$315,2,0)),"X",VLOOKUP(F128,'Khai bao'!$A$62:$B$315,2,0))) -> 
A129: =IF(B129<>"",COUNTA($B$12:B129),"") ->  | H129: =IF(ISBLANK(E129),"",IF(ISERROR(VLOOKUP(E129,'Khai bao'!$A$62:$B$315,2,0)),"X",VLOOKUP(E129,'Khai bao'!$A$62:$B$315,2,0))) ->  | I129: =IF(ISBLANK(F129),"",IF(ISERROR(VLOOKUP(F129,'Khai bao'!$A$62:$B$315,2,0)),"X",VLOOKUP(F129,'Khai bao'!$A$62:$B$315,2,0))) -> 
A130: =IF(B130<>"",COUNTA($B$12:B130),"") ->  | H130: =IF(ISBLANK(E130),"",IF(ISERROR(VLOOKUP(E130,'Khai bao'!$A$62:$B$315,2,0)),"X",VLOOKUP(E130,'Khai bao'!$A$62:$B$315,2,0))) ->  | I130: =IF(ISBLANK(F130),"",IF(ISERROR(VLOOKUP(F130,'Khai bao'!$A$62:$B$315,2,0)),"X",VLOOKUP(F130,'Khai bao'!$A$62:$B$315,2,0))) -> 
A131: =IF(B131<>"",COUNTA($B$12:B131),"") ->  | H131: =IF(ISBLANK(E131),"",IF(ISERROR(VLOOKUP(E131,'Khai bao'!$A$62:$B$315,2,0)),"X",VLOOKUP(E131,'Khai bao'!$A$62:$B$315,2,0))) ->  | I131: =IF(ISBLANK(F131),"",IF(ISERROR(VLOOKUP(F131,'Khai bao'!$A$62:$B$315,2,0)),"X",VLOOKUP(F131,'Khai bao'!$A$62:$B$315,2,0))) ->  | J131: =IF(G131<>0,G131,"") -> 
A132: =IF(B132<>"",COUNTA($B$12:B132),"") ->  | H132: =IF(ISBLANK(E132),"",IF(ISERROR(VLOOKUP(E132,'Khai bao'!$A$62:$B$315,2,0)),"X",VLOOKUP(E132,'Khai bao'!$A$62:$B$315,2,0))) ->  | I132: =IF(ISBLANK(F132),"",IF(ISERROR(VLOOKUP(F132,'Khai bao'!$A$62:$B$315,2,0)),"X",VLOOKUP(F132,'Khai bao'!$A$62:$B$315,2,0))) ->  | J132: =IF(G132<>0,G132,"") -> 
A133: =IF(B133<>"",COUNTA($B$12:B133),"") ->  | C133: Cộng năm trước | G133: =SUBTOTAL(109,G112:G132) -> 0 | J133: =SUBTOTAL(109,J112:J132) -> 0

Sheet CF-WPs
A1: ='Khai bao'!$C$3 -> CÔNG TY TNHH TƯ VẤN VÀ ĐÀO TẠO IVC
A4: BẢNG BÚT TOÁN ĐIỀU CHỈNH PHỤC VỤ LẬP BÁO CÁO LCTT
A6: STT | B6: Nội dung điều chỉnh | C6: MS ghi nợ | D6: MS ghi có | E6: Số tiền | F6: Chỉ tiêu điều chỉnh nợ | G6: Chỉ tiêu điều chỉnh có | V6: MS | W6: Chỉ tiêu
F7: =VLOOKUP(C7,$V$7:$W$36,2,0) ->  | G7: =VLOOKUP(D7,$V$7:$W$36,2,0) ->  | V7: 01 | W7: Lợi nhuận trước thuế
F8: =VLOOKUP(C8,$V$7:$W$36,2,0) ->  | G8: =VLOOKUP(D8,$V$7:$W$36,2,0) ->  | V8: 02 | W8: Khấu hao tài sản cố định và bất động sản đầu tư
V9: 03 | W9: Các khoản dự phòng
V10: 04 | W10: Lãi, lỗ chênh lệch tỷ giá hối đoái do đánh giá lại các khoản mục tiền tệ có gốc ngoại tệ
V11: 05 | W11: Lãi, lỗ từ hoạt động đầu tư
V12: 06 | W12: Chi phí lãi vay
V13: 07 | W13: Các khoản điều chỉnh khác
V14: 09 | W14: Tăng, giảm các khoản phải thu
V15: 10 | W15: Tăng, giảm hàng tồn kho
V16: 11 | W16: Tăng, giảm các khoản phải trả (không kể lãi vay phải trả, thuế thu nhập doanh nghiệp phải nộp)
V17: 12 | W17: Tăng, giảm chi phí trả trước
V18: 13 | W18: Tăng, giảm chứng khoán kinh doanh
V19: 14 | W19: Tiền lãi vay đã trả
V20: 15 | W20: Thuế thu nhập doanh nghiệp đã nộp
V21: 16 | W21: Tiền thu khác từ hoạt động kinh doanh
V22: 17 | W22: Tiền chi khác cho hoạt động kinh doanh
V23: 21 | W23: Tiền chi để mua sắm, xây dựng tài sản cố định và các tài sản dài hạn khác
V24: 22 | W24: Tiền thu từ thanh lý, nhượng bán tài sản cố định và các tài sản dài hạn khác
V25: 23 | W25: Tiền chi cho vay, mua các công cụ nợ của đơn vị khác
V26: 24 | W26: Tiền thu hồi cho vay, bán lại các công cụ nợ của đơn vị khác
V27: 25 | W27: Tiền chi đầu tư góp vốn vào đơn vị khác
V28: 26 | W28: Tiền thu hồi đầu tư góp vốn vào đơn vị khác
V29: 27 | W29: Tiền thu lãi cho vay, cổ tức và lợi nhuận được chia
V30: 31 | W30: Tiền thu từ phát hành cổ phiếu, nhận vốn góp của chủ sở hữu
V31: 32 | W31: Tiền trả lại vốn góp cho các chủ sở hữu, mua lại cổ phiếu của doanh nghiệp đã phát hành
V32: 33 | W32: Tiền thu từ đi vay
V33: 34 | W33: Tiền trả nợ gốc vay
V34: 35 | W34: Tiền trả nợ gốc thuê tài chính
V35: 36 | W35: Cổ tức, lợi nhuận đã trả cho chủ sở hữu
V36: 61 | W36: Ảnh hưởng của thay đổi tỷ giá hối đoái quy đổi ngoại tệ
F72: =VLOOKUP(C72,$V$7:$W$36,2,0) ->  | G72: =VLOOKUP(D72,$V$7:$W$36,2,0) -> 
F136: =VLOOKUP(C136,$V$7:$W$36,2,0) ->  | G136: =VLOOKUP(D136,$V$7:$W$36,2,0) -> 

Sheet CDKT
B1: ='Khai bao'!$C$3 -> CÔNG TY TNHH TƯ VẤN VÀ ĐÀO TẠO IVC | U1: ="B"&RIGHT('Khai bao'!$C$13,16) -> Báo cáo tài chính | V1: ='Khai bao'!$D$3 -> IVC CONSULTING AND TRAINING COMPANY LIMITED | AG1: ="F"&RIGHT('Khai bao'!$D$13,19) -> Financial statements | BA1: ĐK | BB1: =U15 -> 666444491491
U2: Mẫu số B 01-DN | V2: ='Khai bao'!$D$6 -> 0 | AG2: Form B 01 - DN | BA2: CK | BB2: =K15 -> 205286271149
U3: (Ban hành theo Thông tư số 200/2014/TT-BTC | AG3: (According to Circular No. 200/2014/TT-BTC | BA3: TS | BB3: =SUM(BB13:BB151) -> -2055378769079 | BC3: =SUM(BB17:BB19) -> 285693220342 | BD3: =BB3-BC3 -> -2341071989421
U4: ngày 22/12/2014 của Bộ Tài chính) | AG4: dated 22/12/2014 by Financial Department) | BA4: NV | BB4: =SUM(BB161:BB277) -> 2055378769079 | BD4: =BB4+BD3 -> -285693220342
AS5: A510 | BB5: =BB3+BB4 -> 0
B6: =IF('Khai bao'!C12='Khai bao'!F13,"BẢNG CÂN ĐỐI KẾ TOÁN HỢP NHẤT","BẢNG CÂN ĐỐI KẾ TOÁN") -> BẢNG CÂN ĐỐI KẾ TOÁN | V6: =IF('Khai bao'!C12='Khai bao'!F13,"CONSOLIDATED STATEMENT OF FINANCIAL POSITION","STATEMENT OF FINANCIAL POSITION") -> STATEMENT OF FINANCIAL POSITION
B7: ="Tại "&'Khai bao'!C17 -> Tại ngày 31 tháng 12 năm 2020 | V7: ="As at "&'Khai bao'!D17 -> As at 31 December 2020
BA9: BIẾN ĐỘNG LẬP CF
A10: TK | B10: CHỈ TIÊU | F10: Mã số | I10: Thuyết minh | K10: Công ty mẹ | L10: Công ty con 1 | M10: Công ty con 2 | N10: Số đơn vị (CN) | O10: Điều chỉnh | P10: ='Khai bao'!C19 -> Số cuối năm | R10: Công ty mẹ | S10: Công ty con 1 | T10: Công ty con 2 | U10: ='Khai bao'!C23 -> Số đầu năm | V10: ITEMS | AA10: Code | AC10: Note | AE10: Ending balance | AG10: Beginning balance | AI10: Preliminary analysis befor audits | AM10: General analysis after audits | AQ10: Analysis of pre/ post audits | AW10: Test TA/TV | BA10: Code CF | BB10: Công ty Mẹ | BC10: Công ty Con 1 | BD10: Công ty Con 2 | BE10: BT điều chỉnh
A11: 0 | K11: VND | L11: VND | M11: VND | N11: VND | O11: VND | P11: VND | R11: VND | S11: VND | T11: VND | U11: VND | AE11: VND | AG11: VND | AI11: (+/-) | AK11: (%) | AM11: (+/-) | AO11: (%) | AQ11: (+/-) | AS11: (%)
B13: A. | C13: TÀI SẢN NGẮN HẠN | F13: 100 | K13: =K15+K22+K33+K59+K72 -> 8229460161932 | L13: 0 | M13: 0 | N13: 8229460161932 | O13: 0 | P13: 8229460161932 | R13: =R15+R22+R33+R59+R72 -> 6198826820424 | S13: =S15+S22+S33+S59+S72 -> 0 | T13: =T15+T22+T33+T59+T72 -> 0 | U13: =U15+U22+U33+U59+U72 -> 6198826820424 | V13: =B13 -> A. | W13: SHORT-TERM ASSETS | AA13: =F13 -> 100 | AE13: =AE15+AE22+AE33+AE59+AE72 -> 8229460161932 | AG13: =AG15+AG22+AG33+AG59+AG72 -> 6198826820424 | AI13: =N13-R13 -> 2030633341508 | AK13: =IF(AI13=0,0,IF(R13<>0,AI13/R13,IF(R13>0,1,-1))) -> 0.3275834929 | AM13: =P13-U13 -> 2030633341508 | AO13: =IF(AM13=0,0,IF(U13<>0,AM13/U13,IF(U13>0,1,-1))) -> 0.3275834929 | AQ13: =P13-N13 -> 0 | AS13: =IF(AQ13=0,0,IF(N13<>0,AQ13/N13,IF(N13>0,1,-1))) -> 0 | AU13: =IF(P13+U13=0,0,1) -> 1 | AW13: =P13-AE13 -> 0 | AX13: =U13-AG13 -> 0
AU14: =AU15 -> 1 | AW14: 0 | AX14: 0
B15: I. | C15: Tiền và các khoản tương đương tiền | F15: 110 | I15: ='Thuyet minh'!A534 -> 1.1 | K15: =K16+K20 -> 205286271149 | L15: 0 | M15: 0 | N15: 205286271149 | O15: 0 | P15: 205286271149 | R15: =R16+R20 -> 666444491491 | S15: =S16+S20 -> 0 | T15: =T16+T20 -> 0 | U15: =U16+U20 -> 666444491491 | V15: =B15 -> I. | W15: Cash and cash equivalents | AA15: =F15 -> 110 | AC15: =I15 -> 1.1 | AE15: =AE16+AE20 -> 205286271149 | AG15: =AG16+AG20 -> 666444491491 | AI15: =N15-R15 -> -461158220342 | AK15: =IF(AI15=0,0,IF(R15<>0,AI15/R15,IF(R15>0,1,-1))) -> -0.6919679377 | AM15: =P15-U15 -> -461158220342 | AO15: =IF(AM15=0,0,IF(U15<>0,AM15/U15,IF(U15>0,1,-1))) -> -0.6919679377 | AQ15: =P15-N15 -> 0 | AS15: =IF(AQ15=0,0,IF(N15<>0,AQ15/N15,IF(N15>0,1,-1))) -> 0 | AU15: =IF(P15+U15=0,0,1) -> 1 | AW15: 0 | AX15: 0
B16: 1. | C16: Tiền | F16: 111 | K16: =SUM(K17:K19) -> 161420021149 | L16: 0 | M16: 0 | N16: 161420021149 | O16: 0 | P16: 161420021149 | R16: =SUM(R17:R19) -> 447113241491 | S16: =SUM(S17:S19) -> 0 | T16: =SUM(T17:T19) -> 0 | U16: =SUM(U17:U19) -> 447113241491 | V16: 1. | W16: Cash | AA16: =F16 -> 111 | AE16: =SUM(AE17:AE19) -> 161420021149 | AG16: =SUM(AG17:AG19) -> 447113241491 | AI16: -285693220342 | AK16: -0.6389728459 | AM16: -285693220342 | AO16: -0.6389728459 | AQ16: 0 | AS16: 0 | AU16: 1 | AW16: 0 | AX16: 0
A17: 111 | B17: - | C17: Tiền mặt tại quỹ | K17: 977016980 | L17: 0 | M17: 0 | N17: =SUM(K17:M17) -> 977016980 | O17: =SUMIF('B360'!$H$12:$H$111,CDKT!A17,'B360'!$G$12:$G$111)-SUMIF('B360'!$I$12:$I$111,CDKT!A17,'B360'!$G$12:$G$111) -> 0 | P17: =N17+O17 -> 977016980 | R17: 2529015060 | S17: 0 | T17: 0 | U17: =SUM(R17:T17) -> 2529015060 | V17: - | W17: Cash on hand | AE17: =P17 -> 977016980 | AG17: =U17 -> 2529015060 | AI17: -1551998080 | AK17: -0.6136768834 | AM17: -1551998080 | AO17: -0.6136768834 | AQ17: 0 | AS17: 0 | AU17: 1 | AW17: 0 | AX17: 0 | BB17: =R17-K17 -> 1551998080 | BC17: =S17-L17 -> 0 | BD17: =T17-M17 -> 0
A18: 112 | B18: - | C18: Tiền gửi ngân hàng | K18: 160443004169 | L18: 0 | M18: 0 | N18: =SUM(K18:M18) -> 160443004169 | O18: =SUMIF('B360'!$H$12:$H$111,CDKT!A18,'B360'!$G$12:$G$111)-SUMIF('B360'!$I$12:$I$111,CDKT!A18,'B360'!$G$12:$G$111) -> 0 | P18: =N18+O18 -> 160443004169 | R18: 444584226431 | S18: 0 | T18: 0 | U18: =SUM(R18:T18) -> 444584226431 | V18: - | W18: Cash in bank | AE18: =P18 -> 160443004169 | AG18: =U18 -> 444584226431 | AI18: -284141222262 | AK18: -0.6391167418 | AM18: -284141222262 | AO18: -0.6391167418 | AQ18: 0 | AS18: 0 | AU18: 1 | AW18: 0 | AX18: 0 | BB18: =R18-K18 -> 284141222262 | BC18: =S18-L18 -> 0 | BD18: =T18-M18 -> 0
A19: 113 | B19: - | C19: Tiền đang chuyển | K19: 0 | L19: 0 | M19: 0 | N19: =SUM(K19:M19) -> 0 | O19: =SUMIF('B360'!$H$12:$H$111,CDKT!A19,'B360'!$G$12:$G$111)-SUMIF('B360'!$I$12:$I$111,CDKT!A19,'B360'!$G$12:$G$111) -> 0 | P19: =N19+O19 -> 0 | R19: 0 | S19: 0 | T19: 0 | U19: 0 | V19: - | W19: Cash in transit | AE19: =P19 -> 0 | AG19: =U19 -> 0 | AI19: 0 | AK19: 0 | AM19: 0 | AO19: 0 | AQ19: 0 | AS19: 0 | AU19: 0 | AW19: 0 | AX19: 0 | BB19: =R19-K19 -> 0 | BC19: 0 | BD19: 0
A20: 128T | B20: 2. | C20: Các khoản tương đương tiền | F20: 112 | K20: 43866250000 | L20: 0 | M20: 0 | N20: =SUM(K20:M20) -> 43866250000 | O20: =SUMIF('B360'!$H$12:$H$111,CDKT!A20,'B360'!$G$12:$G$111)-SUMIF('B360'!$I$12:$I$111,CDKT!A20,'B360'!$G$12:$G$111) -> 0 | P20: =N20+O20 -> 43866250000 | R20: 219331250000 | S20: 0 | T20: 0 | U20: 219331250000 | V20: 2. | W20: Cash equivalents | AA20: =F20 -> 112 | AE20: =P20 -> 43866250000 | AG20: =U20 -> 219331250000 | AI20: -175465000000 | AK20: -0.8 | AM20: -175465000000 | AO20: -0.8 | AQ20: 0 | AS20: 0 | AU20: 1 | AW20: 0 | AX20: 0 | BB20: =R20-K20 -> 175465000000 | BC20: 0 | BD20: 0
AU21: =AU22 -> 1 | AW21: 0 | AX21: 0
B22: II. | C22: Các khoản đầu tư tài chính ngắn hạn | F22: 120 | I22: ='Thuyet minh'!A547 -> 1.2 | K22: =K23+K27+K28 -> 18500000000 | L22: 0 | M22: 0 | N22: 18500000000 | O22: 0 | P22: 18500000000 | R22: =R23+R27+R28 -> 92500000000 | S22: =S23+S27+S28 -> 0 | T22: =T23+T27+T28 -> 0 | U22: =U23+U27+U28 -> 92500000000 | V22: =B22 -> II. | W22: Short-term financial investments | AA22: =F22 -> 120 | AC22: =I22 -> 1.2 | AE22: =AE23+AE27+AE28 -> 18500000000 | AG22: =AG23+AG27+AG28 -> 92500000000 | AI22: =N22-R22 -> -74000000000 | AK22: =IF(AI22=0,0,IF(R22<>0,AI22/R22,IF(R22>0,1,-1))) -> -0.8 | AM22: =P22-U22 -> -74000000000 | AO22: =IF(AM22=0,0,IF(U22<>0,AM22/U22,IF(U22>0,1,-1))) -> -0.8 | AQ22: =P22-N22 -> 0 | AS22: =IF(AQ22=0,0,IF(N22<>0,AQ22/N22,IF(N22>0,1,-1))) -> 0 | AU22: =IF(P22+U22=0,0,1) -> 1 | AW22: 0 | AX22: 0
B23: 1. | C23: Chứng khoán kinh doanh | F23: 121 | K23: =SUM(K24:K26) -> 0 | L23: 0 | M23: 0 | N23: 0 | O23: 0 | P23: 0 | R23: =SUM(R24:R26) -> 0 | S23: =SUM(S24:S26) -> 0 | T23: =SUM(T24:T26) -> 0 | U23: =SUM(U24:U26) -> 0 | V23: 1. | W23: Trading securities | AA23: =F23 -> 121 | AE23: =SUM(AE24:AE26) -> 0 | AG23: =SUM(AG24:AG26) -> 0 | AI23: 0 | AK23: 0 | AM23: 0 | AO23: 0 | AQ23: 0 | AS23: 0 | AU23: 0 | AW23: 0 | AX23: 0
A24: 1211 | B24: - | C24: Cổ phiếu | K24: 0 | L24: 0 | M24: 0 | N24: =SUM(K24:M24) -> 0 | O24: =SUMIF('B360'!$H$12:$H$111,CDKT!A24,'B360'!$G$12:$G$111)-SUMIF('B360'!$I$12:$I$111,CDKT!A24,'B360'!$G$12:$G$111) -> 0 | P24: =N24+O24 -> 0 | R24: 0 | S24: 0 | T24: 0 | U24: =SUM(R24:T24) -> 0 | V24: - | W24: Shares | AE24: =P24 -> 0 | AG24: =U24 -> 0 | AI24: 0 | AK24: 0 | AM24: 0 | AO24: 0 | AQ24: 0 | AS24: 0 | AU24: 0 | AW24: 0 | AX24: 0 | BA24: CF13.1 | BB24: =R24-K24 -> 0 | BC24: =S24-L24 -> 0 | BD24: =T24-M24 -> 0 | BE24: =-O24 -> 0
A25: 1212 | B25: - | C25: Trái phiếu | K25: 0 | L25: 0 | M25: 0 | N25: =SUM(K25:M25) -> 0 | O25: =SUMIF('B360'!$H$12:$H$111,CDKT!A25,'B360'!$G$12:$G$111)-SUMIF('B360'!$I$12:$I$111,CDKT!A25,'B360'!$G$12:$G$111) -> 0 | P25: =N25+O25 -> 0 | R25: 0 | S25: 0 | T25: 0 | U25: 0 | V25: - | W25: Bonds | AE25: =P25 -> 0 | AG25: =U25 -> 0 | AI25: 0 | AK25: 0 | AM25: 0 | AO25: 0 | AQ25: 0 | AS25: 0 | AU25: 0 | AW25: 0 | AX25: 0 | BA25: CF13.2 | BB25: =R25-K25 -> 0 | BC25: 0 | BD25: 0 | BE25: =-O25 -> 0
A26: 1218 | B26: - | C26: Chứng khoán và công cụ tài chính khác | K26: 0 | L26: 0 | M26: 0 | N26: =SUM(K26:M26) -> 0 | O26: =SUMIF('B360'!$H$12:$H$111,CDKT!A26,'B360'!$G$12:$G$111)-SUMIF('B360'!$I$12:$I$111,CDKT!A26,'B360'!$G$12:$G$111) -> 0 | P26: =N26+O26 -> 0 | R26: 0 | S26: 0 | T26: 0 | U26: 0 | V26: - | W26: Securities and other financial instruments | AE26: =P26 -> 0 | AG26: =U26 -> 0 | AI26: 0 | AK26: 0 | AM26: 0 | AO26: 0 | AQ26: 0 | AS26: 0 | AU26: 0 | AW26: 0 | AX26: 0 | BA26: CF13.3 | BB26: =R26-K26 -> 0 | BC26: 0 | BD26: 0 | BE26: 0
A27: 2291 | B27: 2. | C27: Dự phòng giảm giá chứng khoán kinh doanh | F27: 122 | K27: 0 | L27: 0 | M27: 0 | N27: =SUM(K27:M27) -> 0 | O27: =SUMIF('B360'!$H$12:$H$111,CDKT!A27,'B360'!$G$12:$G$111)-SUMIF('B360'!$I$12:$I$111,CDKT!A27,'B360'!$G$12:$G$111) -> 0 | P27: =N27+O27 -> 0 | R27: 0 | S27: 0 | T27: 0 | U27: 0 | V27: 2. | W27: Provision for decrease in value of trading securities | AA27: =F27 -> 122 | AE27: =P27 -> 0 | AG27: =U27 -> 0 | AI27: 0 | AK27: 0 | AM27: 0 | AO27: 0 | AQ27: 0 | AS27: 0 | AU27: 0 | AW27: 0 | AX27: 0 | BA27: CF03.1 | BB27: =R27-K27 -> 0 | BC27: 0 | BD27: 0 | BE27: 0
B28: 3. | C28: Đầu tư nắm giữ đến ngày đáo hạn | F28: 123 | K28: =SUM(K29:K31) -> 18500000000 | L28: 0 | M28: 0 | N28: 18500000000 | O28: 0 | P28: 18500000000 | R28: =SUM(R29:R31) -> 92500000000 | S28: =SUM(S29:S31) -> 0 | T28: =SUM(T29:T31) -> 0 | U28: =SUM(U29:U31) -> 92500000000 | V28: 3. | W28: Investments held to maturity | AA28: =F28 -> 123 | AE28: =SUM(AE29:AE31) -> 18500000000 | AG28: =SUM(AG29:AG31) -> 92500000000 | AI28: -74000000000 | AK28: -0.8 | AM28: -74000000000 | AO28: -0.8 | AQ28: 0 | AS28: 0 | AU28: 1 | AW28: 0 | AX28: 0
A29: 1281 | B29: - | C29: Tiền gửi có kỳ hạn | K29: 18500000000 | L29: 0 | M29: 0 | N29: =SUM(K29:M29) -> 18500000000 | O29: =SUMIF('B360'!$H$12:$H$111,CDKT!A29,'B360'!$G$12:$G$111)-SUMIF('B360'!$I$12:$I$111,CDKT!A29,'B360'!$G$12:$G$111) -> 0 | P29: =N29+O29 -> 18500000000 | R29: 92500000000 | S29: 0 | T29: 0 | U29: =SUM(R29:T29) -> 92500000000 | V29: - | W29: Term deposits | AE29: =P29 -> 18500000000 | AG29: =U29 -> 92500000000 | AI29: -74000000000 | AK29: -0.8 | AM29: -74000000000 | AO29: -0.8 | AQ29: 0 | AS29: 0 | AU29: 1 | AW29: 0 | AX29: 0 | BA29: CF23.1 | BB29: =R29-K29 -> 74000000000 | BC29: =S29-L29 -> 0 | BD29: =T29-M29 -> 0 | BE29: =-O29 -> 0
A30: 1282 | B30: - | C30: Trái phiếu | K30: 0 | L30: 0 | M30: 0 | N30: =SUM(K30:M30) -> 0 | O30: =SUMIF('B360'!$H$12:$H$111,CDKT!A30,'B360'!$G$12:$G$111)-SUMIF('B360'!$I$12:$I$111,CDKT!A30,'B360'!$G$12:$G$111) -> 0 | P30: =N30+O30 -> 0 | R30: 0 | S30: 0 | T30: 0 | U30: 0 | V30: - | W30: Bonds | AE30: =P30 -> 0 | AG30: =U30 -> 0 | AI30: 0 | AK30: 0 | AM30: 0 | AO30: 0 | AQ30: 0 | AS30: 0 | AU30: 0 | AW30: 0 | AX30: 0 | BA30: CF23.2 | BB30: =R30-K30 -> 0 | BC30: 0 | BD30: 0 | BE30: 0
A31: 1288 | B31: - | C31: Các khoản đầu tư khác nắm giữ đến ngày đáo hạn | K31: 0 | L31: 0 | M31: 0 | N31: =SUM(K31:M31) -> 0 | O31: =SUMIF('B360'!$H$12:$H$111,CDKT!A31,'B360'!$G$12:$G$111)-SUMIF('B360'!$I$12:$I$111,CDKT!A31,'B360'!$G$12:$G$111) -> 0 | P31: =N31+O31 -> 0 | R31: 0 | S31: 0 | T31: 0 | U31: 0 | V31: - | W31: Other held to maturity investments | AE31: =P31 -> 0 | AG31: =U31 -> 0 | AI31: 0 | AK31: 0 | AM31: 0 | AO31: 0 | AQ31: 0 | AS31: 0 | AU31: 0 | AW31: 0 | AX31: 0 | BA31: CF23.3 | BB31: =R31-K31 -> 0 | BC31: 0 | BD31: 0 | BE31: 0
AU32: =AU33 -> 1 | AW32: 0 | AX32: 0
B33: III. | C33: Các khoản phải thu ngắn hạn | F33: 130 | K33: =SUM(K34:K36)+SUM(K43:K45)+SUM(K56:K57) -> 5681919862572 | L33: 0 | M33: 0 | N33: 5681919862572 | O33: 0 | P33: 5681919862572 | R33: =SUM(R34:R36)+SUM(R43:R45)+SUM(R56:R57) -> 4990200190567 | S33: =SUM(S34:S36)+SUM(S43:S45)+SUM(S56:S57) -> 0 | T33: =SUM(T34:T36)+SUM(T43:T45)+SUM(T56:T57) -> 0 | U33: =SUM(U34:U36)+SUM(U43:U45)+SUM(U56:U57) -> 4990200190567 | V33: =B33 -> III. | W33: Short-term receivables | AA33: =F33 -> 130 | AE33: =SUM(AE34:AE36)+SUM(AE43:AE45)+SUM(AE56:AE57) -> 5681919862572 | AG33: =SUM(AG34:AG36)+SUM(AG43:AG45)+SUM(AG56:AG57) -> 4990200190567 | AI33: =N33-R33 -> 691719672005 | AK33: =IF(AI33=0,0,IF(R33<>0,AI33/R33,IF(R33>0,1,-1))) -> 0.1386156157 | AM33: =P33-U33 -> 691719672005 | AO33: =IF(AM33=0,0,IF(U33<>0,AM33/U33,IF(U33>0,1,-1))) -> 0.1386156157 | AQ33: =P33-N33 -> 0 | AS33: =IF(AQ33=0,0,IF(N33<>0,AQ33/N33,IF(N33>0,1,-1))) -> 0 | AU33: =IF(P33+U33=0,0,1) -> 1 | AW33: 0 | AX33: 0
A34: 131 | B34: 1. | C34: Phải thu ngắn hạn của khách hàng | F34: 131 | I34: ='Thuyet minh'!A634 -> 1.3 | K34: 2873570711900 | L34: 0 | M34: 0 | N34: =SUM(K34:M34) -> 2873570711900 | O34: =SUMIF('B360'!$H$12:$H$111,CDKT!A34,'B360'!$G$12:$G$111)-SUMIF('B360'!$I$12:$I$111,CDKT!A34,'B360'!$G$12:$G$111) -> 0 | P34: =N34+O34 -> 2873570711900 | R34: 4084114168205 | S34: 0 | T34: 0 | U34: =SUM(R34:T34) -> 4084114168205 | V34: 1. | W34: Short-term receivables from customers | AA34: =F34 -> 131 | AC34: =I34 -> 1.3 | AE34: =P34 -> 2873570711900 | AG34: =U34 -> 4084114168205 | AI34: -1210543456305 | AK34: -0.2964029423 | AM34: -1210543456305 | AO34: -0.2964029423 | AQ34: 0 | AS34: 0 | AU34: 1 | AW34: 0 | AX34: 0 | BA34: CF09.1 | BB34: =R34-K34 -> 1210543456305 | BC34: =S34-L34 -> 0 | BD34: =T34-M34 -> 0 | BE34: =-O34 -> 0
A35: 331N | B35: 2. | C35: Trả trước cho người bán ngắn hạn | F35: 132 | I35: ='Thuyet minh'!A671 -> 1.4 | K35: 348278158608 | L35: 0 | M35: 0 | N35: =SUM(K35:M35) -> 348278158608 | O35: =SUMIF('B360'!$H$12:$H$111,CDKT!A35,'B360'!$G$12:$G$111)-SUMIF('B360'!$I$12:$I$111,CDKT!A35,'B360'!$G$12:$G$111) -> 0 | P35: =N35+O35 -> 348278158608 | R35: 880155497759 | S35: 0 | T35: 0 | U35: 880155497759 | V35: 2. | W35: Short-term prepayments to suppliers | AA35: =F35 -> 132 | AE35: =P35 -> 348278158608 | AG35: =U35 -> 880155497759 | AI35: -531877339151 | AK35: -0.6042992863 | AM35: -531877339151 | AO35: -0.6042992863 | AQ35: 0 | AS35: 0 | AU35: 1 | AW35: 0 | AX35: 0 | BA35: CF09.2 | BB35: =R35-K35 -> 531877339151 | BC35: 0 | BD35: 0 | BE35: 0
B36: 3. | C36: Phải thu nội bộ ngắn hạn | F36: 133 | K36: =SUM(K37:K42) -> 0 | L36: 0 | M36: 0 | N36: 0 | O36: 0 | P36: 0 | R36: =SUM(R37:R42) -> 0 | S36: =SUM(S37:S42) -> 0 | T36: =SUM(T37:T42) -> 0 | U36: =SUM(U37:U42) -> 0 | V36: 3. | W36: Short-term inter-company receivables | AA36: =F36 -> 133 | AE36: =SUM(AE37:AE42) -> 0 | AG36: =SUM(AG37:AG42) -> 0 | AI36: 0 | AK36: 0 | AM36: 0 | AO36: 0 | AQ36: 0 | AS36: 0 | AU36: 0 | AW36: 0 | AX36: 0
A37: 1362 | B37: - | C37: Phải thu nội bộ về chênh lệch tỷ giá ngắn hạn | K37: 0 | L37: 0 | M37: 0 | N37: =SUM(K37:M37) -> 0 | O37: =SUMIF('B360'!$H$12:$H$111,CDKT!A37,'B360'!$G$12:$G$111)-SUMIF('B360'!$I$12:$I$111,CDKT!A37,'B360'!$G$12:$G$111) -> 0 | P37: =N37+O37 -> 0 | R37: 0 | S37: 0 | T37: 0 | U37: 0 | V37: - | W37: Short-term intra-company receivables for exchange differences | AE37: =P37 -> 0 | AG37: =U37 -> 0 | AI37: 0 | AK37: 0 | AM37: 0 | AO37: 0 | AQ37: 0 | AS37: 0 | AU37: 0 | AW37: 0 | AX37: 0 | BA37: CF09.3 | BB37: =R37-K37 -> 0 | BC37: =S37-L37 -> 0 | BD37: =T37-M37 -> 0 | BE37: =-O37 -> 0
A38: 1363 | B38: - | C38: Phải thu nội bộ về chi phí đi vay đủ điều kiện được vốn hóa ngắn hạn | K38: 0 | L38: 0 | M38: 0 | N38: 0 | O38: =SUMIF('B360'!$H$12:$H$111,CDKT!A38,'B360'!$G$12:$G$111)-SUMIF('B360'!$I$12:$I$111,CDKT!A38,'B360'!$G$12:$G$111) -> 0 | P38: 0 | R38: 0 | S38: 0 | T38: 0 | U38: 0 | V38: - | W38: Short-term intra-company receivables for cost of loans eligible for capitalization | AE38: 0 | AG38: 0 | AI38: 0 | AK38: 0 | AM38: 0 | AO38: 0 | AQ38: 0 | AS38: 0 | AU38: 0 | AW38: 0 | AX38: 0 | BA38: CF09.4 | BB38: 0 | BC38: 0 | BD38: 0 | BE38: 0
A39: 1368 | B39: - | C39: Phải thu nội bộ ngắn hạn khác ngắn hạn | L39: 0 | M39: 0 | N39: 0 | O39: =SUMIF('B360'!$H$12:$H$111,CDKT!A39,'B360'!$G$12:$G$111)-SUMIF('B360'!$I$12:$I$111,CDKT!A39,'B360'!$G$12:$G$111) -> 0 | P39: 0 | S39: 0 | T39: 0 | U39: 0 | V39: - | W39: Other short-term intra-company receivables | AE39: 0 | AG39: 0 | AI39: 0 | AK39: 0 | AM39: 0 | AO39: 0 | AQ39: 0 | AS39: 0 | AU39: 0 | AW39: 0 | AX39: 0 | BA39: CF09.5 | BB39: 0 | BC39: 0 | BD39: 0 | BE39: 0
A40: 3362N | B40: - | C40: Phải trả nội bộ về chênh lệch tỷ giá ngắn hạn (dư nợ) | K40: 0 | L40: 0 | M40: 0 | N40: 0 | O40: =SUMIF('B360'!$H$12:$H$111,CDKT!A40,'B360'!$G$12:$G$111)-SUMIF('B360'!$I$12:$I$111,CDKT!A40,'B360'!$G$12:$G$111) -> 0 | P40: 0 | R40: 0 | S40: 0 | T40: 0 | U40: 0 | V40: - | W40: Short-term intra-company payables for exchange differences (debit balances) | AE40: 0 | AG40: 0 | AI40: 0 | AK40: 0 | AM40: 0 | AO40: 0 | AQ40: 0 | AS40: 0 | AU40: 0 | AW40: 0 | AX40: 0 | BA40: CF09.6 | BB40: 0 | BC40: 0 | BD40: 0 | BE40: 0
A41: 3363N | B41: - | C41: Phải trả nội bộ về chi phí đi vay đủ điều kiện được vốn hóa ngắn hạn (dư nợ) | K41: 0 | L41: 0 | M41: 0 | N41: 0 | O41: =SUMIF('B360'!$H$12:$H$111,CDKT!A41,'B360'!$G$12:$G$111)-SUMIF('B360'!$I$12:$I$111,CDKT!A41,'B360'!$G$12:$G$111) -> 0 | P41: 0 | R41: 0 | S41: 0 | T41: 0 | U41: 0 | V41: - | W41: Short-term intra-company payables for cost of loans eligible for capitalization (debit balances) | AE41: 0 | AG41: 0 | AI41: 0 | AK41: 0 | AM41: 0 | AO41: 0 | AQ41: 0 | AS41: 0 | AU41: 0 | AW41: 0 | AX41: 0 | BA41: CF09.7 | BB41: 0 | BC41: 0 | BD41: 0 | BE41: 0
A42: 3368N | B42: - | C42: Phải trả nội bộ khác ngắn hạn (dư nợ) | K42: 0 | L42: 0 | M42: 0 | N42: 0 | O42: =SUMIF('B360'!$H$12:$H$111,CDKT!A42,'B360'!$G$12:$G$111)-SUMIF('B360'!$I$12:$I$111,CDKT!A42,'B360'!$G$12:$G$111) -> 0 | P42: 0 | R42: 0 | S42: 0 | T42: 0 | U42: 0 | V42: - | W42: Other short-term intra-company payables (debit balances) | AE42: 0 | AG42: 0 | AI42: 0 | AK42: 0 | AM42: 0 | AO42: 0 | AQ42: 0 | AS42: 0 | AU42: 0 | AW42: 0 | AX42: 0 | BA42: CF09.8 | BB42: 0 | BC42: 0 | BD42: 0 | BE42: 0
A43: 337N | B43: 4. | C43: Phải thu theo tiến độ kế hoạch hợp đồng xây dựng | F43: 134 | K43: 0 | L43: 0 | M43: 0 | N43: 0 | O43: =SUMIF('B360'!$H$12:$H$111,CDKT!A43,'B360'!$G$12:$G$111)-SUMIF('B360'!$I$12:$I$111,CDKT!A43,'B360'!$G$12:$G$111) -> 0 | P43: 0 | R43: 0 | S43: 0 | T43: 0 | U43: 0 | V43: 4. | W43: Receivables according to the progress of construction contract | AA43: =F43 -> 134 | AE43: 0 | AG43: 0 | AI43: 0 | AK43: 0 | AM43: 0 | AO43: 0 | AQ43: 0 | AS43: 0 | AU43: 0 | AW43: 0 | AX43: 0 | BA43: CF09.9 | BB43: 0 | BC43: 0 | BD43: 0 | BE43: 0
A44: 1283 | B44: 5. | C44: Phải thu về cho vay ngắn hạn | F44: 135 | I44: ='Thuyet minh'!A692 -> 1.5 | K44: 2452171500000 | L44: 0 | M44: 0 | N44: 2452171500000 | O44: =SUMIF('B360'!$H$12:$H$111,CDKT!A44,'B360'!$G$12:$G$111)-SUMIF('B360'!$I$12:$I$111,CDKT!A44,'B360'!$G$12:$G$111) -> 0 | P44: 2452171500000 | R44: 19857500000 | S44: 0 | T44: 0 | U44: 19857500000 | V44: 5. | W44: Short-term loans receivables | AA44: =F44 -> 135 | AE44: 2452171500000 | AG44: 19857500000 | AI44: 2432314000000 | AK44: 122.4884301 | AM44: 2432314000000 | AO44: 122.4884301 | AQ44: 0 | AS44: 0 | AU44: 1 | AW44: 0 | AX44: 0 | BA44: CF09.10 | BB44: -2432314000000 | BC44: 0 | BD44: 0 | BE44: 0
B45: 6. | C45: Phải thu ngắn hạn khác | F45: 136 | I45: ='Thuyet minh'!A714 -> 1.6 | K45: =SUM(K46:K55) -> 7899492064 | L45: 0 | M45: 0 | N45: 7899492064 | O45: 0 | P45: 7899492064 | R45: =SUM(R46:R55) -> 6073024603 | S45: =SUM(S46:S55) -> 0 | T45: =SUM(T46:T55) -> 0 | U45: =SUM(U46:U55) -> 6073024603 | V45: 6. | W45: Other short-term receivables | AA45: =F45 -> 136 | AC45: =I45 -> 1.6 | AE45: =SUM(AE46:AE55) -> 7899492064 | AG45: =SUM(AG46:AG55) -> 6073024603 | AI45: 1826467461 | AK45: 0.3007508746 | AM45: 1826467461 | AO45: 0.3007508746 | AQ45: 0 | AS45: 0 | AU45: 1 | AW45: =P45-AE45 -> 0 | AX45: =U45-AG45 -> 0
A46: 1385 | B46: - | C46: Phải thu về cổ phần hoá (TK1385) | K46: 0 | L46: 0 | M46: 0 | N46: =SUM(K46:M46) -> 0 | O46: =SUMIF('B360'!$H$12:$H$111,CDKT!A46,'B360'!$G$12:$G$111)-SUMIF('B360'!$I$12:$I$111,CDKT!A46,'B360'!$G$12:$G$111) -> 0 | P46: =N46+O46 -> 0 | R46: 0 | S46: 0 | T46: 0 | U46: 0 | V46: - | W46: Equitization receivables | AE46: =P46 -> 0 | AG46: =U46 -> 0 | AI46: 0 | AK46: 0 | AM46: 0 | AO46: 0 | AQ46: 0 | AS46: 0 | AU46: 0 | AW46: 0 | AX46: 0 | BA46: CF09.11 | BB46: =R46-K46 -> 0 | BC46: =S46-L46 -> 0 | BD46: =T46-M46 -> 0 | BE46: =-O46 -> 0
A47: 334N | B47: - | C47: Phải thu cán bộ công nhân viên (TK334 Dư nợ) | K47: 0 | L47: 0 | M47: 0 | N47: 0 | O47: =SUMIF('B360'!$H$12:$H$111,CDKT!A47,'B360'!$G$12:$G$111)-SUMIF('B360'!$I$12:$I$111,CDKT!A47,'B360'!$G$12:$G$111) -> 0 | P47: 0 | R47: 0 | S47: 0 | T47: 0 | U47: 0 | V47: - | W47: Receivables from employees | AE47: 0 | AG47: 0 | AI47: 0 | AK47: 0 | AM47: 0 | AO47: 0 | AQ47: 0 | AS47: 0 | AU47: 0 | AW47: 0 | AX47: 0 | BA47: CF09.12 | BB47: 0 | BC47: 0 | BD47: 0 | BE47: 0
A48: 3382N | B48: - | C48: Kinh phí công đoàn | K48: 0 | L48: 0 | M48: 0 | N48: 0 | O48: =-SUMIF('B360'!$H$12:$H$111,A48,'B360'!$G$12:$G$111)+SUMIF('B360'!$I$12:$I$111,A48,'B360'!$G$12:$G$111) -> 0 | P48: 0 | R48: 0 | S48: 0 | T48: 0 | U48: 0 | V48: - | W48: Trade union fund | AE48: 0 | AG48: 0 | AI48: 0 | AK48: 0 | AM48: 0 | AO48: 0 | AQ48: 0 | AS48: 0 | AU48: 0 | AW48: 0 | AX48: 0 | BA48: CF09.13 | BB48: 0 | BC48: 0 | BD48: 0 | BE48: 0
A49: 3383N | B49: - | C49: Bảo hiểm xã hội | K49: 0 | L49: 0 | M49: 0 | N49: 0 | O49: =-SUMIF('B360'!$H$12:$H$111,A49,'B360'!$G$12:$G$111)+SUMIF('B360'!$I$12:$I$111,A49,'B360'!$G$12:$G$111) -> 0 | P49: 0 | R49: 0 | S49: 0 | T49: 0 | U49: 0 | V49: - | W49: Social insurance | AE49: 0 | AG49: 0 | AI49: 0 | AK49: 0 | AM49: 0 | AO49: 0 | AQ49: 0 | AS49: 0 | AU49: 0 | AW49: 0 | AX49: 0 | BA49: CF09.14 | BB49: 0 | BC49: 0 | BD49: 0 | BE49: 0
A50: 3384N | B50: - | C50: Bảo hiểm y tế | K50: 0 | L50: 0 | M50: 0 | N50: 0 | O50: =-SUMIF('B360'!$H$12:$H$111,A50,'B360'!$G$12:$G$111)+SUMIF('B360'!$I$12:$I$111,A50,'B360'!$G$12:$G$111) -> 0 | P50: 0 | R50: 0 | S50: 0 | T50: 0 | U50: 0 | V50: - | W50: Health insurance | AE50: 0 | AG50: 0 | AI50: 0 | AK50: 0 | AM50: 0 | AO50: 0 | AQ50: 0 | AS50: 0 | AU50: 0 | AW50: 0 | AX50: 0 | BA50: CF09.15 | BB50: 0 | BC50: 0 | BD50: 0 | BE50: 0
A51: 3386N | B51: - | C51: Bảo hiểm thất nghiệp | K51: 0 | L51: 0 | M51: 0 | N51: 0 | O51: =-SUMIF('B360'!$H$12:$H$111,A51,'B360'!$G$12:$G$111)+SUMIF('B360'!$I$12:$I$111,A51,'B360'!$G$12:$G$111) -> 0 | P51: =N51+O51 -> 0 | R51: 0 | S51: 0 | T51: 0 | U51: 0 | V51: - | W51: Unemployment insurance | AE51: 0 | AG51: 0 | AI51: 0 | AK51: 0 | AM51: 0 | AO51: 0 | AQ51: 0 | AS51: 0 | AU51: 0 | AW51: 0 | AX51: 0 | BA51: CF09.16 | BB51: 0 | BC51: 0 | BD51: 0 | BE51: 0
A52: 141 | B52: - | C52: Tạm ứng | K52: 0 | L52: 0 | M52: 0 | N52: 0 | O52: =SUMIF('B360'!$H$12:$H$111,CDKT!A52,'B360'!$G$12:$G$111)-SUMIF('B360'!$I$12:$I$111,CDKT!A52,'B360'!$G$12:$G$111) -> 0 | P52: =N52+O52 -> 0 | R52: 0 | S52: 0 | T52: 0 | U52: 0 | V52: - | W52: Advances | AE52: 0 | AG52: 0 | AI52: 0 | AK52: 0 | AM52: 0 | AO52: 0 | AQ52: 0 | AS52: 0 | AU52: 0 | AW52: 0 | AX52: 0 | BA52: CF09.17 | BB52: 0 | BC52: 0 | BD52: 0 | BE52: 0
A53: 244 | B53: - | C53: Cầm cố, thế chấp, ký quỹ, ký cược | K53: 26373528 | L53: 0 | M53: 0 | N53: 26373528 | O53: =SUMIF('B360'!$H$12:$H$111,CDKT!A53,'B360'!$G$12:$G$111)-SUMIF('B360'!$I$12:$I$111,CDKT!A53,'B360'!$G$12:$G$111) -> 0 | P53: =N53+O53 -> 26373528 | R53: 131867640 | S53: 0 | T53: 0 | U53: 131867640 | V53: - | W53: Pledges, mortgages or collateral | AE53: 26373528 | AG53: 131867640 | AI53: -105494112 | AK53: -0.8 | AM53: -105494112 | AO53: -0.8 | AQ53: 0 | AS53: 0 | AU53: 1 | AW53: 0 | AX53: 0 | BA53: CF09.18 | BB53: 105494112 | BC53: 0 | BD53: 0 | BE53: 0
A54: 1388 | B54: - | C54: Phải thu khác (TK1388) | K54: 7873118536 | L54: 0 | M54: 0 | N54: 7873118536 | O54: =SUMIF('B360'!$H$12:$H$111,CDKT!A54,'B360'!$G$12:$G$111)-SUMIF('B360'!$I$12:$I$111,CDKT!A54,'B360'!$G$12:$G$111) -> 0 | P54: 7873118536 | R54: 5941156963 | S54: 0 | T54: 0 | U54: 5941156963 | V54: - | W54: Other receivable | AE54: 7873118536 | AG54: 5941156963 | AI54: 1931961573 | AK54: 0.3251827186 | AM54: 1931961573 | AO54: 0.3251827186 | AQ54: 0 | AS54: 0 | AU54: 1 | AW54: 0 | AX54: 0 | BA54: CF09.19 | BB54: -1931961573 | BC54: 0 | BD54: 0 | BE54: 0
A55: 3388N | B55: - | C55: Phải trả khác (dư nợ TK 3388) | K55: 0 | L55: 0 | M55: 0 | N55: 0 | O55: =SUMIF('B360'!$H$12:$H$111,CDKT!A55,'B360'!$G$12:$G$111)-SUMIF('B360'!$I$12:$I$111,CDKT!A55,'B360'!$G$12:$G$111) -> 0 | P55: 0 | R55: 0 | S55: 0 | T55: 0 | U55: 0 | V55: - | W55: Other payables (debit balances) | AE55: 0 | AG55: 0 | AI55: 0 | AK55: 0 | AM55: 0 | AO55: 0 | AQ55: 0 | AS55: 0 | AU55: 0 | AW55: 0 | AX55: 0 | BA55: CF09.20 | BB55: 0 | BC55: 0 | BD55: 0 | BE55: 0
A56: 2293 | B56: 7. | C56: Dự phòng phải thu ngắn hạn khó đòi | F56: 137 | K56: 0 | L56: 0 | M56: 0 | N56: 0 | O56: =SUMIF('B360'!$H$12:$H$111,CDKT!A56,'B360'!$G$12:$G$111)-SUMIF('B360'!$I$12:$I$111,CDKT!A56,'B360'!$G$12:$G$111) -> 0 | P56: 0 | R56: 0 | S56: 0 | T56: 0 | U56: 0 | V56: 7. | W56: Provision for doubtful short-term receivables | AA56: =F56 -> 137 | AE56: 0 | AG56: 0 | AI56: 0 | AK56: 0 | AM56: 0 | AO56: 0 | AQ56: 0 | AS56: 0 | AU56: 0 | AW56: 0 | AX56: 0 | BA56: CF03.2 | BB56: 0 | BC56: 0 | BD56: 0 | BE56: 0
A57: 1381 | B57: 8. | C57: Tài sản thiếu chờ xử lý | F57: 139 | I57: ='Thuyet minh'!A745 ->  | K57: 0 | L57: 0 | M57: 0 | N57: 0 | O57: =SUMIF('B360'!$H$12:$H$111,CDKT!A57,'B360'!$G$12:$G$111)-SUMIF('B360'!$I$12:$I$111,CDKT!A57,'B360'!$G$12:$G$111) -> 0 | P57: =N57+O57 -> 0 | R57: 0 | S57: 0 | T57: 0 | U57: 0 | V57: 8. | W57: Shortage of assets awaiting resolution | AA57: =F57 -> 139 | AC57: =I57 ->  | AE57: 0 | AG57: 0 | AI57: 0 | AK57: 0 | AM57: 0 | AO57: 0 | AQ57: 0 | AS57: 0 | AU57: 0 | AW57: 0 | AX57: 0 | BA57: CF09.21 | BB57: 0 | BC57: 0 | BD57: 0 | BE57: 0
AU58: =AU59 -> 1 | AW58: 0 | AX58: 0
B59: IV. | C59: Hàng tồn kho | F59: 140 | I59: ='Thuyet minh'!A769 -> 1.7 | K59: =K60+K70 -> 2233398107835 | L59: 0 | M59: 0 | N59: 2233398107835 | O59: 0 | P59: 2233398107835 | R59: =R60+R70 -> 322286715212 | S59: =S60+S70 -> 0 | T59: =T60+T70 -> 0 | U59: =U60+U70 -> 322286715212 | V59: =B59 -> IV. | W59: Inventories | AA59: =F59 -> 140 | AC59: =I59 -> 1.7 | AE59: =AE60+AE70 -> 2233398107835 | AG59: =AG60+AG70 -> 322286715212 | AI59: =N59-R59 -> 1911111392623 | AK59: =IF(AI59=0,0,IF(R59<>0,AI59/R59,IF(R59>0,1,-1))) -> 5.929848493 | AM59: =P59-U59 -> 1911111392623 | AO59: =IF(AM59=0,0,IF(U59<>0,AM59/U59,IF(U59>0,1,-1))) -> 5.929848493 | AQ59: =P59-N59 -> 0 | AS59: =IF(AQ59=0,0,IF(N59<>0,AQ59/N59,IF(N59>0,1,-1))) -> 0 | AU59: =IF(P59+U59=0,0,1) -> 1 | AW59: 0 | AX59: 0
B60: 1. | C60: Hàng tồn kho | F60: 141 | K60: =SUM(K61:K69) -> 2233398107835 | L60: 0 | M60: 0 | N60: 2233398107835 | O60: 0 | P60: 2233398107835 | R60: =SUM(R61:R69) -> 322286715212 | S60: =SUM(S61:S69) -> 0 | T60: =SUM(T61:T69) -> 0 | U60: =SUM(U61:U69) -> 322286715212 | V60: 1. | W60: Inventories | AA60: =F60 -> 141 | AE60: =SUM(AE61:AE69) -> 2233398107835 | AG60: =SUM(AG61:AG69) -> 322286715212 | AI60: 1911111392623 | AK60: 5.929848493 | AM60: 1911111392623 | AO60: 5.929848493 | AQ60: 0 | AS60: 0 | AU60: 1 | AW60: 0 | AX60: 0
A61: 151 | B61: - | C61: Hàng mua đang đi đường | K61: 0 | L61: 0 | M61: 0 | N61: =SUM(K61:M61) -> 0 | O61: =SUMIF('B360'!$H$12:$H$111,CDKT!A61,'B360'!$G$12:$G$111)-SUMIF('B360'!$I$12:$I$111,CDKT!A61,'B360'!$G$12:$G$111) -> 0 | P61: =N61+O61 -> 0 | R61: 0 | S61: 0 | T61: 0 | U61: =SUM(R61:T61) -> 0 | V61: - | W61: Goods in transit | AE61: =P61 -> 0 | AG61: =U61 -> 0 | AI61: 0 | AK61: 0 | AM61: 0 | AO61: 0 | AQ61: 0 | AS61: 0 | AU61: 0 | AW61: 0 | AX61: 0 | BA61: CF10.1 | BB61: =R61-K61 -> 0 | BC61: =S61-L61 -> 0 | BD61: =T61-M61 -> 0 | BE61: =-O61 -> 0
A62: 152 | B62: - | C62: Nguyên liệu, vật liệu | K62: 239685786 | L62: 0 | M62: 0 | N62: 239685786 | O62: =SUMIF('B360'!$H$12:$H$111,CDKT!A62,'B360'!$G$12:$G$111)-SUMIF('B360'!$I$12:$I$111,CDKT!A62,'B360'!$G$12:$G$111) -> 0 | P62: =N62+O62 -> 239685786 | R62: 185857407 | S62: 0 | T62: 0 | U62: 185857407 | V62: - | W62: Raw material | AE62: 239685786 | AG62: 185857407 | AI62: 53828379 | AK62: 0.2896219197 | AM62: 53828379 | AO62: 0.2896219197 | AQ62: 0 | AS62: 0 | AU62: 1 | AW62: 0 | AX62: 0 | BA62: CF10.2 | BB62: -53828379 | BC62: 0 | BD62: 0 | BE62: 0
A63: 153 | B63: - | C63: Công cụ, dụng cụ | K63: 0 | L63: 0 | M63: 0 | N63: 0 | O63: =SUMIF('B360'!$H$12:$H$111,CDKT!A63,'B360'!$G$12:$G$111)-SUMIF('B360'!$I$12:$I$111,CDKT!A63,'B360'!$G$12:$G$111) -> 0 | P63: 0 | R63: 0 | S63: 0 | T63: 0 | U63: 0 | V63: - | W63: Tools, supplies | AE63: 0 | AG63: 0 | AI63: 0 | AK63: 0 | AM63: 0 | AO63: 0 | AQ63: 0 | AS63: 0 | AU63: 0 | AW63: 0 | AX63: 0 | BA63: CF10.3 | BB63: 0 | BC63: 0 | BD63: 0 | BE63: 0
A64: 154 | B64: - | C64: Chi phí sản xuất kinh doanh dở dang | K64: 0 | L64: 0 | M64: 0 | N64: 0 | O64: =SUMIF('B360'!$H$12:$H$111,CDKT!A64,'B360'!$G$12:$G$111)-SUMIF('B360'!$I$12:$I$111,CDKT!A64,'B360'!$G$12:$G$111) -> 0 | P64: 0 | R64: 0 | S64: 0 | T64: 0 | U64: 0 | V64: - | W64: Work in process | AE64: 0 | AG64: 0 | AI64: 0 | AK64: 0 | AM64: 0 | AO64: 0 | AQ64: 0 | AS64: 0 | AU64: 0 | AW64: 0 | AX64: 0 | BA64: CF10.4 | BB64: 0 | BC64: 0 | BD64: 0 | BE64: 0
A65: 155 | B65: - | C65: Thành phẩm | K65: 168012540405 | L65: 0 | M65: 0 | N65: 168012540405 | O65: =SUMIF('B360'!$H$12:$H$111,CDKT!A65,'B360'!$G$12:$G$111)-SUMIF('B360'!$I$12:$I$111,CDKT!A65,'B360'!$G$12:$G$111) -> 0 | P65: 168012540405 | R65: 313508775501 | S65: 0 | T65: 0 | U65: 313508775501 | V65: - | W65: Finished goods inventory | AE65: 168012540405 | AG65: 313508775501 | AI65: -145496235096 | AK65: -0.4640898325 | AM65: -145496235096 | AO65: -0.4640898325 | AQ65: 0 | AS65: 0 | AU65: 1 | AW65: 0 | AX65: 0 | BA65: CF10.5 | BB65: 145496235096 | BC65: 0 | BD65: 0 | BE65: 0
A66: 156 | B66: - | C66: Hàng hoá | K66: 2065145881644 | L66: 0 | M66: 0 | N66: 2065145881644 | O66: =SUMIF('B360'!$H$12:$H$111,CDKT!A66,'B360'!$G$12:$G$111)-SUMIF('B360'!$I$12:$I$111,CDKT!A66,'B360'!$G$12:$G$111) -> 0 | P66: 2065145881644 | R66: 8592082304 | S66: 0 | T66: 0 | U66: 8592082304 | V66: - | W66: Merchandise inventory | AE66: 2065145881644 | AG66: 8592082304 | AI66: 2056553799340 | AK66: 239.3545274 | AM66: 2056553799340 | AO66: 239.3545274 | AQ66: 0 | AS66: 0 | AU66: 1 | AW66: 0 | AX66: 0 | BA66: CF10.6 | BB66: -2056553799340 | BC66: 0 | BD66: 0 | BE66: 0
A67: 157 | B67: - | C67: Hàng gửi đi bán | K67: 0 | L67: 0 | M67: 0 | N67: 0 | O67: =SUMIF('B360'!$H$12:$H$111,CDKT!A67,'B360'!$G$12:$G$111)-SUMIF('B360'!$I$12:$I$111,CDKT!A67,'B360'!$G$12:$G$111) -> 0 | P67: 0 | R67: 0 | S67: 0 | T67: 0 | U67: 0 | V67: - | W67: Goods on consignment | AE67: 0 | AG67: 0 | AI67: 0 | AK67: 0 | AM67: 0 | AO67: 0 | AQ67: 0 | AS67: 0 | AU67: 0 | AW67: 0 | AX67: 0 | BA67: CF10.7 | BB67: 0 | BC67: 0 | BD67: 0 | BE67: 0
A68: 158 | B68: - | C68: Hàng hoá kho bảo thuế | K68: 0 | L68: 0 | M68: 0 | N68: 0 | O68: =SUMIF('B360'!$H$12:$H$111,CDKT!A68,'B360'!$G$12:$G$111)-SUMIF('B360'!$I$12:$I$111,CDKT!A68,'B360'!$G$12:$G$111) -> 0 | P68: 0 | R68: 0 | S68: 0 | T68: 0 | U68: 0 | V68: - | W68: Goods in bonded warehouse | AE68: 0 | AG68: 0 | AI68: 0 | AK68: 0 | AM68: 0 | AO68: 0 | AQ68: 0 | AS68: 0 | AU68: 0 | AW68: 0 | AX68: 0 | BA68: CF10.8 | BB68: 0 | BC68: 0 | BD68: 0 | BE68: 0
A69: 1567 | B69: - | C69: Hàng hoá bất động sản | K69: 0 | L69: 0 | M69: 0 | N69: 0 | O69: =SUMIF('B360'!$H$12:$H$111,CDKT!A69,'B360'!$G$12:$G$111)-SUMIF('B360'!$I$12:$I$111,CDKT!A69,'B360'!$G$12:$G$111) -> 0 | P69: 0 | R69: 0 | S69: 0 | T69: 0 | U69: 0 | V69: - | W69: Properties held for sale | AE69: 0 | AG69: 0 | AI69: 0 | AK69: 0 | AM69: 0 | AO69: 0 | AQ69: 0 | AS69: 0 | AU69: 0 | AW69: 0 | AX69: 0 | BA69: CF10.9 | BB69: 0 | BC69: 0 | BD69: 0 | BE69: 0
A70: 2294 | B70: 2. | C70: Dự phòng giảm giá hàng tồn kho | F70: 149 | K70: 0 | L70: 0 | M70: 0 | N70: 0 | O70: =SUMIF('B360'!$H$12:$H$111,CDKT!A70,'B360'!$G$12:$G$111)-SUMIF('B360'!$I$12:$I$111,CDKT!A70,'B360'!$G$12:$G$111) -> 0 | P70: =N70+O70 -> 0 | R70: 0 | S70: 0 | T70: 0 | U70: 0 | V70: 2. | W70: Provision against devaluation of goods in stock | AA70: =F70 -> 149 | AE70: 0 | AG70: 0 | AI70: 0 | AK70: 0 | AM70: 0 | AO70: 0 | AQ70: 0 | AS70: 0 | AU70: 0 | AW70: 0 | AX70: 0 | BA70: CF03.3 | BB70: 0 | BC70: 0 | BD70: 0 | BE70: 0
AU71: =AU72 -> 1 | AW71: 0 | AX71: 0
B72: V. | C72: Tài sản ngắn hạn khác | F72: 150 | K72: =SUM(K73:K75)+SUM(K86:K87) -> 90355920376 | L72: 0 | M72: 0 | N72: 90355920376 | O72: 0 | P72: 90355920376 | R72: =SUM(R73:R75)+SUM(R86:R87) -> 127395423154 | S72: =SUM(S73:S75)+SUM(S86:S87) -> 0 | T72: =SUM(T73:T75)+SUM(T86:T87) -> 0 | U72: =SUM(U73:U75)+SUM(U86:U87) -> 127395423154 | V72: =B72 -> V. | W72: Other current assets | AA72: =F72 -> 150 | AE72: =SUM(AE73:AE75)+SUM(AE86:AE87) -> 90355920376 | AG72: =SUM(AG73:AG75)+SUM(AG86:AG87) -> 127395423154 | AI72: =N72-R72 -> -37039502778 | AK72: =IF(AI72=0,0,IF(R72<>0,AI72/R72,IF(R72>0,1,-1))) -> -0.2907443757 | AM72: =P72-U72 -> -37039502778 | AO72: =IF(AM72=0,0,IF(U72<>0,AM72/U72,IF(U72>0,1,-1))) -> -0.2907443757 | AQ72: =P72-N72 -> 0 | AS72: =IF(AQ72=0,0,IF(N72<>0,AQ72/N72,IF(N72>0,1,-1))) -> 0 | AU72: =IF(P72+U72=0,0,1) -> 1 | AW72: 0 | AX72: 0
A73: 242 | B73: 1. | C73: Chi phí trả trước ngắn hạn | F73: 151 | I73: ='Thuyet minh'!A952 -> 1.10 | K73: 0 | L73: 0 | M73: 0 | N73: =SUM(K73:M73) -> 0 | O73: =SUMIF('B360'!$H$12:$H$111,CDKT!A73,'B360'!$G$12:$G$111)-SUMIF('B360'!$I$12:$I$111,CDKT!A73,'B360'!$G$12:$G$111) -> 0 | P73: =N73+O73 -> 0 | R73: 0 | S73: 0 | T73: 0 | U73: =SUM(R73:T73) -> 0 | V73: 1. | W73: Short-term prepaid expenses | AA73: =F73 -> 151 | AC73: =I73 -> 1.10 | AE73: =P73 -> 0 | AG73: =U73 -> 0 | AI73: 0 | AK73: 0 | AM73: 0 | AO73: 0 | AQ73: 0 | AS73: 0 | AU73: 0 | AW73: 0 | AX73: 0 | BA73: CF12.1 | BB73: =R73-K73 -> 0 | BC73: =S73-L73 -> 0 | BD73: =T73-M73 -> 0 | BE73: =-O73 -> 0
A74: 133 | B74: 2. | C74: Thuế giá trị gia tăng được khấu trừ | F74: 152 | K74: 37083980077 | L74: 0 | M74: 0 | N74: =SUM(K74:M74) -> 37083980077 | O74: =SUMIF('B360'!$H$12:$H$111,CDKT!A74,'B360'!$G$12:$G$111)-SUMIF('B360'!$I$12:$I$111,CDKT!A74,'B360'!$G$12:$G$111) -> 0 | P74: =N74+O74 -> 37083980077 | R74: 0 | S74: 0 | T74: 0 | U74: 0 | V74: 2. | W74: Deductible VAT | AA74: =F74 -> 152 | AE74: 37083980077 | AG74: 0 | AI74: 37083980077 | AK74: -1 | AM74: 37083980077 | AO74: -1 | AQ74: 0 | AS74: 0 | AU74: 1 | AW74: 0 | AX74: 0 | BA74: CF09.22 | BB74: =R74-K74 -> -37083980077 | BC74: 0 | BD74: 0 | BE74: 0
B75: 3. | C75: Thuế và các khoản khác phải thu Nhà nước | F75: 153 | I75: ='Thuyet minh'!A1030 -> 1.12 | K75: =SUM(K76:K85) -> 53271940299 | L75: 0 | M75: 0 | N75: 53271940299 | O75: 0 | P75: 53271940299 | R75: =SUM(R76:R85) -> 127395423154 | S75: =SUM(S76:S85) -> 0 | T75: =SUM(T76:T85) -> 0 | U75: =SUM(U76:U85) -> 127395423154 | V75: 3. | W75: Taxes and other receivables from the State | AA75: =F75 -> 153 | AC75: =I75 -> 1.12 | AE75: 53271940299 | AG75: 127395423154 | AI75: -74123482855 | AK75: -0.5818378794 | AM75: -74123482855 | AO75: -0.5818378794 | AQ75: 0 | AS75: 0 | AU75: 1 | AW75: 0 | AX75: 0
A76: 3331N | B76: - | C76: Thuế Giá trị gia tăng | K76: 0 | L76: 0 | M76: 0 | N76: =SUM(K76:M76) -> 0 | O76: =SUMIF('B360'!$H$12:$H$111,CDKT!A76,'B360'!$G$12:$G$111)-SUMIF('B360'!$I$12:$I$111,CDKT!A76,'B360'!$G$12:$G$111) -> 0 | P76: =N76+O76 -> 0 | R76: 0 | S76: 0 | T76: 0 | U76: =SUM(R76:T76) -> 0 | V76: - | W76: Value added tax | AE76: 0 | AG76: 0 | AI76: 0 | AK76: 0 | AM76: 0 | AO76: 0 | AQ76: 0 | AS76: 0 | AU76: 0 | AW76: 0 | AX76: 0 | BA76: CF09.23 | BB76: =R76-K76 -> 0 | BC76: =S76-L76 -> 0 | BD76: =T76-M76 -> 0 | BE76: =-O76 -> 0
A77: 3332N | B77: - | C77: Thuế Tiêu thụ đặc biệt | K77: 26705730712 | L77: 0 | M77: 0 | N77: 26705730712 | O77: =SUMIF('B360'!$H$12:$H$111,CDKT!A77,'B360'!$G$12:$G$111)-SUMIF('B360'!$I$12:$I$111,CDKT!A77,'B360'!$G$12:$G$111) -> 0 | P77: =N77+O77 -> 26705730712 | R77: 66062259128 | S77: 0 | T77: 0 | U77: 66062259128 | V77: - | W77: Special sale tax | AE77: 26705730712 | AG77: 66062259128 | AI77: -39356528416 | AK77: -0.5957490545 | AM77: -39356528416 | AO77: -0.5957490545 | AQ77: 0 | AS77: 0 | AU77: 1 | AW77: =P77-AE77 -> 0 | AX77: =U77-AG77 -> 0 | BA77: CF09.24 | BB77: 39356528416 | BC77: 0 | BD77: 0 | BE77: 0
A78: 3333N | B78: - | C78: Thuế Xuất khẩu, Nhập khẩu | K78: 24833597360 | L78: 0 | M78: 0 | N78: 24833597360 | O78: =SUMIF('B360'!$H$12:$H$111,CDKT!A78,'B360'!$G$12:$G$111)-SUMIF('B360'!$I$12:$I$111,CDKT!A78,'B360'!$G$12:$G$111) -> 0 | P78: 24833597360 | R78: 61333164026 | S78: 0 | T78: 0 | U78: 61333164026 | V78: - | W78: Export, import duties | AE78: 24833597360 | AG78: 61333164026 | AI78: -36499566666 | AK78: -0.5951032732 | AM78: -36499566666 | AO78: -0.5951032732 | AQ78: 0 | AS78: 0 | AU78: 1 | AW78: 0 | AX78: 0 | BA78: CF09.25 | BB78: 36499566666 | BC78: 0 | BD78: 0 | BE78: 0
A79: 3334N | B79: - | C79: Thuế Thu nhập doanh nghiệp | K79: 0 | L79: 0 | M79: 0 | N79: 0 | O79: =SUMIF('B360'!$H$12:$H$111,CDKT!A79,'B360'!$G$12:$G$111)-SUMIF('B360'!$I$12:$I$111,CDKT!A79,'B360'!$G$12:$G$111) -> 0 | P79: 0 | R79: 0 | S79: 0 | T79: 0 | U79: 0 | V79: - | W79: Business income tax | AE79: 0 | AG79: 0 | AI79: 0 | AK79: 0 | AM79: 0 | AO79: 0 | AQ79: 0 | AS79: 0 | AU79: 0 | AW79: 0 | AX79: 0 | BA79: CF09.26 | BB79: 0 | BC79: 0 | BD79: 0 | BE79: 0
A80: 3335N | B80: - | C80: Thuế Thu nhập cá nhân | K80: 1732612227 | L80: 0 | M80: 0 | N80: 1732612227 | O80: =SUMIF('B360'!$H$12:$H$111,CDKT!A80,'B360'!$G$12:$G$111)-SUMIF('B360'!$I$12:$I$111,CDKT!A80,'B360'!$G$12:$G$111) -> 0 | P80: 1732612227 | R80: 0 | S80: 0 | T80: 0 | U80: 0 | V80: - | W80: Personal income tax | AE80: 1732612227 | AG80: 0 | AI80: 1732612227 | AK80: -1 | AM80: 1732612227 | AO80: -1 | AQ80: 0 | AS80: 0 | AU80: 1 | AW80: 0 | AX80: 0 | BA80: CF09.27 | BB80: -1732612227 | BC80: 0 | BD80: 0 | BE80: 0
A81: 3336N | B81: - | C81: Thuế Tài nguyên | K81: 0 | L81: 0 | M81: 0 | N81: 0 | O81: =SUMIF('B360'!$H$12:$H$111,CDKT!A81,'B360'!$G$12:$G$111)-SUMIF('B360'!$I$12:$I$111,CDKT!A81,'B360'!$G$12:$G$111) -> 0 | P81: 0 | R81: 0 | S81: 0 | T81: 0 | U81: 0 | V81: - | W81: Natural resource tax | AE81: 0 | AG81: 0 | AI81: 0 | AK81: 0 | AM81: 0 | AO81: 0 | AQ81: 0 | AS81: 0 | AU81: 0 | AW81: 0 | AX81: 0 | BA81: CF09.28 | BB81: 0 | BC81: 0 | BD81: 0 | BE81: 0
A82: 3337N | B82: - | C82: Thuế Nhà đất, Tiền thuê đất | K82: 0 | L82: 0 | M82: 0 | N82: 0 | O82: =SUMIF('B360'!$H$12:$H$111,CDKT!A82,'B360'!$G$12:$G$111)-SUMIF('B360'!$I$12:$I$111,CDKT!A82,'B360'!$G$12:$G$111) -> 0 | P82: 0 | R82: 0 | S82: 0 | T82: 0 | U82: 0 | V82: - | W82: Property tax and land rental | AE82: 0 | AG82: 0 | AI82: 0 | AK82: 0 | AM82: 0 | AO82: 0 | AQ82: 0 | AS82: 0 | AU82: 0 | AW82: 0 | AX82: 0 | BA82: CF09.29 | BB82: 0 | BC82: 0 | BD82: 0 | BE82: 0
A83: 33381N | B83: - | C83: Thuế bảo vệ môi trường | K83: 0 | L83: 0 | M83: 0 | N83: 0 | O83: =SUMIF('B360'!$H$12:$H$111,CDKT!A83,'B360'!$G$12:$G$111)-SUMIF('B360'!$I$12:$I$111,CDKT!A83,'B360'!$G$12:$G$111) -> 0 | P83: 0 | R83: 0 | S83: 0 | T83: 0 | U83: 0 | V83: - | W83: Environmental protection tax | AE83: 0 | AG83: 0 | AI83: 0 | AK83: 0 | AM83: 0 | AO83: 0 | AQ83: 0 | AS83: 0 | AU83: 0 | AW83: 0 | AX83: 0 | BA83: CF09.30 | BB83: 0 | BC83: 0 | BD83: 0 | BE83: 0
A84: 33382N | B84: - | C84: Các loại thuế khác | K84: 0 | L84: 0 | M84: 0 | N84: 0 | O84: =SUMIF('B360'!$H$12:$H$111,CDKT!A84,'B360'!$G$12:$G$111)-SUMIF('B360'!$I$12:$I$111,CDKT!A84,'B360'!$G$12:$G$111) -> 0 | P84: =N84+O84 -> 0 | R84: 0 | S84: 0 | T84: 0 | U84: 0 | V84: - | W84: Other taxes | AE84: 0 | AG84: 0 | AI84: 0 | AK84: 0 | AM84: 0 | AO84: 0 | AQ84: 0 | AS84: 0 | AU84: 0 | AW84: 0 | AX84: 0 | BA84: CF09.31 | BB84: 0 | BC84: 0 | BD84: 0 | BE84: 0
A85: 3339N | B85: - | C85: Phí, lệ phí và các khoản phải nộp khác | K85: 0 | L85: 0 | M85: 0 | N85: 0 | O85: =SUMIF('B360'!$H$12:$H$111,CDKT!A85,'B360'!$G$12:$G$111)-SUMIF('B360'!$I$12:$I$111,CDKT!A85,'B360'!$G$12:$G$111) -> 0 | P85: 0 | R85: 0 | S85: 0 | T85: 0 | U85: 0 | V85: - | W85: Fees and other obligations | AE85: 0 | AG85: 0 | AI85: 0 | AK85: 0 | AM85: 0 | AO85: 0 | AQ85: 0 | AS85: 0 | AU85: 0 | AW85: 0 | AX85: 0 | BA85: CF09.32 | BB85: 0 | BC85: 0 | BD85: 0 | BE85: 0
A86: 171 | B86: 4. | C86: Giao dịch mua bán lại trái phiếu Chính phủ | F86: 154 | K86: 0 | L86: 0 | M86: 0 | N86: 0 | O86: =SUMIF('B360'!$H$12:$H$111,CDKT!A86,'B360'!$G$12:$G$111)-SUMIF('B360'!$I$12:$I$111,CDKT!A86,'B360'!$G$12:$G$111) -> 0 | P86: =N86+O86 -> 0 | R86: 0 | S86: 0 | T86: 0 | U86: 0 | V86: 4. | W86: Purchase and resale of government bonds | AA86: =F86 -> 154 | AE86: 0 | AG86: 0 | AI86: 0 | AK86: 0 | AM86: 0 | AO86: 0 | AQ86: 0 | AS86: 0 | AU86: 0 | AW86: 0 | AX86: 0 | BA86: CF23.7 | BB86: 0 | BC86: 0 | BD86: 0 | BE86: 0
A87: 2288 | B87: 5. | C87: Tài sản ngắn hạn khác | F87: 155 | I87: ='Thuyet minh'!A982 ->  | K87: 0 | L87: 0 | M87: 0 | N87: 0 | O87: =SUMIF('B360'!$H$12:$H$111,CDKT!A87,'B360'!$G$12:$G$111)-SUMIF('B360'!$I$12:$I$111,CDKT!A87,'B360'!$G$12:$G$111) -> 0 | P87: =N87+O87 -> 0 | R87: 0 | S87: 0 | T87: 0 | U87: 0 | V87: 5. | W87: Other current assets | AA87: =F87 -> 155 | AC87: =I87 ->  | AE87: 0 | AG87: 0 | AI87: 0 | AK87: 0 | AM87: 0 | AO87: 0 | AQ87: 0 | AS87: 0 | AU87: 0 | AW87: 0 | AX87: 0 | BA87: CF17.1 | BB87: 0 | BC87: 0 | BD87: 0 | BE87: 0
AU88: =AU89 -> 1 | AW88: 0 | AX88: 0
B89: B. | C89: TÀI SẢN DÀI HẠN | F89: 200 | K89: =K91+K112+K123+K127+K133+K143 -> 65727080552 | L89: 0 | M89: 0 | N89: 65727080552 | O89: 0 | P89: 65727080552 | R89: =R91+R112+R123+R127+R133+R143 -> 40981652981 | S89: =S91+S112+S123+S127+S133+S143 -> 0 | T89: =T91+T112+T123+T127+T133+T143 -> 0 | U89: =U91+U112+U123+U127+U133+U143 -> 40981652981 | V89: =B89 -> B. | W89: LONG-TERM ASSETS | AA89: =F89 -> 200 | AE89: =AE91+AE112+AE123+AE127+AE133+AE143 -> 65727080552 | AG89: =AG91+AG112+AG123+AG127+AG133+AG143 -> 40981652981 | AI89: =N89-R89 -> 24745427571 | AK89: =IF(AI89=0,0,IF(R89<>0,AI89/R89,IF(R89>0,1,-1))) -> 0.603817215 | AM89: =P89-U89 -> 24745427571 | AO89: =IF(AM89=0,0,IF(U89<>0,AM89/U89,IF(U89>0,1,-1))) -> 0.603817215 | AQ89: =P89-N89 -> 0 | AS89: =IF(AQ89=0,0,IF(N89<>0,AQ89/N89,IF(N89>0,1,-1))) -> 0 | AU89: =IF(P89+U89=0,0,1) -> 1 | AW89: 0 | AX89: 0
AU90: =AU91 -> 0 | AW90: 0 | AX90: 0
B91: I. | C91: Các khoản phải thu dài hạn | F91: 210 | K91: =SUM(K92:K95)+SUM(K102:K103)+K110 -> 0 | L91: 0 | M91: 0 | N91: 0 | O91: 0 | P91: 0 | R91: =SUM(R92:R95)+SUM(R102:R103)+R110 -> 0 | S91: =SUM(S92:S95)+SUM(S102:S103)+S110 -> 0 | T91: =SUM(T92:T95)+SUM(T102:T103)+T110 -> 0 | U91: =SUM(U92:U95)+SUM(U102:U103)+U110 -> 0 | V91: =B91 -> I. | W91: Long-term receivables | AA91: =F91 -> 210 | AE91: =SUM(AE92:AE95)+SUM(AE102:AE103)+AE110 -> 0 | AG91: =SUM(AG92:AG95)+SUM(AG102:AG103)+AG110 -> 0 | AI91: =N91-R91 -> 0 | AK91: =IF(AI91=0,0,IF(R91<>0,AI91/R91,IF(R91>0,1,-1))) -> 0 | AM91: =P91-U91 -> 0 | AO91: =IF(AM91=0,0,IF(U91<>0,AM91/U91,IF(U91>0,1,-1))) -> 0 | AQ91: =P91-N91 -> 0 | AS91: =IF(AQ91=0,0,IF(N91<>0,AQ91/N91,IF(N91>0,1,-1))) -> 0 | AU91: =IF(P91+U91=0,0,1) -> 0 | AW91: 0 | AX91: 0
A92: 131D | B92: 1. | C92: Phải thu dài hạn của khách hàng | F92: 211 | I92: ='Thuyet minh'!A634 -> 1.3 | K92: 0 | L92: 0 | M92: 0 | N92: =SUM(K92:M92) -> 0 | O92: =SUMIF('B360'!$H$12:$H$111,CDKT!A92,'B360'!$G$12:$G$111)-SUMIF('B360'!$I$12:$I$111,CDKT!A92,'B360'!$G$12:$G$111) -> 0 | P92: =N92+O92 -> 0 | R92: 0 | S92: 0 | T92: 0 | U92: =SUM(R92:T92) -> 0 | V92: 1. | W92: Long-term trade receivables | AA92: =F92 -> 211 | AC92: =I92 -> 1.3 | AE92: =P92 -> 0 | AG92: =U92 -> 0 | AI92: 0 | AK92: 0 | AM92: 0 | AO92: 0 | AQ92: 0 | AS92: 0 | AU92: 0 | AW92: 0 | AX92: 0 | BA92: CF09.33 | BB92: =R92-K92 -> 0 | BC92: =S92-L92 -> 0 | BD92: =T92-M92 -> 0 | BE92: =-O92 -> 0
A93: 331ND | B93: 2. | C93: Trả trước cho người bán dài hạn | F93: 212 | K93: 0 | L93: 0 | M93: 0 | N93: =SUM(K93:M93) -> 0 | O93: =SUMIF('B360'!$H$12:$H$111,CDKT!A93,'B360'!$G$12:$G$111)-SUMIF('B360'!$I$12:$I$111,CDKT!A93,'B360'!$G$12:$G$111) -> 0 | P93: =N93+O93 -> 0 | R93: 0 | S93: 0 | T93: 0 | U93: 0 | V93: 2. | W93: Long-term prepayments to suppliers | AA93: =F93 -> 212 | AE93: =P93 -> 0 | AG93: =U93 -> 0 | AI93: 0 | AK93: 0 | AM93: 0 | AO93: 0 | AQ93: 0 | AS93: 0 | AU93: 0 | AW93: 0 | AX93: 0 | BA93: CF09.34 | BB93: =R93-K93 -> 0 | BC93: 0 | BD93: 0 | BE93: 0
A94: 1361 | B94: 3. | C94: Vốn kinh doanh ở đơn vị trực thuộc | F94: 213 | K94: 0 | L94: 0 | M94: 0 | N94: =SUM(K94:M94) -> 0 | O94: =SUMIF('B360'!$H$12:$H$111,CDKT!A94,'B360'!$G$12:$G$111)-SUMIF('B360'!$I$12:$I$111,CDKT!A94,'B360'!$G$12:$G$111) -> 0 | P94: =N94+O94 -> 0 | R94: 0 | S94: 0 | T94: 0 | U94: 0 | V94: 3. | W94: Working capital provided to subordinate units | AA94: =F94 -> 213 | AE94: =P94 -> 0 | AG94: =U94 -> 0 | AI94: 0 | AK94: 0 | AM94: 0 | AO94: 0 | AQ94: 0 | AS94: 0 | AU94: 0 | AW94: 0 | AX94: 0 | BA94: CF09.35 | BB94: =R94-K94 -> 0 | BC94: 0 | BD94: 0 | BE94: 0
B95: 4. | C95: Phải thu nội bộ dài hạn | F95: 214 | K95: =SUM(K96:K101) -> 0 | L95: 0 | M95: 0 | N95: 0 | O95: 0 | P95: 0 | R95: =SUM(R96:R101) -> 0 | S95: =SUM(S96:S101) -> 0 | T95: =SUM(T96:T101) -> 0 | U95: =SUM(U96:U101) -> 0 | V95: 4. | W95: Long-term intercompany receivables | AA95: =F95 -> 214 | AC95: =I95 -> 0 | AE95: =SUM(AE96:AE101) -> 0 | AG95: =SUM(AG96:AG101) -> 0 | AI95: 0 | AK95: 0 | AM95: 0 | AO95: 0 | AQ95: 0 | AS95: 0 | AU95: 0 | AW95: 0 | AX95: 0
A96: 1362D | B96: - | C96: Phải thu nội bộ về chênh lệch tỷ giá dài hạn | K96: 0 | L96: 0 | M96: 0 | N96: =SUM(K96:M96) -> 0 | O96: =SUMIF('B360'!$H$12:$H$111,CDKT!A96,'B360'!$G$12:$G$111)-SUMIF('B360'!$I$12:$I$111,CDKT!A96,'B360'!$G$12:$G$111) -> 0 | P96: =N96+O96 -> 0 | R96: 0 | S96: 0 | T96: 0 | U96: =SUM(R96:T96) -> 0 | V96: - | W96: Long-term intra-company receivables for exchange differences | AE96: =P96 -> 0 | AG96: =U96 -> 0 | AI96: 0 | AK96: 0 | AM96: 0 | AO96: 0 | AQ96: 0 | AS96: 0 | AU96: 0 | AW96: 0 | AX96: 0 | BA96: CF09.36 | BB96: =R96-K96 -> 0 | BC96: =S96-L96 -> 0 | BD96: =T96-M96 -> 0 | BE96: =-O96 -> 0
A97: 1363D | B97: - | C97: Phải thu nội bộ về chi phí đi vay đủ điều kiện được vốn hóa dài hạn | K97: 0 | L97: 0 | M97: 0 | N97: 0 | O97: =SUMIF('B360'!$H$12:$H$111,CDKT!A97,'B360'!$G$12:$G$111)-SUMIF('B360'!$I$12:$I$111,CDKT!A97,'B360'!$G$12:$G$111) -> 0 | P97: 0 | R97: 0 | S97: 0 | T97: 0 | U97: 0 | V97: - | W97: Long-term intra-company receivables for cost of loans eligible for capitalization | AE97: 0 | AG97: 0 | AI97: 0 | AK97: 0 | AM97: 0 | AO97: 0 | AQ97: 0 | AS97: 0 | AU97: 0 | AW97: 0 | AX97: 0 | BA97: CF09.37 | BB97: 0 | BC97: 0 | BD97: 0 | BE97: 0
A98: 1368D | B98: - | C98: Phải thu nội bộ khác dài hạn | K98: 0 | L98: 0 | M98: 0 | N98: 0 | O98: =SUMIF('B360'!$H$12:$H$111,CDKT!A98,'B360'!$G$12:$G$111)-SUMIF('B360'!$I$12:$I$111,CDKT!A98,'B360'!$G$12:$G$111) -> 0 | P98: 0 | R98: 0 | S98: 0 | T98: 0 | U98: 0 | V98: - | W98: Other long-term intra-company receivables | AE98: 0 | AG98: 0 | AI98: 0 | AK98: 0 | AM98: 0 | AO98: 0 | AQ98: 0 | AS98: 0 | AU98: 0 | AW98: 0 | AX98: 0 | BA98: CF09.38 | BB98: 0 | BC98: 0 | BD98: 0 | BE98: 0
A99: 3362ND | B99: - | C99: Phải trả nội bộ về chênh lệch tỷ giá dài hạn (dư nợ) | K99: 0 | L99: 0 | M99: 0 | N99: 0 | O99: =SUMIF('B360'!$H$12:$H$111,CDKT!A99,'B360'!$G$12:$G$111)-SUMIF('B360'!$I$12:$I$111,CDKT!A99,'B360'!$G$12:$G$111) -> 0 | P99: 0 | R99: 0 | S99: 0 | T99: 0 | U99: 0 | V99: - | W99: Long-term intra-company payables for exchange differences (debit balances) | AE99: 0 | AG99: 0 | AI99: 0 | AK99: 0 | AM99: 0 | AO99: 0 | AQ99: 0 | AS99: 0 | AU99: 0 | AW99: 0 | AX99: 0 | BA99: CF09.39 | BB99: 0 | BC99: 0 | BD99: 0 | BE99: 0
A100: 3363ND | B100: - | C100: Phải trả nội bộ về chi phí đi vay đủ điều kiện được vốn hóa dài hạn (dư nợ) | K100: 0 | L100: 0 | M100: 0 | N100: 0 | O100: =SUMIF('B360'!$H$12:$H$111,CDKT!A100,'B360'!$G$12:$G$111)-SUMIF('B360'!$I$12:$I$111,CDKT!A100,'B360'!$G$12:$G$111) -> 0 | P100: 0 | R100: 0 | S100: 0 | T100: 0 | U100: 0 | V100: - | W100: Long-term intra-company payables for cost of loans eligible for capitalization (debit balances) | AE100: 0 | AG100: 0 | AI100: 0 | AK100: 0 | AM100: 0 | AO100: 0 | AQ100: 0 | AS100: 0 | AU100: 0 | AW100: 0 | AX100: 0 | BA100: CF09.40 | BB100: 0 | BC100: 0 | BD100: 0 | BE100: 0
A101: 3368ND | B101: - | C101: Phải trả nội bộ khác dài hạn (dư nợ) | K101: 0 | L101: 0 | M101: 0 | N101: 0 | O101: =SUMIF('B360'!$H$12:$H$111,CDKT!A101,'B360'!$G$12:$G$111)-SUMIF('B360'!$I$12:$I$111,CDKT!A101,'B360'!$G$12:$G$111) -> 0 | P101: 0 | R101: 0 | S101: 0 | T101: 0 | U101: 0 | V101: - | W101: Other long-term intra-company payables (debit balances) | AE101: 0 | AG101: 0 | AI101: 0 | AK101: 0 | AM101: 0 | AO101: 0 | AQ101: 0 | AS101: 0 | AU101: 0 | AW101: 0 | AX101: 0 | BA101: CF09.41 | BB101: 0 | BC101: 0 | BD101: 0 | BE101: 0
A102: 1283D | B102: 5. | C102: Phải thu về cho vay dài hạn | F102: 215 | K102: 0 | L102: 0 | M102: 0 | N102: 0 | O102: =SUMIF('B360'!$H$12:$H$111,CDKT!A102,'B360'!$G$12:$G$111)-SUMIF('B360'!$I$12:$I$111,CDKT!A102,'B360'!$G$12:$G$111) -> 0 | P102: 0 | R102: 0 | S102: 0 | T102: 0 | U102: 0 | V102: 5. | W102: Receivables on long-term loan | AA102: =F102 -> 215 | AC102: =I102 -> 0 | AE102: 0 | AG102: 0 | AI102: 0 | AK102: 0 | AM102: 0 | AO102: 0 | AQ102: 0 | AS102: 0 | AU102: 0 | AW102: 0 | AX102: 0 | BA102: CF09.42 | BB102: 0 | BC102: 0 | BD102: 0 | BE102: 0
B103: 6. | C103: Phải thu dài hạn khác | F103: 216 | I103: ='Thuyet minh'!A714 -> 1.6 | K103: =SUM(K104:K109) -> 0 | L103: 0 | M103: 0 | N103: 0 | O103: 0 | P103: 0 | R103: =SUM(R104:R109) -> 0 | S103: =SUM(S104:S109) -> 0 | T103: =SUM(T104:T109) -> 0 | U103: =SUM(U104:U109) -> 0 | V103: 6. | W103: Other long-term receivables | AA103: =F103 -> 216 | AC103: =I103 -> 1.6 | AE103: =SUM(AE104:AE109) -> 0 | AG103: =SUM(AG104:AG109) -> 0 | AI103: 0 | AK103: 0 | AM103: 0 | AO103: 0 | AQ103: 0 | AS103: 0 | AU103: 0 | AW103: 0 | AX103: 0
A104: 1385D | B104: - | C104: Phải thu về cổ phần hoá (TK1385) | K104: 0 | L104: 0 | M104: 0 | N104: =SUM(K104:M104) -> 0 | O104: =SUMIF('B360'!$H$12:$H$111,CDKT!A104,'B360'!$G$12:$G$111)-SUMIF('B360'!$I$12:$I$111,CDKT!A104,'B360'!$G$12:$G$111) -> 0 | P104: =N104+O104 -> 0 | R104: 0 | S104: 0 | T104: 0 | U104: =SUM(R104:T104) -> 0 | V104: - | W104: Receivables from equalization | AE104: =P104 -> 0 | AG104: =U104 -> 0 | AI104: 0 | AK104: 0 | AM104: 0 | AO104: 0 | AQ104: 0 | AS104: 0 | AU104: 0 | AW104: 0 | AX104: 0 | BA104: CF09.43 | BB104: =R104-K104 -> 0 | BC104: =S104-L104 -> 0 | BD104: =T104-M104 -> 0 | BE104: =-O104 -> 0
A105: 334ND | B105: - | C105: Phải thu cán bộ công nhân viên (TK334 Dư nợ) | K105: 0 | L105: 0 | M105: 0 | N105: 0 | O105: =SUMIF('B360'!$H$12:$H$111,CDKT!A105,'B360'!$G$12:$G$111)-SUMIF('B360'!$I$12:$I$111,CDKT!A105,'B360'!$G$12:$G$111) -> 0 | P105: 0 | R105: 0 | S105: 0 | T105: 0 | U105: 0 | V105: - | W105: Receivables from employees | AE105: 0 | AG105: 0 | AI105: 0 | AK105: 0 | AM105: 0 | AO105: 0 | AQ105: 0 | AS105: 0 | AU105: 0 | AW105: 0 | AX105: 0 | BA105: CF09.44 | BB105: 0 | BC105: 0 | BD105: 0 | BE105: 0
A106: 141D | B106: - | C106: Tạm ứng | K106: 0 | L106: 0 | M106: 0 | N106: 0 | O106: =SUMIF('B360'!$H$12:$H$111,CDKT!A106,'B360'!$G$12:$G$111)-SUMIF('B360'!$I$12:$I$111,CDKT!A106,'B360'!$G$12:$G$111) -> 0 | P106: 0 | R106: 0 | S106: 0 | T106: 0 | U106: 0 | V106: - | W106: Advances | AE106: 0 | AG106: 0 | AI106: 0 | AK106: 0 | AM106: 0 | AO106: 0 | AQ106: 0 | AS106: 0 | AU106: 0 | AW106: 0 | AX106: 0 | BA106: CF09.45 | BB106: 0 | BC106: 0 | BD106: 0 | BE106: 0
A107: 244D | B107: - | C107: Cầm cố, thế chấp, ký quỹ, ký cược | K107: 0 | L107: 0 | M107: 0 | N107: 0 | O107: =SUMIF('B360'!$H$12:$H$111,CDKT!A107,'B360'!$G$12:$G$111)-SUMIF('B360'!$I$12:$I$111,CDKT!A107,'B360'!$G$12:$G$111) -> 0 | P107: 0 | R107: 0 | S107: 0 | T107: 0 | U107: 0 | V107: - | W107: Pledges, mortgages or deposits | AE107: 0 | AG107: 0 | AI107: 0 | AK107: 0 | AM107: 0 | AO107: 0 | AQ107: 0 | AS107: 0 | AU107: 0 | AW107: 0 | AX107: 0 | BA107: CF09.46 | BB107: 0 | BC107: 0 | BD107: 0 | BE107: 0
A108: 1388D | B108: - | C108: Phải thu khác (TK1388) | K108: 0 | L108: 0 | M108: 0 | N108: 0 | O108: =SUMIF('B360'!$H$12:$H$111,CDKT!A108,'B360'!$G$12:$G$111)-SUMIF('B360'!$I$12:$I$111,CDKT!A108,'B360'!$G$12:$G$111) -> 0 | P108: 0 | R108: 0 | S108: 0 | T108: 0 | U108: 0 | V108: - | W108: Other receivable | AE108: 0 | AG108: 0 | AI108: 0 | AK108: 0 | AM108: 0 | AO108: 0 | AQ108: 0 | AS108: 0 | AU108: 0 | AW108: 0 | AX108: 0 | BA108: CF09.47 | BB108: 0 | BC108: 0 | BD108: 0 | BE108: 0
A109: 3388ND | B109: - | C109: Phải trả khác (dư nợ TK 3388) | K109: 0 | L109: 0 | M109: 0 | N109: 0 | O109: =SUMIF('B360'!$H$12:$H$111,CDKT!A109,'B360'!$G$12:$G$111)-SUMIF('B360'!$I$12:$I$111,CDKT!A109,'B360'!$G$12:$G$111) -> 0 | P109: 0 | R109: 0 | S109: 0 | T109: 0 | U109: 0 | V109: - | W109: Other payables (debit balances) | AE109: 0 | AG109: 0 | AI109: 0 | AK109: 0 | AM109: 0 | AO109: 0 | AQ109: 0 | AS109: 0 | AU109: 0 | AW109: =P109-AE109 -> 0 | AX109: =U109-AG109 -> 0 | BA109: CF09.48 | BB109: 0 | BC109: 0 | BD109: 0 | BE109: 0
A110: 2293D | B110: 7. | C110: Dự phòng phải thu dài hạn khó đòi | F110: 219 | K110: 0 | L110: 0 | M110: 0 | N110: 0 | O110: =SUMIF('B360'!$H$12:$H$111,CDKT!A110,'B360'!$G$12:$G$111)-SUMIF('B360'!$I$12:$I$111,CDKT!A110,'B360'!$G$12:$G$111) -> 0 | P110: =N110+O110 -> 0 | R110: 0 | S110: 0 | T110: 0 | U110: 0 | V110: 7. | W110: Provision for doubtful long-term receivables | AA110: =F110 -> 219 | AE110: 0 | AG110: 0 | AI110: 0 | AK110: 0 | AM110: 0 | AO110: 0 | AQ110: 0 | AS110: 0 | AU110: 0 | AW110: 0 | AX110: 0 | BA110: CF03.4 | BB110: 0 | BC110: 0 | BD110: 0 | BE110: 0
AU111: =AU112 -> 1 | AW111: 0 | AX111: 0
B112: II. | C112: Tài sản cố định | F112: 220 | K112: =K113+K116+K119 -> 32816789930 | L112: 0 | M112: 0 | N112: 32816789930 | O112: 0 | P112: 32816789930 | R112: =R113+R116+R119 -> 35166344486 | S112: =S113+S116+S119 -> 0 | T112: =T113+T116+T119 -> 0 | U112: =U113+U116+U119 -> 35166344486 | V112: =B112 -> II. | W112: Fixed assets | AA112: =F112 -> 220 | AE112: =AE113+AE116+AE119 -> 32816789930 | AG112: =AG113+AG116+AG119 -> 35166344486 | AI112: =N112-R112 -> -2349554556 | AK112: =IF(AI112=0,0,IF(R112<>0,AI112/R112,IF(R112>0,1,-1))) -> -0.06681259 | AM112: =P112-U112 -> -2349554556 | AO112: =IF(AM112=0,0,IF(U112<>0,AM112/U112,IF(U112>0,1,-1))) -> -0.06681259 | AQ112: =P112-N112 -> 0 | AS112: =IF(AQ112=0,0,IF(N112<>0,AQ112/N112,IF(N112>0,1,-1))) -> 0 | AU112: =IF(P112+U112=0,0,1) -> 1 | AW112: 0 | AX112: 0
B113: 1. | C113: Tài sản cố định hữu hình | F113: 221 | I113: ='Thuyet minh'!A824 -> 1.8 | K113: =K114+K115 -> 29967730972 | L113: 0 | M113: 0 | N113: 29967730972 | O113: 0 | P113: 29967730972 | R113: =R114+R115 -> 33687177820 | S113: =S114+S115 -> 0 | T113: =T114+T115 -> 0 | U113: =U114+U115 -> 33687177820 | V113: 1. | W113: Tangible fixed assets | AA113: 221 | AC113: =I113 -> 1.8 | AE113: =AE114+AE115 -> 29967730972 | AG113: =AG114+AG115 -> 33687177820 | AI113: -3719446848 | AK113: -0.110411352 | AM113: -3719446848 | AO113: -0.110411352 | AQ113: 0 | AS113: 0 | AU113: =AU114 -> 1 | AW113: 0 | AX113: 0
A114: 211 | B114: - | C114: Nguyên giá | F114: 222 | K114: 35621956834 | L114: 0 | M114: 0 | N114: =SUM(K114:M114) -> 35621956834 | O114: =SUMIF('B360'!$H$12:$H$111,CDKT!A114,'B360'!$G$12:$G$111)-SUMIF('B360'!$I$12:$I$111,CDKT!A114,'B360'!$G$12:$G$111) -> 0 | P114: =N114+O114 -> 35621956834 | R114: 36158580925 | S114: 0 | T114: 0 | U114: =SUM(R114:T114) -> 36158580925 | V114: - | W114: Costs | AA114: 222 | AE114: =P114 -> 35621956834 | AG114: =U114 -> 36158580925 | AI114: -536624091 | AK114: -0.01484085042 | AM114: -536624091 | AO114: -0.01484085042 | AQ114: 0 | AS114: 0 | AU114: =IF(P114+U114=0,0,1) -> 1 | AW114: 0 | AX114: 0 | BA114: CF21.1 | BB114: =R114-K114 -> 536624091 | BC114: =S114-L114 -> 0 | BD114: =T114-M114 -> 0 | BE114: =-O114 -> 0
A115: 2141 | B115: - | C115: Giá trị hao mòn luỹ kế | F115: 223 | K115: -5654225862 | L115: 0 | M115: 0 | N115: =SUM(K115:M115) -> -5654225862 | O115: =SUMIF('B360'!$H$12:$H$111,CDKT!A115,'B360'!$G$12:$G$111)-SUMIF('B360'!$I$12:$I$111,CDKT!A115,'B360'!$G$12:$G$111) -> 0 | P115: =N115+O115 -> -5654225862 | R115: -2471403105 | S115: 0 | T115: 0 | U115: -2471403105 | V115: - | W115: Value of accumulated depreciation | AA115: 223 | AE115: =P115 -> -5654225862 | AG115: =U115 -> -2471403105 | AI115: -3182822757 | AK115: 1.287860629 | AM115: -3182822757 | AO115: 1.287860629 | AQ115: 0 | AS115: 0 | AU115: =AU114 -> 1 | AW115: 0 | AX115: 0 | BA115: CF02.1 | BB115: =R115-K115 -> 3182822757 | BC115: 0 | BD115: 0 | BE115: 0
B116: 2. | C116: Tài sản cố định thuê tài chính | F116: 224 | I116: ='Thuyet minh'!A855 ->  | K116: =K117+K118 -> 0 | L116: 0 | M116: 0 | N116: 0 | O116: 0 | P116: 0 | R116: =R117+R118 -> 0 | S116: =S117+S118 -> 0 | T116: =T117+T118 -> 0 | U116: =U117+U118 -> 0 | V116: 2. | W116: Finance lease assets | AA116: 224 | AC116: =I116 ->  | AE116: =AE117+AE118 -> 0 | AG116: =AG117+AG118 -> 0 | AI116: 0 | AK116: 0 | AM116: 0 | AO116: 0 | AQ116: 0 | AS116: 0 | AU116: =AU117 -> 0 | AW116: 0 | AX116: 0
A117: 212 | B117: - | C117: Nguyên giá | F117: 225 | K117: 0 | L117: 0 | M117: 0 | N117: =SUM(K117:M117) -> 0 | O117: =SUMIF('B360'!$H$12:$H$111,CDKT!A117,'B360'!$G$12:$G$111)-SUMIF('B360'!$I$12:$I$111,CDKT!A117,'B360'!$G$12:$G$111) -> 0 | P117: =N117+O117 -> 0 | R117: 0 | S117: 0 | T117: 0 | U117: =SUM(R117:T117) -> 0 | V117: - | W117: Costs | AA117: 225 | AE117: =P117 -> 0 | AG117: =U117 -> 0 | AI117: 0 | AK117: 0 | AM117: 0 | AO117: 0 | AQ117: 0 | AS117: 0 | AU117: =IF(P117+U117=0,0,1) -> 0 | AW117: 0 | AX117: 0 | BA117: CF21.2 | BB117: =R117-K117 -> 0 | BC117: =S117-L117 -> 0 | BD117: =T117-M117 -> 0 | BE117: =-O117 -> 0
A118: 2142 | B118: - | C118: Giá trị hao mòn luỹ kế | F118: 226 | K118: 0 | L118: 0 | M118: 0 | N118: =SUM(K118:M118) -> 0 | O118: =SUMIF('B360'!$H$12:$H$111,CDKT!A118,'B360'!$G$12:$G$111)-SUMIF('B360'!$I$12:$I$111,CDKT!A118,'B360'!$G$12:$G$111) -> 0 | P118: =N118+O118 -> 0 | R118: 0 | S118: 0 | T118: 0 | U118: 0 | V118: - | W118: Value of accumulated depreciation | AA118: 226 | AE118: =P118 -> 0 | AG118: =U118 -> 0 | AI118: 0 | AK118: 0 | AM118: 0 | AO118: 0 | AQ118: 0 | AS118: 0 | AU118: =AU117 -> 0 | AW118: 0 | AX118: 0 | BA118: CF02.2 | BB118: =R118-K118 -> 0 | BC118: 0 | BD118: 0 | BE118: 0
B119: 3. | C119: Tài sản cố định vô hình | F119: 227 | I119: ='Thuyet minh'!A881 -> 1.9 | K119: =K120+K121 -> 2849058958 | L119: 0 | M119: 0 | N119: 2849058958 | O119: 0 | P119: 2849058958 | R119: =R120+R121 -> 1479166666 | S119: =S120+S121 -> 0 | T119: =T120+T121 -> 0 | U119: =U120+U121 -> 1479166666 | V119: 3. | W119: Intangible fixed assets | AA119: 227 | AC119: =I119 -> 1.9 | AE119: =AE120+AE121 -> 2849058958 | AG119: =AG120+AG121 -> 1479166666 | AI119: 1369892292 | AK119: 0.9261243668 | AM119: 1369892292 | AO119: 0.9261243668 | AQ119: 0 | AS119: 0 | AU119: =AU120 -> 1 | AW119: 0 | AX119: 0
A120: 213 | B120: - | C120: Nguyên giá | F120: 228 | K120: 3202400000 | L120: 0 | M120: 0 | N120: =SUM(K120:M120) -> 3202400000 | O120: =SUMIF('B360'!$H$12:$H$111,CDKT!A120,'B360'!$G$12:$G$111)-SUMIF('B360'!$I$12:$I$111,CDKT!A120,'B360'!$G$12:$G$111) -> 0 | P120: =N120+O120 -> 3202400000 | R120: 1500000000 | S120: 0 | T120: 0 | U120: =SUM(R120:T120) -> 1500000000 | V120: - | W120: Costs | AA120: 228 | AE120: =P120 -> 3202400000 | AG120: =U120 -> 1500000000 | AI120: 1702400000 | AK120: 1.134933333 | AM120: 1702400000 | AO120: 1.134933333 | AQ120: 0 | AS120: 0 | AU120: =IF(P120+U120=0,0,1) -> 1 | AW120: 0 | AX120: 0 | BA120: CF21.3 | BB120: =R120-K120 -> -1702400000 | BC120: =S120-L120 -> 0 | BD120: =T120-M120 -> 0 | BE120: =-O120 -> 0
A121: 2143 | B121: - | C121: Giá trị hao mòn luỹ kế | F121: 229 | K121: -353341042 | L121: 0 | M121: 0 | N121: =SUM(K121:M121) -> -353341042 | O121: =SUMIF('B360'!$H$12:$H$111,CDKT!A121,'B360'!$G$12:$G$111)-SUMIF('B360'!$I$12:$I$111,CDKT!A121,'B360'!$G$12:$G$111) -> 0 | P121: =N121+O121 -> -353341042 | R121: -20833334 | S121: 0 | T121: 0 | U121: -20833334 | V121: - | W121: Value of accumulated amortization | AA121: 229 | AE121: =P121 -> -353341042 | AG121: =U121 -> -20833334 | AI121: -332507708 | AK121: 15.96036947 | AM121: -332507708 | AO121: 15.96036947 | AQ121: 0 | AS121: 0 | AU121: =AU120 -> 1 | AW121: 0 | AX121: 0 | BA121: CF02.3 | BB121: =R121-K121 -> 332507708 | BC121: 0 | BD121: 0 | BE121: 0
AU122: =AU123 -> 0 | AW122: 0 | AX122: 0
B123: III. | C123: Bất động sản đầu tư | F123: 230 | I123: ='Thuyet minh'!A905 ->  | K123: =SUM(K124:K125) -> 0 | L123: 0 | M123: 0 | N123: 0 | O123: 0 | P123: 0 | R123: =SUM(R124:R125) -> 0 | S123: =SUM(S124:S125) -> 0 | T123: =SUM(T124:T125) -> 0 | U123: =SUM(U124:U125) -> 0 | V123: =B123 -> III. | W123: Investment properties | AA123: =F123 -> 230 | AC123: =I123 ->  | AE123: =SUM(AE124:AE125) -> 0 | AG123: =SUM(AG124:AG125) -> 0 | AI123: =N123-R123 -> 0 | AK123: =IF(AI123=0,0,IF(R123<>0,AI123/R123,IF(R123>0,1,-1))) -> 0 | AM123: =P123-U123 -> 0 | AO123: =IF(AM123=0,0,IF(U123<>0,AM123/U123,IF(U123>0,1,-1))) -> 0 | AQ123: =P123-N123 -> 0 | AS123: =IF(AQ123=0,0,IF(N123<>0,AQ123/N123,IF(N123>0,1,-1))) -> 0 | AU123: =AU124 -> 0 | AW123: 0 | AX123: 0
A124: 217 | B124: - | C124: Nguyên giá | F124: 231 | K124: 0 | L124: 0 | M124: 0 | N124: =SUM(K124:M124) -> 0 | O124: =SUMIF('B360'!$H$12:$H$111,CDKT!A124,'B360'!$G$12:$G$111)-SUMIF('B360'!$I$12:$I$111,CDKT!A124,'B360'!$G$12:$G$111) -> 0 | P124: =N124+O124 -> 0 | R124: 0 | S124: 0 | T124: 0 | U124: =SUM(R124:T124) -> 0 | V124: =B124 -> - | W124: Cost | AA124: =F124 -> 231 | AE124: =P124 -> 0 | AG124: =U124 -> 0 | AI124: =N124-R124 -> 0 | AK124: =IF(AI124=0,0,IF(R124<>0,AI124/R124,IF(R124>0,1,-1))) -> 0 | AM124: =P124-U124 -> 0 | AO124: =IF(AM124=0,0,IF(U124<>0,AM124/U124,IF(U124>0,1,-1))) -> 0 | AQ124: =P124-N124 -> 0 | AS124: =IF(AQ124=0,0,IF(N124<>0,AQ124/N124,IF(N124>0,1,-1))) -> 0 | AU124: =IF(P124+U124=0,0,1) -> 0 | AW124: 0 | AX124: 0 | BA124: CF21.4 | BB124: =R124-K124 -> 0 | BC124: =S124-L124 -> 0 | BD124: =T124-M124 -> 0 | BE124: =-O124 -> 0
A125: 2147 | B125: - | C125: Giá trị hao mòn luỹ kế | F125: 232 | K125: 0 | L125: 0 | M125: 0 | N125: =SUM(K125:M125) -> 0 | O125: =SUMIF('B360'!$H$12:$H$111,CDKT!A125,'B360'!$G$12:$G$111)-SUMIF('B360'!$I$12:$I$111,CDKT!A125,'B360'!$G$12:$G$111) -> 0 | P125: =N125+O125 -> 0 | R125: 0 | S125: 0 | T125: 0 | U125: 0 | V125: =B125 -> - | W125: Value of accumulated depreciation | AA125: =F125 -> 232 | AE125: =P125 -> 0 | AG125: =U125 -> 0 | AI125: =N125-R125 -> 0 | AK125: =IF(AI125=0,0,IF(R125<>0,AI125/R125,IF(R125>0,1,-1))) -> 0 | AM125: =P125-U125 -> 0 | AO125: =IF(AM125=0,0,IF(U125<>0,AM125/U125,IF(U125>0,1,-1))) -> 0 | AQ125: =P125-N125 -> 0 | AS125: =IF(AQ125=0,0,IF(N125<>0,AQ125/N125,IF(N125>0,1,-1))) -> 0 | AU125: =AU124 -> 0 | AW125: 0 | AX125: 0 | BA125: CF02.4 | BB125: =R125-K125 -> 0 | BC125: 0 | BD125: 0 | BE125: 0
AU126: =AU127 -> 1 | AW126: 0 | AX126: 0
B127: IV. | C127: Tài sản dở dang dài hạn | F127: 240 | I127: ='Thuyet minh'!A790 ->  | K127: =K128+K131 -> 18612537433 | L127: 0 | M127: 0 | N127: 18612537433 | O127: 0 | P127: 18612537433 | R127: =R128+R131 -> 5239464836 | S127: =S128+S131 -> 0 | T127: =T128+T131 -> 0 | U127: =U128+U131 -> 5239464836 | V127: =B127 -> IV. | W127: Long-term unfinished asset | AA127: =F127 -> 240 | AC127: =I127 ->  | AE127: =AE128+AE131 -> 18612537433 | AG127: =AG128+AG131 -> 5239464836 | AI127: =N127-R127 -> 13373072597 | AK127: =IF(AI127=0,0,IF(R127<>0,AI127/R127,IF(R127>0,1,-1))) -> 2.552373766 | AM127: =P127-U127 -> 13373072597 | AO127: =IF(AM127=0,0,IF(U127<>0,AM127/U127,IF(U127>0,1,-1))) -> 2.552373766 | AQ127: =P127-N127 -> 0 | AS127: =IF(AQ127=0,0,IF(N127<>0,AQ127/N127,IF(N127>0,1,-1))) -> 0 | AU127: =IF(P127+U127=0,0,1) -> 1 | AW127: 0 | AX127: 0
B128: 1. | C128: Chi phí sản xuất, kinh doanh dở dang dài hạn | F128: 241 | K128: =SUM(K129:K130) -> 0 | L128: 0 | M128: 0 | N128: 0 | O128: 0 | P128: 0 | R128: =SUM(R129:R130) -> 0 | S128: =SUM(S129:S130) -> 0 | T128: =SUM(T129:T130) -> 0 | U128: =SUM(U129:U130) -> 0 | V128: =B128 -> 1. | W128: Long-term work in process | AA128: =F128 -> 241 | AE128: =SUM(AE129:AE130) -> 0 | AG128: =SUM(AG129:AG130) -> 0 | AI128: =N128-R128 -> 0 | AK128: =IF(AI128=0,0,IF(R128<>0,AI128/R128,IF(R128>0,1,-1))) -> 0 | AM128: =P128-U128 -> 0 | AO128: =IF(AM128=0,0,IF(U128<>0,AM128/U128,IF(U128>0,1,-1))) -> 0 | AQ128: =P128-N128 -> 0 | AS128: =IF(AQ128=0,0,IF(N128<>0,AQ128/N128,IF(N128>0,1,-1))) -> 0 | AU128: =IF(P128+U128=0,0,1) -> 0 | AW128: 0 | AX128: 0
A129: 154D | B129: - | C129: Chi phí sản xuất, kinh doanh dở dang dài hạn | K129: 0 | L129: 0 | M129: 0 | N129: =SUM(K129:M129) -> 0 | O129: =SUMIF('B360'!$H$12:$H$111,CDKT!A129,'B360'!$G$12:$G$111)-SUMIF('B360'!$I$12:$I$111,CDKT!A129,'B360'!$G$12:$G$111) -> 0 | P129: =N129+O129 -> 0 | R129: 0 | S129: 0 | T129: 0 | U129: =SUM(R129:T129) -> 0 | V129: =B129 -> - | W129: Long-term work in process | AE129: =P129 -> 0 | AG129: =U129 -> 0 | AI129: =N129-R129 -> 0 | AK129: =IF(AI129=0,0,IF(R129<>0,AI129/R129,IF(R129>0,1,-1))) -> 0 | AM129: =P129-U129 -> 0 | AO129: =IF(AM129=0,0,IF(U129<>0,AM129/U129,IF(U129>0,1,-1))) -> 0 | AQ129: =P129-N129 -> 0 | AS129: =IF(AQ129=0,0,IF(N129<>0,AQ129/N129,IF(N129>0,1,-1))) -> 0 | AU129: =IF(P129+U129=0,0,1) -> 0 | AW129: 0 | AX129: 0 | BA129: CF10.10 | BB129: =R129-K129 -> 0 | BC129: =S129-L129 -> 0 | BD129: =T129-M129 -> 0 | BE129: =-O129 -> 0
A130: 22941D | B130: - | C130: Dự phòng giảm giá hàng tồn kho | K130: 0 | L130: 0 | M130: 0 | N130: =SUM(K130:M130) -> 0 | O130: =SUMIF('B360'!$H$12:$H$111,CDKT!A130,'B360'!$G$12:$G$111)-SUMIF('B360'!$I$12:$I$111,CDKT!A130,'B360'!$G$12:$G$111) -> 0 | P130: =N130+O130 -> 0 | R130: 0 | S130: 0 | T130: 0 | U130: 0 | V130: =B130 -> - | W130: Allowance for decline in long-term work in process | AE130: =P130 -> 0 | AG130: =U130 -> 0 | AI130: =N130-R130 -> 0 | AK130: =IF(AI130=0,0,IF(R130<>0,AI130/R130,IF(R130>0,1,-1))) -> 0 | AM130: =P130-U130 -> 0 | AO130: =IF(AM130=0,0,IF(U130<>0,AM130/U130,IF(U130>0,1,-1))) -> 0 | AQ130: =P130-N130 -> 0 | AS130: =IF(AQ130=0,0,IF(N130<>0,AQ130/N130,IF(N130>0,1,-1))) -> 0 | AU130: =IF(P130+U130=0,0,1) -> 0 | AW130: 0 | AX130: 0 | BA130: CF03.5 | BB130: =R130-K130 -> 0 | BC130: 0 | BD130: 0 | BE130: 0
A131: 241 | B131: 2. | C131: Chi phí xây dựng cơ bản dở dang | F131: 242 | K131: 18612537433 | L131: 0 | M131: 0 | N131: =SUM(K131:M131) -> 18612537433 | O131: =SUMIF('B360'!$H$12:$H$111,CDKT!A131,'B360'!$G$12:$G$111)-SUMIF('B360'!$I$12:$I$111,CDKT!A131,'B360'!$G$12:$G$111) -> 0 | P131: =N131+O131 -> 18612537433 | R131: 5239464836 | S131: 0 | T131: 0 | U131: 5239464836 | V131: =B131 -> 2. | W131: Construction in progress | AA131: =F131 -> 242 | AE131: =P131 -> 18612537433 | AG131: =U131 -> 5239464836 | AI131: =N131-R131 -> 13373072597 | AK131: =IF(AI131=0,0,IF(R131<>0,AI131/R131,IF(R131>0,1,-1))) -> 2.552373766 | AM131: =P131-U131 -> 13373072597 | AO131: =IF(AM131=0,0,IF(U131<>0,AM131/U131,IF(U131>0,1,-1))) -> 2.552373766 | AQ131: =P131-N131 -> 0 | AS131: =IF(AQ131=0,0,IF(N131<>0,AQ131/N131,IF(N131>0,1,-1))) -> 0 | AU131: =IF(P131+U131=0,0,1) -> 1 | AW131: 0 | AX131: 0 | BA131: CF21.5 | BB131: =R131-K131 -> -13373072597 | BC131: 0 | BD131: 0 | BE131: 0
AU132: =AU133 -> 0 | AW132: 0 | AX132: 0
B133: V. | C133: Các khoản đầu tư tài chính dài hạn | F133: 250 | I133: ='Thuyet minh'!A547 -> 1.2 | K133: =SUM(K134:K138) -> 0 | L133: 0 | M133: 0 | N133: 0 | O133: 0 | P133: 0 | R133: =SUM(R134:R138) -> 0 | S133: =SUM(S134:S138) -> 0 | T133: =SUM(T134:T138) -> 0 | U133: =SUM(U134:U138) -> 0 | V133: =B133 -> V. | W133: Long-term financial investments | AA133: =F133 -> 250 | AC133: =I133 -> 1.2 | AE133: =SUM(AE134:AE138) -> 0 | AG133: =SUM(AG134:AG138) -> 0 | AI133: =N133-R133 -> 0 | AK133: =IF(AI133=0,0,IF(R133<>0,AI133/R133,IF(R133>0,1,-1))) -> 0 | AM133: =P133-U133 -> 0 | AO133: =IF(AM133=0,0,IF(U133<>0,AM133/U133,IF(U133>0,1,-1))) -> 0 | AQ133: =P133-N133 -> 0 | AS133: =IF(AQ133=0,0,IF(N133<>0,AQ133/N133,IF(N133>0,1,-1))) -> 0 | AU133: =IF(P133+U133=0,0,1) -> 0 | AW133: 0 | AX133: 0
A134: 221 | B134: 1. | C134: Đầu tư vào công ty con | F134: 251 | K134: 0 | L134: 0 | M134: 0 | N134: =SUM(K134:M134) -> 0 | O134: =SUMIF('B360'!$H$12:$H$111,CDKT!A134,'B360'!$G$12:$G$111)-SUMIF('B360'!$I$12:$I$111,CDKT!A134,'B360'!$G$12:$G$111) -> 0 | P134: =N134+O134 -> 0 | S134: 0 | T134: 0 | U134: =SUM(R134:T134) -> 0 | V134: 1. | W134: Investment in subsidiaries | AA134: 251 | AE134: =P134 -> 0 | AG134: =U134 -> 0 | AI134: 0 | AK134: 0 | AM134: 0 | AO134: 0 | AQ134: 0 | AS134: 0 | AU134: 0 | AW134: 0 | AX134: 0 | BA134: CF25.1 | BB134: =R134-K134 -> 0 | BC134: =S134-L134 -> 0 | BD134: =T134-M134 -> 0 | BE134: =-O134 -> 0
A135: 222 | B135: 2. | C135: Đầu tư vào công ty liên doanh, liên kết | F135: 252 | K135: 0 | L135: 0 | M135: 0 | N135: =SUM(K135:M135) -> 0 | O135: =SUMIF('B360'!$H$12:$H$111,CDKT!A135,'B360'!$G$12:$G$111)-SUMIF('B360'!$I$12:$I$111,CDKT!A135,'B360'!$G$12:$G$111) -> 0 | P135: =N135+O135 -> 0 | R135: 0 | S135: 0 | T135: 0 | U135: 0 | V135: 2. | W135: Investments in joint ventures, associates | AA135: 252 | AE135: =P135 -> 0 | AG135: =U135 -> 0 | AI135: 0 | AK135: 0 | AM135: 0 | AO135: 0 | AQ135: 0 | AS135: 0 | AU135: 0 | AW135: 0 | AX135: 0 | BA135: CF25.2 | BB135: =R135-K135 -> 0 | BC135: 0 | BD135: 0 | BE135: 0
A136: 2281 | B136: 3. | C136: Đầu tư góp vốn vào đơn vị khác | F136: 253 | K136: 0 | L136: 0 | M136: 0 | N136: =SUM(K136:M136) -> 0 | O136: =SUMIF('B360'!$H$12:$H$111,CDKT!A136,'B360'!$G$12:$G$111)-SUMIF('B360'!$I$12:$I$111,CDKT!A136,'B360'!$G$12:$G$111) -> 0 | P136: =N136+O136 -> 0 | R136: 0 | S136: 0 | T136: 0 | U136: 0 | V136: 3. | W136: nvestments in other units | AA136: 253 | AE136: =P136 -> 0 | AG136: =U136 -> 0 | AI136: 0 | AK136: 0 | AM136: 0 | AO136: 0 | AQ136: 0 | AS136: 0 | AU136: 0 | AW136: 0 | AX136: 0 | BA136: CF25.3 | BB136: =R136-K136 -> 0 | BC136: 0 | BD136: 0 | BE136: 0
A137: 2292 | B137: 4. | C137: Dự phòng giảm giá đầu tư tài chính dài hạn | F137: 254 | K137: 0 | L137: 0 | M137: 0 | N137: =SUM(K137:M137) -> 0 | O137: =SUMIF('B360'!$H$12:$H$111,CDKT!A137,'B360'!$G$12:$G$111)-SUMIF('B360'!$I$12:$I$111,CDKT!A137,'B360'!$G$12:$G$111) -> 0 | P137: =N137+O137 -> 0 | R137: 0 | S137: 0 | T137: 0 | U137: 0 | V137: 4. | W137: Provisions for long-term financial investments | AA137: 254 | AE137: =P137 -> 0 | AG137: =U137 -> 0 | AI137: 0 | AK137: 0 | AM137: 0 | AO137: 0 | AQ137: 0 | AS137: 0 | AU137: 0 | AW137: 0 | AX137: 0 | BA137: CF03.6 | BB137: =R137-K137 -> 0 | BC137: 0 | BD137: 0 | BE137: 0
B138: 5. | C138: Đầu tư nắm giữ đến ngày đáo hạn | F138: 255 | K138: =SUM(K139:K141) -> 0 | L138: 0 | M138: 0 | N138: 0 | O138: 0 | P138: 0 | R138: =SUM(R139:R141) -> 0 | S138: =SUM(S139:S141) -> 0 | T138: =SUM(T139:T141) -> 0 | U138: =SUM(U139:U141) -> 0 | V138: 5. | W138: Investments held to maturity | AA138: 255 | AE138: =SUM(AE139:AE141) -> 0 | AG138: =SUM(AG139:AG141) -> 0 | AI138: 0 | AK138: 0 | AM138: 0 | AO138: 0 | AQ138: 0 | AS138: 0 | AU138: 0 | AW138: 0 | AX138: 0
A139: 1281D | B139: - | C139: Tiền gửi có kỳ hạn | K139: 0 | L139: 0 | M139: 0 | N139: =SUM(K139:M139) -> 0 | O139: =SUMIF('B360'!$H$12:$H$111,CDKT!A139,'B360'!$G$12:$G$111)-SUMIF('B360'!$I$12:$I$111,CDKT!A139,'B360'!$G$12:$G$111) -> 0 | P139: =N139+O139 -> 0 | R139: 0 | S139: 0 | T139: 0 | U139: =SUM(R139:T139) -> 0 | V139: - | W139: Term deposits | AE139: =P139 -> 0 | AG139: =U139 -> 0 | AI139: 0 | AK139: 0 | AM139: 0 | AO139: 0 | AQ139: 0 | AS139: 0 | AU139: 0 | AW139: 0 | AX139: 0 | BA139: CF23.4 | BB139: =R139-K139 -> 0 | BC139: =S139-L139 -> 0 | BD139: =T139-M139 -> 0 | BE139: =-O139 -> 0
A140: 1282D | B140: - | C140: Trái phiếu | K140: 0 | L140: 0 | M140: 0 | N140: =SUM(K140:M140) -> 0 | O140: =SUMIF('B360'!$H$12:$H$111,CDKT!A140,'B360'!$G$12:$G$111)-SUMIF('B360'!$I$12:$I$111,CDKT!A140,'B360'!$G$12:$G$111) -> 0 | P140: =N140+O140 -> 0 | R140: 0 | S140: 0 | T140: 0 | U140: 0 | V140: - | W140: Bonds | AE140: =P140 -> 0 | AG140: =U140 -> 0 | AI140: 0 | AK140: 0 | AM140: 0 | AO140: 0 | AQ140: 0 | AS140: 0 | AU140: 0 | AW140: 0 | AX140: 0 | BA140: CF23.5 | BB140: =R140-K140 -> 0 | BC140: 0 | BD140: 0 | BE140: 0
A141: 1288D | B141: - | C141: Các khoản đầu tư khác nắm giữ đến ngày đáo hạn | K141: 0 | L141: 0 | M141: 0 | N141: =SUM(K141:M141) -> 0 | O141: =SUMIF('B360'!$H$12:$H$111,CDKT!A141,'B360'!$G$12:$G$111)-SUMIF('B360'!$I$12:$I$111,CDKT!A141,'B360'!$G$12:$G$111) -> 0 | P141: =N141+O141 -> 0 | R141: 0 | S141: 0 | T141: 0 | U141: 0 | V141: - | W141: Other held to maturity investments | AE141: =P141 -> 0 | AG141: =U141 -> 0 | AI141: 0 | AK141: 0 | AM141: 0 | AO141: 0 | AQ141: 0 | AS141: 0 | AU141: 0 | AW141: =P141-AE141 -> 0 | AX141: =U141-AG141 -> 0 | BA141: CF23.6 | BB141: =R141-K141 -> 0 | BC141: 0 | BD141: 0 | BE141: 0
AU142: =AU143 -> 1 | AW142: 0 | AX142: 0
B143: VI. | C143: Tài sản dài hạn khác | F143: 260 | K143: =SUM(K144:K146)+K149+K150 -> 14297753189 | L143: 0 | M143: 0 | N143: 14297753189 | O143: 0 | P143: 14297753189 | R143: =SUM(R144:R146)+R149+R150 -> 575843659 | S143: =SUM(S144:S146)+S149+S150 -> 0 | T143: =SUM(T144:T146)+T149+T150 -> 0 | U143: =SUM(U144:U146)+U149+U150 -> 575843659 | V143: =B143 -> VI. | W143: Other long-term assets | AA143: =F143 -> 260 | AE143: =SUM(AE144:AE146)+AE149+AE150 -> 14297753189 | AG143: =SUM(AG144:AG146)+AG149+AG150 -> 575843659 | AI143: =N143-R143 -> 13721909530 | AK143: =IF(AI143=0,0,IF(R143<>0,AI143/R143,IF(R143>0,1,-1))) -> 23.82922746 | AM143: =P143-U143 -> 13721909530 | AO143: =IF(AM143=0,0,IF(U143<>0,AM143/U143,IF(U143>0,1,-1))) -> 23.82922746 | AQ143: =P143-N143 -> 0 | AS143: =IF(AQ143=0,0,IF(N143<>0,AQ143/N143,IF(N143>0,1,-1))) -> 0 | AU143: =IF(P143+U143=0,0,1) -> 1 | AW143: 0 | AX143: 0
A144: 242D | B144: 1. | C144: Chi phí trả trước dài hạn | F144: 261 | I144: ='Thuyet minh'!A952 -> 1.10 | K144: 14297753189 | L144: 0 | M144: 0 | N144: =SUM(K144:M144) -> 14297753189 | O144: =SUMIF('B360'!$H$12:$H$111,CDKT!A144,'B360'!$G$12:$G$111)-SUMIF('B360'!$I$12:$I$111,CDKT!A144,'B360'!$G$12:$G$111) -> 0 | P144: =N144+O144 -> 14297753189 | R144: 575843659 | S144: 0 | T144: 0 | U144: =SUM(R144:T144) -> 575843659 | V144: 1. | W144: Long-term prepaid expenses | AA144: =F144 -> 261 | AC144: =I144 -> 1.10 | AE144: =P144 -> 14297753189 | AG144: =U144 -> 575843659 | AI144: 13721909530 | AK144: 23.82922746 | AM144: 13721909530 | AO144: 23.82922746 | AQ144: 0 | AS144: 0 | AU144: 1 | AW144: 0 | AX144: 0 | BA144: CF12.2 | BB144: =R144-K144 -> -13721909530 | BC144: =S144-L144 -> 0 | BD144: =T144-M144 -> 0 | BE144: =-O144 -> 0
A145: 243 | B145: 2. | C145: Tài sản thuế thu nhập hoãn lại | F145: 262 | I145: ='Thuyet minh'!A1571&"."&LEFT('Thuyet minh'!A1572,1) -> .a | K145: 0 | L145: 0 | M145: 0 | N145: =SUM(K145:M145) -> 0 | O145: =SUMIF('B360'!$H$12:$H$111,CDKT!A145,'B360'!$G$12:$G$111)-SUMIF('B360'!$I$12:$I$111,CDKT!A145,'B360'!$G$12:$G$111) -> 0 | P145: =N145+O145 -> 0 | R145: 0 | S145: 0 | T145: 0 | U145: 0 | V145: 2. | W145: Deferred income tax assets | AA145: =F145 -> 262 | AC145: =I145 -> .a | AE145: =P145 -> 0 | AG145: =U145 -> 0 | AI145: 0 | AK145: 0 | AM145: 0 | AO145: 0 | AQ145: 0 | AS145: 0 | AU145: 0 | AW145: 0 | AX145: 0 | BA145: CF21.6 | BB145: =R145-K145 -> 0 | BC145: 0 | BD145: 0 | BE145: 0
B146: 3. | C146: Thiết bị, vật tư, phụ tùng thay thế dài hạn | F146: 263 | K146: =SUM(K147:K148) -> 0 | L146: 0 | M146: 0 | N146: 0 | O146: 0 | P146: 0 | R146: =SUM(R147:R148) -> 0 | S146: =SUM(S147:S148) -> 0 | T146: =SUM(T147:T148) -> 0 | U146: =SUM(U147:U148) -> 0 | V146: 3. | W146: Long term equipment, supplies and spare parts | AA146: =F146 -> 263 | AE146: =SUM(AE147:AE148) -> 0 | AG146: =SUM(AG147:AG148) -> 0 | AI146: 0 | AK146: 0 | AM146: 0 | AO146: 0 | AQ146: 0 | AS146: 0 | AU146: 0 | AW146: 0 | AX146: 0
A147: 1534D | B147: - | C147: Thiết bị, vật tư, phụ tùng thay thế dài hạn | K147: 0 | L147: 0 | M147: 0 | N147: =SUM(K147:M147) -> 0 | O147: =SUMIF('B360'!$H$12:$H$111,CDKT!A147,'B360'!$G$12:$G$111)-SUMIF('B360'!$I$12:$I$111,CDKT!A147,'B360'!$G$12:$G$111) -> 0 | P147: =N147+O147 -> 0 | R147: 0 | S147: 0 | T147: 0 | U147: =SUM(R147:T147) -> 0 | V147: - | W147: Long-term equipment and spare parts for replacement | AE147: =P147 -> 0 | AG147: =U147 -> 0 | AI147: 0 | AK147: 0 | AM147: 0 | AO147: 0 | AQ147: 0 | AS147: 0 | AU147: 0 | AW147: 0 | AX147: 0 | BA147: CF10.11 | BB147: =R147-K147 -> 0 | BC147: =S147-L147 -> 0 | BD147: =T147-M147 -> 0 | BE147: =-O147 -> 0
A148: 22942D | B148: - | C148: Dự phòng giảm giá Thiết bị, vật tư, phụ tùng thay thế dài hạn | K148: 0 | L148: 0 | M148: 0 | N148: =SUM(K148:M148) -> 0 | O148: =SUMIF('B360'!$H$12:$H$111,CDKT!A148,'B360'!$G$12:$G$111)-SUMIF('B360'!$I$12:$I$111,CDKT!A148,'B360'!$G$12:$G$111) -> 0 | P148: =N148+O148 -> 0 | R148: 0 | S148: 0 | T148: 0 | U148: 0 | V148: - | W148: Allowance for decline in long-term equipment and spare parts for replacement | AE148: =P148 -> 0 | AG148: =U148 -> 0 | AI148: 0 | AK148: 0 | AM148: 0 | AO148: 0 | AQ148: 0 | AS148: 0 | AU148: 0 | AW148: 0 | AX148: 0 | BA148: CF03.7 | BB148: =R148-K148 -> 0 | BC148: 0 | BD148: 0 | BE148: 0
A149: 2288D | B149: 4. | C149: Tài sản dài hạn khác | F149: 268 | I149: ='Thuyet minh'!A982 ->  | K149: 0 | L149: 0 | M149: 0 | N149: =SUM(K149:M149) -> 0 | O149: =SUMIF('B360'!$H$12:$H$111,CDKT!A149,'B360'!$G$12:$G$111)-SUMIF('B360'!$I$12:$I$111,CDKT!A149,'B360'!$G$12:$G$111) -> 0 | P149: =N149+O149 -> 0 | R149: 0 | S149: 0 | T149: 0 | U149: 0 | V149: 4. | W149: Other long-term assets | AA149: =F149 -> 268 | AC149: =I149 ->  | AE149: =P149 -> 0 | AG149: =U149 -> 0 | AI149: 0 | AK149: 0 | AM149: 0 | AO149: 0 | AQ149: 0 | AS149: 0 | AU149: 0 | AW149: 0 | AX149: 0 | BA149: CF21.7 | BB149: =R149-K149 -> 0 | BC149: 0 | BD149: 0 | BE149: 0
A150: 269 | B150: 5. | C150: Lợi thế thương mại | F150: 269 | I150: ='Thuyet minh'!A983 ->  | K150: 0 | L150: 0 | M150: 0 | N150: =SUM(K150:M150) -> 0 | O150: =SUMIF('B360'!$H$12:$H$111,CDKT!A150,'B360'!$G$12:$G$111)-SUMIF('B360'!$I$12:$I$111,CDKT!A150,'B360'!$G$12:$G$111) -> 0 | P150: =N150+O150 -> 0 | R150: 0 | S150: 0 | T150: 0 | U150: 0 | V150: 5. | W150: Good will | AA150: =F150 -> 269 | AC150: =I150 ->  | AE150: =P150 -> 0 | AG150: =U150 -> 0 | AI150: 0 | AK150: 0 | AM150: 0 | AO150: 0 | AQ150: 0 | AS150: 0 | AU150: 0 | AW150: 0 | AX150: 0 | BA150: CF21.8 | BB150: =R150-K150 -> 0 | BC150: 0 | BD150: 0 | BE150: 0
AU151: =AU152 -> 1 | AW151: 0 | AX151: 0
B152: TỔNG CỘNG TÀI SẢN | F152: 270 | K152: =K13+K89 -> 8295187242484 | L152: 0 | M152: 0 | N152: 8295187242484 | O152: 0 | P152: 8295187242484 | R152: =R13+R89 -> 6239808473405 | S152: =S13+S89 -> 0 | T152: =T13+T89 -> 0 | U152: =U13+U89 -> 6239808473405 | V152: TOTAL ASSETS | AA152: =F152 -> 270 | AE152: =AE13+AE89 -> 8295187242484 | AG152: =AG13+AG89 -> 6239808473405 | AI152: =N152-R152 -> 2055378769079 | AK152: =IF(AI152=0,0,IF(R152<>0,AI152/R152,IF(R152>0,1,-1))) -> 0.3293977336 | AM152: =P152-U152 -> 2055378769079 | AO152: =IF(AM152=0,0,IF(U152<>0,AM152/U152,IF(U152>0,1,-1))) -> 0.3293977336 | AQ152: =P152-N152 -> 0 | AS152: =IF(AQ152=0,0,IF(N152<>0,AQ152/N152,IF(N152>0,1,-1))) -> 0 | AU152: =IF(P152+U152=0,0,1) -> 1 | AW152: 0 | AX152: 0 | BB152: =R152-K151 -> 6239808473405
V153: ="(The note set out from page "&LEFT(#REF!,2)&" to page "&RIGHT(#REF!,2)&" a part of the Financial Statements)" ->  | AU153: =$AU$160 -> 1
B154: =B6 -> BẢNG CÂN ĐỐI KẾ TOÁN | V154: =V6 -> STATEMENT OF FINANCIAL POSITION | AU154: 1
B155: =B7 -> Tại ngày 31 tháng 12 năm 2020 | V155: =V7 -> As at 31 December 2020 | AU155: 1
B156: (tiếp theo) | V156: (continue) | AU156: 1
AU157: 1
A158: TK | B158: NGUỒN VỐN | F158: Mã số | I158: Thuyết minh | K158: =K10 -> Công ty mẹ | L158: Công ty con 1 | M158: Công ty con 2 | N158: Số đơn vị (CN) | O158: Điều chỉnh | P158: Số cuối năm | R158: =R10 -> Công ty mẹ | S158: Công ty con 1 | T158: Công ty con 2 | U158: Số đầu năm | V158: RESOURCES | AA158: Code | AC158: =AC10 -> Note | AE158: =AE10 -> Ending balance | AG158: =AG10 -> Beginning balance | AI158: =$AI$10 -> Preliminary analysis befor audits | AM158: =$AM$10 -> General analysis after audits | AQ158: =$AQ$10 -> Analysis of pre/ post audits | AU158: 1 | AW158: Test TA/TV
K159: VND | L159: VND | M159: VND | N159: VND | O159: VND | P159: VND | R159: VND | S159: VND | T159: VND | U159: VND | AE159: =AE11 -> VND | AG159: =AG11 -> VND | AI159: (+/-) | AK159: (%) | AM159: (+/-) | AO159: (%) | AQ159: (+/-) | AS159: (%) | AU159: 1
AU160: =IF(SUM(AU161:AU279)<>0,1,0) -> 1
B161: C. | C161: NỢ PHẢI TRẢ | F161: 300 | K161: =K163+K216 -> 3303301642772 | L161: 0 | M161: 0 | N161: 3303301642772 | O161: 0 | P161: 3303301642772 | R161: =R163+R216 -> 2974634712248 | S161: =S163+S216 -> 0 | T161: =T163+T216 -> 0 | U161: =U163+U216 -> 2974634712248 | V161: =B161 -> C. | W161: LIABILITIES | AA161: =F161 -> 300 | AE161: =AE163+AE216 -> 3303301642772 | AG161: =AG163+AG216 -> 2974634712248 | AI161: =N161-R161 -> 328666930524 | AK161: =IF(AI161=0,0,IF(R161<>0,AI161/R161,IF(R161>0,1,-1))) -> 0.1104898458 | AM161: =P161-U161 -> 328666930524 | AO161: =IF(AM161=0,0,IF(U161<>0,AM161/U161,IF(U161>0,1,-1))) -> 0.1104898458 | AQ161: =P161-N161 -> 0 | AS161: =IF(AQ161=0,0,IF(N161<>0,AQ161/N161,IF(N161>0,1,-1))) -> 0 | AU161: =IF(P161+U161=0,0,1) -> 1 | AW161: =P161-AE161 -> 0 | AX161: =U161-AG161 -> 0
AU162: =AU163 -> 1 | AW162: 0 | AX162: 0
B163: I. | C163: Nợ ngắn hạn | F163: 310 | K163: =K199+SUM(K164:K166)+SUM(K177:K179)+SUM(K186:K188)+K203+K208+SUM(K213:K214) -> 3303301642772 | L163: 0 | M163: 0 | N163: 3303301642772 | O163: 0 | P163: 3303301642772 | R163: =R199+SUM(R164:R166)+SUM(R177:R179)+SUM(R186:R188)+R203+R208+SUM(R213:R214) -> 2974634712248 | S163: =S199+SUM(S164:S166)+SUM(S177:S179)+SUM(S186:S188)+S203+S208+SUM(S213:S214) -> 0 | T163: =T199+SUM(T164:T166)+SUM(T177:T179)+SUM(T186:T188)+T203+T208+SUM(T213:T214) -> 0 | U163: =U199+SUM(U164:U166)+SUM(U177:U179)+SUM(U186:U188)+U203+U208+SUM(U213:U214) -> 2974634712248 | V163: =B163 -> I. | W163: Short-term liabilities | AA163: =F163 -> 310 | AE163: =AE199+SUM(AE164:AE166)+SUM(AE177:AE179)+SUM(AE186:AE188)+AE203+AE208+SUM(AE213:AE214) -> 3303301642772 | AG163: =AG199+SUM(AG164:AG166)+SUM(AG177:AG179)+SUM(AG186:AG188)+AG203+AG208+SUM(AG213:AG214) -> 2974634712248 | AI163: =N163-R163 -> 328666930524 | AK163: =IF(AI163=0,0,IF(R163<>0,AI163/R163,IF(R163>0,1,-1))) -> 0.1104898458 | AM163: =P163-U163 -> 328666930524 | AO163: =IF(AM163=0,0,IF(U163<>0,AM163/U163,IF(U163>0,1,-1))) -> 0.1104898458 | AQ163: =P163-N163 -> 0 | AS163: =IF(AQ163=0,0,IF(N163<>0,AQ163/N163,IF(N163>0,1,-1))) -> 0 | AU163: =IF(P163+U163=0,0,1) -> 1 | AW163: 0 | AX163: 0
A164: 331 | B164: 1. | C164: Phải trả người bán ngắn hạn | F164: 311 | I164: ='Thuyet minh'!A994 -> 1.11 | K164: 2577591794722 | L164: 0 | M164: 0 | N164: =SUM(K164:M164) -> 2577591794722 | O164: =-SUMIF('B360'!$H$12:$H$111,A164,'B360'!$G$12:$G$111)+SUMIF('B360'!$I$12:$I$111,A164,'B360'!$G$12:$G$111) -> 0 | P164: =N164+O164 -> 2577591794722 | R164: 188131238770 | S164: 0 | T164: 0 | U164: =SUM(R164:T164) -> 188131238770 | V164: 1. | W164: Short-term trade payables | AA164: =F164 -> 311 | AC164: =I164 -> 1.11 | AE164: =P164 -> 2577591794722 | AG164: =U164 -> 188131238770 | AI164: 2389460555952 | AK164: 12.70103026 | AM164: 2389460555952 | AO164: 12.70103026 | AQ164: 0 | AS164: 0 | AU164: 1 | AW164: 0 | AX164: 0 | BA164: CF11.1 | BB164: =K164-R164 -> 2389460555952 | BC164: =L164-S164 -> 0 | BD164: 0 | BE164: =+O164 -> 0
A165: 131C | B165: 2. | C165: Người mua trả tiền trước ngắn hạn | F165: 312 | K165: 125000000 | L165: 0 | M165: 0 | N165: =SUM(K165:M165) -> 125000000 | O165: =-SUMIF('B360'!$H$12:$H$111,A165,'B360'!$G$12:$G$111)+SUMIF('B360'!$I$12:$I$111,A165,'B360'!$G$12:$G$111) -> 0 | P165: =N165+O165 -> 125000000 | R165: 625000000 | S165: 0 | T165: 0 | U165: 625000000 | V165: 2. | W165: Short-term advances from customers | AA165: =F165 -> 312 | AE165: =P165 -> 125000000 | AG165: =U165 -> 625000000 | AI165: -500000000 | AK165: -0.8 | AM165: -500000000 | AO165: -0.8 | AQ165: 0 | AS165: 0 | AU165: 1 | AW165: 0 | AX165: 0 | BA165: CF11.2 | BB165: =K165-R165 -> -500000000 | BC165: 0 | BD165: 0 | BE165: =+O165 -> 0
B166: 3. | C166: Thuế và các khoản phải nộp Nhà nước | F166: 313 | I166: ='Thuyet minh'!A1030 -> 1.12 | K166: =SUM(K167:K176) -> 98898208915 | L166: 0 | M166: 0 | N166: 98898208915 | O166: 0 | P166: 98898208915 | R166: =SUM(R167:R176) -> 320454048160 | S166: =SUM(S167:S176) -> 0 | T166: =SUM(T167:T176) -> 0 | U166: =SUM(U167:U176) -> 320454048160 | V166: 3. | W166: Taxes and other payables to State | AA166: =F166 -> 313 | AC166: =I166 -> 1.12 | AE166: =SUM(AE167:AE176) -> 98898208915 | AG166: =SUM(AG167:AG176) -> 320454048160 | AI166: -221555839245 | AK166: -0.6913809968 | AM166: -221555839245 | AO166: -0.6913809968 | AQ166: 0 | AS166: 0 | AU166: 1 | AW166: 0 | AX166: 0
A167: 3331 | B167: - | C167: Thuế Giá trị gia tăng | K167: 63129572363 | L167: 0 | M167: 0 | N167: =SUM(K167:M167) -> 63129572363 | O167: =-SUMIF('B360'!$H$12:$H$111,A167,'B360'!$G$12:$G$111)+SUMIF('B360'!$I$12:$I$111,A167,'B360'!$G$12:$G$111) -> 0 | P167: =N167+O167 -> 63129572363 | R167: 315647861818 | S167: 0 | T167: 0 | U167: =SUM(R167:T167) -> 315647861818 | V167: - | W167: VAT payable | AE167: =P167 -> 63129572363 | AG167: =U167 -> 315647861818 | AI167: -252518289455 | AK167: -0.8 | AM167: -252518289455 | AO167: -0.8 | AQ167: 0 | AS167: 0 | AU167: 1 | AW167: 0 | AX167: 0 | BA167: CF11.3 | BB167: =K167-R167 -> -252518289455 | BC167: =L167-S167 -> 0 | BD167: =M167-T167 -> 0 | BE167: =+O167 -> 0
A168: 3332 | B168: - | C168: Thuế Tiêu thụ đặc biệt | L168: 0 | M168: 0 | N168: 0 | O168: =-SUMIF('B360'!$H$12:$H$111,A168,'B360'!$G$12:$G$111)+SUMIF('B360'!$I$12:$I$111,A168,'B360'!$G$12:$G$111) -> 0 | P168: =N168+O168 -> 0 | R168: 0 | S168: 0 | T168: 0 | U168: 0 | V168: - | W168: Special excise tax | AE168: 0 | AG168: 0 | AI168: 0 | AK168: 0 | AM168: 0 | AO168: 0 | AQ168: 0 | AS168: 0 | AU168: 0 | AW168: 0 | AX168: 0 | BA168: CF11.4 | BB168: 0 | BC168: 0 | BD168: 0 | BE168: 0
A169: 3333 | B169: - | C169: Thuế Xuất khẩu, Nhập khẩu | L169: 0 | M169: 0 | N169: 0 | O169: =-SUMIF('B360'!$H$12:$H$111,A169,'B360'!$G$12:$G$111)+SUMIF('B360'!$I$12:$I$111,A169,'B360'!$G$12:$G$111) -> 0 | P169: 0 | R169: 0 | S169: 0 | T169: 0 | U169: 0 | V169: - | W169: Export, import duties | AE169: 0 | AG169: 0 | AI169: 0 | AK169: 0 | AM169: 0 | AO169: 0 | AQ169: 0 | AS169: 0 | AU169: 0 | AW169: 0 | AX169: 0 | BA169: CF11.5 | BB169: 0 | BC169: 0 | BD169: 0 | BE169: 0
A170: 3334 | B170: - | C170: Thuế Thu nhập doanh nghiệp | K170: 35768636552 | L170: 0 | M170: 0 | N170: 35768636552 | O170: =-SUMIF('B360'!$H$12:$H$111,A170,'B360'!$G$12:$G$111)+SUMIF('B360'!$I$12:$I$111,A170,'B360'!$G$12:$G$111) -> 0 | P170: 35768636552 | R170: 0 | S170: 0 | T170: 0 | U170: 0 | V170: - | W170: Corperate income tax | AE170: 35768636552 | AG170: 0 | AI170: 35768636552 | AK170: -1 | AM170: 35768636552 | AO170: -1 | AQ170: 0 | AS170: 0 | AU170: 1 | AW170: 0 | AX170: 0 | BA170: CF11.6 | BB170: 35768636552 | BC170: 0 | BD170: 0 | BE170: 0
A171: 3335 | B171: - | C171: Thuế Thu nhập cá nhân | K171: 0 | L171: 0 | M171: 0 | N171: 0 | O171: =-SUMIF('B360'!$H$12:$H$111,A171,'B360'!$G$12:$G$111)+SUMIF('B360'!$I$12:$I$111,A171,'B360'!$G$12:$G$111) -> 0 | P171: 0 | R171: 4806186342 | S171: 0 | T171: 0 | U171: 4806186342 | V171: - | W171: Personal income tax | AE171: 0 | AG171: 4806186342 | AI171: -4806186342 | AK171: -1 | AM171: -4806186342 | AO171: -1 | AQ171: 0 | AS171: 0 | AU171: 1 | AW171: 0 | AX171: 0 | BA171: CF11.7 | BB171: -4806186342 | BC171: 0 | BD171: 0 | BE171: 0
A172: 3336 | B172: - | C172: Thuế Tài nguyên | K172: 0 | L172: 0 | M172: 0 | N172: 0 | O172: =-SUMIF('B360'!$H$12:$H$111,A172,'B360'!$G$12:$G$111)+SUMIF('B360'!$I$12:$I$111,A172,'B360'!$G$12:$G$111) -> 0 | P172: 0 | R172: 0 | S172: 0 | T172: 0 | U172: 0 | V172: - | W172: Natural resource tax | AE172: 0 | AG172: 0 | AI172: 0 | AK172: 0 | AM172: 0 | AO172: 0 | AQ172: 0 | AS172: 0 | AU172: 0 | AW172: 0 | AX172: 0 | BA172: CF11.8 | BB172: 0 | BC172: 0 | BD172: 0 | BE172: 0
A173: 3337 | B173: - | C173: Thuế Nhà đất, Tiền thuê đất | K173: 0 | L173: 0 | M173: 0 | N173: 0 | O173: =-SUMIF('B360'!$H$12:$H$111,A173,'B360'!$G$12:$G$111)+SUMIF('B360'!$I$12:$I$111,A173,'B360'!$G$12:$G$111) -> 0 | P173: 0 | R173: 0 | S173: 0 | T173: 0 | U173: 0 | V173: - | W173: Land tax and land rent | AE173: 0 | AG173: 0 | AI173: 0 | AK173: 0 | AM173: 0 | AO173: 0 | AQ173: 0 | AS173: 0 | AU173: 0 | AW173: 0 | AX173: 0 | BA173: CF11.9 | BB173: 0 | BC173: 0 | BD173: 0 | BE173: 0
A174: 33381 | B174: - | C174: Thuế bảo vệ môi trường | K174: 0 | L174: 0 | M174: 0 | N174: 0 | O174: =-SUMIF('B360'!$H$12:$H$111,A174,'B360'!$G$12:$G$111)+SUMIF('B360'!$I$12:$I$111,A174,'B360'!$G$12:$G$111) -> 0 | P174: =N174+O174 -> 0 | R174: 0 | S174: 0 | T174: 0 | U174: 0 | V174: - | W174: Environmental protection tax | AE174: 0 | AG174: 0 | AI174: 0 | AK174: 0 | AM174: 0 | AO174: 0 | AQ174: 0 | AS174: 0 | AU174: 0 | AW174: 0 | AX174: 0 | BA174: CF11.10 | BB174: 0 | BC174: 0 | BD174: 0 | BE174: 0
A175: 33382 | B175: - | C175: Các loại thuế khác | K175: 0 | L175: 0 | M175: 0 | N175: 0 | O175: =-SUMIF('B360'!$H$12:$H$111,A175,'B360'!$G$12:$G$111)+SUMIF('B360'!$I$12:$I$111,A175,'B360'!$G$12:$G$111) -> 0 | P175: 0 | R175: 0 | S175: 0 | T175: 0 | U175: 0 | V175: - | W175: Other taxes | AE175: 0 | AG175: 0 | AI175: 0 | AK175: 0 | AM175: 0 | AO175: 0 | AQ175: 0 | AS175: 0 | AU175: 0 | AW175: 0 | AX175: 0 | BA175: CF11.11 | BB175: 0 | BC175: 0 | BD175: 0 | BE175: 0
A176: 3339 | B176: - | C176: Phí, lệ phí và các khoản phải nộp khác | K176: 0 | L176: 0 | M176: 0 | N176: 0 | O176: =-SUMIF('B360'!$H$12:$H$111,A176,'B360'!$G$12:$G$111)+SUMIF('B360'!$I$12:$I$111,A176,'B360'!$G$12:$G$111) -> 0 | P176: 0 | R176: 0 | S176: 0 | T176: 0 | U176: 0 | V176: - | W176: Fees, charges and other payables | AE176: 0 | AG176: 0 | AI176: 0 | AK176: 0 | AM176: 0 | AO176: 0 | AQ176: 0 | AS176: 0 | AU176: 0 | AW176: 0 | AX176: 0 | BA176: CF11.12 | BB176: 0 | BC176: 0 | BD176: 0 | BE176: 0
A177: 334 | B177: 4. | C177: Phải trả người lao động | F177: 314 | K177: 1244572652 | L177: 0 | M177: 0 | N177: 1244572652 | O177: =-SUMIF('B360'!$H$12:$H$111,A177,'B360'!$G$12:$G$111)+SUMIF('B360'!$I$12:$I$111,A177,'B360'!$G$12:$G$111) -> 0 | P177: =N177+O177 -> 1244572652 | R177: 2013285450 | S177: 0 | T177: 0 | U177: 2013285450 | V177: 4. | W177: Payables to employees | AA177: =F177 -> 314 | AE177: 1244572652 | AG177: 2013285450 | AI177: -768712798 | AK177: -0.3818200733 | AM177: -768712798 | AO177: -0.3818200733 | AQ177: 0 | AS177: 0 | AU177: 1 | AW177: 0 | AX177: 0 | BA177: CF11.13 | BB177: -768712798 | BC177: 0 | BD177: 0 | BE177: 0
A178: 335 | B178: 5. | C178: Chi phí phải trả ngắn hạn | F178: 315 | I178: ='Thuyet minh'!A1032 -> 1.13 | K178: 161168982064 | L178: 0 | M178: 0 | N178: 161168982064 | O178: =-SUMIF('B360'!$H$12:$H$111,A178,'B360'!$G$12:$G$111)+SUMIF('B360'!$I$12:$I$111,A178,'B360'!$G$12:$G$111) -> 0 | P178: =N178+O178 -> 161168982064 | R178: 148927007654 | S178: 0 | T178: 0 | U178: 148927007654 | V178: 5. | W178: Short-term accrued expenses payable | AA178: =F178 -> 315 | AC178: =I178 -> 1.13 | AE178: 161168982064 | AG178: 148927007654 | AI178: 12241974410 | AK178: 0.08220117091 | AM178: 12241974410 | AO178: 0.08220117091 | AQ178: 0 | AS178: 0 | AU178: 1 | AW178: 0 | AX178: 0 | BA178: CF11.14 | BB178: 12241974410 | BC178: 0 | BD178: 0 | BE178: 0
B179: 6. | C179: Phải trả nội bộ ngắn hạn | F179: 316 | K179: =SUM(K180:K185) -> 0 | L179: 0 | M179: 0 | N179: 0 | O179: 0 | P179: 0 | R179: =SUM(R180:R185) -> 0 | S179: =SUM(S180:S185) -> 0 | T179: =SUM(T180:T185) -> 0 | U179: =SUM(U180:U185) -> 0 | V179: 6. | W179: Short-term intercompany payables | AA179: =F179 -> 316 | AE179: =SUM(AE180:AE185) -> 0 | AG179: =SUM(AG180:AG185) -> 0 | AI179: 0 | AK179: 0 | AM179: 0 | AO179: 0 | AQ179: 0 | AS179: 0 | AU179: 0 | AW179: 0 | AX179: 0
A180: 1362C | B180: - | C180: Phải thu nội bộ về chênh lệch tỷ giá ngắn hạn (dư có) | L180: 0 | M180: 0 | N180: =SUM(K180:M180) -> 0 | O180: =-SUMIF('B360'!$H$12:$H$111,A180,'B360'!$G$12:$G$111)+SUMIF('B360'!$I$12:$I$111,A180,'B360'!$G$12:$G$111) -> 0 | P180: =N180+O180 -> 0 | R180: 0 | S180: 0 | T180: 0 | U180: =SUM(R180:T180) -> 0 | V180: - | W180: Short-term intra-company receivables for exchange differences (credit balances) | AE180: =P180 -> 0 | AG180: =U180 -> 0 | AI180: 0 | AK180: 0 | AM180: 0 | AO180: 0 | AQ180: 0 | AS180: 0 | AU180: 0 | AW180: 0 | AX180: 0 | BA180: CF11.15 | BB180: =K180-R180 -> 0 | BC180: =L180-S180 -> 0 | BD180: =M180-T180 -> 0 | BE180: =+O180 -> 0
A181: 1363C | B181: - | C181: Phải thu nội bộ về chi phí đi vay đủ điều kiện được vốn hóa ngắn hạn (dư có) | K181: 0 | L181: 0 | M181: 0 | N181: 0 | O181: =-SUMIF('B360'!$H$12:$H$111,A181,'B360'!$G$12:$G$111)+SUMIF('B360'!$I$12:$I$111,A181,'B360'!$G$12:$G$111) -> 0 | P181: 0 | R181: 0 | S181: 0 | T181: 0 | U181: 0 | V181: - | W181: Short-term intra-company receivables for cost of loans eligible for capitalization (credit balances) | AE181: 0 | AG181: 0 | AI181: 0 | AK181: 0 | AM181: 0 | AO181: 0 | AQ181: 0 | AS181: 0 | AU181: 0 | AW181: 0 | AX181: 0 | BA181: CF11.16 | BB181: 0 | BC181: 0 | BD181: 0 | BE181: 0
A182: 1368C | B182: - | C182: Phải thu nội bộ ngắn hạn khác ngắn hạn (dư có) | K182: 0 | L182: 0 | M182: 0 | N182: 0 | O182: =-SUMIF('B360'!$H$12:$H$111,A182,'B360'!$G$12:$G$111)+SUMIF('B360'!$I$12:$I$111,A182,'B360'!$G$12:$G$111) -> 0 | P182: 0 | R182: 0 | S182: 0 | T182: 0 | U182: 0 | V182: - | W182: Other short-term intra-company receivables (credit balances) | AE182: 0 | AG182: 0 | AI182: 0 | AK182: 0 | AM182: 0 | AO182: 0 | AQ182: 0 | AS182: 0 | AU182: 0 | AW182: 0 | AX182: 0 | BA182: CF11.17 | BB182: 0 | BC182: 0 | BD182: 0 | BE182: 0
A183: 3362 | B183: - | C183: Phải trả nội bộ về chênh lệch tỷ giá ngắn hạn | K183: 0 | L183: 0 | M183: 0 | N183: 0 | O183: =-SUMIF('B360'!$H$12:$H$111,A183,'B360'!$G$12:$G$111)+SUMIF('B360'!$I$12:$I$111,A183,'B360'!$G$12:$G$111) -> 0 | P183: 0 | R183: 0 | S183: 0 | T183: 0 | U183: 0 | V183: - | W183: Exchange differences intra-company payables | AE183: 0 | AG183: 0 | AI183: 0 | AK183: 0 | AM183: 0 | AO183: 0 | AQ183: 0 | AS183: 0 | AU183: 0 | AW183: 0 | AX183: 0 | BA183: CF11.18 | BB183: 0 | BC183: 0 | BD183: 0 | BE183: 0
A184: 3363 | B184: - | C184: Phải trả nội bộ về chi phí đi vay đủ điều kiện được vốn hóa ngắn hạn | K184: 0 | L184: 0 | M184: 0 | N184: 0 | O184: =-SUMIF('B360'!$H$12:$H$111,A184,'B360'!$G$12:$G$111)+SUMIF('B360'!$I$12:$I$111,A184,'B360'!$G$12:$G$111) -> 0 | P184: 0 | R184: 0 | S184: 0 | T184: 0 | U184: 0 | V184: - | W184: Intra-company payables for borrowing costs entitled to be capitalized | AE184: 0 | AG184: 0 | AI184: 0 | AK184: 0 | AM184: 0 | AO184: 0 | AQ184: 0 | AS184: 0 | AU184: 0 | AW184: 0 | AX184: 0 | BA184: CF11.19 | BB184: 0 | BC184: 0 | BD184: 0 | BE184: 0
A185: 3368 | B185: - | C185: Phải trả nội bộ khác ngắn hạn | K185: 0 | L185: 0 | M185: 0 | N185: 0 | O185: =-SUMIF('B360'!$H$12:$H$111,A185,'B360'!$G$12:$G$111)+SUMIF('B360'!$I$12:$I$111,A185,'B360'!$G$12:$G$111) -> 0 | P185: 0 | S185: 0 | T185: 0 | U185: 0 | V185: - | W185: Other intra-company payables | AE185: 0 | AG185: 0 | AI185: 0 | AK185: 0 | AM185: 0 | AO185: 0 | AQ185: 0 | AS185: 0 | AU185: 0 | AW185: 0 | AX185: 0 | BA185: CF11.20 | BB185: 0 | BC185: 0 | BD185: 0 | BE185: 0
A186: 337 | B186: 7. | C186: Phải trả theo tiến độ kế hoạch hợp đồng xây dựng | F186: 317 | K186: 0 | L186: 0 | M186: 0 | N186: 0 | O186: =-SUMIF('B360'!$H$12:$H$111,A186,'B360'!$G$12:$G$111)+SUMIF('B360'!$I$12:$I$111,A186,'B360'!$G$12:$G$111) -> 0 | P186: 0 | R186: 0 | S186: 0 | T186: 0 | U186: 0 | V186: 7. | W186: Payables according to the progress of construction contract | AA186: =F186 -> 317 | AE186: 0 | AG186: 0 | AI186: 0 | AK186: 0 | AM186: 0 | AO186: 0 | AQ186: 0 | AS186: 0 | AU186: 0 | AW186: 0 | AX186: 0 | BA186: CF11.21 | BB186: 0 | BC186: 0 | BD186: 0 | BE186: 0
A187: 3387 | B187: 8. | C187: Doanh thu chưa thực hiện ngắn hạn | F187: 318 | I187: ='Thuyet minh'!A1048 ->  | K187: 0 | L187: 0 | M187: 0 | N187: 0 | O187: =-SUMIF('B360'!$H$12:$H$111,A187,'B360'!$G$12:$G$111)+SUMIF('B360'!$I$12:$I$111,A187,'B360'!$G$12:$G$111) -> 0 | P187: 0 | R187: 0 | S187: 0 | T187: 0 | U187: 0 | V187: 8. | W187: Short-term unearned revenues | AA187: =F187 -> 318 | AC187: =I187 ->  | AE187: 0 | AG187: 0 | AI187: 0 | AK187: 0 | AM187: 0 | AO187: 0 | AQ187: 0 | AS187: 0 | AU187: 0 | AW187: 0 | AX187: 0 | BA187: CF11.22 | BB187: 0 | BC187: 0 | BD187: 0 | BE187: 0
B188: 9. | C188: Phải trả ngắn hạn khác | F188: 319 | I188: ='Thuyet minh'!A1070 -> 1.14 | K188: =SUM(K189:K198) -> 4514164810 | L188: 0 | M188: 0 | N188: 4514164810 | O188: 0 | P188: 4514164810 | R188: =SUM(R189:R198) -> 16871875000 | S188: =SUM(S189:S198) -> 0 | T188: =SUM(T189:T198) -> 0 | U188: =SUM(U189:U198) -> 16871875000 | V188: 9. | W188: Other short-term payables | AA188: =F188 -> 319 | AC188: =I188 -> 1.14 | AE188: =SUM(AE189:AE198) -> 4514164810 | AG188: =SUM(AG189:AG198) -> 16871875000 | AI188: -12357710190 | AK188: -0.7324443898 | AM188: -12357710190 | AO188: -0.7324443898 | AQ188: 0 | AS188: 0 | AU188: 1 | AW188: 0 | AX188: 0
A189: 3381 | B189: - | C189: Tài sản thừa chờ giải quyết | K189: 0 | L189: 0 | M189: 0 | N189: =SUM(K189:M189) -> 0 | O189: =-SUMIF('B360'!$H$12:$H$111,A189,'B360'!$G$12:$G$111)+SUMIF('B360'!$I$12:$I$111,A189,'B360'!$G$12:$G$111) -> 0 | P189: =N189+O189 -> 0 | R189: 0 | S189: 0 | T189: 0 | U189: =SUM(R189:T189) -> 0 | V189: - | W189: Assets in surplus awaiting resolution | AE189: =P189 -> 0 | AG189: =U189 -> 0 | AI189: 0 | AK189: 0 | AM189: 0 | AO189: 0 | AQ189: 0 | AS189: 0 | AU189: 0 | AW189: 0 | AX189: 0 | BA189: CF11.23 | BB189: =K189-R189 -> 0 | BC189: =L189-S189 -> 0 | BD189: =M189-T189 -> 0 | BE189: =+O189 -> 0
A190: 3382 | B190: - | C190: Kinh phí công đoàn | K190: 0 | L190: 0 | M190: 0 | N190: 0 | O190: =-SUMIF('B360'!$H$12:$H$111,A190,'B360'!$G$12:$G$111)+SUMIF('B360'!$I$12:$I$111,A190,'B360'!$G$12:$G$111) -> 0 | P190: =N190+O190 -> 0 | R190: 0 | S190: 0 | T190: 0 | U190: 0 | V190: - | W190: Trade union fund | AE190: 0 | AG190: 0 | AI190: 0 | AK190: 0 | AM190: 0 | AO190: 0 | AQ190: 0 | AS190: 0 | AU190: 0 | AW190: 0 | AX190: 0 | BA190: CF11.24 | BB190: 0 | BC190: 0 | BD190: 0 | BE190: 0
A191: 3383 | B191: - | C191: Bảo hiểm xã hội | K191: 324356343 | L191: 0 | M191: 0 | N191: 324356343 | O191: =-SUMIF('B360'!$H$12:$H$111,A191,'B360'!$G$12:$G$111)+SUMIF('B360'!$I$12:$I$111,A191,'B360'!$G$12:$G$111) -> 0 | P191: 324356343 | R191: 0 | S191: 0 | T191: 0 | U191: 0 | V191: - | W191: Social insurance | AE191: 324356343 | AG191: 0 | AI191: 324356343 | AK191: -1 | AM191: 324356343 | AO191: -1 | AQ191: 0 | AS191: 0 | AU191: 1 | AW191: 0 | AX191: 0 | BA191: CF11.25 | BB191: 324356343 | BC191: 0 | BD191: 0 | BE191: 0
A192: 3384 | B192: - | C192: Bảo hiểm y tế | K192: 65433467 | L192: 0 | M192: 0 | N192: 65433467 | O192: =-SUMIF('B360'!$H$12:$H$111,A192,'B360'!$G$12:$G$111)+SUMIF('B360'!$I$12:$I$111,A192,'B360'!$G$12:$G$111) -> 0 | P192: 65433467 | R192: 0 | S192: 0 | T192: 0 | U192: 0 | V192: - | W192: Health insurance | AE192: 65433467 | AG192: 0 | AI192: 65433467 | AK192: -1 | AM192: 65433467 | AO192: -1 | AQ192: 0 | AS192: 0 | AU192: 1 | AW192: 0 | AX192: 0 | BA192: CF11.26 | BB192: 65433467 | BC192: 0 | BD192: 0 | BE192: 0
A193: 3386 | B193: - | C193: Bảo hiểm thất nghiệp | K193: 0 | L193: 0 | M193: 0 | N193: 0 | O193: =-SUMIF('B360'!$H$12:$H$111,A193,'B360'!$G$12:$G$111)+SUMIF('B360'!$I$12:$I$111,A193,'B360'!$G$12:$G$111) -> 0 | P193: =N193+O193 -> 0 | R193: 0 | S193: 0 | T193: 0 | U193: 0 | V193: - | W193: Unemployment insurance | AE193: 0 | AG193: 0 | AI193: 0 | AK193: 0 | AM193: 0 | AO193: 0 | AQ193: 0 | AS193: 0 | AU193: 0 | AW193: =P193-AE193 -> 0 | AX193: =U193-AG193 -> 0 | BA193: CF11.27 | BB193: 0 | BC193: 0 | BD193: 0 | BE193: 0
A194: 3385 | B194: - | C194: Phải trả về cổ phần hoá | K194: 0 | L194: 0 | M194: 0 | N194: 0 | O194: =-SUMIF('B360'!$H$12:$H$111,A194,'B360'!$G$12:$G$111)+SUMIF('B360'!$I$12:$I$111,A194,'B360'!$G$12:$G$111) -> 0 | P194: 0 | R194: 0 | S194: 0 | T194: 0 | U194: 0 | V194: - | W194: Payables on equalization | AE194: 0 | AG194: 0 | AI194: 0 | AK194: 0 | AM194: 0 | AO194: 0 | AQ194: 0 | AS194: 0 | AU194: 0 | AW194: 0 | AX194: 0 | BA194: CF11.28 | BB194: 0 | BC194: 0 | BD194: 0 | BE194: 0
A195: 344 | B195: - | C195: Nhận ký quỹ, ký cược ngắn hạn | K195: 856250000 | L195: 0 | M195: 0 | N195: 856250000 | O195: =-SUMIF('B360'!$H$12:$H$111,A195,'B360'!$G$12:$G$111)+SUMIF('B360'!$I$12:$I$111,A195,'B360'!$G$12:$G$111) -> 0 | P195: 856250000 | R195: 531250000 | S195: 0 | T195: 0 | U195: 531250000 | V195: =B195 -> - | W195: Short-term deposits, collateral received | AE195: 856250000 | AG195: 531250000 | AI195: =N195-R195 -> 325000000 | AK195: =IF(AI195=0,0,IF(R195<>0,AI195/R195,IF(R195>0,1,-1))) -> 0.6117647059 | AM195: =P195-U195 -> 325000000 | AO195: =IF(AM195=0,0,IF(U195<>0,AM195/U195,IF(U195>0,1,-1))) -> 0.6117647059 | AQ195: =P195-N195 -> 0 | AS195: =IF(AQ195=0,0,IF(N195<>0,AQ195/N195,IF(N195>0,1,-1))) -> 0 | AU195: =IF(P195+U195=0,0,1) -> 1 | AW195: 0 | AX195: 0 | BA195: CF11.29 | BB195: 325000000 | BC195: 0 | BD195: 0 | BE195: 0
A196: 3388 | B196: - | C196: Các khoản phải trả, phải nộp khác | K196: 3268125000 | L196: 0 | M196: 0 | N196: 3268125000 | O196: =-SUMIF('B360'!$H$12:$H$111,A196,'B360'!$G$12:$G$111)+SUMIF('B360'!$I$12:$I$111,A196,'B360'!$G$12:$G$111) -> 0 | P196: 3268125000 | R196: 16340625000 | S196: 0 | T196: 0 | U196: 16340625000 | V196: - | W196: Other payables | AE196: 3268125000 | AG196: 16340625000 | AI196: -13072500000 | AK196: -0.8 | AM196: -13072500000 | AO196: -0.8 | AQ196: 0 | AS196: 0 | AU196: 1 | AW196: 0 | AX196: 0 | BA196: CF11.30 | BB196: -13072500000 | BC196: 0 | BD196: 0 | BE196: 0
A197: 1388C | B197: - | C197: Phải thu khác (Dư Có TK 1388) | K197: 0 | L197: 0 | M197: 0 | N197: 0 | O197: =-SUMIF('B360'!$H$12:$H$111,A197,'B360'!$G$12:$G$111)+SUMIF('B360'!$I$12:$I$111,A197,'B360'!$G$12:$G$111) -> 0 | P197: 0 | R197: 0 | S197: 0 | T197: 0 | U197: 0 | V197: - | W197: Other receivable (Credit balance) | AE197: 0 | AG197: 0 | AI197: 0 | AK197: 0 | AM197: 0 | AO197: 0 | AQ197: 0 | AS197: 0 | AU197: 0 | AW197: 0 | AX197: 0 | BA197: CF11.31 | BB197: 0 | BC197: 0 | BD197: 0 | BE197: 0
A198: 141C | B198: - | C198: Tạm ứng (Dư Có TK 141) | K198: 0 | L198: 0 | M198: 0 | N198: 0 | O198: =-SUMIF('B360'!$H$12:$H$111,A198,'B360'!$G$12:$G$111)+SUMIF('B360'!$I$12:$I$111,A198,'B360'!$G$12:$G$111) -> 0 | P198: =N198+O198 -> 0 | R198: 0 | S198: 0 | T198: 0 | U198: 0 | V198: - | W198: Advances (Credit balance) | AE198: 0 | AG198: 0 | AI198: 0 | AK198: 0 | AM198: 0 | AO198: 0 | AQ198: 0 | AS198: 0 | AU198: 0 | AW198: 0 | AX198: 0 | BA198: CF11.32 | BB198: 0 | BC198: 0 | BD198: 0 | BE198: 0
B199: 10. | C199: Vay và nợ thuê tài chính ngắn hạn | F199: 320 | I199: ='Thuyet minh'!A1102 -> 1.15 | K199: =SUM(K200:K202) -> 459522451442 | L199: 0 | M199: 0 | N199: 459522451442 | O199: 0 | P199: 459522451442 | R199: =SUM(R200:R202) -> 2297612257214 | S199: =SUM(S200:S202) -> 0 | T199: =SUM(T200:T202) -> 0 | U199: =SUM(U200:U202) -> 2297612257214 | V199: 10. | W199: Short-term loans and finance lease liabilities | AA199: =F199 -> 320 | AC199: =I199 -> 1.15 | AE199: =SUM(AE200:AE202) -> 459522451442 | AG199: =SUM(AG200:AG202) -> 2297612257214 | AI199: -1838089805772 | AK199: -0.8 | AM199: -1838089805772 | AO199: -0.8 | AQ199: 0 | AS199: 0 | AU199: 1 | AW199: 0 | AX199: 0
A200: 3411 | B200: - | C200: Các khoản đi vay ngắn hạn | K200: 459522451442 | L200: 0 | M200: 0 | N200: =SUM(K200:M200) -> 459522451442 | O200: =-SUMIF('B360'!$H$12:$H$111,A200,'B360'!$G$12:$G$111)+SUMIF('B360'!$I$12:$I$111,A200,'B360'!$G$12:$G$111) -> 0 | P200: =N200+O200 -> 459522451442 | R200: 2297612257214 | S200: 0 | T200: 0 | U200: =SUM(R200:T200) -> 2297612257214 | V200: - | W200: Short-term loans | AE200: =P200 -> 459522451442 | AG200: =U200 -> 2297612257214 | AI200: -1838089805772 | AK200: -0.8 | AM200: -1838089805772 | AO200: -0.8 | AQ200: 0 | AS200: 0 | AU200: 1 | AW200: 0 | AX200: 0 | BA200: CF33.1 | BB200: =K200-R200 -> -1838089805772 | BC200: =L200-S200 -> 0 | BD200: =M200-T200 -> 0 | BE200: =+O200 -> 0
A201: 3412 | B201: - | C201: Nợ thuê tài chính ngắn hạn | K201: 0 | L201: 0 | M201: 0 | N201: =SUM(K201:M201) -> 0 | O201: =-SUMIF('B360'!$H$12:$H$111,A201,'B360'!$G$12:$G$111)+SUMIF('B360'!$I$12:$I$111,A201,'B360'!$G$12:$G$111) -> 0 | P201: =N201+O201 -> 0 | R201: 0 | S201: 0 | T201: 0 | U201: 0 | V201: - | W201: Current portion of finance lease liabilities | AE201: =P201 -> 0 | AG201: =U201 -> 0 | AI201: 0 | AK201: 0 | AM201: 0 | AO201: 0 | AQ201: 0 | AS201: 0 | AU201: 0 | AW201: 0 | AX201: 0 | BA201: CF33.2 | BB201: =K201-R201 -> 0 | BC201: 0 | BD201: 0 | BE201: =+O201 -> 0
A202: 34311 | B202: - | C202: Mệnh giá trái phiếu đến hạn thanh toán 12 tháng | K202: 0 | L202: 0 | M202: 0 | N202: =SUM(K202:M202) -> 0 | O202: =-SUMIF('B360'!$H$12:$H$111,A202,'B360'!$G$12:$G$111)+SUMIF('B360'!$I$12:$I$111,A202,'B360'!$G$12:$G$111) -> 0 | P202: =N202+O202 -> 0 | R202: 0 | S202: 0 | T202: 0 | U202: 0 | V202: - | W202: Current portion of bond par value | AE202: =P202 -> 0 | AG202: =U202 -> 0 | AI202: 0 | AK202: 0 | AM202: 0 | AO202: 0 | AQ202: 0 | AS202: 0 | AU202: 0 | AW202: 0 | AX202: 0 | BA202: CF33.3 | BB202: =K202-R202 -> 0 | BC202: 0 | BD202: 0 | BE202: =+O202 -> 0
... 85 more rows

Sheet KQKD
B1: ='Khai bao'!$C$3 -> CÔNG TY TNHH TƯ VẤN VÀ ĐÀO TẠO IVC | T1: ="B"&RIGHT('Khai bao'!$C$13,16) -> Báo cáo tài chính | U1: ='Khai bao'!$D$3 -> IVC CONSULTING AND TRAINING COMPANY LIMITED | AF1: ="F"&RIGHT('Khai bao'!$D$13,19) -> Financial statements
T2: Mẫu số B 02-DN | U2: ='Khai bao'!$D$6 -> 0 | AF2: Form B 02 - DN
T3: (Ban hành theo Thông tư số 200/2014/TT-BTC | AF3: (According to Circular No. 200/2014/TT-BTC
T4: ngày 22/12/2014 của Bộ Tài chính) | AF4: dated 22/12/2014 by Financial Department)
AR5: 5.06.2
B6: =IF('Khai bao'!C12='Khai bao'!F13,"BÁO CÁO KẾT QUẢ HOẠT ĐỘNG KINH DOANH HỢP NHẤT","BÁO CÁO KẾT QUẢ HOẠT ĐỘNG KINH DOANH") -> BÁO CÁO KẾT QUẢ HOẠT ĐỘNG KINH DOANH | U6: =IF('Khai bao'!C12='Khai bao'!F13,"CONSOLIDATED STATEMENT OF COMPREHENSIVE INCOME","STATEMENT OF COMPREHENSIVE INCOME") -> STATEMENT OF COMPREHENSIVE INCOME
B7: ='Khai bao'!$C$15 -> Năm tài chính kết thúc ngày 31/12/2020 | U7: =CLEAN('Khai bao'!D15) -> For the fiscal year ended 31/12/2020
A10: TK | B10: CHỈ TIÊU | G10: Mã số | I10: Thuyết minh | K10: =CDKT!K10 -> Công ty mẹ | L10: =CDKT!L10 -> Công ty con 1 | M10: =CDKT!M10 -> Công ty con 2 | N10: =CDKT!N10 -> Số đơn vị (CN) | O10: =CDKT!O10 -> Điều chỉnh | P10: ='Khai bao'!$C$21 -> Năm nay | R10: Số đơn vị | S10: Điều chỉnh | T10: ='Khai bao'!$C$25 -> Năm trước | U10: ITEMS | Z10: Code | AB10: Note | AD10: ='Khai bao'!$D$21 -> Current year | AF10: ='Khai bao'!$D$25 -> Previous year | AH10: Phân tích sơ bộ trước kiểm toán | AL10: Phân tích tổng quát sau kiểm toán | AP10: Phân tích trước/ sau kiểm toán | AV10: Test TA/TV
K11: VND | L11: VND | M11: VND | N11: VND | O11: VND | P11: VND | R11: VND | S11: VND | T11: VND | AD11: VND | AF11: VND | AH11: (+/-) | AJ11: (%) | AL11: (+/-) | AN11: (%) | AP11: (+/-) | AR11: (%)
A13: 511 | B13: 1. | C13: Doanh thu bán hàng và cung cấp dịch vụ | G13: 01 | I13: ='Thuyet minh'!A1400 -> 2.1 | K13: 20385958689725 | L13: 0 | M13: 0 | N13: =SUM(K13:M13) -> 20385958689725 | O13: =-SUMIF('B360'!$E$12:$E$111,A13,'B360'!$G$12:$G$111)+SUMIF('B360'!$F$12:$F$111,A13,'B360'!$G$12:$G$111) -> 0 | P13: =N13+O13 -> 20385958689725 | R13: 19390071789703 | S13: =-SUMIF('B360'!$E$112:$E$133,$A13,'B360'!$G$112:$G$133)+SUMIF('B360'!$F$112:$F$133,$A13,'B360'!$G$112:$G$133) -> 0 | T13: =R13+S13 -> 19390071789703 | U13: =B13 -> 1. | V13: Revenue from sale of goods and rendering of services | Z13: =G13 -> 01 | AB13: =I13 -> 2.1 | AD13: =P13 -> 20385958689725 | AF13: =T13 -> 19390071789703 | AH13: =N13-R13 -> 995886900022 | AJ13: =IF(AH13=0,0,IF(R13<>0,AH13/R13,IF(R13>0,1,-1))) -> 0.0513606608 | AL13: =P13-T13 -> 995886900022 | AN13: =IF(AL13=0,0,IF(T13<>0,AL13/T13,IF(T13>0,1,-1))) -> 0.0513606608 | AP13: =P13-N13 -> 0 | AR13: =IF(AP13=0,0,IF(N13<>0,AP13/N13,IF(N13>0,1,-1))) -> 0 | AT13: 1 | AV13: =P13-AD13 -> 0 | AW13: =T13-AF13 -> 0
AT14: 1 | AV14: 0 | AW14: 0
B15: 2. | C15: Các khoản giảm trừ doanh thu | G15: 02 | I15: ='Thuyet minh'!A1413 -> 2.2 | K15: =SUM(K16:K18) -> 2504945512 | L15: 0 | M15: 0 | N15: 2504945512 | O15: 0 | P15: 2504945512 | R15: =SUM(R16:R18) -> 226818181 | S15: =SUM(S16:S18) -> 0 | T15: =SUM(T16:T18) -> 226818181 | U15: =B15 -> 2. | V15: Revenue deductions | Z15: =G15 -> 02 | AB15: =I15 -> 2.2 | AD15: =SUM(AD16:AD18) -> 2504945512 | AF15: =SUM(AF16:AF18) -> 226818181 | AH15: =N15-R15 -> 2278127331 | AJ15: =IF(AH15=0,0,IF(R15<>0,AH15/R15,IF(R15>0,1,-1))) -> 10.04384799 | AL15: =P15-T15 -> 2278127331 | AN15: =IF(AL15=0,0,IF(T15<>0,AL15/T15,IF(T15>0,1,-1))) -> 10.04384799 | AP15: =P15-N15 -> 0 | AR15: =IF(AP15=0,0,IF(N15<>0,AP15/N15,IF(N15>0,1,-1))) -> 0 | AT15: 1 | AV15: 0 | AW15: 0
A16: 5211 | B16: - | C16: Chiết khấu thương mại | K16: 0 | N16: =SUM(K16:M16) -> 0 | O16: =SUMIF('B360'!$E$12:$E$111,A16,'B360'!$G$12:$G$111)-SUMIF('B360'!$F$12:$F$111,A16,'B360'!$G$12:$G$111) -> 0 | P16: =N16+O16 -> 0 | R16: 0 | S16: =SUMIF('B360'!$E$112:$E$133,$A16,'B360'!$G$112:$G$133)-SUMIF('B360'!$F$112:$F$133,$A16,'B360'!$G$112:$G$133) -> 0 | T16: =R16+S16 -> 0 | U16: =B16 -> - | V16: Trade discount | AD16: =P16 -> 0 | AF16: =T16 -> 0 | AH16: =N16-R16 -> 0 | AJ16: =IF(AH16=0,0,IF(R16<>0,AH16/R16,IF(R16>0,1,-1))) -> 0 | AL16: =P16-T16 -> 0 | AN16: =IF(AL16=0,0,IF(T16<>0,AL16/T16,IF(T16>0,1,-1))) -> 0 | AP16: =P16-N16 -> 0 | AR16: =IF(AP16=0,0,IF(N16<>0,AP16/N16,IF(N16>0,1,-1))) -> 0 | AT16: 1 | AV16: 0 | AW16: 0
A17: 5212 | B17: - | C17: Hàng bán bị trả lại | K17: 0 | L17: 0 | M17: 0 | N17: =SUM(K17:M17) -> 0 | O17: =SUMIF('B360'!$E$12:$E$111,A17,'B360'!$G$12:$G$111)-SUMIF('B360'!$F$12:$F$111,A17,'B360'!$G$12:$G$111) -> 0 | P17: =N17+O17 -> 0 | R17: 0 | S17: =SUMIF('B360'!$E$112:$E$133,$A17,'B360'!$G$112:$G$133)-SUMIF('B360'!$F$112:$F$133,$A17,'B360'!$G$112:$G$133) -> 0 | T17: =R17+S17 -> 0 | U17: =B17 -> - | V17: Sales return | AD17: =P17 -> 0 | AF17: =T17 -> 0 | AH17: =N17-R17 -> 0 | AJ17: =IF(AH17=0,0,IF(R17<>0,AH17/R17,IF(R17>0,1,-1))) -> 0 | AL17: =P17-T17 -> 0 | AN17: =IF(AL17=0,0,IF(T17<>0,AL17/T17,IF(T17>0,1,-1))) -> 0 | AP17: =P17-N17 -> 0 | AR17: =IF(AP17=0,0,IF(N17<>0,AP17/N17,IF(N17>0,1,-1))) -> 0 | AT17: 1 | AV17: 0 | AW17: 0
A18: 5213 | B18: - | C18: Giảm giá hàng bán | K18: 2504945512 | N18: =SUM(K18:M18) -> 2504945512 | O18: =SUMIF('B360'!$E$12:$E$111,A18,'B360'!$G$12:$G$111)-SUMIF('B360'!$F$12:$F$111,A18,'B360'!$G$12:$G$111) -> 0 | P18: =N18+O18 -> 2504945512 | R18: 226818181 | S18: =SUMIF('B360'!$E$112:$E$133,$A18,'B360'!$G$112:$G$133)-SUMIF('B360'!$F$112:$F$133,$A18,'B360'!$G$112:$G$133) -> 0 | T18: =R18+S18 -> 226818181 | U18: =B18 -> - | V18: Sales rebates | AD18: =P18 -> 2504945512 | AF18: =T18 -> 226818181 | AH18: =N18-R18 -> 2278127331 | AJ18: =IF(AH18=0,0,IF(R18<>0,AH18/R18,IF(R18>0,1,-1))) -> 10.04384799 | AL18: =P18-T18 -> 2278127331 | AN18: =IF(AL18=0,0,IF(T18<>0,AL18/T18,IF(T18>0,1,-1))) -> 10.04384799 | AP18: =P18-N18 -> 0 | AR18: =IF(AP18=0,0,IF(N18<>0,AP18/N18,IF(N18>0,1,-1))) -> 0 | AT18: 1 | AV18: 0 | AW18: 0
AT19: 1 | AV19: 0 | AW19: 0
B20: 3. | C20: Doanh thu thuần bán hàng và cung cấp dịch vụ | G20: 10 | K20: =K13-K15 -> 20383453744213 | L20: 0 | M20: 0 | N20: 20383453744213 | O20: 0 | P20: 20383453744213 | R20: =R13-R15 -> 19389844971522 | S20: =S13-S15 -> 0 | T20: =R20+S20 -> 19389844971522 | U20: =B20 -> 3. | V20: Net revenue from sale of goods and rendering of services | Z20: =G20 -> 10 | AD20: =AD13-AD15 -> 20383453744213 | AF20: =AF13-AF15 -> 19389844971522 | AH20: =N20-R20 -> 993608772691 | AJ20: =IF(AH20=0,0,IF(R20<>0,AH20/R20,IF(R20>0,1,-1))) -> 0.05124377086 | AL20: =P20-T20 -> 993608772691 | AN20: =IF(AL20=0,0,IF(T20<>0,AL20/T20,IF(T20>0,1,-1))) -> 0.05124377086 | AP20: =P20-N20 -> 0 | AR20: =IF(AP20=0,0,IF(N20<>0,AP20/N20,IF(N20>0,1,-1))) -> 0 | AT20: 1 | AV20: 0 | AW20: 0
AT21: 1 | AV21: 0 | AW21: 0
A22: 632 | B22: 4. | C22: Giá vốn hàng bán | G22: 11 | I22: ='Thuyet minh'!A1422 -> 2.3 | K22: 17268103706952 | L22: 0 | M22: 0 | N22: =SUM(K22:M22) -> 17268103706952 | O22: =SUMIF('B360'!$E$12:$E$111,A22,'B360'!$G$12:$G$111)-SUMIF('B360'!$F$12:$F$111,A22,'B360'!$G$12:$G$111) -> 0 | P22: =N22+O22 -> 17268103706952 | R22: 15621340278031 | S22: =SUMIF('B360'!$E$112:$E$133,$A22,'B360'!$G$112:$G$133)-SUMIF('B360'!$F$112:$F$133,$A22,'B360'!$G$112:$G$133) -> 0 | T22: =R22+S22 -> 15621340278031 | U22: =B22 -> 4. | V22: Cost of goods sold | Z22: =G22 -> 11 | AB22: =I22 -> 2.3 | AD22: =P22 -> 17268103706952 | AF22: =T22 -> 15621340278031 | AH22: =N22-R22 -> 1646763428921 | AJ22: =IF(AH22=0,0,IF(R22<>0,AH22/R22,IF(R22>0,1,-1))) -> 0.1054175506 | AL22: =P22-T22 -> 1646763428921 | AN22: =IF(AL22=0,0,IF(T22<>0,AL22/T22,IF(T22>0,1,-1))) -> 0.1054175506 | AP22: =P22-N22 -> 0 | AR22: =IF(AP22=0,0,IF(N22<>0,AP22/N22,IF(N22>0,1,-1))) -> 0 | AT22: 1 | AV22: 0 | AW22: 0
AT23: 1 | AV23: 0 | AW23: 0
B24: 5. | C24: Lợi nhuận gộp về bán hàng và cung cấp dịch vụ | G24: 20 | K24: =K20-K22 -> 3115350037261 | L24: 0 | M24: 0 | N24: 3115350037261 | O24: 0 | P24: 3115350037261 | R24: =R20-R22 -> 3768504693491 | S24: =S20-S22 -> 0 | T24: =R24+S24 -> 3768504693491 | U24: =B24 -> 5. | V24: Gross profit from sale of goods and rendering of services | Z24: =G24 -> 20 | AD24: =AD20-AD22 -> 3115350037261 | AF24: =AF20-AF22 -> 3768504693491 | AH24: =N24-R24 -> -653154656230 | AJ24: =IF(AH24=0,0,IF(R24<>0,AH24/R24,IF(R24>0,1,-1))) -> -0.1733193161 | AL24: =P24-T24 -> -653154656230 | AN24: =IF(AL24=0,0,IF(T24<>0,AL24/T24,IF(T24>0,1,-1))) -> -0.1733193161 | AP24: =P24-N24 -> 0 | AR24: =IF(AP24=0,0,IF(N24<>0,AP24/N24,IF(N24>0,1,-1))) -> 0 | AT24: 1 | AV24: 0 | AW24: 0
AT25: 1 | AV25: 0 | AW25: 0
B26: 6. | C26: Doanh thu hoạt động tài chính | G26: 21 | I26: ='Thuyet minh'!A1441 -> 2.4 | K26: =SUM(K27:K34) -> 79247164588 | L26: =SUM(L27:L34) -> 0 | M26: 0 | N26: 79247164588 | O26: 0 | P26: 79247164588 | R26: =SUM(R27:R34) -> 34435199553 | S26: =SUM(S27:S34) -> 0 | T26: =SUM(T27:T34) -> 34435199553 | U26: =B26 -> 6. | V26: Financial income | Z26: =G26 -> 21 | AB26: =I26 -> 2.4 | AD26: =P26 -> 79247164588 | AF26: =T26 -> 34435199553 | AH26: =N26-R26 -> 44811965035 | AJ26: =IF(AH26=0,0,IF(R26<>0,AH26/R26,IF(R26>0,1,-1))) -> 1.301341814 | AL26: =P26-T26 -> 44811965035 | AN26: =IF(AL26=0,0,IF(T26<>0,AL26/T26,IF(T26>0,1,-1))) -> 1.301341814 | AP26: =P26-N26 -> 0 | AR26: =IF(AP26=0,0,IF(N26<>0,AP26/N26,IF(N26>0,1,-1))) -> 0 | AT26: 1 | AV26: 0 | AW26: 0
A27: 5151 | C27: + Lãi tiền gửi, tiền cho vay | K27: 49777439720 | N27: =SUM(K27:M27) -> 49777439720 | O27: =-SUMIF('B360'!$E$12:$E$111,A27,'B360'!$G$12:$G$111)+SUMIF('B360'!$F$12:$F$111,A27,'B360'!$G$12:$G$111) -> 0 | P27: =N27+O27 -> 49777439720 | R27: 839783239 | S27: =-SUMIF('B360'!$E$112:$E$133,$A27,'B360'!$G$112:$G$133)+SUMIF('B360'!$F$112:$F$133,$A27,'B360'!$G$112:$G$133) -> 0 | T27: =R27+S27 -> 839783239 | V27: + Lãi tiền gửi, tiền cho vay | AD27: =P27 -> 49777439720 | AF27: =T27 -> 839783239 | AH27: =N27-R27 -> 48937656481 | AJ27: =IF(AH27=0,0,IF(R27<>0,AH27/R27,IF(R27>0,1,-1))) -> 58.27415243 | AL27: =P27-T27 -> 48937656481 | AN27: =IF(AL27=0,0,IF(T27<>0,AL27/T27,IF(T27>0,1,-1))) -> 58.27415243 | AP27: =P27-N27 -> 0 | AR27: =IF(AP27=0,0,IF(N27<>0,AP27/N27,IF(N27>0,1,-1))) -> 0
A28: 5152 | C28: + Lãi đầu tư trái phiếu, kỳ phiếu, tín phiếu | N28: 0 | O28: =-SUMIF('B360'!$E$12:$E$111,A28,'B360'!$G$12:$G$111)+SUMIF('B360'!$F$12:$F$111,A28,'B360'!$G$12:$G$111) -> 0 | P28: 0 | R28: 0 | S28: =-SUMIF('B360'!$E$112:$E$133,$A28,'B360'!$G$112:$G$133)+SUMIF('B360'!$F$112:$F$133,$A28,'B360'!$G$112:$G$133) -> 0 | T28: 0 | V28: + Lãi đầu tư trái phiếu, kỳ phiếu, tín phiếu | AD28: 0 | AF28: 0 | AH28: 0 | AJ28: 0 | AL28: 0 | AN28: 0 | AP28: 0 | AR28: 0
A29: 5153 | C29: + Cổ tức, lợi nhuận được chia | N29: 0 | O29: =-SUMIF('B360'!$E$12:$E$111,A29,'B360'!$G$12:$G$111)+SUMIF('B360'!$F$12:$F$111,A29,'B360'!$G$12:$G$111) -> 0 | P29: 0 | R29: 0 | S29: =-SUMIF('B360'!$E$112:$E$133,$A29,'B360'!$G$112:$G$133)+SUMIF('B360'!$F$112:$F$133,$A29,'B360'!$G$112:$G$133) -> 0 | T29: 0 | V29: + Cổ tức, lợi nhuận được chia | AD29: 0 | AF29: 0 | AH29: 0 | AJ29: 0 | AL29: 0 | AN29: 0 | AP29: 0 | AR29: 0
A30: 5154 | C30: + Lãi bán ngoại tệ | N30: 0 | O30: =-SUMIF('B360'!$E$12:$E$111,A30,'B360'!$G$12:$G$111)+SUMIF('B360'!$F$12:$F$111,A30,'B360'!$G$12:$G$111) -> 0 | P30: 0 | S30: =-SUMIF('B360'!$E$112:$E$133,$A30,'B360'!$G$112:$G$133)+SUMIF('B360'!$F$112:$F$133,$A30,'B360'!$G$112:$G$133) -> 0 | T30: 0 | V30: + Lãi bán ngoại tệ | AD30: 0 | AF30: 0 | AH30: 0 | AJ30: 0 | AL30: 0 | AN30: 0 | AP30: 0 | AR30: 0
A31: 5155 | C31: + Lãi chênh lệch tỷ giá đã thực hiện | K31: 3026218868 | N31: 3026218868 | O31: =-SUMIF('B360'!$E$12:$E$111,A31,'B360'!$G$12:$G$111)+SUMIF('B360'!$F$12:$F$111,A31,'B360'!$G$12:$G$111) -> 0 | P31: 3026218868 | R31: 7937327050 | S31: =-SUMIF('B360'!$E$112:$E$133,$A31,'B360'!$G$112:$G$133)+SUMIF('B360'!$F$112:$F$133,$A31,'B360'!$G$112:$G$133) -> 0 | T31: 7937327050 | V31: + Lãi chênh lệch tỷ giá đã thực hiện | AD31: 3026218868 | AF31: 7937327050 | AH31: -4911108182 | AJ31: -0.6187357723 | AL31: -4911108182 | AN31: -0.6187357723 | AP31: 0 | AR31: 0
A32: 5156 | C32: + Lãi chênh lệch tỷ giá chưa thực hiện | K32: 0 | N32: 0 | O32: =-SUMIF('B360'!$E$12:$E$111,A32,'B360'!$G$12:$G$111)+SUMIF('B360'!$F$12:$F$111,A32,'B360'!$G$12:$G$111) -> 0 | P32: 0 | S32: =-SUMIF('B360'!$E$112:$E$133,$A32,'B360'!$G$112:$G$133)+SUMIF('B360'!$F$112:$F$133,$A32,'B360'!$G$112:$G$133) -> 0 | T32: 0 | V32: + Lãi chênh lệch tỷ giá chưa thực hiện | AD32: 0 | AF32: 0 | AH32: 0 | AJ32: 0 | AL32: 0 | AN32: 0 | AP32: 0 | AR32: 0
A33: 5157 | C33: + Lãi bán hàng trả chậm | K33: 26443506000 | N33: 26443506000 | O33: =-SUMIF('B360'!$E$12:$E$111,A33,'B360'!$G$12:$G$111)+SUMIF('B360'!$F$12:$F$111,A33,'B360'!$G$12:$G$111) -> 0 | P33: 26443506000 | R33: 25658089264 | S33: =-SUMIF('B360'!$E$112:$E$133,$A33,'B360'!$G$112:$G$133)+SUMIF('B360'!$F$112:$F$133,$A33,'B360'!$G$112:$G$133) -> 0 | T33: 25658089264 | V33: + Lãi bán hàng trả chậm | AD33: 26443506000 | AF33: 25658089264 | AH33: 785416736 | AJ33: 0.03061088173 | AL33: 785416736 | AN33: 0.03061088173 | AP33: 0 | AR33: 0
A34: 5158 | C34: + Doanh thu hoạt động tài chính khác | N34: 0 | O34: =-SUMIF('B360'!$E$12:$E$111,A34,'B360'!$G$12:$G$111)+SUMIF('B360'!$F$12:$F$111,A34,'B360'!$G$12:$G$111) -> 0 | P34: 0 | S34: =-SUMIF('B360'!$E$112:$E$133,$A34,'B360'!$G$112:$G$133)+SUMIF('B360'!$F$112:$F$133,$A34,'B360'!$G$112:$G$133) -> 0 | T34: 0 | V34: + Doanh thu hoạt động tài chính khác | AD34: 0 | AF34: 0 | AH34: 0 | AJ34: 0 | AL34: 0 | AN34: 0 | AP34: 0 | AR34: 0
B36: 7. | C36: Chi phí tài chính | G36: 22 | I36: ='Thuyet minh'!A1454 -> 2.5 | K36: =SUM(K37:K44) -> 27397421106 | L36: =SUM(L37:L44) -> 0 | M36: 0 | N36: 27397421106 | O36: =SUM(O37:O44) -> 0 | P36: =SUM(P37:P44) -> 27397421106 | R36: =SUM(R37:R44) -> 88385458830 | S36: =SUM(S37:S44) -> 0 | T36: =SUM(T37:T44) -> 88385458830 | U36: =B36 -> 7. | V36: Financial expenses | Z36: =G36 -> 22 | AB36: =I36 -> 2.5 | AD36: =P36 -> 27397421106 | AF36: 88385458830 | AH36: =N36-R36 -> -60988037724 | AJ36: =IF(AH36=0,0,IF(R36<>0,AH36/R36,IF(R36>0,1,-1))) -> -0.6900234329 | AL36: =P36-T36 -> -60988037724 | AN36: -0.6900234329 | AP36: =P36-N36 -> 0 | AR36: =IF(AP36=0,0,IF(N36<>0,AP36/N36,IF(N36>0,1,-1))) -> 0 | AT36: 1 | AV36: =P36-AD36 -> 0 | AW36: 0
A37: 6351 | C37: Trong đó: Chi phí lãi vay | G37: 23 | K37: 13939827811 | L37: ='Thuyet minh'!BU1457 -> 0 | M37: ='Thuyet minh'!BV1457 -> 0 | N37: 13939827811 | O37: =SUMIF('B360'!$E$12:$E$111,A37,'B360'!$G$12:$G$111)-SUMIF('B360'!$F$12:$F$111,A37,'B360'!$G$12:$G$111) -> 0 | P37: =N37+O37 -> 13939827811 | R37: 65949009230 | S37: =-SUMIF('B360'!$E$112:$E$133,$A37,'B360'!$G$112:$G$133)+SUMIF('B360'!$F$112:$F$133,$A37,'B360'!$G$112:$G$133) -> 0 | T37: =R37+S37 -> 65949009230 | V37: In which: Interest expenses | Z37: =G37 -> 23 | AD37: =P37 -> 13939827811 | AF37: 65949009230 | AH37: =N37-R37 -> -52009181419 | AJ37: =IF(AH37=0,0,IF(R37<>0,AH37/R37,IF(R37>0,1,-1))) -> -0.7886271837 | AL37: =P37-T37 -> -52009181419 | AN37: -0.7886271837 | AP37: =P37-N37 -> 0 | AR37: =IF(AP37=0,0,IF(N37<>0,AP37/N37,IF(N37>0,1,-1))) -> 0 | AT37: 1 | AV37: =P37-AD37 -> 0 | AW37: 0
A38: 6352 | C38: + Chiết khấu thanh toán, lãi mua hàng trả chậm | K38: 8077587634 | N38: 8077587634 | O38: =SUMIF('B360'!$E$12:$E$111,A38,'B360'!$G$12:$G$111)-SUMIF('B360'!$F$12:$F$111,A38,'B360'!$G$12:$G$111) -> 0 | P38: 8077587634 | R38: 5280932910 | S38: =-SUMIF('B360'!$E$112:$E$133,$A38,'B360'!$G$112:$G$133)+SUMIF('B360'!$F$112:$F$133,$A38,'B360'!$G$112:$G$133) -> 0 | T38: 5280932910 | V38: + Chiết khấu thanh toán, lãi mua hàng trả chậm | AD38: =P38 -> 8077587634 | AF38: =T38 -> 5280932910 | AH38: =N38-R38 -> 2796654724 | AJ38: =IF(AH38=0,0,IF(R38<>0,AH38/R38,IF(R38>0,1,-1))) -> 0.5295758859 | AL38: =P38-T38 -> 2796654724 | AN38: =IF(AL38=0,0,IF(T38<>0,AL38/T38,IF(T38>0,1,-1))) -> 0.5295758859 | AP38: =P38-N38 -> 0 | AR38: =IF(AP38=0,0,IF(N38<>0,AP38/N38,IF(N38>0,1,-1))) -> 0
A39: 6353 | C39: + Lỗ do thanh lý các khoản đầu tư ngắn hạn, dài hạn | N39: 0 | O39: =SUMIF('B360'!$E$12:$E$111,A39,'B360'!$G$12:$G$111)-SUMIF('B360'!$F$12:$F$111,A39,'B360'!$G$12:$G$111) -> 0 | P39: 0 | S39: =-SUMIF('B360'!$E$112:$E$133,$A39,'B360'!$G$112:$G$133)+SUMIF('B360'!$F$112:$F$133,$A39,'B360'!$G$112:$G$133) -> 0 | T39: 0 | V39: + Lỗ do thanh lý các khoản đầu tư ngắn hạn, dài hạn | AD39: 0 | AF39: 0 | AH39: 0 | AJ39: 0 | AL39: 0 | AN39: 0 | AP39: 0 | AR39: 0
A40: 6354 | C40: + Lỗ bán ngoại tệ | N40: 0 | O40: =SUMIF('B360'!$E$12:$E$111,A40,'B360'!$G$12:$G$111)-SUMIF('B360'!$F$12:$F$111,A40,'B360'!$G$12:$G$111) -> 0 | P40: 0 | S40: =-SUMIF('B360'!$E$112:$E$133,$A40,'B360'!$G$112:$G$133)+SUMIF('B360'!$F$112:$F$133,$A40,'B360'!$G$112:$G$133) -> 0 | T40: 0 | V40: + Lỗ bán ngoại tệ | AD40: 0 | AF40: 0 | AH40: 0 | AJ40: 0 | AL40: 0 | AN40: 0 | AP40: 0 | AR40: 0
A41: 6355 | C41: + Lỗ chênh lệch tỷ giá đã thực hiện | K41: 2285239 | N41: 2285239 | O41: =SUMIF('B360'!$E$12:$E$111,A41,'B360'!$G$12:$G$111)-SUMIF('B360'!$F$12:$F$111,A41,'B360'!$G$12:$G$111) -> 0 | P41: 2285239 | R41: 17155516690 | S41: =-SUMIF('B360'!$E$112:$E$133,$A41,'B360'!$G$112:$G$133)+SUMIF('B360'!$F$112:$F$133,$A41,'B360'!$G$112:$G$133) -> 0 | T41: 17155516690 | V41: + Lỗ chênh lệch tỷ giá đã thực hiện | AD41: 2285239 | AF41: 17155516690 | AH41: -17153231451 | AJ41: -0.9998667928 | AL41: -17153231451 | AN41: -0.9998667928 | AP41: 0 | AR41: 0
A42: 6356 | C42: + Lỗ chênh lệch tỷ giá chưa thực hiện | K42: 5377720422 | N42: 5377720422 | O42: =SUMIF('B360'!$E$12:$E$111,A42,'B360'!$G$12:$G$111)-SUMIF('B360'!$F$12:$F$111,A42,'B360'!$G$12:$G$111) -> 0 | P42: 5377720422 | S42: =-SUMIF('B360'!$E$112:$E$133,$A42,'B360'!$G$112:$G$133)+SUMIF('B360'!$F$112:$F$133,$A42,'B360'!$G$112:$G$133) -> 0 | T42: 0 | V42: + Lỗ chênh lệch tỷ giá chưa thực hiện | AD42: 5377720422 | AF42: 0 | AH42: 5377720422 | AJ42: -1 | AL42: 5377720422 | AN42: -1 | AP42: 0 | AR42: 0
A43: 6359 | C43: + Dự phòng giảm giá các khoản đầu tư ngắn hạn, dài hạn | N43: 0 | O43: =SUMIF('B360'!$E$12:$E$111,A43,'B360'!$G$12:$G$111)-SUMIF('B360'!$F$12:$F$111,A43,'B360'!$G$12:$G$111) -> 0 | P43: 0 | R43: 0 | S43: =-SUMIF('B360'!$E$112:$E$133,$A43,'B360'!$G$112:$G$133)+SUMIF('B360'!$F$112:$F$133,$A43,'B360'!$G$112:$G$133) -> 0 | T43: 0 | V43: + Dự phòng giảm giá các khoản đầu tư ngắn hạn, dài hạn | AD43: 0 | AF43: 0 | AH43: 0 | AJ43: 0 | AL43: 0 | AN43: 0 | AP43: 0 | AR43: 0
A44: 6358 | C44: + Chi phí tài chính khác | K44: 0 | N44: 0 | O44: =SUMIF('B360'!$E$12:$E$111,A44,'B360'!$G$12:$G$111)-SUMIF('B360'!$F$12:$F$111,A44,'B360'!$G$12:$G$111) -> 0 | P44: 0 | R44: 0 | S44: =-SUMIF('B360'!$E$112:$E$133,$A44,'B360'!$G$112:$G$133)+SUMIF('B360'!$F$112:$F$133,$A44,'B360'!$G$112:$G$133) -> 0 | T44: 0 | V44: + Chi phí tài chính khác | AD44: 0 | AF44: 0 | AH44: 0 | AJ44: 0 | AL44: 0 | AN44: 0 | AP44: 0 | AR44: 0
A46: 24 | B46: 8. | C46: Phần lãi hoặc lỗ trong công ty liên doanh, liên kết | G46: 24 | K46: 0 | L46: 0 | M46: 0 | N46: 0 | O46: =-SUMIF('B360'!$E$12:$E$111,A46,'B360'!$G$12:$G$111)+SUMIF('B360'!$F$12:$F$111,A46,'B360'!$G$12:$G$111) -> 0 | P46: =N46+O46 -> 0 | R46: 0 | S46: =-SUMIF('B360'!$E$112:$E$133,$A46,'B360'!$G$112:$G$133)+SUMIF('B360'!$F$112:$F$133,$A46,'B360'!$G$112:$G$133) -> 0 | T46: =R46+S46 -> 0 | U46: =B46 -> 8. | Z46: =G46 -> 24 | AB46: =I46 -> 0 | AD46: =P46 -> 0 | AF46: 0 | AH46: =N46-R46 -> 0 | AJ46: =IF(AH46=0,0,IF(R46<>0,AH46/R46,IF(R46>0,1,-1))) -> 0 | AL46: =P46-T46 -> 0 | AN46: 0 | AP46: =P46-N46 -> 0 | AR46: =IF(AP46=0,0,IF(N46<>0,AP46/N46,IF(N46>0,1,-1))) -> 0 | AT46: 1 | AV46: =P46-AD46 -> 0 | AW46: 0
B47: =IF('Khai bao'!C12='Khai bao'!F13,"9.","8.") -> 8. | C47: Chi phí bán hàng | G47: 25 | I47: ='Thuyet minh'!A1472 -> 2.6 | K47: =SUM(K48:K54) -> 596263425152 | L47: =SUM(L48:L54) -> 0 | M47: 0 | N47: 596263425152 | O47: 0 | P47: 596263425152 | R47: =SUM(R48:R54) -> 559644976926 | S47: 0 | T47: 559644976926 | U47: =B47 -> 8. | V47: Selling expenses | Z47: =G47 -> 25 | AB47: =I47 -> 2.6 | AD47: =P47 -> 596263425152 | AF47: 559644976926 | AH47: =N47-R47 -> 36618448226 | AJ47: =IF(AH47=0,0,IF(R47<>0,AH47/R47,IF(R47>0,1,-1))) -> 0.06543156775 | AL47: =P47-T47 -> 36618448226 | AN47: 0.06543156775 | AP47: =P47-N47 -> 0 | AR47: =IF(AP47=0,0,IF(N47<>0,AP47/N47,IF(N47>0,1,-1))) -> 0 | AT47: 1 | AV47: =P47-AD47 -> 0 | AW47: 0
A48: 6411 | C48: + Chi phí nhân viên | K48: 20965392250 | N48: 20965392250 | O48: =SUMIF('B360'!$E$12:$E$111,A48,'B360'!$G$12:$G$111)-SUMIF('B360'!$F$12:$F$111,A48,'B360'!$G$12:$G$111) -> 0 | P48: =N48+O48 -> 20965392250 | R48: 75342509280 | S48: =-SUMIF('B360'!$E$112:$E$133,$A48,'B360'!$G$112:$G$133)+SUMIF('B360'!$F$112:$F$133,$A48,'B360'!$G$112:$G$133) -> 0 | T48: =R48+S48 -> 75342509280 | V48: + Chi phí nhân viên | AD48: =P48 -> 20965392250 | AF48: =T48 -> 75342509280 | AH48: =N48-R48 -> -54377117030 | AJ48: =IF(AH48=0,0,IF(R48<>0,AH48/R48,IF(R48>0,1,-1))) -> -0.7217322273 | AL48: =P48-T48 -> -54377117030 | AN48: =IF(AL48=0,0,IF(T48<>0,AL48/T48,IF(T48>0,1,-1))) -> -0.7217322273 | AP48: =P48-N48 -> 0 | AR48: =IF(AP48=0,0,IF(N48<>0,AP48/N48,IF(N48>0,1,-1))) -> 0
A49: 6412 | C49: + Chi phí nghiên cứu thị trường | K49: 138066809995 | N49: 138066809995 | O49: =SUMIF('B360'!$E$12:$E$111,A49,'B360'!$G$12:$G$111)-SUMIF('B360'!$F$12:$F$111,A49,'B360'!$G$12:$G$111) -> 0 | P49: 138066809995 | R49: 132787500002 | S49: =-SUMIF('B360'!$E$112:$E$133,$A49,'B360'!$G$112:$G$133)+SUMIF('B360'!$F$112:$F$133,$A49,'B360'!$G$112:$G$133) -> 0 | T49: 132787500002 | V49: + Chi phí vật liệu, bao bì | AD49: 138066809995 | AF49: 132787500002 | AH49: 5279309993 | AJ49: 0.03975758255 | AL49: 5279309993 | AN49: 0.03975758255 | AP49: 0 | AR49: 0
A50: 6413 | C50: + Chi phí dụng cụ, đồ dùng | K50: 0 | N50: 0 | O50: =SUMIF('B360'!$E$12:$E$111,A50,'B360'!$G$12:$G$111)-SUMIF('B360'!$F$12:$F$111,A50,'B360'!$G$12:$G$111) -> 0 | P50: 0 | R50: 0 | S50: =-SUMIF('B360'!$E$112:$E$133,$A50,'B360'!$G$112:$G$133)+SUMIF('B360'!$F$112:$F$133,$A50,'B360'!$G$112:$G$133) -> 0 | T50: 0 | V50: + Chi phí dụng cụ, đồ dùng | AD50: 0 | AF50: 0 | AH50: 0 | AJ50: 0 | AL50: 0 | AN50: 0 | AP50: 0 | AR50: 0
A51: 6414 | C51: + Chi phí khấu hao TSCĐ | K51: 3241338295 | N51: 3241338295 | O51: =SUMIF('B360'!$E$12:$E$111,A51,'B360'!$G$12:$G$111)-SUMIF('B360'!$F$12:$F$111,A51,'B360'!$G$12:$G$111) -> 0 | P51: 3241338295 | R51: 1536231347 | S51: =-SUMIF('B360'!$E$112:$E$133,$A51,'B360'!$G$112:$G$133)+SUMIF('B360'!$F$112:$F$133,$A51,'B360'!$G$112:$G$133) -> 0 | T51: 1536231347 | V51: + Chi phí khấu hao TSCĐ | AD51: 3241338295 | AF51: 1536231347 | AH51: 1705106948 | AJ51: 1.109928496 | AL51: 1705106948 | AN51: 1.109928496 | AP51: 0 | AR51: 0
A52: 6415 | C52: + Chi phí bảo hành, bảo dưỡng | K52: 22872912084 | N52: 22872912084 | O52: =SUMIF('B360'!$E$12:$E$111,A52,'B360'!$G$12:$G$111)-SUMIF('B360'!$F$12:$F$111,A52,'B360'!$G$12:$G$111) -> 0 | P52: 22872912084 | R52: 13912177385 | S52: =-SUMIF('B360'!$E$112:$E$133,$A52,'B360'!$G$112:$G$133)+SUMIF('B360'!$F$112:$F$133,$A52,'B360'!$G$112:$G$133) -> 0 | T52: 13912177385 | V52: + Chi phí bảo hành | AD52: 22872912084 | AF52: 13912177385 | AH52: 8960734699 | AJ52: 0.6440929016 | AL52: 8960734699 | AN52: 0.6440929016 | AP52: 0 | AR52: 0
A53: 6417 | C53: + Chi phí dịch vụ mua ngoài | K53: 409073344869 | N53: 409073344869 | O53: =SUMIF('B360'!$E$12:$E$111,A53,'B360'!$G$12:$G$111)-SUMIF('B360'!$F$12:$F$111,A53,'B360'!$G$12:$G$111) -> 0 | P53: 409073344869 | R53: 335033353170 | S53: =-SUMIF('B360'!$E$112:$E$133,$A53,'B360'!$G$112:$G$133)+SUMIF('B360'!$F$112:$F$133,$A53,'B360'!$G$112:$G$133) -> 0 | T53: 335033353170 | V53: + Chi phí dịch vụ mua ngoài | AD53: 409073344869 | AF53: 335033353170 | AH53: 74039991699 | AJ53: 0.2209928982 | AL53: 74039991699 | AN53: 0.2209928982 | AP53: 0 | AR53: 0
A54: 6418 | C54: + Chi phí bằng tiền khác | K54: 2043627659 | N54: 2043627659 | O54: =SUMIF('B360'!$E$12:$E$111,A54,'B360'!$G$12:$G$111)-SUMIF('B360'!$F$12:$F$111,A54,'B360'!$G$12:$G$111) -> 0 | P54: 2043627659 | R54: 1033205742 | S54: =-SUMIF('B360'!$E$112:$E$133,$A54,'B360'!$G$112:$G$133)+SUMIF('B360'!$F$112:$F$133,$A54,'B360'!$G$112:$G$133) -> 0 | T54: 1033205742 | V54: + Chi phí bằng tiền khác | AD54: 2043627659 | AF54: 1033205742 | AH54: 1010421917 | AJ54: 0.9779484143 | AL54: 1010421917 | AN54: 0.9779484143 | AP54: 0 | AR54: 0
B56: =IF('Khai bao'!C12='Khai bao'!F13,"10.","9.") -> 9. | C56: Chi phí quản lý doanh nghiệp | G56: 26 | I56: ='Thuyet minh'!A1487 -> 2.7 | K56: =SUM(K57:K64) -> 18341469732 | L56: 0 | M56: 0 | N56: 18341469732 | O56: 0 | P56: 18341469732 | R56: =SUM(R57:R64) -> 15052285138 | S56: =SUM(S57:S64) -> 0 | T56: =SUM(T57:T64) -> 15052285138 | U56: =B56 -> 9. | V56: Enterprise administrative expense | Z56: =G56 -> 26 | AB56: =I56 -> 2.7 | AD56: =P56 -> 18341469732 | AF56: 15052285138 | AH56: =N56-R56 -> 3289184594 | AJ56: =IF(AH56=0,0,IF(R56<>0,AH56/R56,IF(R56>0,1,-1))) -> 0.2185172925 | AL56: =P56-T56 -> 3289184594 | AN56: 0.2185172925 | AP56: =P56-N56 -> 0 | AR56: =IF(AP56=0,0,IF(N56<>0,AP56/N56,IF(N56>0,1,-1))) -> 0 | AT56: 1 | AV56: =P56-AD56 -> 0 | AW56: 0
A57: 6421 | C57: + Chi phí nhân viên quản lý | K57: 9427943099 | N57: 9427943099 | O57: =SUMIF('B360'!$E$12:$E$111,A57,'B360'!$G$12:$G$111)-SUMIF('B360'!$F$12:$F$111,A57,'B360'!$G$12:$G$111) -> 0 | P57: =N57+O57 -> 9427943099 | R57: 7199096294 | S57: =SUMIF('B360'!$E$112:$E$133,$A57,'B360'!$G$112:$G$133)-SUMIF('B360'!$F$112:$F$133,$A57,'B360'!$G$112:$G$133) -> 0 | T57: =R57+S57 -> 7199096294 | V57: + Chi phí nhân viên quản lý | AD57: =P57 -> 9427943099 | AF57: =T57 -> 7199096294 | AH57: =N57-R57 -> 2228846805 | AJ57: =IF(AH57=0,0,IF(R57<>0,AH57/R57,IF(R57>0,1,-1))) -> 0.3096009157 | AL57: =P57-T57 -> 2228846805 | AN57: =IF(AL57=0,0,IF(T57<>0,AL57/T57,IF(T57>0,1,-1))) -> 0.3096009157 | AP57: =P57-N57 -> 0 | AR57: =IF(AP57=0,0,IF(N57<>0,AP57/N57,IF(N57>0,1,-1))) -> 0
A58: 6422 | C58: + Chi phí xăng xe, đi lại | K58: 0 | N58: 0 | O58: =SUMIF('B360'!$E$12:$E$111,A58,'B360'!$G$12:$G$111)-SUMIF('B360'!$F$12:$F$111,A58,'B360'!$G$12:$G$111) -> 0 | P58: 0 | R58: 0 | S58: =SUMIF('B360'!$E$112:$E$133,$A58,'B360'!$G$112:$G$133)-SUMIF('B360'!$F$112:$F$133,$A58,'B360'!$G$112:$G$133) -> 0 | T58: 0 | V58: + Chi phí vật liệu quản lý | AD58: 0 | AF58: 0 | AH58: 0 | AJ58: 0 | AL58: 0 | AN58: 0 | AP58: 0 | AR58: 0
A59: 6423 | C59: + Chi phí đồ dùng văn phòng | K59: 413724497 | N59: 413724497 | O59: =SUMIF('B360'!$E$12:$E$111,A59,'B360'!$G$12:$G$111)-SUMIF('B360'!$F$12:$F$111,A59,'B360'!$G$12:$G$111) -> 0 | P59: 413724497 | R59: 95163999 | S59: =SUMIF('B360'!$E$112:$E$133,$A59,'B360'!$G$112:$G$133)-SUMIF('B360'!$F$112:$F$133,$A59,'B360'!$G$112:$G$133) -> 0 | T59: 95163999 | V59: + Chi phí đồ dùng văn phòng | AD59: 413724497 | AF59: 95163999 | AH59: 318560498 | AJ59: 3.347489611 | AL59: 318560498 | AN59: 3.347489611 | AP59: 0 | AR59: 0
A60: 6424 | C60: + Chi phí khấu hao TSCĐ | K60: 1273992170 | N60: 1273992170 | O60: =SUMIF('B360'!$E$12:$E$111,A60,'B360'!$G$12:$G$111)-SUMIF('B360'!$F$12:$F$111,A60,'B360'!$G$12:$G$111) -> 0 | P60: 1273992170 | R60: 457557804 | S60: =SUMIF('B360'!$E$112:$E$133,$A60,'B360'!$G$112:$G$133)-SUMIF('B360'!$F$112:$F$133,$A60,'B360'!$G$112:$G$133) -> 0 | T60: 457557804 | V60: + Chi phí khấu hao TSCĐ | AD60: 1273992170 | AF60: 457557804 | AH60: 816434366 | AJ60: 1.784330545 | AL60: 816434366 | AN60: 1.784330545 | AP60: 0 | AR60: 0
A61: 6425 | C61: + Thuế, phí và lệ phí cầu đường | K61: 329479502 | N61: 329479502 | O61: =SUMIF('B360'!$E$12:$E$111,A61,'B360'!$G$12:$G$111)-SUMIF('B360'!$F$12:$F$111,A61,'B360'!$G$12:$G$111) -> 0 | P61: 329479502 | R61: 48556844 | S61: =SUMIF('B360'!$E$112:$E$133,$A61,'B360'!$G$112:$G$133)-SUMIF('B360'!$F$112:$F$133,$A61,'B360'!$G$112:$G$133) -> 0 | T61: 48556844 | V61: + Thuế, phí và lệ phí | AD61: 329479502 | AF61: 48556844 | AH61: 280922658 | AJ61: 5.78543898 | AL61: 280922658 | AN61: 5.78543898 | AP61: 0 | AR61: 0
A62: 6426 | C62: + Chi phí thuê đất | K62: 1200000000 | N62: 1200000000 | O62: =SUMIF('B360'!$E$12:$E$111,A62,'B360'!$G$12:$G$111)-SUMIF('B360'!$F$12:$F$111,A62,'B360'!$G$12:$G$111) -> 0 | P62: 1200000000 | R62: 0 | S62: =SUMIF('B360'!$E$112:$E$133,$A62,'B360'!$G$112:$G$133)-SUMIF('B360'!$F$112:$F$133,$A62,'B360'!$G$112:$G$133) -> 0 | T62: 0 | V62: + Chi phí dự phòng | AD62: 1200000000 | AF62: 0 | AH62: 1200000000 | AJ62: -1 | AL62: 1200000000 | AN62: -1 | AP62: 0 | AR62: 0
A63: 6427 | C63: + Chi phí dịch vụ mua ngoài | K63: 5696330464 | N63: 5696330464 | O63: =SUMIF('B360'!$E$12:$E$111,A63,'B360'!$G$12:$G$111)-SUMIF('B360'!$F$12:$F$111,A63,'B360'!$G$12:$G$111) -> 0 | P63: 5696330464 | R63: 7251910197 | S63: =SUMIF('B360'!$E$112:$E$133,$A63,'B360'!$G$112:$G$133)-SUMIF('B360'!$F$112:$F$133,$A63,'B360'!$G$112:$G$133) -> 0 | T63: 7251910197 | V63: + Chi phí dịch vụ mua ngoài | AD63: 5696330464 | AF63: 7251910197 | AH63: -1555579733 | AJ63: -0.2145062047 | AL63: -1555579733 | AN63: -0.2145062047 | AP63: 0 | AR63: 0
A64: 6428 | C64: + Chi phí bằng tiền khác | K64: 0 | N64: 0 | O64: =SUMIF('B360'!$E$12:$E$111,A64,'B360'!$G$12:$G$111)-SUMIF('B360'!$F$12:$F$111,A64,'B360'!$G$12:$G$111) -> 0 | P64: 0 | R64: 0 | S64: =SUMIF('B360'!$E$112:$E$133,$A64,'B360'!$G$112:$G$133)-SUMIF('B360'!$F$112:$F$133,$A64,'B360'!$G$112:$G$133) -> 0 | T64: 0 | V64: + Chi phí bằng tiền khác | AD64: 0 | AF64: 0 | AH64: 0 | AJ64: 0 | AL64: 0 | AN64: 0 | AP64: 0 | AR64: 0 | AT64: 1 | AV64: =P64-AD64 -> 0 | AW64: 0
B66: =IF('Khai bao'!C12='Khai bao'!F13,"11.","10.") -> 10. | C66: Lợi nhuận thuần từ hoạt động kinh doanh | G66: 30 | K66: =K24+(K26-K36)+K46-(K47+K56) -> 2552594885859 | L66: 0 | M66: 0 | N66: 2552594885859 | O66: 0 | P66: 2552594885859 | R66: =R24+(R26-R36)+R46-(R47+R56) -> 3139857172150 | S66: =S24+(S26-S36)+S46-(S47+S56) -> 0 | T66: =T24+(T26-T36)+T46-(T47+T56) -> 3139857172150 | U66: =B66 -> 10. | V66: Net profit from operating activities | Z66: =G66 -> 30 | AD66: =AD24+(AD26-AD36)-(AD47+AD56) -> 2552594885859 | AF66: =AF24+(AF26-AF36)-(AF47+AF56) -> 3139857172150 | AH66: =N66-R66 -> -587262286291 | AJ66: =IF(AH66=0,0,IF(R66<>0,AH66/R66,IF(R66>0,1,-1))) -> -0.1870347134 | AL66: =P66-T66 -> -587262286291 | AN66: =IF(AL66=0,0,IF(T66<>0,AL66/T66,IF(T66>0,1,-1))) -> -0.1870347134 | AP66: =P66-N66 -> 0 | AR66: =IF(AP66=0,0,IF(N66<>0,AP66/N66,IF(N66>0,1,-1))) -> 0 | AT66: 1 | AV66: 0 | AW66: 0
AT67: 1 | AV67: 0 | AW67: 0
A68: 711 | B68: =IF('Khai bao'!C12='Khai bao'!F13,"12.","11.") -> 11. | C68: Thu nhập khác | G68: 31 | I68: ='Thuyet minh'!A1501 -> 2.8 | K68: 427376214 | L68: 0 | M68: 0 | N68: =SUM(K68:M68) -> 427376214 | O68: =-SUMIF('B360'!$E$12:$E$111,A68,'B360'!$G$12:$G$111)+SUMIF('B360'!$F$12:$F$111,A68,'B360'!$G$12:$G$111) -> 0 | P68: =N68+O68 -> 427376214 | R68: 188860485 | S68: =-SUMIF('B360'!$E$112:$E$133,$A68,'B360'!$G$112:$G$133)+SUMIF('B360'!$F$112:$F$133,$A68,'B360'!$G$112:$G$133) -> 0 | T68: =R68+S68 -> 188860485 | U68: =B68 -> 11. | V68: Other income | Z68: =G68 -> 31 | AB68: =I68 -> 2.8 | AD68: =P68 -> 427376214 | AF68: =T68 -> 188860485 | AH68: =N68-R68 -> 238515729 | AJ68: =IF(AH68=0,0,IF(R68<>0,AH68/R68,IF(R68>0,1,-1))) -> 1.26292024 | AL68: =P68-T68 -> 238515729 | AN68: =IF(AL68=0,0,IF(T68<>0,AL68/T68,IF(T68>0,1,-1))) -> 1.26292024 | AP68: =P68-N68 -> 0 | AR68: =IF(AP68=0,0,IF(N68<>0,AP68/N68,IF(N68>0,1,-1))) -> 0 | AT68: 1 | AV68: 0 | AW68: 0
A70: 811 | B70: =IF('Khai bao'!C12='Khai bao'!F13,"13.","12.") -> 12. | C70: Chi phí khác | G70: 32 | I70: ='Thuyet minh'!A1513 -> 2.9 | K70: 360001246 | L70: 0 | M70: 0 | N70: =SUM(K70:M70) -> 360001246 | O70: =SUMIF('B360'!$E$12:$E$111,A70,'B360'!$G$12:$G$111)-SUMIF('B360'!$F$12:$F$111,A70,'B360'!$G$12:$G$111) -> 0 | P70: =N70+O70 -> 360001246 | R70: 51691 | S70: =SUMIF('B360'!$E$112:$E$133,$A70,'B360'!$G$112:$G$133)-SUMIF('B360'!$F$112:$F$133,$A70,'B360'!$G$112:$G$133) -> 0 | T70: =R70+S70 -> 51691 | U70: =B70 -> 12. | V70: Other expense | Z70: =G70 -> 32 | AB70: =I70 -> 2.9 | AD70: =P70 -> 360001246 | AF70: =T70 -> 51691 | AH70: =N70-R70 -> 359949555 | AJ70: =IF(AH70=0,0,IF(R70<>0,AH70/R70,IF(R70>0,1,-1))) -> 6963.486003 | AL70: =P70-T70 -> 359949555 | AN70: =IF(AL70=0,0,IF(T70<>0,AL70/T70,IF(T70>0,1,-1))) -> 6963.486003 | AP70: =P70-N70 -> 0 | AR70: =IF(AP70=0,0,IF(N70<>0,AP70/N70,IF(N70>0,1,-1))) -> 0 | AT70: 1 | AV70: 0 | AW70: 0
AT71: 1 | AV71: 0 | AW71: 0
B72: =IF('Khai bao'!C12='Khai bao'!F13,"14.","13.") -> 13. | C72: Lợi nhuận khác | G72: 40 | K72: =K68-K70 -> 67374968 | L72: 0 | M72: 0 | N72: 67374968 | O72: 0 | P72: 67374968 | R72: =R68-R70 -> 188808794 | S72: =S68-S70 -> 0 | T72: =T68-T70 -> 188808794 | U72: =B72 -> 13. | V72: Other profit (loss) | Z72: =G72 -> 40 | AD72: =AD68-AD70 -> 67374968 | AF72: =AF68-AF70 -> 188808794 | AH72: =N72-R72 -> -121433826 | AJ72: =IF(AH72=0,0,IF(R72<>0,AH72/R72,IF(R72>0,1,-1))) -> -0.6431576805 | AL72: =P72-T72 -> -121433826 | AN72: =IF(AL72=0,0,IF(T72<>0,AL72/T72,IF(T72>0,1,-1))) -> -0.6431576805 | AP72: =P72-N72 -> 0 | AR72: =IF(AP72=0,0,IF(N72<>0,AP72/N72,IF(N72>0,1,-1))) -> 0 | AT72: 1 | AV72: 0 | AW72: 0
AT73: 1 | AV73: 0 | AW73: 0
B74: =IF('Khai bao'!C12='Khai bao'!F13,"15.","14.") -> 14. | C74: Tổng lợi nhuận kế toán trước thuế | G74: 50 | K74: =K66+K72 -> 2552662260827 | L74: 0 | M74: 0 | N74: 2552662260827 | O74: 0 | P74: 2552662260827 | R74: =R66+R72 -> 3140045980944 | S74: =S66+S72 -> 0 | T74: =T66+T72 -> 3140045980944 | U74: =B74 -> 14. | V74: Total pre-tax profit | Z74: =G74 -> 50 | AD74: =AD66+AD72 -> 2552662260827 | AF74: =AF66+AF72 -> 3140045980944 | AH74: =N74-R74 -> -587383720117 | AJ74: =IF(AH74=0,0,IF(R74<>0,AH74/R74,IF(R74>0,1,-1))) -> -0.1870621398 | AL74: =P74-T74 -> -587383720117 | AN74: =IF(AL74=0,0,IF(T74<>0,AL74/T74,IF(T74>0,1,-1))) -> -0.1870621398 | AP74: =P74-N74 -> 0 | AR74: =IF(AP74=0,0,IF(N74<>0,AP74/N74,IF(N74>0,1,-1))) -> 0 | AT74: 1 | AV74: 0 | AW74: 0
AT75: 1 | AV75: 0 | AW75: 0
A76: 8211 | B76: =IF('Khai bao'!C12='Khai bao'!F13,"16.","15.") -> 15. | C76: Chi phí thuế thu nhập doanh nghiệp hiện hành | G76: 51 | I76: ='Thuyet minh'!A1523 -> 2.10 | K76: 255941226083 | L76: 0 | M76: 0 | N76: =SUM(K76:M76) -> 255941226083 | O76: =SUMIF('B360'!$E$12:$E$111,A76,'B360'!$G$12:$G$111)-SUMIF('B360'!$F$12:$F$111,A76,'B360'!$G$12:$G$111) -> 0 | P76: =N76+O76 -> 255941226083 | R76: 0 | S76: =SUMIF('B360'!$E$112:$E$133,$A76,'B360'!$G$112:$G$133)-SUMIF('B360'!$F$112:$F$133,$A76,'B360'!$G$112:$G$133) -> 0 | T76: =R76+S76 -> 0 | U76: =B76 -> 15. | V76: Current enterprise income tax expense | Z76: =G76 -> 51 | AB76: =I76 -> 2.10 | AD76: =P76 -> 255941226083 | AF76: =T76 -> 0 | AG76: =P74*28% -> 7.14745433e+11 | AH76: =N76-R76 -> 255941226083 | AJ76: =IF(AH76=0,0,IF(R76<>0,AH76/R76,IF(R76>0,1,-1))) -> -1 | AL76: =P76-T76 -> 255941226083 | AN76: =IF(AL76=0,0,IF(T76<>0,AL76/T76,IF(T76>0,1,-1))) -> -1 | AP76: =P76-N76 -> 0 | AR76: =IF(AP76=0,0,IF(N76<>0,AP76/N76,IF(N76>0,1,-1))) -> 0 | AT76: 1 | AV76: 0 | AW76: 0
A78: 8212 | B78: =IF('Khai bao'!C12='Khai bao'!F13,"17.","16.") -> 16. | C78: Chi phí thuế thu nhập doanh nghiệp hoãn lại | G78: 52 | I78: ='Thuyet minh'!A1571&"."&LEFT('Thuyet minh'!A1592,1) -> .c | K78: 0 | L78: 0 | M78: 0 | N78: =SUM(K78:M78) -> 0 | O78: =SUMIF('B360'!$E$12:$E$111,A78,'B360'!$G$12:$G$111)-SUMIF('B360'!$F$12:$F$111,A78,'B360'!$G$12:$G$111) -> 0 | P78: =N78+O78 -> 0 | R78: 0 | S78: =SUMIF('B360'!$E$112:$E$133,$A78,'B360'!$G$112:$G$133)-SUMIF('B360'!$F$112:$F$133,$A78,'B360'!$G$112:$G$133) -> 0 | T78: =R78+S78 -> 0 | U78: =B78 -> 16. | V78: Deferred enterprise income tax expense | Z78: =G78 -> 52 | AB78: =I78 -> .c | AD78: =P78 -> 0 | AF78: =T78 -> 0 | AH78: =N78-R78 -> 0 | AJ78: =IF(AH78=0,0,IF(R78<>0,AH78/R78,IF(R78>0,1,-1))) -> 0 | AL78: =P78-T78 -> 0 | AN78: =IF(AL78=0,0,IF(T78<>0,AL78/T78,IF(T78>0,1,-1))) -> 0 | AP78: =P78-N78 -> 0 | AR78: =IF(AP78=0,0,IF(N78<>0,AP78/N78,IF(N78>0,1,-1))) -> 0 | AT78: 1 | AV78: 0 | AW78: 0
AT79: 1 | AV79: 0 | AW79: 0
A80: 421 | B80: =IF('Khai bao'!C12='Khai bao'!F13,"18.","17.") -> 17. | C80: Lợi nhuận sau thuế thu nhập doanh nghiệp | G80: 60 | K80: =K74-K76-K78 -> 2296721034744 | L80: 0 | M80: 0 | N80: 2296721034744 | O80: 0 | P80: 2296721034744 | R80: =R74-R76-R78 -> 3140045980944 | S80: =S74-S76-S78 -> 0 | T80: =T74-T76-T78 -> 3140045980944 | U80: =B80 -> 17. | V80: Profits after enterprise income tax | Z80: =G80 -> 60 | AD80: =AD74-AD76-AD78 -> 2296721034744 | AF80: =AF74-AF76-AF78 -> 3140045980944 | AH80: =N80-R80 -> -843324946200 | AJ80: =IF(AH80=0,0,IF(R80<>0,AH80/R80,IF(R80>0,1,-1))) -> -0.2685708908 | AL80: =P80-T80 -> -843324946200 | AN80: =IF(AL80=0,0,IF(T80<>0,AL80/T80,IF(T80>0,1,-1))) -> -0.2685708908 | AP80: =P80-N80 -> 0 | AR80: =IF(AP80=0,0,IF(N80<>0,AP80/N80,IF(N80>0,1,-1))) -> 0 | AT80: 1 | AV80: 0 | AW80: 0
AT81: 1 | AV81: 0 | AW81: 0
A82: 61 | B82: 19. | C82: Lợi nhuận sau thuế của Công ty mẹ | G82: 61 | K82: =K80-K83 -> 2296721034744 | L82: 0 | M82: 0 | N82: 2296721034744 | O82: 0 | P82: 2296721034744 | R82: =R80-R83 -> 3140045980944 | S82: =S80-S83 -> 0 | T82: =T80-T83 -> 3140045980944 | U82: =B82 -> 19. | V82: Profit after tax of holding company’s shareholders | Z82: =G82 -> 61 | AD82: =AD80-AD83 -> 2296721034744 | AF82: =AF80-AF83 -> 3140045980944 | AH82: =N82-R82 -> -843324946200 | AJ82: =IF(AH82=0,0,IF(R82<>0,AH82/R82,IF(R82>0,1,-1))) -> -0.2685708908 | AL82: =P82-T82 -> -843324946200 | AN82: =IF(AL82=0,0,IF(T82<>0,AL82/T82,IF(T82>0,1,-1))) -> -0.2685708908 | AP82: =P82-N82 -> 0 | AR82: =IF(AP82=0,0,IF(N82<>0,AP82/N82,IF(N82>0,1,-1))) -> 0 | AT82: 1 | AV82: 0 | AW82: 0
A83: 62 | B83: 20. | C83: Lợi nhuận sau thuế của Cổ đông không kiểm soát | G83: 62 | K83: 0 | L83: 0 | M83: 0 | N83: =SUM(K83:M83) -> 0 | O83: =SUMIF('B360'!$E$12:$E$111,A83,'B360'!$G$12:$G$111)-SUMIF('B360'!$F$12:$F$111,A83,'B360'!$G$12:$G$111) -> 0 | P83: =N83+O83 -> 0 | R83: 0 | S83: =SUMIF('B360'!$E$112:$E$133,$A83,'B360'!$G$112:$G$133)-SUMIF('B360'!$F$112:$F$133,$A83,'B360'!$G$112:$G$133) -> 0 | T83: =R83+S83 -> 0 | U83: =B83 -> 20. | V83: Profit after tax of non controlling shareholders | Z83: =G83 -> 62 | AD83: =P83 -> 0 | AF83: =T83 -> 0 | AH83: =N83-R83 -> 0 | AJ83: =IF(AH83=0,0,IF(R83<>0,AH83/R83,IF(R83>0,1,-1))) -> 0 | AL83: =P83-T83 -> 0 | AN83: =IF(AL83=0,0,IF(T83<>0,AL83/T83,IF(T83>0,1,-1))) -> 0 | AP83: =P83-N83 -> 0 | AR83: =IF(AP83=0,0,IF(N83<>0,AP83/N83,IF(N83>0,1,-1))) -> 0 | AT83: 1 | AV83: 0 | AW83: 0
AT84: 1 | AV84: 0 | AW84: 0
B85: =IF('Khai bao'!C12='Khai bao'!F13,"21.","18.") -> 18. | C85: Lãi cơ bản trên cổ phiếu | G85: 70 | I85: ='Thuyet minh'!A1603 ->  | P85: ='Thuyet minh'!W1616 -> 0 | R85: 0 | T85: ='Thuyet minh'!AD1616 -> 0 | U85: =B85 -> 18. | V85: Earnings per Share | Z85: =G85 -> 70 | AB85: =I85 ->  | AD85: =P85 -> 0 | AF85: =T85 -> 0 | AH85: =N85-R85 -> 0 | AJ85: =IF(AH85=0,0,IF(R85<>0,AH85/R85,IF(R85>0,1,-1))) -> 0 | AL85: =P85-T85 -> 0 | AN85: =IF(AL85=0,0,IF(T85<>0,AL85/T85,IF(T85>0,1,-1))) -> 0 | AP85: =P85-N85 -> 0 | AR85: =IF(AP85=0,0,IF(N85<>0,AP85/N85,IF(N85>0,1,-1))) -> 0 | AT85: 1 | AV85: 0 | AW85: 0
AT86: =AT87 -> 1 | AV86: 0 | AW86: 0
B87: =IF('Khai bao'!C12='Khai bao'!F13,"22.","19.") -> 19. | C87: Lãi suy giảm trên cổ phiếu (*) | G87: 71 | I87: ='Thuyet minh'!A1605 ->  | P87: ='Thuyet minh'!W1634 -> 0 | T87: ='Thuyet minh'!AD1634 -> 0 | U87: =B87 -> 19. | V87: Diluted earnings per share (*) | Z87: =G87 -> 71 | AB87: =I87 ->  | AD87: =P87 -> 0 | AF87: =T87 -> 0 | AH87: =N87-R87 -> 0 | AJ87: =IF(AH87=0,0,IF(R87<>0,AH87/R87,IF(R87>0,1,-1))) -> 0 | AL87: =P87-T87 -> 0 | AN87: =IF(AL87=0,0,IF(T87<>0,AL87/T87,IF(T87>0,1,-1))) -> 0 | AP87: =P87-N87 -> 0 | AR87: =IF(AP87=0,0,IF(N87<>0,AP87/N87,IF(N87>0,1,-1))) -> 0 | AT87: =IF(AND(P87=P85,T87=T85),1,0) -> 1 | AV87: 0 | AW87: 0
T89: ='Khai bao'!$C$43&", "&'Khai bao'!$C$41 -> TP. Hà Nội, ngày 23 tháng 03 năm 2021 | AF89: ='Khai bao'!$D$43&", "&'Khai bao'!$D$41 -> Hanoi city, 23 March 2021
B90: ='Khai bao'!C39 -> Người lập | E90: ='Khai bao'!C36 -> Kế toán trưởng | Q90: ='Khai bao'!C33 -> Giám đốc | X90: ='Khai bao'!D36 -> Chief Accountant | Z90: ='Khai bao'!D39 -> Preparer | AE90: ='Khai bao'!D33 -> Director
B97: ='Khai bao'!C40 ->  | E97: ='Khai bao'!C37 ->  | Q97: ='Khai bao'!C34 -> 0 | X97: ='Khai bao'!D37 ->  | Z97: ='Khai bao'!D40 ->  | AE97: ='Khai bao'!D34 -> 0
U99: ="(The note set out from page "&LEFT(#REF!,2)&" to page "&RIGHT(#REF!,2)&" a part of the Financial Statements)" -> 
T101: ='Khai bao'!$C$43&", "&'Khai bao'!$C$41 -> TP. Hà Nội, ngày 23 tháng 03 năm 2021 | AD101: ='Khai bao'!$D$43&", "&'Khai bao'!$D$41 -> Hanoi city, 23 March 2021
B102: ='Khai bao'!$C$39 -> Người lập | G102: ='Khai bao'!$C$36 -> Kế toán trưởng | T102: ='Khai bao'!$C$33 -> Giám đốc | V102: ='Khai bao'!$D$36 -> Chief Accountant | Z102: ='Khai bao'!$D$39 -> Preparer | AF102: ='Khai bao'!$D$33 -> Director
V108: ='Khai bao'!$D$37 ->  | Z108: ='Khai bao'!$D$40 ->  | AF108: ='Khai bao'!$D$34 -> 0

Sheet LCTT-GT
A1: ='Khai bao'!$C$3 -> CÔNG TY TNHH TƯ VẤN VÀ ĐÀO TẠO IVC | N1: ="B"&RIGHT('Khai bao'!$C$13,16) -> Báo cáo tài chính | O1: ='Khai bao'!$D$3 -> IVC CONSULTING AND TRAINING COMPANY LIMITED | Z1: ="F"&RIGHT('Khai bao'!$D$13,19) -> Financial statements
N2: Mẫu số B 03-DN | O2: ='Khai bao'!$D$6 -> 0 | Z2: Form B 03 - DN
N3: (Ban hành theo Thông tư số 200/2014/TT-BTC | Z3: (According to Circular No. 200/2014/TT-BTC
N4: ngày 22/12/2014 của Bộ Tài chính) | Z4: dated 22/12/2014 by Financial Department)
A6: =IF('Khai bao'!C12='Khai bao'!F13,"BÁO CÁO LƯU CHUYỂN TIỀN TỆ HỢP NHẤT","BÁO CÁO LƯU CHUYỂN TIỀN TỆ") -> BÁO CÁO LƯU CHUYỂN TIỀN TỆ | O6: =#REF! -> 
A7: ='Khai bao'!$C$15 -> Năm tài chính kết thúc ngày 31/12/2020 | O7: =KQKD!U7 -> For the fiscal year ended 31/12/2020
A8: (Theo phương pháp gián tiếp) | O8: (Under indirect method)
A10: CHỈ TIÊU | F10: Mã số | H10: Thuyết minh | J10: =KQKD!N10 -> Số đơn vị (CN) | K10: BT Điều chỉnh | L10: =KQKD!P10 -> Năm nay | N10: =KQKD!T10 -> Năm trước | O10: ITEMS | T10: Code | V10: Note | X10: =KQKD!AD10 -> Current year | Z10: =KQKD!AF10 -> Previous year | AD10: Test TA/TV | AG10: Code
J11: VND | K11: VND | L11: VND | N11: VND | X11: VND | Z11: VND
A13: I. | B13: LƯU CHUYỂN TIỀN TỪ HOẠT ĐỘNG KINH DOANH | O13: =A13 -> I. | P13: CASH FLOWS FROM OPERATING ACTIVITIES | AB13: =SUM(AB14:AB32) -> 20
A14: 1. | B14: Lợi nhuận trước thuế | F14: 01 | J14: 0 | K14: =SUMIF('CF-WPs'!$C$7:$C$138,'LCTT-GT'!F14,'CF-WPs'!$E$7:$E$138)-SUMIF('CF-WPs'!$D$7:$D$138,'LCTT-GT'!F14,'CF-WPs'!$E$7:$E$138) -> 0 | L14: =SUM(J14:K14) -> 0 | N14: =KQKD!T74 -> 3140045980944 | O14: 1. | P14: Pre-tax profits | T14: =F14 -> 01 | X14: =L14 -> 0 | Z14: =N14 -> 3140045980944 | AB14: =IF(L14+N14=0,0,1) -> 1 | AD14: =L14-X14 -> 0 | AE14: =N14-Z14 -> 0 | AG14: CF01
A15: 2. | B15: Điều chỉnh cho các khoản | O15: 2. | P15: Adjustments for | AB15: =SUM(AB16:AB20) -> 3 | AD15: 0 | AE15: 0
A16: - | B16: Khấu hao tài sản cố định và bất động sản đầu tư | F16: 02 | J16: 0 | K16: =SUMIF('CF-WPs'!$C$7:$C$138,'LCTT-GT'!F16,'CF-WPs'!$E$7:$E$138)-SUMIF('CF-WPs'!$D$7:$D$138,'LCTT-GT'!F16,'CF-WPs'!$E$7:$E$138) -> 0 | L16: =SUM(J16:K16) -> 0 | N16: 1993789151 | O16: - | P16: Depreciation of fixed assets and investment real property | T16: =F16 -> 02 | X16: =L16 -> 0 | Z16: =N16 -> 1993789151 | AB16: =IF(L16+N16=0,0,1) -> 1 | AD16: 0 | AE16: 0
A17: - | B17: Các khoản dự phòng | F17: 03 | J17: 0 | K17: =SUMIF('CF-WPs'!$C$7:$C$138,'LCTT-GT'!F17,'CF-WPs'!$E$7:$E$138)-SUMIF('CF-WPs'!$D$7:$D$138,'LCTT-GT'!F17,'CF-WPs'!$E$7:$E$138) -> 0 | L17: =SUM(J17:K17) -> 0 | N17: 0 | O17: - | P17: Provisions | T17: 03 | X17: 0 | Z17: 0 | AB17: 0 | AD17: 0 | AE17: 0
A18: - | B18: Lãi, lỗ chênh lệch tỷ giá hối đoái do đánh giá lại các khoản mục tiền tệ có gốc ngoại tệ | F18: 04 | J18: 0 | K18: =SUMIF('CF-WPs'!$C$7:$C$138,'LCTT-GT'!F18,'CF-WPs'!$E$7:$E$138)-SUMIF('CF-WPs'!$D$7:$D$138,'LCTT-GT'!F18,'CF-WPs'!$E$7:$E$138) -> 0 | L18: 0 | N18: 0 | O18: - | P18: Profits / losses of exchange rate differences from revaluation of accounts derived from foreign currencies | T18: 04 | X18: 0 | Z18: 0 | AB18: 0 | AD18: 0 | AE18: 0
A19: - | B19: Lãi, lỗ từ hoạt động đầu tư | F19: 05 | J19: 0 | K19: =SUMIF('CF-WPs'!$C$7:$C$138,'LCTT-GT'!F19,'CF-WPs'!$E$7:$E$138)-SUMIF('CF-WPs'!$D$7:$D$138,'LCTT-GT'!F19,'CF-WPs'!$E$7:$E$138) -> 0 | L19: 0 | N19: =-KQKD!T27 -> -839783239 | O19: - | P19: Profits / losses from investment | T19: 05 | X19: 0 | Z19: -839783239 | AB19: 1 | AD19: 0 | AE19: 0
A20: - | B20: Chi phí lãi vay | F20: 06 | J20: 0 | K20: =SUMIF('CF-WPs'!$C$7:$C$138,'LCTT-GT'!F20,'CF-WPs'!$E$7:$E$138)-SUMIF('CF-WPs'!$D$7:$D$138,'LCTT-GT'!F20,'CF-WPs'!$E$7:$E$138) -> 0 | L20: 0 | N20: =KQKD!T37 -> 65949009230 | O20: - | P20: Interest expenses | T20: 06 | X20: 0 | Z20: 65949009230 | AB20: 1 | AD20: 0 | AE20: 0
A21: - | B21: Các khoản điều chỉnh khác | F21: 07 | J21: 0 | K21: =SUMIF('CF-WPs'!$C$7:$C$138,'LCTT-GT'!F21,'CF-WPs'!$E$7:$E$138)-SUMIF('CF-WPs'!$D$7:$D$138,'LCTT-GT'!F21,'CF-WPs'!$E$7:$E$138) -> 0 | L21: 0 | N21: 0 | O21: - | P21: Other adjustments | T21: 07 | X21: 0 | Z21: 0 | AB21: 0 | AD21: 0 | AE21: 0
A22: 3. | B22: Lợi nhuận từ hoạt động kinh doanh trước thay đổi vốn lưu động | F22: 08 | J22: =J14+J16+J17+J18+J19+J20+J21 -> 0 | L22: =L14+L16+L17+L18+L19+L20+L21 -> 0 | N22: =N14+N16+N17+N18+N19+N20+N21 -> 3207148996086 | O22: 3. | P22: Operating profit before changes in working capital | T22: 08 | X22: =X14+X16+X17+X18+X19+X20+X21 -> 0 | Z22: =Z14+Z16+Z17+Z18+Z19+Z20+Z21 -> 3207148996086 | AB22: =SUM(AB23:AB31) -> 6 | AD22: 0 | AE22: 0
A23: - | B23: Tăng, giảm các khoản phải thu | F23: 09 | J23: 0 | K23: =SUMIF('CF-WPs'!$C$7:$C$138,'LCTT-GT'!F23,'CF-WPs'!$E$7:$E$138)-SUMIF('CF-WPs'!$D$7:$D$138,'LCTT-GT'!F23,'CF-WPs'!$E$7:$E$138) -> 0 | L23: =SUM(J23:K23) -> 0 | N23: =-3978642149158-499586265933 -> -4478228415091 | O23: - | P23: Increase/Decrease in receivables | T23: 09 | X23: =L23 -> 0 | Z23: =N23 -> -4478228415091 | AB23: =IF(L23+N23=0,0,1) -> 1 | AD23: 0 | AE23: 0
A24: - | B24: Tăng, giảm hàng tồn kho | F24: 10 | J24: 0 | K24: =SUMIF('CF-WPs'!$C$7:$C$138,'LCTT-GT'!F24,'CF-WPs'!$E$7:$E$138)-SUMIF('CF-WPs'!$D$7:$D$138,'LCTT-GT'!F24,'CF-WPs'!$E$7:$E$138) -> 0 | L24: =SUM(J24:K24) -> 0 | N24: -257829372170 | O24: - | P24: Increase/Decrease in inventory | T24: 10 | X24: 0 | Z24: -257829372170 | AB24: 1 | AD24: 0 | AE24: 0
A25: - | B25: Tăng, giảm các khoản phải trả (không kể lãi vay phải trả, thuế thu nhập doanh nghiệp phải nộp) | F25: 11 | J25: 0 | K25: =SUMIF('CF-WPs'!$C$7:$C$138,'LCTT-GT'!F25,'CF-WPs'!$E$7:$E$138)-SUMIF('CF-WPs'!$D$7:$D$138,'LCTT-GT'!F25,'CF-WPs'!$E$7:$E$138) -> 0 | L25: 0 | N25: 529623823080 | O25: - | P25: Increase/Decrease in payables (excluding interest payables, enterprise income tax payables) | T25: 11 | X25: 0 | Z25: 529623823080 | AB25: 1 | AD25: 0 | AE25: 0
A26: - | B26: Tăng, giảm chi phí trả trước | F26: 12 | J26: 0 | K26: =SUMIF('CF-WPs'!$C$7:$C$138,'LCTT-GT'!F26,'CF-WPs'!$E$7:$E$138)-SUMIF('CF-WPs'!$D$7:$D$138,'LCTT-GT'!F26,'CF-WPs'!$E$7:$E$138) -> 0 | L26: 0 | N26: -460674927 | O26: - | P26: Increase/Decrease in prepaid expenses | T26: 12 | X26: 0 | Z26: -460674927 | AB26: 1 | AD26: 0 | AE26: 0
A27: - | B27: Tăng, giảm chứng khoán kinh doanh | F27: 13 | J27: 0 | K27: =SUMIF('CF-WPs'!$C$7:$C$138,'LCTT-GT'!F27,'CF-WPs'!$E$7:$E$138)-SUMIF('CF-WPs'!$D$7:$D$138,'LCTT-GT'!F27,'CF-WPs'!$E$7:$E$138) -> 0 | L27: 0 | N27: 0 | O27: - | P27: Increase/Decrease in trading securities | T27: 13 | X27: 0 | Z27: 0 | AB27: 0 | AD27: 0 | AE27: 0
A28: - | B28: Tiền lãi vay đã trả | F28: 14 | J28: 0 | K28: =SUMIF('CF-WPs'!$C$7:$C$138,'LCTT-GT'!F28,'CF-WPs'!$E$7:$E$138)-SUMIF('CF-WPs'!$D$7:$D$138,'LCTT-GT'!F28,'CF-WPs'!$E$7:$E$138) -> 0 | L28: 0 | N28: -47920943593 | O28: - | P28: Interest expenses paid | T28: 14 | X28: 0 | Z28: -47920943593 | AB28: 1 | AD28: 0 | AE28: 0
A29: - | B29: Thuế thu nhập doanh nghiệp đã nộp | F29: 15 | J29: 0 | K29: =SUMIF('CF-WPs'!$C$7:$C$138,'LCTT-GT'!F29,'CF-WPs'!$E$7:$E$138)-SUMIF('CF-WPs'!$D$7:$D$138,'LCTT-GT'!F29,'CF-WPs'!$E$7:$E$138) -> 0 | L29: 0 | N29: 0 | O29: - | P29: Enterprise income tax paid | T29: 15 | X29: 0 | Z29: 0 | AB29: 0 | AD29: 0 | AE29: 0
A30: - | B30: Tiền thu khác từ hoạt động kinh doanh | F30: 16 | J30: 0 | K30: =SUMIF('CF-WPs'!$C$7:$C$138,'LCTT-GT'!F30,'CF-WPs'!$E$7:$E$138)-SUMIF('CF-WPs'!$D$7:$D$138,'LCTT-GT'!F30,'CF-WPs'!$E$7:$E$138) -> 0 | L30: 0 | N30: 0 | O30: - | P30: Other receipts from trading | T30: 16 | X30: 0 | Z30: 0 | AB30: 0 | AD30: =L30-X30 -> 0 | AE30: =N30-Z30 -> 0
A31: - | B31: Tiền chi khác cho hoạt động kinh doanh | F31: 17 | J31: 0 | K31: =SUMIF('CF-WPs'!$C$7:$C$138,'LCTT-GT'!F31,'CF-WPs'!$E$7:$E$138)-SUMIF('CF-WPs'!$D$7:$D$138,'LCTT-GT'!F31,'CF-WPs'!$E$7:$E$138) -> 0 | L31: 0 | N31: -888906829 | O31: - | P31: Other expenditure on trading | T31: 17 | X31: 0 | Z31: -888906829 | AB31: 1 | AD31: 0 | AE31: 0
A32: Lưu chuyển tiền thuần từ hoạt động kinh doanh | F32: 20 | J32: =J22+J23+J24+J25+J26+J27+J28+J29+J30+J31 -> 0 | L32: =L22+L23+L24+L25+L26+L27+L28+L29+L30+L31 -> 0 | N32: =N22+N23+N24+N25+N26+N27+N28+N29+N30+N31 -> -1048555493444 | O32: Net cash flows from trading | T32: 20 | X32: =X22+X23+X24+X25+X26+X27+X28+X29+X30+X31 -> 0 | Z32: =Z22+Z23+Z24+Z25+Z26+Z27+Z28+Z29+Z30+Z31 -> -1048555493444 | AB32: 1 | AD32: 0 | AE32: 0
AB33: =AB34 -> 4 | AD33: 0 | AE33: 0
A34: II. | B34: LƯU CHUYỂN TIỀN TỪ HOẠT ĐỘNG ĐẦU TƯ | O34: =A34 -> II. | P34: CASH FLOWS FROM INVESTMENT | AB34: =SUM(AB35:AB42) -> 4 | AD34: 0 | AE34: 0
A35: 1. | B35: Tiền chi để mua sắm, xây dựng tài sản cố định và các tài sản dài hạn khác | F35: 21 | J35: 0 | K35: =SUMIF('CF-WPs'!$C$7:$C$138,'LCTT-GT'!F35,'CF-WPs'!$E$7:$E$138)-SUMIF('CF-WPs'!$D$7:$D$138,'LCTT-GT'!F35,'CF-WPs'!$E$7:$E$138) -> 0 | L35: =SUM(J35:K35) -> 0 | N35: -34318436609 | O35: 1. | P35: Expenditures for purchase, construction of fixed assets and other long-term assets | T35: =F35 -> 21 | X35: =L35 -> 0 | Z35: =N35 -> -34318436609 | AB35: =IF(L35+N35=0,0,1) -> 1 | AD35: 0 | AE35: 0
A36: 2. | B36: Tiền thu từ thanh lý, nhượng bán tài sản cố định và các tài sản dài hạn khác | F36: 22 | J36: 0 | K36: =SUMIF('CF-WPs'!$C$7:$C$138,'LCTT-GT'!F36,'CF-WPs'!$E$7:$E$138)-SUMIF('CF-WPs'!$D$7:$D$138,'LCTT-GT'!F36,'CF-WPs'!$E$7:$E$138) -> 0 | L36: =SUM(J36:K36) -> 0 | N36: 0 | O36: 2. | P36: Proceeds from liquidation, sale of fixed assets and other long-term assets | T36: 22 | X36: 0 | Z36: 0 | AB36: 0 | AD36: 0 | AE36: 0
A37: 3. | B37: Tiền chi cho vay, mua các công cụ nợ của đơn vị khác | F37: 23 | J37: 0 | K37: =SUMIF('CF-WPs'!$C$7:$C$138,'LCTT-GT'!F37,'CF-WPs'!$E$7:$E$138)-SUMIF('CF-WPs'!$D$7:$D$138,'LCTT-GT'!F37,'CF-WPs'!$E$7:$E$138) -> 0 | L37: 0 | N37: -89886000000 | O37: 3. | P37: Expenditure on borrowing and purchase of debt instruments of other units | T37: 23 | X37: 0 | Z37: -89886000000 | AB37: 1 | AD37: 0 | AE37: 0
A38: 4. | B38: Tiền thu hồi cho vay, bán lại các công cụ nợ của đơn vị khác | F38: 24 | J38: 0 | K38: =SUMIF('CF-WPs'!$C$7:$C$138,'LCTT-GT'!F38,'CF-WPs'!$E$7:$E$138)-SUMIF('CF-WPs'!$D$7:$D$138,'LCTT-GT'!F38,'CF-WPs'!$E$7:$E$138) -> 0 | L38: 0 | N38: 0 | O38: 4. | P38: Amounts recovered on borrowing and repurchase of debt instruments of other units | T38: 24 | X38: 0 | Z38: 0 | AB38: 0 | AD38: 0 | AE38: 0
A39: 5. | B39: Tiền chi đầu tư góp vốn vào đơn vị khác | F39: 25 | J39: 0 | K39: =SUMIF('CF-WPs'!$C$7:$C$138,'LCTT-GT'!F39,'CF-WPs'!$E$7:$E$138)-SUMIF('CF-WPs'!$D$7:$D$138,'LCTT-GT'!F39,'CF-WPs'!$E$7:$E$138) -> 0 | L39: 0 | N39: 0 | O39: 5. | P39: Expenditure on investments in other units | T39: 25 | X39: 0 | Z39: 0 | AB39: 0 | AD39: 0 | AE39: 0
A40: 6. | B40: Tiền thu hồi đầu tư góp vốn vào đơn vị khác | F40: 26 | J40: 0 | K40: =SUMIF('CF-WPs'!$C$7:$C$138,'LCTT-GT'!F40,'CF-WPs'!$E$7:$E$138)-SUMIF('CF-WPs'!$D$7:$D$138,'LCTT-GT'!F40,'CF-WPs'!$E$7:$E$138) -> 0 | L40: 0 | N40: 0 | O40: 6. | P40: Sums recovered from capital investments in other units | T40: 26 | X40: 0 | Z40: 0 | AB40: 0 | AD40: 0 | AE40: 0
A41: 7. | B41: Tiền thu lãi cho vay, cổ tức và lợi nhuận được chia | F41: 27 | J41: 0 | K41: =SUMIF('CF-WPs'!$C$7:$C$138,'LCTT-GT'!F41,'CF-WPs'!$E$7:$E$138)-SUMIF('CF-WPs'!$D$7:$D$138,'LCTT-GT'!F41,'CF-WPs'!$E$7:$E$138) -> 0 | L41: 0 | N41: 671826591 | O41: 7. | P41: Sums received from loan interest, dividends and profits shared | T41: 27 | X41: 0 | Z41: 671826591 | AB41: 1 | AD41: 0 | AE41: 0
A42: Lưu chuyển tiền thuần từ hoạt động đầu tư | F42: 30 | J42: =J35+J36+J37+J38+J39+J40+J41 -> 0 | L42: =L35+L36+L37+L38+L39+L40+L41 -> 0 | N42: =N35+N36+N37+N38+N39+N40+N41 -> -123532610018 | O42: Net cash flows from investment | T42: 30 | X42: =SUM(X35:X41) -> 0 | Z42: =SUM(Z35:Z41) -> -123532610018 | AB42: =IF(L42+N42=0,0,1) -> 1 | AD42: =L42-X42 -> 0 | AE42: =N42-Z42 -> 0
AB43: =AB44 -> 3 | AD43: 0 | AE43: 0
A44: III. | B44: LƯU CHUYỂN TIỀN TỪ HOẠT ĐỘNG TÀI CHÍNH | O44: =A44 -> III. | P44: CASH FLOWS FROM FINANCING ACTIVITIES | AB44: =SUM(AB45:AB51) -> 3 | AD44: 0 | AE44: 0
A45: 1. | B45: Tiền thu từ phát hành cổ phiếu, nhận vốn góp của chủ sở hữu | F45: 31 | J45: 0 | K45: =SUMIF('CF-WPs'!$C$7:$C$138,'LCTT-GT'!F45,'CF-WPs'!$E$7:$E$138)-SUMIF('CF-WPs'!$D$7:$D$138,'LCTT-GT'!F45,'CF-WPs'!$E$7:$E$138) -> 0 | L45: =SUM(J45:K45) -> 0 | N45: 0 | O45: 1. | P45: Sums received from issuance of shares and receipt from contributions of the owners | T45: =F45 -> 31 | X45: =L45 -> 0 | Z45: =N45 -> 0 | AB45: =IF(L45+N45=0,0,1) -> 0 | AD45: 0 | AE45: 0
A46: 2. | B46: Tiền trả lại vốn góp cho các chủ sở hữu, mua lại cổ phiếu của doanh nghiệp đã phát hành | F46: 32 | J46: 0 | K46: =SUMIF('CF-WPs'!$C$7:$C$138,'LCTT-GT'!F46,'CF-WPs'!$E$7:$E$138)-SUMIF('CF-WPs'!$D$7:$D$138,'LCTT-GT'!F46,'CF-WPs'!$E$7:$E$138) -> 0 | L46: =SUM(J46:K46) -> 0 | N46: 0 | O46: 2. | P46: Repayment of contributions to owners, repurchase of stock issued | T46: 32 | X46: 0 | Z46: 0 | AB46: 0 | AD46: 0 | AE46: 0
A47: 3. | B47: Tiền thu từ đi vay | F47: 33 | J47: 0 | K47: =SUMIF('CF-WPs'!$C$7:$C$138,'LCTT-GT'!F47,'CF-WPs'!$E$7:$E$138)-SUMIF('CF-WPs'!$D$7:$D$138,'LCTT-GT'!F47,'CF-WPs'!$E$7:$E$138) -> 0 | L47: 0 | N47: 9118812524484 | O47: 3. | P47: Sums received from borrowings | T47: 33 | X47: 0 | Z47: 9118812524484 | AB47: 1 | AD47: 0 | AE47: 0
A48: 4. | B48: Tiền trả nợ gốc vay | F48: 34 | J48: 0 | K48: =SUMIF('CF-WPs'!$C$7:$C$138,'LCTT-GT'!F48,'CF-WPs'!$E$7:$E$138)-SUMIF('CF-WPs'!$D$7:$D$138,'LCTT-GT'!F48,'CF-WPs'!$E$7:$E$138) -> 0 | L48: 0 | N48: -7280722718713 | O48: 4. | P48: Payment of loan principal | T48: 34 | X48: 0 | Z48: -7280722718713 | AB48: 1 | AD48: 0 | AE48: 0
A49: 5. | B49: Tiền trả nợ gốc thuê tài chính | F49: 35 | J49: 0 | K49: =SUMIF('CF-WPs'!$C$7:$C$138,'LCTT-GT'!F49,'CF-WPs'!$E$7:$E$138)-SUMIF('CF-WPs'!$D$7:$D$138,'LCTT-GT'!F49,'CF-WPs'!$E$7:$E$138) -> 0 | L49: 0 | N49: 0 | O49: 5. | P49: Payments of finance lease principal | T49: 35 | X49: 0 | Z49: 0 | AB49: 0 | AD49: =L49-X49 -> 0 | AE49: =N49-Z49 -> 0
A50: 6. | B50: Cổ tức, lợi nhuận đã trả cho chủ sở hữu | F50: 36 | J50: 0 | K50: =SUMIF('CF-WPs'!$C$7:$C$138,'LCTT-GT'!F50,'CF-WPs'!$E$7:$E$138)-SUMIF('CF-WPs'!$D$7:$D$138,'LCTT-GT'!F50,'CF-WPs'!$E$7:$E$138) -> 0 | L50: 0 | N50: 0 | O50: 6. | P50: Dividends and interest paid to owners | T50: 36 | X50: 0 | Z50: 0 | AB50: 0 | AD50: 0 | AE50: 0
A51: Lưu chuyển tiền thuần từ hoạt động tài chính | F51: 40 | J51: =J45+J46+J47+J48+J49+J50 -> 0 | L51: =L45+L46+L47+L48+L49+L50 -> 0 | N51: =N45+N46+N47+N48+N49+N50 -> 1838089805771 | O51: Net cash flows from financing activities | T51: 40 | X51: =SUM(X45:X50) -> 0 | Z51: =SUM(Z45:Z50) -> 1838089805771 | AB51: 1 | AD51: 0 | AE51: 0
AB52: =AB53 -> 1 | AD52: 0 | AE52: 0
A53: ="Lưu chuyển tiền thuần trong "&'Khai bao'!$C$26 -> Lưu chuyển tiền thuần trong năm | F53: 50 | J53: =J32+J42+J51 -> 0 | L53: =L32+L42+L51 -> 0 | N53: =N32+N42+N51 -> 666001702309 | O53: Net cash flows in the period | T53: =F53 -> 50 | X53: =X32+X42+X51 -> 0 | Z53: =Z32+Z42+Z51 -> 666001702309 | AB53: =IF(L53+N53=0,0,1) -> 1 | AD53: 0 | AE53: 0
AB54: =AB55 -> 1 | AD54: 0 | AE54: 0
A55: ="Tiền và các khoản tương đương tiền đầu "&'Khai bao'!$C$26 -> Tiền và các khoản tương đương tiền đầu năm | F55: 60 | J55: =CDKT!U15 -> 666444491491 | L55: =CDKT!U15 -> 666444491491 | N55: 442789182 | O55: ="Cash and cash equivalents at beginning of the "&'Khai bao'!$D$26 -> Cash and cash equivalents at beginning of the year | T55: =F55 -> 60 | X55: =L55 -> 666444491491 | Z55: =N55 -> 442789182 | AB55: =AB59 -> 1 | AD55: 0 | AE55: 0
AB56: =AB57 -> 0
A57: Ảnh hưởng của thay đổi tỷ giá hối đoái quy đổi ngoại tệ | F57: 61 | J57: 0 | K57: =SUMIF('CF-WPs'!$C$7:$C$138,'LCTT-GT'!F57,'CF-WPs'!$E$7:$E$138)-SUMIF('CF-WPs'!$D$7:$D$138,'LCTT-GT'!F57,'CF-WPs'!$E$7:$E$138) -> 0 | L57: =SUM(J57:K57) -> 0 | N57: 0 | O57: Influence of exchange rate changes in foreign currency conversion | T57: =F57 -> 61 | X57: =L57 -> 0 | Z57: =N57 -> 0 | AB57: =IF(L57+N57=0,0,1) -> 0 | AD57: =L57-X57 -> 0 | AE57: =N57-Z57 -> 0
AB58: =AB59 -> 1 | AD58: =L58-X58 -> 0 | AE58: =N58-Z58 -> 0
A59: ="Tiền và các khoản tương đương tiền cuối "&'Khai bao'!$C$26 -> Tiền và các khoản tương đương tiền cuối năm | F59: 70 | H59: ='Thuyet minh'!A537 ->  | J59: =J55+J53+J57 -> 666444491491 | K59: =K55+K53+K57 -> 0 | L59: 666444491491 | N59: =N55+N53+N57 -> 666444491491 | O59: ="Cash and cash equivalents at end of the "&'Khai bao'!$D$26 -> Cash and cash equivalents at end of the year | T59: =F59 -> 70 | V59: =H59 ->  | X59: =X55+X53+X57 -> 666444491491 | Z59: =Z55+Z53+Z57 -> 666444491491 | AB59: =IF(L59+N59=0,0,1) -> 1 | AD59: =L59-X59 -> 0 | AE59: =N59-Z59 -> 0
J60: =J59-CDKT!N15 -> 461158220342 | L60: =L59-CDKT!P15 -> 461158220342 | N60: =N59-CDKT!U15 -> 0 | X60: =X59-CDKT!AE15 -> 461158220342 | Z60: =Z59-CDKT!AG15 -> 0 | AD60: =L60-X60 -> 0 | AE60: =N60-Z60 -> 0 | AF60: =AF59-CDKT!P15 -> -205286271149
N62: ='Khai bao'!$C$43&", "&'Khai bao'!$C$41 -> TP. Hà Nội, ngày 23 tháng 03 năm 2021 | Z62: ='Khai bao'!$D$43&", "&'Khai bao'!$D$41 -> Hanoi city, 23 March 2021
A63: ='Khai bao'!C39 -> Người lập | D63: ='Khai bao'!C36 -> Kế toán trưởng | M63: ='Khai bao'!C33 -> Giám đốc | O63: ='Khai bao'!D39 -> Preparer | R63: ='Khai bao'!D36 -> Chief Accountant | Y63: ='Khai bao'!D33 -> Director
A70: ='Khai bao'!C40 ->  | D70: ='Khai bao'!C37 ->  | M70: ='Khai bao'!C34 -> 0 | O70: ='Khai bao'!D40 ->  | R70: ='Khai bao'!D37 ->  | Y70: ='Khai bao'!D34 -> 0

Sheet Thuyet minh
A1: ='Khai bao'!$C$3 -> CÔNG TY TNHH TƯ VẤN VÀ ĐÀO TẠO IVC | AI1: ="B"&RIGHT('Khai bao'!$C$13,16) -> Báo cáo tài chính | AJ1: ='Khai bao'!$D$3 -> IVC CONSULTING AND TRAINING COMPANY LIMITED | BR1: ="F"&RIGHT('Khai bao'!$D$13,19) -> Financial statements
AI2: Mẫu số B 09-DN | AJ2: ='Khai bao'!$D$6 -> 0 | BR2: Form B 09 - DN
AI3: (Ban hành theo Thông tư số 200/2014/TT-BTC | BR3: (According to Circular No. 200/2014/TT-BTC
AI4: ngày 22/12/2014 của Bộ Tài chính) | BR4: dated 22/12/2014 by Financial Department)
A6: ="THUYẾT MINH "&'Khai bao'!C12 -> THUYẾT MINH BÁO CÁO TÀI CHÍNH | AJ6: NOTES TO THE FINANCIAL STATEMENTS
A7: ='Khai bao'!$C$15 -> Năm tài chính kết thúc ngày 31/12/2020 | AJ7: =KQKD!U7 -> For the fiscal year ended 31/12/2020
A9: =IF(B9<>"",SUBTOTAL(103,$B$9:B9),"")&"." -> 0. | B9: . | C9: ĐẶC ĐIỂM HOẠT ĐỘNG CỦA DOANH NGHIỆP | AJ9: =A9 -> 0. | AK9: =B9 -> . | AL9: BACKGROUND
A10: =IF(B10<>"",$A$9&"."&SUBTOTAL(103,$B$10:B10),"") ->  | AK10: 0
A11: =IF(B11<>"",$A$9&"."&SUBTOTAL(103,$B$10:B11),"") ->  | C11: Hình thức sở hữu vốn | AK11: 0 | AL11: Forms of ownership
A12: =IF(B12<>"",$A$9&"."&SUBTOTAL(103,$B$10:B12),"") ->  | AK12: 0
A13: =IF(B13<>"",$A$9&"."&SUBTOTAL(103,$B$10:B13),"") ->  | C13: =#REF! ->  | AK13: 0 | AL13: =#REF! -> 
A14: =IF(B14<>"",$A$9&"."&SUBTOTAL(103,$B$10:B14),"") ->  | AK14: 0
A15: =IF(B15<>"",$A$9&"."&SUBTOTAL(103,$B$10:B15),"") ->  | C15: =#REF! ->  | AK15: 0 | AL15: =#REF! -> 
A16: =IF(B16<>"",$A$9&"."&SUBTOTAL(103,$B$10:B16),"") ->  | AK16: 0
A17: =IF(B17<>"",$A$9&"."&SUBTOTAL(103,$B$10:B58),"") ->  | C17: =IF(W1315<>0,"Vốn điều lệ của Công ty theo đăng ký là 11.000.000.000 VND, tương đương "&FIXED(W1315,0,FALSE)&" cổ phần, mệnh giá một cổ phần là "&FIXED(W1325,0,FALSE)&" đồng.","Vốn điều lệ của Công ty theo đăng ký là 11.000.000.000 VND, trong đó:") ->  | AK17: 0 | AL17: =IF(W1315<>0,"The registed chartered capital of the Company is VND "&FIXED(CDKT!AE253,0,FALSE)&". Equivalent to "&FIXED(BF1315,0,FALSE)&" shares with the price of VND "&FIXED(BF1325,0,FALSE)&" per share.","The registed chartered capital of the Company is VND "&FIXED(CDKT!AE253,0,FALSE)&", the actual chartered capital as at "&'Khai bao'!D17&" is VND "&FIXED(CDKT!P253,0,FALSE)&", in which:") -> 
A18: =IF(B18<>"",$A$9&"."&SUBTOTAL(103,$B$10:B18),"") ->  | AK18: 0
C19: Chi tiết về vốn đầu tư chủ sở hữu | U19: USD | AA19: VND | AK19: Detail about the owner's investment | BF19: USD | BM19: VND
D20: Tổng vốn đầu tư | AL20: Total Invested Capital
D21: Vốn góp thực hiện dự án | AL21: Capital invested to carry out the project
D22: Vốn góp đến thời điểm 31/12/2015 | AL22: Actual Investment as at 31st December 2015
C24: Tên chủ sở hữu | R24: Tỷ lệ (%) | AA24: VND | AL24: Owner's name | BA24: Ratio | BJ24: VND | BM24: VND
AL25: Vietcombank Securities Company Limited | BA25: =R25 -> 0 | BH25: =Y25 -> 0
AL26: Nguyen Ba Dung | BA26: =R26 -> 0 | BH26: =Y26 -> 0
AL27: =C27 -> 0 | BA27: =R27 -> 0 | BH27: =Y27 -> 0
C28: Cộng | Y28: =SUM(Y25:AE27) -> 0 | AL28: Total | AZ28: =BA25+BA26+BA27 -> 0 | BH28: =SUM(BH25:BP27) -> 0
A30: =IF(B30<>"",$A$9&"."&SUBTOTAL(103,$B$10:B30),"") ->  | C30: Lĩnh vực kinh doanh: Dịch vụ | AK30: 0 | AL30: Operating field: Servicing
A31: =IF(B31<>"",$A$9&"."&SUBTOTAL(103,$B$10:B31),"") ->  | AK31: 0
A32: =IF(B32<>"",$A$9&"."&SUBTOTAL(103,$B$10:B32),"") ->  | C32: [Nêu rõ là sản xuất công nghiệp, kinh doanh thương mại, dịch vụ, xây lắp hoặc tổng hợp nhiều lĩnh vực kinh doanh] | AK32: 0 | AL32: [Nêu rõ là sản xuất công nghiệp, kinh doanh thương mại, dịch vụ, xây lắp hoặc tổng hợp nhiều lĩnh vực kinh doanh]
A33: =IF(B33<>"",$A$9&"."&SUBTOTAL(103,$B$10:B33),"") ->  | AK33: 0
A34: =IF(B34<>"",$A$9&"."&SUBTOTAL(103,$B$10:B34),"") ->  | C34: Ngành nghề kinh doanh | AK34: 0 | AL34: Main operations
A35: =IF(B35<>"",$A$9&"."&SUBTOTAL(103,$B$10:B35),"") ->  | AK35: 0
A36: =IF(B36<>"",$A$9&"."&SUBTOTAL(103,$B$10:B36),"") ->  | C36: Hoạt động kinh doanh của Công ty là: | AK36: 0 | AL36: The Company’s business activities are as follows:
A37: =IF(B37<>"",$A$9&"."&SUBTOTAL(103,$B$10:B37),"") ->  | AK37: 0
A38: =IF(B38<>"",$A$9&"."&SUBTOTAL(103,$B$10:B38),"") ->  | C38: - | D38: Dịch vụ bảo vệ, an ninh; | AK38: 0 | AL38: - | AM38: Security services;
A39: =IF(B39<>"",$A$9&"."&SUBTOTAL(103,$B$10:B39),"") ->  | C39: - | D39: Kinh doanh các thiết bị an ninh. | AK39: 0 | AL39: - | AM39: Security equipments business;
A40: =IF(B40<>"",$A$9&"."&SUBTOTAL(103,$B$10:B40),"") ->  | C40: - | D40: Lập trình máy vi tính (chi tiết: sản xuất phần mềm); | AK40: 0 | AL40: -
A41: =IF(B41<>"",$A$9&"."&SUBTOTAL(103,$B$10:B41),"") ->  | C41: - | D41: Tư vấn máy vi tính và quản trị hệ thống máy vi tính (chi tiết: tư vấn, lắp đặt máy tính và phần mềm, các thiết bị cảnh báo, hệ thống thông tin của các phần mềm); | AK41: 0 | AL41: -
A42: =IF(B42<>"",$A$9&"."&SUBTOTAL(103,$B$10:B42),"") ->  | C42: - | D42: Hoạt động tư vấn quản lý. | AK42: 0 | AL42: -
A43: =IF(B43<>"",$A$9&"."&SUBTOTAL(103,$B$10:B43),"") ->  | C43: - | AK43: 0 | AL43: -
A44: =IF(B44<>"",$A$9&"."&SUBTOTAL(103,$B$10:B44),"") ->  | C44: - | AK44: 0 | AL44: -
A45: =IF(B45<>"",$A$9&"."&SUBTOTAL(103,$B$10:B45),"") ->  | C45: - | AK45: 0 | AL45: -
A46: =IF(B46<>"",$A$9&"."&SUBTOTAL(103,$B$10:B46),"") ->  | C46: - | AK46: 0 | AL46: -
A47: =IF(B47<>"",$A$9&"."&SUBTOTAL(103,$B$10:B47),"") ->  | C47: - | AK47: 0 | AL47: -
A48: =IF(B48<>"",$A$9&"."&SUBTOTAL(103,$B$10:B48),"") ->  | C48: - | AK48: 0 | AL48: -
A49: =IF(B49<>"",$A$9&"."&SUBTOTAL(103,$B$10:B88),"") ->  | C49: - | AK49: 0 | AL49: -
C51: ="Trong năm "&RIGHT('Khai bao'!C20,4)&", các hoạt động chính của Công ty là:" -> Trong năm 2020, các hoạt động chính của Công ty là: | AL51: ="In "&RIGHT('Khai bao'!C20,4)&", the Company's principle activities were: " -> In 2020, the Company's principle activities were:
C52: - | D52: Cung cấp dịch vụ an ninh, bảo vệ bằng con người và thiết bị; | AL52: - | AM52: Providing security services, protection of people and equipment.
C53: - | D53: Kinh doanh, cho thuê các thiết bị an ninh. | AL53: -
A54: =IF(B54<>"",$A$9&"."&SUBTOTAL(103,$B$10:B54),"") ->  | AK54: 0
A55: =IF(B55<>"",$A$9&"."&SUBTOTAL(103,$B$10:B55),"") ->  | C55: Chu kỳ sản xuất, kinh doanh thông thường | AK55: 0 | AL55: Common manufacturing, business period
A57: =IF(B57<>"",$A$9&"."&SUBTOTAL(103,$B$10:B57),"") ->  | C57: Chu kỳ sản xuất kinh doanh thông thường của Công ty nằm trong phạm vi 12 tháng. | AK57: 0 | AL57: Common manufacturing and business period of Company is 12 months.
A58: =IF(B58<>"",$A$9&"."&SUBTOTAL(103,$B$10:B58),"") ->  | C58: [Trường hợp chu kỳ kéo dài hơn 12 tháng thì thuyết minh thêm chu kỳ sản xuất kinh doanh bình quân của ngành, lĩnh vực] | AK58: 0 | AL58: [Trường hợp chu kỳ kéo dài hơn 12 tháng thì thuyết minh thêm chu kỳ sản xuất kinh doanh bình quân của ngành, lĩnh vực]
A59: =IF(B59<>"",$A$9&"."&SUBTOTAL(103,$B$10:B59),"") ->  | AK59: 0
A60: =IF(B60<>"",$A$9&"."&SUBTOTAL(103,$B$10:B60),"") ->  | C60: ="Đặc điểm hoạt động của doanh nghiệp trong "&'Khai bao'!C27&" có ảnh hưởng đến "&'Khai bao'!C13 -> Đặc điểm hoạt động của doanh nghiệp trong năm tài chính có ảnh hưởng đến Báo cáo tài chính | AK60: 0 | AL60: Material affects on the Company's operations
A61: =IF(B61<>"",$A$9&"."&SUBTOTAL(103,$B$10:B61),"") ->  | AK61: 0
A62: =IF(B62<>"",$A$9&"."&SUBTOTAL(103,$B$10:B88),"") ->  | AK62: 0
A63: =IF(B63<>"",$A$9&"."&SUBTOTAL(103,$B$10:B63),"") ->  | AK63: 0
A64: =IF(B64<>"",$A$9&"."&SUBTOTAL(103,$B$10:B64),"") ->  | C64: Cấu trúc Công ty | AK64: 0 | AL64: The Company's structure
A65: =IF(B65<>"",$A$9&"."&SUBTOTAL(103,$B$10:B65),"") ->  | C65: - | D65: Chi nhánh: | AJ65: =A65 ->  | AK65: 0 | AL65: - | AM65: Branch:
A66: =IF(B66<>"",$A$9&"."&SUBTOTAL(103,$B$10:B66),"") ->  | D66: + Chi nhánh Công ty CP Dịch vụ bảo vệ Alsok Việt Nam | AK66: 0 | AM66: + Branch of Alsok Vietnam Security Services Joint Stock Company
A67: =IF(B67<>"",$A$9&"."&SUBTOTAL(103,$B$10:B67),"") ->  | D67: Địa chỉ: Tầng 7 Tòa nhà S123 Shophouse Saigon Pearl, số 92 đường Nguyễn Hữu Cảnh, phường 22 Quận Bình Thạnh, thành phố Hồ Chí Minh. | AK67: 0 | AM67: Address: 7th floor, S123 Shophouse Saigon Pearl tower, No. 92 Nguyen Huu Canh street, 22 ward, Binh Thanh district, Ho Chi Minh city.
A69: =IF(B69<>"",$A$9&"."&SUBTOTAL(103,$B$10:B69),"") ->  | C69: - | D69: Văn phòng đại diện: | AK69: 0 | AL69: - | AM69: Representative office:
D70: Văn phòng đại diện Công ty Cổ phần Dịch vụ bảo vệ Alsok Việt Nam | AM70: Representative office of Alsok Vietnam Security Services Joint Stock Company
D71: Địa chỉ: Tầng 8, số 8 đường Tôn Thất Thuyết, phường Mỹ Đình 2, quận Nam Từ Liêm, thành phố Hà Nội. | AM71: Address: 8th floor, No. 8 Ton That Thuyet street, My Dinh 2 ward, Nam Tu Liem district, Hanoi city.
A72: =IF(B72<>"",$A$9&"."&SUBTOTAL(103,$B$10:B72),"") ->  | C72: - | D72: Thông tin về tái cấu trúc tập đoàn [Các trường hợp mua thêm, thanh lý, thoái vốn công ty con trong kỳ] | AK72: 0 | AL72: - | AM72: Information about restructuring the Corporation:
A73: =IF(B73<>"",$A$9&"."&SUBTOTAL(103,$B$10:B73),"") ->  | AJ73: =A73 ->  | AK73: =B73 -> 0
A74: =IF(B74<>"",$A$9&"."&SUBTOTAL(103,$B$10:B74),"") ->  | C74: - | D74: ="Công ty có các công ty con được hợp nhất báo cáo tài chính tại thời điểm "&'Khai bao'!C18&" bao gồm:" -> Công ty có các công ty con được hợp nhất báo cáo tài chính tại thời điểm 31/12/2020 bao gồm: | AK74: 0 | AL74: - | AM74: ="Subsidiaries to be consolidated financial statement as at "&'Khai bao'!$D$18&" including:" -> Subsidiaries to be consolidated financial statement as at 31/12/2020 including:
A75: =IF(B75<>"",$A$9&"."&SUBTOTAL(103,$B$10:B75),"") ->  | AK75: 0
A76: =IF(B76<>"",$A$9&"."&SUBTOTAL(103,$B$10:B76),"") ->  | C76: Tên công ty | N76: Địa chỉ | T76: Tỷ lệ lợi ích | X76: Tỷ lệ quyền biểu quyết | AB76: Hoạt động kinh doanh chính | AK76: 0 | AL76: Name of associates | AW76: Address | AY76: Place of establishment and operation | BC76: Rate of interest | BE76: Rate of interest | BG76: Rate of voting rights | BI76: Rate of voting rights | BK76: Principle activities | BM76: Principle activities
A77: =IF(B77<>"",$A$9&"."&SUBTOTAL(103,$B$10:B77),"") ->  | AK77: 0
A78: =IF(B78<>"",$A$9&"."&SUBTOTAL(103,$B$10:B78),"") ->  | C78: Công ty … | T78: 0 | X78: 0 | AK78: 0 | BC78: =T78 -> 0 | BE78: =T78 -> 0 | BG78: =X78 -> 0 | BI78: =X78 -> 0
A79: =IF(B79<>"",$A$9&"."&SUBTOTAL(103,$B$10:B79),"") ->  | C79: Công ty … | T79: 0 | X79: 0 | AK79: 0 | BC79: =T79 -> 0 | BE79: =T79 -> 0 | BG79: =X79 -> 0 | BI79: =X79 -> 0
A80: =IF(B80<>"",$A$9&"."&SUBTOTAL(103,$B$10:B80),"") ->  | AJ80: =A80 ->  | AK80: =B80 -> 0
A81: =IF(B81<>"",$A$9&"."&SUBTOTAL(103,$B$10:B81),"") ->  | C81: - | D81: ="Công ty có các công ty liên kết, cơ sở kinh doanh đồng kiểm soát quan trọng được phản ánh trong báo cáo tài chính hợp nhất theo phương pháp vốn chủ sở hữu tại thời điểm "&'Khai bao'!$C$18&" bao gồm:" -> Công ty có các công ty liên kết, cơ sở kinh doanh đồng kiểm soát quan trọng được phản ánh trong báo cáo tài chính hợp nhất theo phương pháp vốn chủ sở hữu tại thời điểm 31/12/2020 bao gồm: | AK81: 0 | AL81: - | AM81: ="The significant associates, join ventures are reflected by owners' capital base method in Consolidated financial statement as at "&'Khai bao'!D18&" including:" -> The significant associates, join ventures are reflected by owners' capital base method in Consolidated financial statement as at 31/12/2020 including:
A82: =IF(B82<>"",$A$9&"."&SUBTOTAL(103,$B$10:B82),"") ->  | AK82: 0
A83: =IF(B83<>"",$A$9&"."&SUBTOTAL(103,$B$10:B83),"") ->  | C83: Tên công ty | N83: Địa chỉ | T83: Tỷ lệ lợi ích | X83: Tỷ lệ quyền biểu quyết | AB83: Hoạt động kinh doanh chính | AK83: 0 | AL83: Name of associates | AW83: Address | AY83: Place of establishment and operation | BC83: Rate of interest | BE83: Rate of interest | BG83: Rate of voting rights | BI83: Rate of voting rights | BK83: Principle activities | BM83: Principle activities
A84: =IF(B84<>"",$A$9&"."&SUBTOTAL(103,$B$10:B84),"") ->  | AK84: 0
A85: =IF(B85<>"",$A$9&"."&SUBTOTAL(103,$B$10:B85),"") ->  | C85: Công ty … | T85: 0 | X85: 0 | AK85: 0 | BC85: =T85 -> 0 | BE85: =T85 -> 0 | BG85: =X85 -> 0 | BI85: =X85 -> 0
A86: =IF(B86<>"",$A$9&"."&SUBTOTAL(103,$B$10:B86),"") ->  | C86: Công ty … | T86: 0 | X86: 0 | AK86: 0 | BC86: =T86 -> 0 | BE86: =T86 -> 0 | BG86: =X86 -> 0 | BI86: =X86 -> 0
A87: =IF(B87<>"",$A$9&"."&SUBTOTAL(103,$B$10:B87),"") ->  | AJ87: =A87 ->  | AK87: =B87 -> 0
A88: =IF(B88<>"",$A$9&"."&SUBTOTAL(103,$B$10:B88),"") ->  | C88: - | D88: ="Những sự kiện ảnh hưởng quan trọng đến hoạt động kinh doanh của Tập đoàn trong "&'Khai bao'!C26&":" -> Những sự kiện ảnh hưởng quan trọng đến hoạt động kinh doanh của Tập đoàn trong năm: | AJ88: =A88 ->  | AK88: =B88 -> 0 | AL88: - | AM88: ="The significant events influent to the business activities of the Corporation in the "&'Khai bao'!D26&":" -> The significant events influent to the business activities of the Corporation in the year:
A89: =IF(B89<>"",$A$9&"."&SUBTOTAL(103,$B$10:B89),"") ->  | AJ89: =A89 ->  | AK89: =B89 -> 0
A90: =IF(B90<>"",$A$9&"."&SUBTOTAL(103,$B$10:B90),"") ->  | C90: ="Số lượng nhân viên: Tại ngày 31 tháng 12 năm "&RIGHT('Khai bao'!C20,4)&", Công ty có 1.422 nhân viên đang làm việc." -> Số lượng nhân viên: Tại ngày 31 tháng 12 năm 2020, Công ty có 1.422 nhân viên đang làm việc. | AK90: 0 | AL90: ="As of 31 December "&RIGHT('Khai bao'!C20,4)&", there have been 1,472 employees working for the Company." -> As of 31 December 2020, there have been 1,472 employees working for the Company.
A92: =IF(B92<>"",SUBTOTAL(103,$B$9:B92)-SUBTOTAL(103,$B$10:$B$90),"")&"." -> 0. | B92: . | C92: CƠ SỞ LẬP BÁO CÁO TÀI CHÍNH | AJ92: 0. | AL92: BASIC OF PREPARATION
A93: =IF(B93<>"",$A$92&"."&SUBTOTAL(103,$B$93:B93),"") ->  | AK93: 0
A94: =IF(B94<>"",$A$92&"."&SUBTOTAL(103,$B$93:B94),"") ->  | C94: Tuyên bố về tuân thủ | AL94: Statement of compliance
A95: =IF(B95<>"",$A$92&"."&SUBTOTAL(103,$B$93:B95),"") -> 
A96: =IF(B96<>"",$A$92&"."&SUBTOTAL(103,$B$93:B96),"") ->  | C96: Báo cáo tài chính được lập và trình bày theo Chuẩn mực Kế toán Việt Nam số 21 - Trình bày báo cáo tài chính, các quy định có liên quan của Chế độ Kế toán Doanh nghiệp Việt Nam ban hành theo Thông tư 200/2014/TT-BTC ngày 22/12/2014 của Bộ Tài chính và các quy định pháp lý có liên quan. | AL96: ='Khai bao'!D13&" are prepared and presented in according with the Vietnamese Accounting Standard No.21 - Presentation of "&'Khai bao'!D13&" relevant provisions of the Vietnamese Enterprise Accounting Systems issued in Circular 200/2014 / TT-BTC dated 22/12/2014 of the Ministry of Finance and other legal regulations" -> Financial statements are prepared and presented in according with the Vietnamese Accounting Standard No.21 - Presentation of Financial statements relevant provisions of the Vietnamese Enterprise Accounting Systems issued in Circular 200/2014 / TT-BTC dated 22/12/2014 of the Ministry of Finance and other legal regulations
A97: =IF(B97<>"",$A$92&"."&SUBTOTAL(103,$B$93:B97),"") -> 
A98: =IF(B98<>"",$A$92&"."&SUBTOTAL(103,$B$93:B98),"") ->  | C98: Cơ sở đo lường | AL98: Basic of measurement
A99: =IF(B99<>"",$A$92&"."&SUBTOTAL(103,$B$93:B99),"") -> 
A100: =IF(B100<>"",$A$92&"."&SUBTOTAL(103,$B$93:B100),"") ->  | C100: Báo cáo tài chính, trừ báo cáo lưu chuyển tiền tệ được lập trên cơ sở dồn tích theo nguyên tắc giá gốc. Báo cáo lưu chuyển tiền tệ được lập theo phương pháp gián tiếp. | AL100: ='Khai bao'!D13 & ", except the Statement of Cash Flows, are prepared on an accrual basis under the historical cost convention. The Statement of Cash Flows is presented under the indirect method." -> Financial statements, except the Statement of Cash Flows, are prepared on an accrual basis under the historical cost convention. The Statement of Cash Flows is presented under the indirect method.
A101: =IF(B101<>"",$A$92&"."&SUBTOTAL(103,$B$93:B101),"") -> 
A102: =IF(B102<>"",$A$92&"."&SUBTOTAL(103,$B$93:B102),"") ->  | C102: Kỳ kế toán năm | AL102: Annual accounting period
A103: =IF(B103<>"",$A$92&"."&SUBTOTAL(103,$B$93:B103),"") -> 
A104: =IF(B104<>"",$A$92&"."&SUBTOTAL(103,$B$93:B104),"") ->  | C104: =IF('Khai bao'!C12='Khai bao'!F13,"Kỳ kế toán năm của Công ty và các công ty con bắt đầu từ ngày 01/01 và kết thúc vào ngày 31/12 hàng năm.","Kỳ kế toán năm của Công ty bắt đầu từ ngày 01/01 và kết thúc vào ngày 31/12 hàng năm.") -> Kỳ kế toán năm của Công ty bắt đầu từ ngày 01/01 và kết thúc vào ngày 31/12 hàng năm. | AK104: 0 | AL104: =IF('Khai bao'!C12='Khai bao'!F13,"The annual accounting period of the Company and its subidiaries is from 01 January to 31 December.","The annual accounting period of the Company is from 01 January to 31 December.") -> The annual accounting period of the Company is from 01 January to 31 December.
A105: =IF(B105<>"",$A$92&"."&SUBTOTAL(103,$B$93:B105),"") ->  | AL105: The first period of the Company is from 04 April 2016 to 31 December 2016.
A107: =IF(B107<>"",$A$92&"."&SUBTOTAL(103,$B$93:B107),"") ->  | C107: Đơn vị tiền tệ kế toán | AL107: Accounting currency
A108: =IF(B108<>"",$A$92&"."&SUBTOTAL(103,$B$93:B108),"") ->  | AK108: 0
A109: =IF(B109<>"",$A$92&"."&SUBTOTAL(103,$B$93:B109),"") ->  | C109: Đơn vị tiền tệ sử dụng trong ghi chép kế toán là đồng Việt Nam (VND). | AK109: 0 | AL109: The Company maintains its accounting records in VND.
A110: =IF(B110<>"",$A$92&"."&SUBTOTAL(103,$B$93:B110),"") ->  | AK110: 0
A111: =IF(B111<>"",SUBTOTAL(103,$B$9:B111)-SUBTOTAL(103,$B$10:$B$90),"")&"." -> . | C111: ÁP DỤNG HƯỚNG DẪN CHẾ ĐỘ KẾ TOÁN DOANH NGHIỆP MỚI BAN HÀNH | AJ111: . | AL111: COMPLYING WITH GUIDELINES FOR THE NEW ACCOUNTING POLICIES FOR THE ENTERPRISES
A112: =IF(B112<>"",$A$121&SUBTOTAL(103,$B112:B$121),"") ->  | AK112: 0
A113: =IF(B113<>"",$A$121&SUBTOTAL(103,$B113:B$121),"") ->  | C113: Ngày 22 tháng 12 năm 2014, Bộ Tài chính ban hành Thông tư số 200/2014/TT-BTC hướng dẫn Chế độ Kế toán Doanh nghiệp (“Thông tư 200”). Thông tư 200 thay thế cho quy định về Chế độ Kế toán Doanh nghiệp ban hành theo Quyết định số 15/2006/QĐ-BTC ngày 20 tháng 03 năm 2006 và Thông tư số 244/2009/TT-BTC ngày 31 tháng 12 năm 2009 của Bộ Tài chính. Thông tư 200 có hiệu lực sau 45 ngày kể từ ngày ký và áp dụng cho kỳ kế toán năm bắt đầu từ hoặc sau ngày 01 tháng 01 năm 2015. | AK113: 0 | AL113: On 22 December 2014, the Ministry of Finance issued Circular No 200/2014/TT-BTC on guidelines for accounting system for the enterprises ("Circular 200"). This Circular replaces enterprise accounting policy issued under Decision No. 15/2006/QD-BTC dated 20 March 2006 of the Minister of Finance and Circular No. 244/2009/TT-BTC dated 31 December 2009 of the Ministry of Finance. This Circular takes effect after 45 days from signing and is applied to financial years beginning on or after 01 January 2015.
C115: Ngày 22 tháng 12 năm 2014, Bộ Tài chính ban hành Thông tư số 202/2014/TT-BTC hướng dẫn phương pháp lập và trình bày báo cáo tài chính hợp nhất (“Thông tư 202”). Thông tư 202 thay thế cho các hướng dẫn trước đây trong phần XIII Thông tư số 161/2007/TT-BTC ngày 31 tháng 12 năm 2007 của Bộ Tài chính. Thông tư 202 cũng có hiệu lực sau 45 ngày kể từ ngày ký và áp dụng cho kỳ kế toán năm bắt đầu từ hoặc sau ngày 01 tháng 01 năm 2015. | AL115: On 22 December 2014, the Ministry of Finance issued Circular No 202/2014/TT-BTC on guidelines for the methods of preparation and presentation of Consolidated Financial Statements ("Circular 202"). This Circular replaces the former guidance in Section XIII of Circular No. 161/2007/TT-BTC date 31/12/2007 of the Ministry of Finance. This Circular takes effect after 45 days from signing and is applied to financial years beginning on or after 01 January 2015.
A116: =IF(B116<>"",$A$121&SUBTOTAL(103,$B116:B$121),"") ->  | AK116: 0
A117: =IF(B117<>"",$A$121&SUBTOTAL(103,$B117:B$121),"") ->  | C117: Kể từ ngày 01 tháng 01 năm 2015, Công ty đã áp dụng phi hồi tố các quy định của Thông tư 200. Những thay đổi quan trọng trong chính sách kế toán của Công ty và các ảnh hưởng đến báo cáo tài chính của Công ty, nếu có, được trình bày trong các Thuyết minh sau: | AK117: 0 | AL117: ="Since 01 January 2015, Company has applied retroactive provision of Circular 200. The important changes in Company's accounting policies and the impatcs on the " & 'Khai bao'!D13 & "of Company, if any, are presented in following Notes:" -> Since 01 January 2015, Company has applied retroactive provision of Circular 200. The important changes in Company's accounting policies and the impatcs on the Financial statementsof Company, if any, are presented in following Notes:
C118: ………….
C119: ………….
A120: =IF(B120<>"",$A$92&"."&SUBTOTAL(103,$B$93:B120),"") ->  | AJ120: =A120 ->  | AK120: =B120 -> 0
A121: =IF(B121<>"",SUBTOTAL(103,$B$9:B121)-SUBTOTAL(103,$B$10:$B$90),"")&"." -> 0. | B121: . | C121: TÓM TẮT NHỮNG CHÍNH SÁCH KẾ TOÁN CHỦ YẾU | AJ121: =A121 -> 0. | AL121: SUMMARY OF SIGNIFICANT ACCOUNTING POLICIES
A122: =IF(B122<>"",$A$121&SUBTOTAL(103,$B$122:B122),"") ->  | AK122: 0
A123: =IF(B123<>"",$A$121&SUBTOTAL(103,$B$122:B123),"") ->  | C123: Cơ sở hợp nhất | AJ123: =A123 ->  | AL123: Basic of consolidation
A124: =IF(B124<>"",$A$121&SUBTOTAL(103,$B$122:B124),"") ->  | AK124: 0
C125: Công ty con | AL125: Subsidiaries
A126: =IF(B126<>"",$A$121&SUBTOTAL(103,$B$122:B126),"") ->  | C126: Công ty con là các đơn vị chịu sự kiểm soát của Tập đoàn. Báo cáo tài chính của Công ty con được hợp nhất trong báo cáo tài chính của Tập đoàn kể từ ngày quyền kiểm soát bắt đầu có hiệu lực cho đến ngày quyền kiểm soát chấm dứt. | AK126: 0 | AL126: Subsidiaries are entities controlled be the Group. The financial statements of the subsidiaries are included in the consolidated financial statements from the date that control commences until the date that control ceases.
A128: =IF(B128<>"",$A$121&SUBTOTAL(103,$B$122:B128),"") ->  | C128: Lợi ích cổ đông không kiểm soát | AJ128: =A128 ->  | AK128: 0 | AL128: Non-controlling interests (NCIs)
A129: =IF(B129<>"",$A$121&SUBTOTAL(103,$B$122:B129),"") ->  | C129: Lợi ích cổ đông không kiểm soát được xác định theo tỷ lệ phần sở hữu của cổ đông không kiểm soát trong tài sản thuần của đơn vị bị mua lại tại ngày mua. | AK129: 0 | AL129: Non-controlling interests (NCIs) is determined in proportion of the non- controlling shareholders’ ownership over net assets of the purchased Company at the acquisition date.
A130: =IF(B130<>"",$A$121&SUBTOTAL(103,$B$122:B130),"") ->  | C130: Việc thoái vốn của Tập đoàn trong công ty con mà không dẫn đến mất quyền kiểm soát được kế toán tương tự như các giao dịch vốn chủ sở hữu. Chênh lệch giữa giá trị thay đổi phần sở hữu của Tập đoàn trong tài sản thuần của công ty con và số thu hoặc chi từ việc thoái vốn tại công ty con được ghi nhận vào lợi nhuận sau thuế chưa phân phối thuộc vốn chủ sở hữu. | AK130: 0 | AL130: The divestment of the Group in a subsidiary that does not result in loss of control is recorded similar to the equity transactions. The difference between the value change of the Group's ownership in the net assets of the subsidiary and the revenues or expenses from the divestments in subsidiary is recorded in the undistributed profit after tax of owner’s equity.
A131: =IF(B131<>"",$A$121&SUBTOTAL(103,$B$122:B131),"") ->  | AK131: 0
A132: =IF(B132<>"",$A$121&SUBTOTAL(103,$B$122:B132),"") ->  | C132: Công ty liên kết | AK132: 0
A133: =IF(B133<>"",$A$121&SUBTOTAL(103,$B$122:B133),"") ->  | C133: Công ty liên kết là những công ty mà Tập đoàn có ảnh hưởng đáng kể, nhưng không kiểm soát, các chính sách tài chính và hoạt động của công ty. Công ty liên kết được hạch toán theo phương pháp vốn chủ sở hữu. Báo cáo tài chính hợp nhất bao gồm phần mà Tập đoàn được hưởng trong thu nhập và chi phí của các công ty liên kết được hạch toán theo phương pháp vốn chủ sở hữu, sau khi điều chỉnh theo chính sách kế toán của Tập đoàn, từ ngày bắt đầu cho đến ngày chấm dứt sự ảnh hưởng đáng kể đối với các đơn vị này. Khi phần lỗ của công ty liên kết mà Tập đoàn phải chia sẻ vượt quá lợi ích của Tập đoàn trong công ty liên kết, giá trị ghi sổ của khoản đầu tư (bao gồm các khoản đầu tư dài hạn, nếu có) sẽ được ghi giảm tới bằng không và dừng việc ghi nhận các khoản lỗ phát sinh trong tương lai trừ các khoản lỗ thuộc phạm vi mà Tập đoàn có nghĩa vụ phải trả hoặc đã trả thay cho công ty liên kết. | AK133: 0
A134: =IF(B134<>"",$A$121&SUBTOTAL(103,$B$122:B134),"") ->  | AK134: 0 | AL134: Transactions are eliminated in consolidation
A135: =IF(B135<>"",$A$121&SUBTOTAL(103,$B$122:B135),"") ->  | C135: Các giao dịch được loại trừ khi hợp nhất | AK135: 0
A136: =IF(B136<>"",$A$121&SUBTOTAL(103,$B$122:B136),"") ->  | C136: Các số dư và giao dịch trong nội bộ Tập đoàn và các khoản thu nhập và chi phí chưa thực hiện từ các giao dịch nội bộ được loại trừ khi lập báo cáo tài chính hợp nhất. Khoản lãi và lỗ chưa thực hiện phát sinh từ các giao dịch với các công ty liên kết được hạch toán theo phương pháp vốn chủ sở hữu được trừ vào khoản đầu tư trong phạm vi lợi ích của Tập đoàn công ty liên kết. | AK136: 0 | AL136: The balances and transactions within the Group and the unrealized revenues and expenses from intercompany transactions are eliminated in preparing the consolidated financial statements. Unrealized losses and profits arising from transactions with associated companies are accounted by using the equity method deducted from the investments within the Group's interests.
A137: =IF(B137<>"",$A$121&SUBTOTAL(103,$B$122:B137),"") ->  | AK137: 0
A138: =IF(B138<>"",$A$121&SUBTOTAL(103,$B$122:B138),"") -> 0.0 | B138: . | C138: Công cụ tài chính | AJ138: 0.0 | AL138: Financial Instruments
A139: =IF(B139<>"",$A$121&SUBTOTAL(103,$B$122:B139),"") ->  | AK139: 0
A140: =IF(B140<>"",$A$121&SUBTOTAL(103,$B$122:B140),"") ->  | C140: Ghi nhận ban đầu | AK140: 0 | AL140: Initial recognition
A141: =IF(B141<>"",$A$121&SUBTOTAL(103,$B$122:B141),"") ->  | AK141: 0
A142: =IF(B142<>"",$A$121&SUBTOTAL(103,$B$122:B142),"") ->  | C142: Tài sản tài chính | AK142: 0 | AL142: Financial assets
A143: =IF(B143<>"",$A$121&SUBTOTAL(103,$B$122:B143),"") ->  | C143: Tài sản tài chính của Công ty bao gồm tiền và các khoản tương đương tiền, các khoản phải thu khách hàng và phải thu khác, các khoản cho vay, các khoản đầu tư ngắn hạn và dài hạn. Tại thời điểm ghi nhận ban đầu, tài sản tài chính được xác định theo giá mua/chi phí phát hành cộng các chi phí phát sinh khác liên quan trực tiếp đến việc mua, phát hành tài sản tài chính đó. | AK143: 0 | AL143: Financial assets of the Company including cash and cash equivalents, trade receivables and other receivables, lending, long-term and short-term investments. At the time of initial recognition, financial assets are identified by purchasing price/issuing cost plus other expenses directly related to the purchase and issuance of those assets.
A144: =IF(B144<>"",$A$121&SUBTOTAL(103,$B$122:B144),"") ->  | AK144: 0
A145: =IF(B145<>"",$A$121&SUBTOTAL(103,$B$122:B145),"") ->  | C145: Nợ phải trả tài chính | AK145: 0 | AL145: Financial liabilities
A146: =IF(B146<>"",$A$121&SUBTOTAL(103,$B$122:B146),"") ->  | C146: Nợ phải trả tài chính của Công ty bao gồm các khoản vay, các khoản phải trả người bán và phải trả khác, chi phí phải trả. Tại thời điểm ghi nhận lần đầu, các khoản nợ phải trả tài chính được xác định theo giá phát hành cộng các chi phí phát sinh liên quan trực tiếp đến việc phát hành nợ phải trả tài chính đó. | AK146: 0 | AL146: Financial liabilities of the Company including loans, trade payables and other payables, accrued expenses. At the time of initial recognition, financial liabilities are determined by issuing price plus other expense directly related to the issuance of those liabilities.
A147: =IF(B147<>"",$A$121&SUBTOTAL(103,$B$122:B147),"") ->  | AJ147: =A147 ->  | AK147: =B147 -> 0
A148: =IF(B148<>"",$A$121&SUBTOTAL(103,$B$122:B148),"") ->  | C148: Giá trị sau ghi nhận ban đầu | AJ148: =A148 ->  | AK148: 0 | AL148: Value after initial recognition
A150: =IF(B150<>"",$A$121&SUBTOTAL(103,$B$122:B150),"") ->  | C150: Hiện tại chưa có các quy định về đánh giá lại công cụ tài chính sau ghi nhận ban đầu. | AJ150: =A150 ->  | AK150: 0 | AL150: There are no regulations on revaluation of financial instruments after initial recognition.
A151: =IF(B151<>"",$A$121&SUBTOTAL(103,$B$122:B151),"") ->  | AJ151: =A151 ->  | AK151: 0
A152: =IF(B152<>"",$A$121&SUBTOTAL(103,$B$122:B152),"") ->  | C152: Chuyển đổi Báo cáo tài chính lập bằng ngoại tệ sang Đồng Việt Nam | AK152: 0 | AL152: Translation financial statements presented in foreign currencies into Vietnamese Dong
A153: =IF(B153<>"",$A$121&SUBTOTAL(103,$B$122:B153),"") ->  | AK153: 0
A154: =IF(B154<>"",$A$121&SUBTOTAL(103,$B$122:B154),"") ->  | C154: ="Việc áp dụng tỷ giá khi chuyển đổi Báo cáo tài chính tuân thủ theo các tỷ giá sau: tài sản và nợ phải trả theo tỷ giá cuối "&'Khai bao'!C26&", vốn đầu tư của chủ sở hữu theo tỷ giá tại ngày góp vốn, Báo cáo kết quả hoạt động kinh doanh và Báo cáo lưu chuyển tiền tệ theo tỷ giá thực tế hoặc tỷ giá bình quân "&'Khai bao'!C27&" (nếu chênh lệch không vượt quá 3%)." -> Việc áp dụng tỷ giá khi chuyển đổi Báo cáo tài chính tuân thủ theo các tỷ giá sau: tài sản và nợ phải trả theo tỷ giá cuối năm, vốn đầu tư của chủ sở hữu theo tỷ giá tại ngày góp vốn, Báo cáo kết quả hoạt động kinh doanh và Báo cáo lưu chuyển tiền tệ theo tỷ giá thực tế hoặc tỷ giá bình quân năm tài chính (nếu chênh lệch không vượt quá 3%). | AK154: 0 | AL154: The applicable exchange rate when translating financial statements comply with the following principles: assets and liabilities using the exchange rate at closing date, owners capital using the exchange rate at the date of contribution of capital, Statement of comprehensive income and Cash flow statement using exchange spot rate or the average exchange rate of the accounting period (in case that the difference between the two method does not exceed 3%).
A155: =IF(B155<>"",$A$121&SUBTOTAL(103,$B$122:B155),"") ->  | AJ155: =A155 ->  | AK155: 0
A156: =IF(B156<>"",$A$121&SUBTOTAL(103,$B$122:B156),"") -> 0.0 | B156: . | C156: Các nghiệp vụ bằng ngoại tệ | AJ156: 0.0 | AL156: Foreign currency transactions
A157: =IF(B157<>"",$A$121&SUBTOTAL(103,$B$122:B157),"") ->  | AK157: 0
A158: =IF(B158<>"",$A$121&SUBTOTAL(103,$B$122:B158),"") ->  | C158: ="Tỷ giá giao dịch thực tế đối với các giao dịch bằng ngoại tệ phát sinh trong "&'Khai bao'!C26&":" -> Tỷ giá giao dịch thực tế đối với các giao dịch bằng ngoại tệ phát sinh trong năm: | AK158: 0 | AL158: ="The actual exchange rates for foreign currency transactions during the "&'Khai bao'!D26&":" -> The actual exchange rates for foreign currency transactions during the year:
A159: =IF(B159<>"",$A$121&SUBTOTAL(103,$B$122:B159),"") ->  | C159: - | D159: Tỷ giá giao dịch thực tế khi mua bán ngoại tệ là tỷ giá được quy định trong hợp đồng mua, bán ngoại tệ giữa Công ty và ngân hàng thương mại; | AK159: 0 | AL159: - | AM159: When trading by foreign currencies, the actual exchange rates are stipulated in the foreign currency trading contract between the company and commercial bank;
A160: =IF(B160<>"",$A$121&SUBTOTAL(103,$B$122:B160),"") ->  | C160: - | D160: Tỷ giá khi góp vốn hoặc nhận góp vốn là tỷ giá mua ngoại tệ của ngân hàng nơi Công ty mở tài khoản để nhận vốn của nhà đầu tư tại ngày góp vốn; | AK160: 0 | AL160: - | AM160: When contributing capital or receiving capital contributions in foreign currency, the actual exchange rate is the buying rate of the bank where the company has an account in order to get investors' capital at the date of capital contribution;
A161: =IF(B161<>"",$A$121&SUBTOTAL(103,$B$122:B161),"") ->  | C161: - | D161: Tỷ giá khi ghi nhận nợ phải thu là tỷ giá mua của ngân hàng thương mại nơi Công ty chỉ định khách hàng thanh toán tại thời điểm giao dịch phát sinh; | AK161: 0 | AL161: - | AM161: When recording account receivables, the actual exchange rate is the buying rate of the commercial bank where the Company assigned customer to pay, at the time of payment;
A162: =IF(B162<>"",$A$121&SUBTOTAL(103,$B$122:B162),"") ->  | C162: - | D162: Tỷ giá khi ghi nhận nợ phải trả là tỷ giá bán của ngân hàng thương mại nơi Công ty dự kiến giao dịch tại thời điểm giao dịch phát sinh; | AK162: 0 | AL162: - | AM162: When recording liabilities, the actual exchange rate is the selling rate of the Commercial bank where the Company expects the transactions are taken place, at the time of transactions;
A163: =IF(B163<>"",$A$121&SUBTOTAL(103,$B$122:B163),"") ->  | C163: - | D163: Tỷ giá khi mua sắm tài sản hoặc các khoản chi phí được thanh toán ngay bằng ngoại tệ là tỷ giá mua của ngân hàng thương mại nơi Công ty thực hiện thanh toán. | AK163: 0 | AL163: - | AM163: When purchasing assets or expenses paid immediately in foreign currency (not through the accounts payable), the real exchange rate is the rate of purchase of commercial banks where enterprises make payments
A164: =IF(B164<>"",$A$121&SUBTOTAL(103,$B$122:B164),"") ->  | AK164: 0
A165: =IF(B165<>"",$A$121&SUBTOTAL(103,$B$122:B165),"") ->  | C165: ="Tỷ giá giao dịch thực tế khi đánh giá lại các khoản mục tiền tệ có gốc ngoại tệ tại thời điểm lập "&'Khai bao'!C13&":" -> Tỷ giá giao dịch thực tế khi đánh giá lại các khoản mục tiền tệ có gốc ngoại tệ tại thời điểm lập Báo cáo tài chính: | AK165: 0 | AL165: ="Actual exchange rates when assessing the monetary items denominated in foreign currencies at the closing date:" -> Actual exchange rates when assessing the monetary items denominated in foreign currencies at the closing date:
A166: =IF(B166<>"",$A$121&SUBTOTAL(103,$B$122:B166),"") ->  | C166: - | D166: Đối với khoản mục phân loại là tài sản áp dụng tỷ giá mua ngoại tệ; | AK166: 0 | AL166: - | AM166: For items classified as assets apply the buying exchange rate;
A167: =IF(B167<>"",$A$121&SUBTOTAL(103,$B$122:B167),"") ->  | C167: - | D167: Đối với tiền gửi ngoại tệ áp dụng tỷ giá mua của chính ngân hàng nơi Công ty mở tài khoản ngoại tệ; | AK167: 0 | AL167: - | AM167: For foreign currency deposits apply the buying rate of the commercial banks where the company opened foreign currency account;
A168: =IF(B168<>"",$A$121&SUBTOTAL(103,$B$122:B168),"") ->  | C168: - | D168: Đối với khoản mục phân loại là nợ phải trả áp dụng tỷ giá bán ngoại tệ của ngân hàng thương mại nơi Công ty thường xuyên có giao dịch. | AK168: 0 | AL168: - | AM168: For items classified as liabilities apply the selling rate of commercial banks where the company regularly traded.
A169: =IF(B169<>"",$A$121&SUBTOTAL(103,$B$122:B169),"") ->  | C169: ="Tất cả các khoản chênh lệch tỷ giá thực tế phát sinh trong "&'Khai bao'!C26&" và chênh lệch do đánh giá lại số dư các khoản mục tiền tệ có gốc ngoại tệ cuối "&'Khai bao'!C26&" được hạch toán vào kết quả hoạt động kinh doanh của kỳ kế toán." -> Tất cả các khoản chênh lệch tỷ giá thực tế phát sinh trong năm và chênh lệch do đánh giá lại số dư các khoản mục tiền tệ có gốc ngoại tệ cuối năm được hạch toán vào kết quả hoạt động kinh doanh của kỳ kế toán. | AK169: 0 | AL169: ="All of the exchange rate differences arising in the "&'Khai bao'!D26&" and the differences from revaluation of balances of monetary items denominated in foreign currencies are recorded in the statement of comprehensive income of the "&'Khai bao'!D27&"." -> All of the exchange rate differences arising in the year and the differences from revaluation of balances of monetary items denominated in foreign currencies are recorded in the statement of comprehensive income of the fiscal year.
A170: =IF(B170<>"",$A$121&SUBTOTAL(103,$B$122:B170),"") ->  | AK170: 0
A171: =IF(B171<>"",$A$121&SUBTOTAL(103,$B$122:B171),"") ->  | C171: ="Chênh lệch tỷ giá thực tế phát sinh trong "&'Khai bao'!C26&" và chênh lệch do đánh giá lại số dư các khoản mục tiền tệ có gốc ngoại tệ cuối "&'Khai bao'!C26&" được phản ánh lũy kế trên Bảng cân đối kế toán và phân bổ dần vào chi phí tài chính hoặc doanh thu hoạt động tài chính khi doanh nghiệp đi vào hoạt động. Số phân bổ khoản lỗ tỷ giá tối thiểu trong từng "&'Khai bao'!C26&" không nhỏ hơn mức lợi nhuận trước thuế trước khi phân bổ khoản lỗ tỷ giá (sau khi phân bổ lỗ tỷ giá, lợi nhuận trước thuế của báo cáo kết quả hoạt động kinh doanh bằng không)." -> Chênh lệch tỷ giá thực tế phát sinh trong năm và chênh lệch do đánh giá lại số dư các khoản mục tiền tệ có gốc ngoại tệ cuối năm được phản ánh lũy kế trên Bảng cân đối kế toán và phân bổ dần vào chi phí tài chính hoặc doanh thu hoạt động tài chính khi doanh nghiệp đi vào hoạt động. Số phân bổ khoản lỗ tỷ giá tối thiểu trong từng năm không nhỏ hơn mức lợi nhuận trước thuế trước khi phân bổ khoản lỗ tỷ giá (sau khi phân bổ lỗ tỷ giá, lợi nhuận trước thuế của báo cáo kết quả hoạt động kinh doanh bằng không). | AK171: 0 | AL171: ="Realised and unrealised foreign exchange rate differences are recorded cumulatively on the Balance sheet and will be amortised into finance income/expense when the Company is in normal operating state officially."&" The minimum amount of loss of foreign exchange difference to be amortised each "&'Khai bao'!D26&" is not less than earning before tax and loss of foreign exchange difference (after amortisation, earning before tax on Statement of comprehensive income is equal to zero)." -> Realised and unrealised foreign exchange rate differences are recorded cumulatively on the Balance sheet and will be amortised into finance income/expense when the Company is in normal operating state officially. The minimum amount of loss of foreign exchange difference to be amortised each year is not less than earning before tax and loss of foreign exchange difference (after amortisation, earning before tax on Statement of comprehensive income is equal to zero).
A172: =IF(B172<>"",$A$121&SUBTOTAL(103,$B$122:B172),"") -> 
A173: =IF(B173<>"",$A$121&SUBTOTAL(103,$B$122:B173),"") -> 0.0 | B173: . | C173: Tiền và các khoản tương đương tiền | AJ173: =A173 -> 0.0 | AK173: . | AL173: Cash and cash equivalents
A174: =IF(B174<>"",$A$121&SUBTOTAL(103,$B$122:B174),"") ->  | AJ174: =A174 ->  | AK174: =B174 -> 0
A175: =IF(B175<>"",$A$121&SUBTOTAL(103,$B$122:B175),"") ->  | C175: Tiền bao gồm tiền mặt tại quỹ, tiền gửi ngân hàng không kỳ hạn, vàng tiền tệ sử dụng với các chức năng cất trữ giá trị không bao gồm các loại vàng được phân loại là hàng tồn kho sử dụng với mục đích là nguyên vật liệu để sản xuất sản phẩm hoặc hàng hóa để bán. | AJ175: =A175 ->  | AK175: =B175 -> 0 | AL175: Cash comprises cash on hand, cash in banks, monetary gold which is used to reserve value, except gold is classified as raw material for manufacturing products or goods for sale.
A176: =IF(B176<>"",$A$121&SUBTOTAL(103,$B$122:B176),"") ->  | AJ176: =A176 ->  | AK176: 0
A177: =IF(B177<>"",$A$121&SUBTOTAL(103,$B$122:B177),"") ->  | C177: Các khoản tương đương tiền là các khoản đầu tư ngắn hạn có thời gian thu hồi không quá 03 tháng kể từ ngày đầu tư, có tính thanh khoản cao, có khả năng chuyển đổi dễ dàng thành các lượng tiền xác định và không có nhiều rủi ro trong chuyển đổi thành tiền. | AJ177: =A177 ->  | AK177: 0 | AL177: Cash equivalents are investments that are short-term with an original maturity less than three months, high liquidity, readily convertible into known amounts of cash and subject to an insignificant risk of change in value.
A178: =IF(B178<>"",$A$121&SUBTOTAL(103,$B$122:B178),"") ->  | AJ178: =A178 ->  | AK178: 0
A179: =IF(B179<>"",$A$121&SUBTOTAL(103,$B$122:B179),"") ->  | C179: Các khoản đầu tư tài chính | AL179: Financial investment
A180: =IF(B180<>"",$A$121&SUBTOTAL(103,$B$122:B180),"") ->  | AK180: 0
A181: =IF(B181<>"",$A$121&SUBTOTAL(103,$B$122:B181),"") ->  | C181: Chứng khoán kinh doanh được ghi sổ kế toán theo giá gốc, bao gồm: Giá mua cộng các chi phí mua (nếu có) như chi phí môi giới, giao dịch, cung cấp thông tin, thuế, lệ phí và phí ngân hàng. Giá gốc của chứng khoán kinh doanh được xác định theo giá trị hợp lý của các khoản thanh toán tại thời điểm giao dịch phát sinh. | AK181: 0 | AL181: Trading securities are recorded at historical cost, including purchasing price plus the purchasing costs (if any) such as the cost of brokerage, transaction, providing information, taxes, fees and bank charges. The cost of trading securities is determined according to the fair value of the payment at the time of transactions.
A182: =IF(B182<>"",$A$121&SUBTOTAL(103,$B$122:B182),"") ->  | AK182: 0
A183: =IF(B183<>"",$A$121&SUBTOTAL(103,$B$122:B183),"") ->  | C183: Các khoản đầu tư nắm giữ đến ngày đáo hạn bao gồm: Các khoản tiền gửi ngân hàng có kỳ hạn (bao gồm cả các loại tín phiếu, kỳ phiếu), trái phiếu, cổ phiếu ưu đãi bên phát hành bắt buộc phải mua lại tại thời điểm nhất định trong tương lai và các khoản cho vay nắm giữ đến ngày đáo hạn với mục đích thu lãi hàng kỳ và các khoản đầu tư nắm giữ đến ngày đáo hạn khác. | AK183: 0 | AL183: Investments which are held to maturity include: The bank deposits with a term (including treasury bills, promissory notes), bonds, preferred stock, the issuance of compulsory acquisition at certain times in the future and loans held-to-maturity for the purpose of collecting interest periodically and other investments held to maturity.
A184: =IF(B184<>"",$A$121&SUBTOTAL(103,$B$122:B184),"") ->  | AJ184: =A184 ->  | AK184: =B184 -> 0
A185: =IF(B185<>"",$A$121&SUBTOTAL(103,$B$122:B185),"") ->  | C185: Các khoản đầu tư vào các công ty con, công ty liên doanh liên kết mua trong kỳ bên mua xác định ngày mua, giá phí khoản đầu tư và thực hiện thủ tục kế toán theo đúng quy định của Chuẩn mực kế toán “Hợp nhất kinh doanh” và “Đầu tư vào công ty liên doanh liên kết”. Trong Báo cáo tài chính hợp nhất các khoản đầu tư vào công ty liên kết được kế toán theo phương pháp vốn chủ sở hữu. | AJ185: =A185 ->  | AK185: =B185 -> 0 | AL185: Investments in subsidiaries, joint venture companies which are bought during the period that buyer determines the purchase date, the cost of investments and implementation of accounting procedures in accordance with provisions of Accounting Standard "Merge business "and" Investments in joint venture company ". In the consolidated financial statements, investments in associated companies are accounted for under the equity method.
A186: =IF(B186<>"",$A$121&SUBTOTAL(103,$B$122:B186),"") ->  | AK186: 0
A187: =IF(B187<>"",$A$121&SUBTOTAL(103,$B$122:B187),"") ->  | C187: Giá trị ghi sổ của các khoản đầu tư vào công cụ vốn của đơn vị khác không có quyền kiểm soát, đồng kiểm soát hoặc có ảnh hưởng đáng kể đối với bên được đầu tư được xác định theo giá gốc nếu là đầu tư bằng tiền hoặc giá đánh giá lại nếu là đầu tư bằng tài sản phi tiền tệ. | AK187: 0 | AL187: The carrying value of investments in equity instruments of other entities do not have authority to control, joint control or significant influence on the investment which is determined at historical cost if the investment is denominated or if the price revaluation of investment in non-monetary assets.
A188: =IF(B188<>"",$A$121&SUBTOTAL(103,$B$122:B188),"") ->  | AK188: 0
A189: =IF(B189<>"",$A$121&SUBTOTAL(103,$B$122:B189),"") ->  | C189: Cổ tức nhận bằng cổ phiếu chỉ thực hiện ghi nhận số lượng cổ phiếu được nhận, không ghi nhận tăng giá trị khoản đầu tư và doanh thu hoạt động tài chính. | AK189: 0 | AL189: Dividends received in shares are recorded the number of received shares, not recorded to increase the value of investments and income from financial activities.
A190: =IF(B190<>"",$A$121&SUBTOTAL(103,$B$122:B190),"") ->  | AK190: 0
A191: =IF(B191<>"",$A$121&SUBTOTAL(103,$B$122:B191),"") ->  | C191: Cổ tức nhận bằng cổ phiếu được thực hiện ghi nhận tăng doanh thu hoạt động tài chính và tăng giá trị khoản đầu tư tương ứng với số tiền cổ tức được chia. | AK191: 0 | AL191: Dividends received in shares are recorded to increase revenue from financial activities and increase investment value corresponds to the amount of the dividend.
A192: =IF(B192<>"",$A$121&SUBTOTAL(103,$B$122:B192),"") ->  | AK192: 0
A193: =IF(B193<>"",$A$121&SUBTOTAL(103,$B$122:B193),"") ->  | C193: Giá trị của cổ phiếu hoán đổi được xác định theo giá trị hợp lý tại ngày trao đổi. Giá trị hợp lý đối với cổ phiếu của công ty niêm yết là giá đóng cửa niêm yết trên thị trường chứng khoán, đối với cổ phiếu chưa niêm yết giao dịch trên sàn UPCOM là giá giao dịch đóng cửa trên sàn UPCOM, đối với cổ phiếu chưa niêm yết khác là giá thỏa thuận theo hợp đồng hoặc giá trị sổ sách tại thời điểm trao đổi. | AK193: 0 | AL193: The value of stock swap is determined by the fair value at the date of exchange. The fair value for the shares of a listed company is the closing price in the stock market, the shares of unlisted on UPCOM is the closing price in UPCOM, for other unlisted is the agreed price in contract or book value at the time of exchange.
A194: =IF(B194<>"",$A$121&SUBTOTAL(103,$B$122:B194),"") ->  | AK194: 0
A195: =IF(B195<>"",$A$121&SUBTOTAL(103,$B$122:B195),"") ->  | C195: ="Dự phòng giảm giá đầu tư được lập vào thời điểm cuối "&'Khai bao'!C26&" cụ thể như sau:" -> Dự phòng giảm giá đầu tư được lập vào thời điểm cuối năm cụ thể như sau: | AK195: 0 | AL195: ="Provisions for devaluation of investments are made at the end of the "&'Khai bao'!D26&" as followings:" -> Provisions for devaluation of investments are made at the end of the year as followings:
A196: =IF(B196<>"",$A$121&SUBTOTAL(103,$B$122:B196),"") ->  | AK196: 0
A197: =IF(B197<>"",$A$121&SUBTOTAL(103,$B$122:B197),"") ->  | C197: - | D197: Đối với các khoản đầu tư chứng khoán kinh doanh: căn cứ trích lập dự phòng là số chênh lệch giữa giá gốc của các khoản đầu tư được hạch toán trên sổ kế toán lớn hơn giá trị thị trường của chúng tại thời điểm lập dự phòng. | AK197: 0 | AL197: - | AM197: For trading securities: the base of making provisions are differences between history cost of the investments which were recorded on Balance sheet higher than market value at the time provisions are made;
A198: =IF(B198<>"",$A$121&SUBTOTAL(103,$B$122:B198),"") ->  | C198: - | D198: Đối với khoản đầu tư nắm giữ lâu dài (không phân loại là chứng khoán kinh doanh) và không có ảnh hưởng đáng kể đối với bên được đầu tư: nếu khoản đầu tư vào cổ phiếu niêm yết hoặc giá trị hợp lý của khoản đầu tư được xác định tin cậy thì việc lập dự phòng dựa trên giá trị thị trường của cổ phiếu; nếu khoản đầu tư không xác định được giá trị hợp lý tại thời điểm báo cáo thì việc lập dự phòng căn cứ vào báo cáo tài chính tại thời điểm trích lập dự phòng của bên được đầu tư. | AJ198: =A198 ->  | AK198: =B198 -> 0 | AL198: - | AM198: For investment held for long-term (not classified as trading securities) and the company has no significant influence on the invested side: if investment in listed shares or the fair value of investment are determined reliably, the provision is based on market value of shares; if unable to determine the fair value of the investment at the time of reporting, the provision is based on financial statement at the time of provision is made of the invested side.
A199: =IF(B199<>"",$A$121&SUBTOTAL(103,$B$122:B199),"") ->  | C199: - | D199: Đối với các khoản đầu tư nắm giữ đến ngày đáo hạn: căn cứ khả năng thu hồi để lập dự phòng phải thu khó đòi theo quy định của pháp luật. | AK199: 0 | AL199: - | AM199: For investments held to maturity: base on recoverable to make provision for bad debts as stipulated by law.
A200: =IF(B200<>"",$A$121&SUBTOTAL(103,$B$122:B200),"") ->  | AJ200: =A200 ->  | AK200: 0
A201: =IF(B201<>"",$A$121&SUBTOTAL(103,$B$122:B201),"") -> 0.0 | B201: . | C201: Các khoản nợ phải thu | AJ201: 0.0 | AL201: Receivables
A202: =IF(B202<>"",$A$121&SUBTOTAL(103,$B$122:B202),"") ->  | AK202: 0
A203: =IF(B203<>"",$A$121&SUBTOTAL(103,$B$122:B203),"") ->  | C203: Các khoản phải thu được theo dõi chi tiết theo kỳ hạn phải thu, đối tượng phải thu, loại nguyên tệ phải thu, và các yếu tố khác theo nhu cầu quản lý của Công ty. | AK203: 0 | AL203: Receivables are monitored in detail by maturity periods, customers, type of currency, and other factors according to managers' needs of the Company.
A204: =IF(B204<>"",$A$121&SUBTOTAL(103,$B$122:B204),"") ->  | AK204: 0
A205: =IF(B205<>"",$A$121&SUBTOTAL(103,$B$122:B205),"") ->  | C205: Dự phòng nợ phải thu khó đòi được trích lập cho các khoản: nợ phải thu quá hạn thanh toán ghi trong hợp đồng kinh tế, các khế ước vay nợ, cam kết hợp đồng hoặc cam kết nợ và nợ phải thu chưa đến hạn thanh toán nhưng khó có khả năng thu hồi. Trong đó, việc trích lập dự phòng nợ phải thu quá hạn thanh toán được căn cứ vào thời gian trả nợ gốc theo hợp đồng mua bán ban đầu, không tính đến việc gia hạn nợ giữa các bên và nợ phải thu chưa đến hạn thanh toán nhưng khách nợ đã lâm vào tình trạng phá sản hoặc đang làm thủ tục giải thể, mất tích, bỏ trốn. | AK205: 0 | AL205: Provision for bad debts is made for: overdue receivables specified in the economic contract, loan agreements, contractual commitments or debt commitments and undue receivables but difficult to be recovered. In particular, the provision for overdue receivables is made based on the time repayment stipulated in the original contract of sale, regardless of the extension of the debt between the parties and undue receivables but the debtors have fallen into bankruptcy or dissolution procedures, missing or fled.
A206: =IF(B206<>"",$A$121&SUBTOTAL(103,$B$122:B206),"") ->  | AK206: 0
A207: =IF(B207<>"",$A$121&SUBTOTAL(103,$B$122:B207),"") ->  | C207: Dự phòng nợ phải thu khó đòi được trích lập cho từng khoản phải thu khó đòi căn cứ theo quy định tại Thông tư số 228/2009/TT-BTC do Bộ Tài chính ban hành ngày 07 tháng 12 năm 2009. | AK207: 0 | AL207: The provision for bad debts is made for each bad debt based on overdue period of debts or possible loss (or the provision for bad debts is made for each bad debts according to the Circular No.228/2009/TT-BTC issued by Ministry of Finance on 07 December,2009).
A208: =IF(B208<>"",$A$121&SUBTOTAL(103,$B$122:B208),"") -> 
A209: =IF(B209<>"",$A$121&SUBTOTAL(103,$B$122:B209),"") ->  | C209: Tăng hoặc giảm số dư dự phòng nợ phải thu khó đòi được ghi nhận vào chi phí quản lý doanh nghiệp trong kỳ. | AK209: 0 | AL209: Any increases/(decreases) in the balance of the provision for bad debt are recorded into the administrative expenses.
A210: =IF(B210<>"",$A$121&SUBTOTAL(103,$B$122:B210),"") -> 
A211: =IF(B211<>"",$A$121&SUBTOTAL(103,$B$122:B211),"") -> 0.0 | B211: . | C211: Hàng tồn kho | AJ211: 0.0 | AL211: Inventories
A212: =IF(B212<>"",$A$121&SUBTOTAL(103,$B$122:B212),"") ->  | AK212: 0
... 886 more rows

Sheet TSCDHH
A1: ='Khai bao'!$C$3 -> CÔNG TY TNHH TƯ VẤN VÀ ĐÀO TẠO IVC | Q1: ='Khai bao'!$D$3 -> IVC CONSULTING AND TRAINING COMPANY LIMITED
P2: ="B"&RIGHT('Khai bao'!$C$13,16) -> Báo cáo tài chính | Q2: ='Khai bao'!$D$6 -> 0 | AF2: ='Khai bao'!$D$13 -> Financial statements
P3: ='Khai bao'!$C$15 -> Năm tài chính kết thúc ngày 31/12/2020 | AF3: ='Khai bao'!$D$15 -> For the fiscal year ended 31/12/2020 | AH3: =CDKT!K10 -> Công ty mẹ | AT3: =CDKT!L10 -> Công ty con 1 | BF3: =CDKT!M10 -> Công ty con 2
A5: ='Thuyet minh'!A824 -> 1.8 | B5: ='Thuyet minh'!B824 -> . | C5: TÀI SẢN CỐ ĐỊNH HỮU HÌNH | Q5: =A5 -> 1.8 | R5: =B5 -> . | S5: TANGIBLE FIXED ASSETS
F7: Nhà cửa, vật kiến trúc | H7: Máy móc, thiết bị | J7: Phương tiện vận tải, truyền dẫn | L7: Thiết bị, dụng cụ quản lý | N7: Tài sản cố định khác | P7: Cộng | V7: Buildings | X7: Machinery, equipment | Z7: Transportation equipment | AB7: Management equipment | AD7: Others | AF7: Total | AH7: Nhà cửa, vật kiến trúc | AJ7: Máy móc, thiết bị | AL7: Phương tiện vận tải, truyền dẫn | AN7: Thiết bị, dụng cụ quản lý | AP7: Tài sản cố định khác | AR7: Cộng | AT7: Nhà cửa, vật kiến trúc | AV7: Máy móc, thiết bị | AX7: Phương tiện vận tải, truyền dẫn | AZ7: Thiết bị, dụng cụ quản lý | BB7: Tài sản cố định khác | BD7: Cộng | BF7: Nhà cửa, vật kiến trúc | BH7: Máy móc, thiết bị | BJ7: Phương tiện vận tải, truyền dẫn | BL7: Thiết bị, dụng cụ quản lý | BN7: Tài sản cố định khác | BP7: Cộng
BR8: Test TA/TV
F9: VND | H9: VND | J9: VND | L9: VND | N9: VND | P9: VND | V9: VND | X9: VND | Z9: VND | AB9: VND | AD9: VND | AF9: VND | AH9: VND | AJ9: VND | AL9: VND | AN9: VND | AP9: VND | AR9: VND | AT9: VND | AV9: VND | AX9: VND | AZ9: VND | BB9: VND | BD9: VND | BF9: VND | BH9: VND | BJ9: VND | BL9: VND | BN9: VND | BP9: VND | BQ9: =SUM(BQ10:BQ29) -> 28
C10: Nguyên giá | S10: Original cost | BQ10: =SUM(BQ11:BQ18) -> 6
C11: Số dư đầu năm | F11: 33545308154 | H11: 675814023 | J11: 69681819 | L11: 1276515569 | N11: 591261360 | P11: =SUM(E11:N11) -> 36158580925 | S11: As at opening year | V11: =F11 -> 33545308154 | X11: =H11 -> 675814023 | Z11: 69681819 | AB11: 1276515569 | AD11: 591261360 | AF11: =SUM(U11:AD11) -> 36158580925 | AH11: 0 | AJ11: 0 | AL11: 0 | AN11: 0 | AP11: 0 | AR11: =SUM(AG11:AP11) -> 0 | AT11: 0 | AV11: 0 | AX11: 0 | AZ11: 0 | BB11: 0 | BD11: =SUM(AS11:BB11) -> 0 | BF11: 0 | BH11: 0 | BJ11: 0 | BL11: 0 | BN11: 0 | BP11: =SUM(BE11:BN11) -> 0 | BQ11: =SUM(BQ12:BQ18) -> 3 | BR11: =P11-AF11 -> 0 | BT11: =CDKT!U114 -> 36158580925 | BU11: =BT11-P11 -> 0
C12: ="- Mua trong "&'Khai bao'!$C$26 -> - Mua trong năm | F12: 0 | H12: 194850000 | J12: =AL12+AX12+BJ12 -> 0 | L12: =AN12+AZ12+BL12 -> 0 | N12: 268525909 | P12: 463375909 | S12: - Purchase | V12: =F12 -> 0 | X12: =H12 -> 194850000 | Z12: =J12 -> 0 | AB12: =L12 -> 0 | AD12: =N12 -> 268525909 | AF12: 463375909 | AH12: 0 | AJ12: 0 | AL12: 0 | AN12: 0 | AP12: 0 | AR12: 0 | AT12: 0 | AV12: 0 | AX12: 0 | AZ12: 0 | BB12: 0 | BD12: 0 | BF12: 0 | BH12: 0 | BJ12: 0 | BL12: 0 | BN12: 0 | BP12: 0 | BQ12: =IF(SUM(F12:P12)=0,0,1) -> 1 | BR12: 0
C13: - Đầu tư xây dựng cơ bản hoàn thành | F13: =AH13+AT13+BF13 -> 0 | H13: =AJ13+AV13+BH13 -> 0 | J13: 0 | L13: 0 | N13: =AP13+BB13+BN13 -> 0 | P13: 0 | S13: - Finished construction investment | V13: 0 | X13: 0 | Z13: 0 | AB13: 0 | AD13: 0 | AF13: 0 | AH13: 0 | AJ13: 0 | AL13: 0 | AN13: 0 | AP13: 0 | AR13: 0 | AT13: 0 | AV13: 0 | AX13: 0 | AZ13: 0 | BB13: 0 | BD13: 0 | BF13: 0 | BH13: 0 | BJ13: 0 | BL13: 0 | BN13: 0 | BP13: 0 | BQ13: 0 | BR13: 0
C14: - Tăng khác | F14: 0 | H14: 0 | J14: 0 | L14: 0 | N14: 0 | P14: 0 | S14: - Others increase | V14: 0 | X14: 0 | Z14: 0 | AB14: 0 | AD14: 0 | AF14: 0 | AH14: 0 | AJ14: 0 | AL14: 0 | AN14: 0 | AP14: 0 | AR14: 0 | AT14: 0 | AV14: 0 | AX14: 0 | AZ14: 0 | BB14: 0 | BD14: 0 | BF14: 0 | BH14: 0 | BJ14: 0 | BL14: 0 | BN14: 0 | BP14: 0 | BQ14: 0 | BR14: 0
C15: - Chuyển sang bất động sản đầu tư | F15: 0 | H15: 0 | J15: 0 | L15: 0 | N15: 0 | P15: 0 | S15: - Transfering into investment properties | V15: 0 | X15: 0 | Z15: 0 | AB15: 0 | AD15: 0 | AF15: 0 | AH15: 0 | AJ15: 0 | AL15: 0 | AN15: 0 | AP15: 0 | AR15: 0 | AT15: 0 | AV15: 0 | AX15: 0 | AZ15: 0 | BB15: 0 | BD15: 0 | BF15: 0 | BH15: 0 | BJ15: 0 | BL15: 0 | BN15: 0 | BP15: 0 | BQ15: 0 | BR15: 0
C16: - Thanh lý, nhượng bán | F16: -1000000000 | H16: 0 | J16: 0 | L16: 0 | N16: 0 | P16: -1000000000 | S16: - Liquidating, disposed | V16: -1000000000 | X16: 0 | Z16: 0 | AB16: 0 | AD16: 0 | AF16: -1000000000 | AH16: 0 | AJ16: 0 | AL16: 0 | AN16: 0 | AP16: 0 | AR16: 0 | AT16: 0 | AV16: 0 | AX16: 0 | AZ16: 0 | BB16: 0 | BD16: 0 | BF16: 0 | BH16: 0 | BJ16: 0 | BL16: 0 | BN16: 0 | BP16: 0 | BQ16: 1 | BR16: 0
C17: - Giảm khác | F17: 0 | H17: 0 | J17: 0 | L17: 0 | N17: 0 | P17: 0 | S17: - Others decrease | V17: 0 | X17: 0 | Z17: 0 | AB17: 0 | AD17: 0 | AF17: 0 | AH17: 0 | AJ17: 0 | AL17: 0 | AN17: 0 | AP17: 0 | AR17: 0 | AT17: 0 | AV17: 0 | AX17: 0 | AZ17: 0 | BB17: 0 | BD17: 0 | BF17: 0 | BH17: 0 | BJ17: 0 | BL17: 0 | BN17: 0 | BP17: 0 | BQ17: 0 | BR17: 0
C18: ="Số dư cuối "&'Khai bao'!C26 -> Số dư cuối năm | F18: =SUBTOTAL(109,F11:F17) -> 32545308154 | H18: =SUBTOTAL(109,H11:H17) -> 870664023 | J18: =SUBTOTAL(109,J11:J17) -> 69681819 | L18: =SUBTOTAL(109,L11:L17) -> 1276515569 | N18: =SUBTOTAL(109,N11:N17) -> 859787269 | P18: =SUBTOTAL(109,P11:P17) -> 35621956834 | S18: ="As at closing "&'Khai bao'!$D$26 -> As at closing year | V18: =SUBTOTAL(109,V11:V17) -> 32545308154 | X18: =SUBTOTAL(109,X11:X17) -> 870664023 | Z18: =SUBTOTAL(109,Z11:Z17) -> 69681819 | AB18: =SUBTOTAL(109,AB11:AB17) -> 1276515569 | AD18: =SUBTOTAL(109,AD11:AD17) -> 859787269 | AF18: =SUBTOTAL(109,AF11:AF17) -> 35621956834 | AH18: =SUBTOTAL(109,AH11:AH17) -> 0 | AJ18: =SUBTOTAL(109,AJ11:AJ17) -> 0 | AL18: =SUBTOTAL(109,AL11:AL17) -> 0 | AN18: =SUBTOTAL(109,AN11:AN17) -> 0 | AP18: =SUBTOTAL(109,AP11:AP17) -> 0 | AR18: =SUBTOTAL(109,AR11:AR17) -> 0 | AT18: =SUBTOTAL(109,AT11:AT17) -> 0 | AV18: =SUBTOTAL(109,AV11:AV17) -> 0 | AX18: =SUBTOTAL(109,AX11:AX17) -> 0 | AZ18: =SUBTOTAL(109,AZ11:AZ17) -> 0 | BB18: =SUBTOTAL(109,BB11:BB17) -> 0 | BD18: =SUBTOTAL(109,BD11:BD17) -> 0 | BF18: =SUBTOTAL(109,BF11:BF17) -> 0 | BH18: =SUBTOTAL(109,BH11:BH17) -> 0 | BJ18: =SUBTOTAL(109,BJ11:BJ17) -> 0 | BL18: =SUBTOTAL(109,BL11:BL17) -> 0 | BN18: =SUBTOTAL(109,BN11:BN17) -> 0 | BP18: =SUBTOTAL(109,BP11:BP17) -> 0 | BQ18: 1 | BR18: 0 | BT18: =CDKT!P114 -> 35621956834 | BU18: =P18-BT18 -> 0
C19: Giá trị hao mòn lũy kế | S19: Accumulated depreciation | BQ19: =SUM(BQ20:BQ26) -> 6 | BR19: 0
C20: Số dư đầu năm | F20: 2287217068 | H20: 71736478 | J20: 9209734 | L20: 78065330 | N20: 25174495 | P20: =SUM(E20:N20) -> 2471403105 | S20: As at opening year | V20: 2287217068 | X20: 71736478 | Z20: 9209734 | AB20: 78065330 | AD20: 25174495 | AF20: =SUM(U20:AD20) -> 2471403105 | AH20: 0 | AJ20: 0 | AL20: 0 | AN20: 0 | AP20: 0 | AR20: =SUM(AG20:AP20) -> 0 | AT20: 0 | AV20: 0 | AX20: 0 | AZ20: 0 | BB20: 0 | BD20: =SUM(AS20:BB20) -> 0 | BF20: 0 | BH20: 0 | BJ20: 0 | BL20: 0 | BN20: 0 | BP20: =SUM(BE20:BN20) -> 0 | BQ20: =SUM(BQ21:BQ26) -> 3 | BR20: 0 | BT20: =-CDKT!U115 -> 2471403105 | BU20: =BT20-P20 -> 0
C21: - Khấu hao trong kỳ | F21: 3650468028 | H21: 115092739 | J21: 9290904 | L21: 244726392 | N21: 163244694 | P21: 4182822757 | S21: - Depreciation | V21: 3650468028 | X21: 115092739 | Z21: 9290904 | AB21: 244726392 | AD21: 163244694 | AF21: 4182822757 | AH21: 0 | AJ21: 0 | AL21: 0 | AN21: 0 | AP21: 0 | AR21: 0 | AT21: 0 | AV21: 0 | AX21: 0 | AZ21: 0 | BB21: 0 | BD21: 0 | BF21: 0 | BH21: 0 | BJ21: 0 | BL21: 0 | BN21: 0 | BP21: 0 | BQ21: =IF(SUM(F21:P21)=0,0,1) -> 1 | BR21: 0
C22: - Tăng khác | F22: =AH22+AT22+BF22 -> 0 | H22: =AJ22+AV22+BH22 -> 0 | J22: =AL22+AX22+BJ22 -> 0 | L22: =AN22+AZ22+BL22 -> 0 | N22: =AP22+BB22+BN22 -> 0 | P22: 0 | S22: - Others increase | V22: 0 | X22: 0 | Z22: 0 | AB22: 0 | AD22: 0 | AF22: 0 | AH22: 0 | AJ22: 0 | AL22: 0 | AN22: 0 | AR22: 0 | AT22: 0 | AV22: 0 | AX22: 0 | AZ22: 0 | BD22: 0 | BF22: 0 | BH22: 0 | BJ22: 0 | BL22: 0 | BP22: 0 | BQ22: 0 | BR22: 0
C23: - Chuyển sang bất động sản đầu tư | F23: =AH23+AT23+BF23 -> 0 | H23: =AJ23+AV23+BH23 -> 0 | J23: =AL23+AX23+BJ23 -> 0 | L23: =AN23+AZ23+BL23 -> 0 | N23: =AP23+BB23+BN23 -> 0 | P23: 0 | S23: - Transferring into investment properties | V23: 0 | X23: 0 | Z23: 0 | AB23: 0 | AD23: 0 | AF23: 0 | AH23: 0 | AJ23: 0 | AL23: 0 | AN23: 0 | AP23: 0 | AR23: 0 | AT23: 0 | AV23: 0 | AX23: 0 | AZ23: 0 | BB23: 0 | BD23: 0 | BF23: 0 | BH23: 0 | BJ23: 0 | BL23: 0 | BN23: 0 | BP23: 0 | BQ23: 0 | BR23: 0
C24: - Thanh lý, nhượng bán | F24: -1000000000 | H24: =AJ24+AV24+BH24 -> 0 | J24: =AL24+AX24+BJ24 -> 0 | L24: =AN24+AZ24+BL24 -> 0 | N24: =AP24+BB24+BN24 -> 0 | P24: -1000000000 | S24: - Liquidating, disposed | V24: -1000000000 | X24: 0 | Z24: 0 | AB24: 0 | AD24: 0 | AF24: -1000000000 | AH24: 0 | AJ24: 0 | AL24: 0 | AN24: 0 | AP24: 0 | AR24: 0 | AT24: 0 | AV24: 0 | AX24: 0 | AZ24: 0 | BB24: 0 | BD24: 0 | BF24: 0 | BH24: 0 | BJ24: 0 | BL24: 0 | BN24: 0 | BP24: 0 | BQ24: 1 | BR24: 0
C25: - Giảm khác | F25: =AH25+AT25+BF25 -> 0 | H25: =AJ25+AV25+BH25 -> 0 | J25: =AL25+AX25+BJ25 -> 0 | L25: =AN25+AZ25+BL25 -> 0 | N25: =AP25+BB25+BN25 -> 0 | P25: 0 | S25: - Others decrease | V25: 0 | X25: 0 | Z25: 0 | AB25: 0 | AD25: 0 | AF25: 0 | AH25: 0 | AJ25: 0 | AL25: 0 | AN25: 0 | AP25: 0 | AR25: 0 | AT25: 0 | AV25: 0 | AX25: 0 | AZ25: 0 | BB25: 0 | BD25: 0 | BF25: 0 | BH25: 0 | BJ25: 0 | BL25: 0 | BN25: 0 | BP25: 0 | BQ25: 0 | BR25: 0
C26: ="Số dư cuối "&'Khai bao'!$C$26 -> Số dư cuối năm | F26: =SUBTOTAL(109,F20:F25) -> 4937685096 | H26: =SUBTOTAL(109,H20:H25) -> 186829217 | J26: =SUBTOTAL(109,J20:J25) -> 18500638 | L26: =SUBTOTAL(109,L20:L25) -> 322791722 | N26: =SUBTOTAL(109,N20:N25) -> 188419189 | P26: =SUBTOTAL(109,P20:P25) -> 5654225862 | S26: ="As at closing "&'Khai bao'!$D$26 -> As at closing year | V26: =SUBTOTAL(109,V20:V25) -> 4937685096 | X26: =SUBTOTAL(109,X20:X25) -> 186829217 | Z26: =SUBTOTAL(109,Z20:Z25) -> 18500638 | AB26: =SUBTOTAL(109,AB20:AB25) -> 322791722 | AD26: =SUBTOTAL(109,AD20:AD25) -> 188419189 | AF26: =SUBTOTAL(109,AF20:AF25) -> 5654225862 | AH26: =SUBTOTAL(109,AH20:AH25) -> 0 | AJ26: =SUBTOTAL(109,AJ20:AJ25) -> 0 | AL26: =SUBTOTAL(109,AL20:AL25) -> 0 | AN26: =SUBTOTAL(109,AN20:AN25) -> 0 | AP26: =SUBTOTAL(109,AP20:AP25) -> 0 | AR26: =SUBTOTAL(109,AR20:AR25) -> 0 | AT26: =SUBTOTAL(109,AT20:AT25) -> 0 | AV26: =SUBTOTAL(109,AV20:AV25) -> 0 | AX26: =SUBTOTAL(109,AX20:AX25) -> 0 | AZ26: =SUBTOTAL(109,AZ20:AZ25) -> 0 | BB26: =SUBTOTAL(109,BB20:BB25) -> 0 | BD26: =SUBTOTAL(109,BD20:BD25) -> 0 | BF26: =SUBTOTAL(109,BF20:BF25) -> 0 | BH26: =SUBTOTAL(109,BH20:BH25) -> 0 | BJ26: =SUBTOTAL(109,BJ20:BJ25) -> 0 | BL26: =SUBTOTAL(109,BL20:BL25) -> 0 | BN26: =SUBTOTAL(109,BN20:BN25) -> 0 | BP26: =SUBTOTAL(109,BP20:BP25) -> 0 | BQ26: 1 | BR26: 0 | BT26: =-CDKT!P115 -> 5654225862 | BU26: =BT26-P26 -> 0
C27: Giá trị còn lại | S27: Net carrying amount | BQ27: =SUM(BQ28:BQ29) -> 2 | BR27: 0
C28: Tại ngày đầu năm | F28: =F11-F20 -> 31258091086 | H28: =H11-H20 -> 604077545 | J28: =J11-J20 -> 60472085 | L28: =L11-L20 -> 1198450239 | N28: =N11-N20 -> 566086865 | P28: =SUM(E28:N28) -> 33687177820 | S28: As at opening year | V28: =V11-V20 -> 31258091086 | X28: =X11-X20 -> 604077545 | Z28: =Z11-Z20 -> 60472085 | AB28: =AB11-AB20 -> 1198450239 | AD28: =AD11-AD20 -> 566086865 | AF28: =SUM(U28:AD28) -> 33687177820 | AH28: =AH11-AH20 -> 0 | AJ28: =AJ11-AJ20 -> 0 | AL28: =AL11-AL20 -> 0 | AN28: =AN11-AN20 -> 0 | AP28: =AP11-AP20 -> 0 | AR28: =SUM(AG28:AP28) -> 0 | AT28: =AT11-AT20 -> 0 | AV28: =AV11-AV20 -> 0 | AX28: =AX11-AX20 -> 0 | AZ28: =AZ11-AZ20 -> 0 | BB28: =BB11-BB20 -> 0 | BD28: =SUM(AS28:BB28) -> 0 | BF28: =BF11-BF20 -> 0 | BH28: =BH11-BH20 -> 0 | BJ28: =BJ11-BJ20 -> 0 | BL28: =BL11-BL20 -> 0 | BN28: =BN11-BN20 -> 0 | BP28: =SUM(BE28:BN28) -> 0 | BQ28: =BQ18 -> 1 | BR28: 0 | BT28: =CDKT!U113 -> 33687177820 | BU28: =BT28-P28 -> 0
C29: ="Tại ngày cuối "&'Khai bao'!$C$26 -> Tại ngày cuối năm | F29: =F18-F26 -> 27607623058 | H29: =H18-H26 -> 683834806 | J29: =J18-J26 -> 51181181 | L29: =L18-L26 -> 953723847 | N29: =N18-N26 -> 671368080 | P29: =SUM(E29:N29) -> 29967730972 | S29: ="As at closing "&'Khai bao'!$D$26 -> As at closing year | V29: =V18-V26 -> 27607623058 | X29: =X18-X26 -> 683834806 | Z29: =Z18-Z26 -> 51181181 | AB29: =AB18-AB26 -> 953723847 | AD29: =AD18-AD26 -> 671368080 | AF29: =SUM(U29:AD29) -> 29967730972 | AH29: =AH18-AH26 -> 0 | AJ29: =AJ18-AJ26 -> 0 | AL29: =AL18-AL26 -> 0 | AN29: =AN18-AN26 -> 0 | AP29: =AP18-AP26 -> 0 | AR29: =SUM(AG29:AP29) -> 0 | AT29: =AT18-AT26 -> 0 | AV29: =AV18-AV26 -> 0 | AX29: =AX18-AX26 -> 0 | AZ29: =AZ18-AZ26 -> 0 | BB29: =BB18-BB26 -> 0 | BD29: =SUM(AS29:BB29) -> 0 | BF29: =BF18-BF26 -> 0 | BH29: =BH18-BH26 -> 0 | BJ29: =BJ18-BJ26 -> 0 | BL29: =BL18-BL26 -> 0 | BN29: =BN18-BN26 -> 0 | BP29: =SUM(BE29:BN29) -> 0 | BQ29: =BQ18 -> 1 | BR29: 0 | BT29: =CDKT!P113 -> 29967730972 | BU29: =P29-BT29 -> 0
C30: Trong đó: | S30: In which: | AR30: =AR18-CDKT!K114 -> -35621956834 | BD30: =BD18-CDKT!L114 -> 0 | BP30: =BP18-CDKT!M114 -> 0
C31: - | D31: ="Giá trị còn lại cuối "&'Khai bao'!$C$26&" của tài sản cố định hữu hình đã dùng thế chấp, cầm cố đảm bảo các khoản vay:" -> Giá trị còn lại cuối năm của tài sản cố định hữu hình đã dùng thế chấp, cầm cố đảm bảo các khoản vay: | S31: - | T31: Ending net book value of tangible fixed assets pledged as loan securities | AR31: =AR26+CDKT!K115 -> -5654225862 | BD31: =BD26+CDKT!L115 -> 0 | BP31: =BP26+CDKT!M115 -> 0
C32: - | D32: ="Nguyên giá tài sản cố định cuối "&'Khai bao'!$C$26&" đã khấu hao hết nhưng vẫn còn sử dụng:" -> Nguyên giá tài sản cố định cuối năm đã khấu hao hết nhưng vẫn còn sử dụng: | S32: - | T32: Cost of fully depreciated tangible fixed assets but still in use | AR32: =AR29-CDKT!K113 -> -29967730972 | BD32: =BD29-CDKT!L113 -> 0 | BP32: =BP29-CDKT!M113 -> 0
C33: - | D33: ="Nguyên giá tài sản cố định cuối "&'Khai bao'!$C$26&" chờ thanh lý:" -> Nguyên giá tài sản cố định cuối năm chờ thanh lý: | S33: - | T33: Cost of tangible fixed assets waiting for liquidation
C34: - | D34: Các cam kết về việc mua, bán tài sản cố định hữu hình có giá trị lớn trong tương lai: | S34: - | T34: Significant commitments in buying, selling valuable tangible fixed assets but not yet implementing
C35: - | D35: Các thay đổi khác về tài sản cố định hữu hình: | S35: - | T35: Other changes in tangible fixed assets

Sheet Thue va nop NS
A1: ='Khai bao'!$C$3 -> CÔNG TY TNHH TƯ VẤN VÀ ĐÀO TẠO IVC | Q1: ='Khai bao'!$D$3 -> IVC CONSULTING AND TRAINING COMPANY LIMITED
P2: ="B"&RIGHT('Khai bao'!$C$13,16) -> Báo cáo tài chính | Q2: ='Khai bao'!$D$6 -> 0 | AF2: ='Khai bao'!$D$13 -> Financial statements
P3: ='Khai bao'!$C$15 -> Năm tài chính kết thúc ngày 31/12/2020 | AF3: ='Khai bao'!$D$15 -> For the fiscal year ended 31/12/2020
A5: ='Thuyet minh'!A1030 -> 1.12 | B5: =IF(AND(N20=0,P20=0),"",".") -> . | C5: THUẾ VÀ CÁC KHOẢN PHẢI NỘP NHÀ NƯỚC | Q5: =A5 -> 1.12 | R5: =B5 -> . | S5: TAX AND PAYABLES FROM STATE BUDGET | AH5: =CDKT!K10 -> Công ty mẹ | AL5: =CDKT!L10 -> Công ty con 1 | AP5: =CDKT!M10 -> Công ty con 2
F6: Số phải thu đầu năm | H6: Số phải nộp đầu năm | J6: ="Số phải nộp trong "&'Khai bao'!$C$26 -> Số phải nộp trong năm | L6: ="Số đã thực nộp trong "&'Khai bao'!$C$26 -> Số đã thực nộp trong năm | N6: ="Số phải thu cuối "&'Khai bao'!$C$26 -> Số phải thu cuối năm | P6: ="Số phải nộp cuối "&'Khai bao'!$C$26 -> Số phải nộp cuối năm | V6: ="Receivable at the opening "&'Khai bao'!$D$26 -> Receivable at the opening year | X6: ="Payable at the opening "&'Khai bao'!$D$26 -> Payable at the opening year | Z6: ="Payable arise in the "&'Khai bao'!$D$26 -> Payable arise in the year | AB6: ="Amount paid in the "&'Khai bao'!D26 -> Amount paid in the year | AD6: ="Receivable at the closing "&'Khai bao'!$D$26 -> Receivable at the closing year | AF6: ="Payable at the closing "&'Khai bao'!$D$26 -> Payable at the closing year | AH6: Số phải nộp trong kỳ | AJ6: Số đã thực nộp trong kỳ | AL6: Số phải nộp trong kỳ | AN6: Số đã thực nộp trong kỳ | AP6: Số phải nộp trong kỳ | AR6: Số đã thực nộp trong kỳ
AT7: Test TA/TV
F8: VND | H8: VND | J8: VND | L8: VND | N8: VND | P8: VND | V8: VND | X8: VND | Z8: VND | AB8: VND | AD8: VND | AF8: VND | AH8: VND | AJ8: VND | AL8: VND | AN8: VND | AP8: VND | AR8: VND | AS8: =SUM(AS9:AS20) -> 9
C9: Thuế Giá trị gia tăng | F9: =CDKT!U76 -> 0 | H9: =CDKT!U167 -> 315647861818 | J9: =AH9+AL9+AP9 -> 2091133922232 | L9: =AJ9+AN9+AR9 -> 2343652211687 | N9: =CDKT!P76 -> 0 | P9: =CDKT!P167 -> 63129572363 | S9: Value added tax | V9: =F9 -> 0 | X9: =H9 -> 315647861818 | Z9: =J9 -> 2091133922232 | AB9: =L9 -> 2343652211687 | AD9: =N9 -> 0 | AF9: =P9 -> 63129572363 | AH9: 2091133922232 | AJ9: 2343652211687 | AL9: 0 | AN9: 0 | AP9: 0 | AR9: 0 | AS9: =IF(SUM(F9:P9)=0,0,1) -> 1 | AT9: =P9-AF9 -> 0 | AV9: =(P9-N9)-(H9-F9) -> -252518289455 | AW9: =J9-L9 -> -252518289455 | AX9: =ROUND(AV9-AW9,0) -> 0
C10: Thuế Tiêu thụ đặc biệt | F10: =CDKT!U77 -> 66062259128 | H10: =CDKT!U168 -> 0 | J10: 73908006614 | L10: 34551478198 | N10: =CDKT!P77 -> 26705730712 | P10: =CDKT!P168 -> 0 | S10: Special sale tax | V10: 66062259128 | X10: 0 | Z10: 73908006614 | AB10: 34551478198 | AD10: 26705730712 | AF10: 0 | AH10: 73908006614 | AJ10: 34551478198 | AL10: 0 | AN10: 0 | AP10: 0 | AR10: 0 | AS10: 1 | AT10: =P10-AF10 -> 0 | AV10: =(P10-N10)-(H10-F10) -> 39356528416 | AW10: =J10-L10 -> 39356528416 | AX10: =AV10-AW10 -> 0
C11: Thuế Xuất khẩu, Nhập khẩu | F11: =CDKT!U78 -> 61333164026 | H11: =CDKT!U169 -> 0 | J11: 57057562242 | L11: 20557995576 | N11: =CDKT!P78 -> 24833597360 | P11: =CDKT!P169 -> 0 | S11: Export, import duties | V11: 61333164026 | X11: 0 | Z11: 57057562242 | AB11: 20557995576 | AD11: 24833597360 | AF11: 0 | AH11: 57057562242 | AJ11: 20557995576 | AL11: 0 | AN11: 0 | AP11: 0 | AR11: 0 | AS11: 1 | AT11: 0 | AV11: 36499566666 | AW11: 36499566666 | AX11: 0
C12: Thuế Thu nhập doanh nghiệp | F12: =CDKT!U79 -> 0 | H12: =CDKT!U170 -> 0 | J12: 255941226083 | L12: 220172589531 | N12: =CDKT!P79 -> 0 | P12: =CDKT!P170 -> 35768636552 | S12: Business income tax | V12: 0 | X12: 0 | Z12: 255941226083 | AB12: 220172589531 | AD12: 0 | AF12: 35768636552 | AH12: 255941226083 | AJ12: 220172589531 | AL12: 0 | AN12: 0 | AP12: 0 | AR12: 0 | AS12: 1 | AT12: 0 | AV12: 35768636552 | AW12: 35768636552 | AX12: 0
C13: Thuế Thu nhập cá nhân | F13: =CDKT!U80 -> 0 | H13: =CDKT!U171 -> 4806186342 | J13: 703854169 | L13: 7242652738 | N13: =CDKT!P80 -> 1732612227 | P13: =CDKT!P171 -> 0 | S13: Personal income tax | V13: 0 | X13: 4806186342 | Z13: 703854169 | AB13: 7242652738 | AD13: 1732612227 | AF13: 0 | AH13: 703854169 | AJ13: 7242652738 | AL13: 0 | AN13: 0 | AP13: 0 | AR13: 0 | AS13: 1 | AT13: 0 | AV13: -6538798569 | AW13: -6538798569 | AX13: 0
C14: Thuế nhà thầu | F14: =CDKT!U81 -> 0 | H14: =CDKT!U172 -> 0 | J14: 19073175000 | L14: 19073175000 | N14: =CDKT!P81 -> 0 | P14: =CDKT!P172 -> 0 | S14: Natural resource tax | V14: 0 | X14: 0 | Z14: 19073175000 | AB14: 19073175000 | AD14: 0 | AF14: 0 | AH14: 19073175000 | AJ14: 19073175000 | AL14: 0 | AN14: 0 | AP14: 0 | AR14: 0 | AS14: 1 | AT14: 0 | AV14: 0 | AW14: 0 | AX14: 0
C15: Thuế Nhà đất, Tiền thuê đất | F15: =CDKT!U82 -> 0 | H15: =CDKT!U173 -> 0 | J15: 0 | L15: 0 | N15: =CDKT!P82 -> 0 | P15: =CDKT!P173 -> 0 | S15: Property tax and land rental | V15: 0 | X15: 0 | Z15: 0 | AB15: 0 | AD15: 0 | AF15: 0 | AH15: 0 | AJ15: 0 | AL15: 0 | AN15: 0 | AP15: 0 | AR15: 0 | AS15: 0 | AT15: 0 | AV15: 0 | AW15: 0 | AX15: 0
C16: Thuế bảo vệ môi trường | F16: =CDKT!U83 -> 0 | H16: =CDKT!U174 -> 0 | J16: 0 | L16: 0 | N16: =CDKT!P83 -> 0 | P16: =CDKT!P174 -> 0 | S16: Environmental protection tax | V16: 0 | X16: 0 | Z16: 0 | AB16: 0 | AD16: 0 | AF16: 0 | AH16: 0 | AJ16: 0 | AL16: 0 | AN16: 0 | AP16: 0 | AR16: 0 | AS16: 0 | AT16: 0 | AV16: 0 | AW16: 0 | AX16: 0
C17: Các loại thuế khác | F17: =CDKT!U84 -> 0 | H17: =CDKT!U175 -> 0 | J17: 3000000 | L17: 3000000 | N17: =CDKT!P84 -> 0 | P17: =CDKT!P175 -> 0 | S17: Other taxes | V17: =F17 -> 0 | X17: =H17 -> 0 | Z17: =J17 -> 3000000 | AB17: =L17 -> 3000000 | AD17: =N17 -> 0 | AF17: =P17 -> 0 | AH17: 3000000 | AJ17: 3000000 | AL17: 0 | AN17: 0 | AP17: 0 | AR17: 0 | AS17: 1 | AT17: =P17-AF17 -> 0 | AV17: 0 | AW17: 0 | AX17: 0
C18: Phí, lệ phí và các khoản phải nộp khác | F18: =CDKT!U85 -> 0 | H18: =CDKT!U176 -> 0 | J18: 0 | L18: 0 | N18: =CDKT!P85 -> 0 | P18: =CDKT!P176 -> 0 | S18: Fees and other obligations | V18: 0 | X18: 0 | Z18: 0 | AB18: 0 | AD18: 0 | AF18: 0 | AH18: 0 | AJ18: 0 | AL18: 0 | AN18: 0 | AP18: 0 | AR18: 0 | AS18: 0 | AT18: 0 | AV18: 0 | AW18: 0 | AX18: 0
AS19: =AS20 -> 1 | AT19: =P19-AF19 -> 0
F20: =SUBTOTAL(109,F9:F19) -> 127395423154 | H20: =SUBTOTAL(109,H9:H19) -> 320454048160 | J20: =SUBTOTAL(109,J9:J19) -> 2497820746340 | L20: =SUBTOTAL(109,L9:L19) -> 2645253102730 | N20: =SUBTOTAL(109,N9:N19) -> 53271940299 | P20: =SUBTOTAL(109,P9:P19) -> 98898208915 | V20: =SUBTOTAL(109,V9:V19) -> 127395423154 | X20: =SUBTOTAL(109,X9:X19) -> 320454048160 | Z20: =SUBTOTAL(109,Z9:Z19) -> 2497820746340 | AB20: =SUBTOTAL(109,AB9:AB19) -> 2645253102730 | AD20: =SUBTOTAL(109,AD9:AD19) -> 53271940299 | AF20: =SUBTOTAL(109,AF9:AF19) -> 98898208915 | AH20: =SUBTOTAL(109,AH9:AH19) -> 2497820746340 | AJ20: =SUBTOTAL(109,AJ9:AJ19) -> 2645253102730 | AL20: =SUBTOTAL(109,AL9:AL19) -> 0 | AN20: =SUBTOTAL(109,AN9:AN19) -> 0 | AP20: =SUBTOTAL(109,AP9:AP19) -> 0 | AR20: =SUBTOTAL(109,AR9:AR19) -> 0 | AS20: =IF(SUM(F20:P20)=0,0,1) -> 1 | AT20: =P20-AF20 -> 0 | AV20: =SUBTOTAL(109,AV9:AV18) -> -147432356390 | AW20: =SUBTOTAL(109,AW9:AW18) -> -147432356390 | AX20: =SUBTOTAL(109,AX9:AX18) -> 0
C22: Quyết toán thuế của Công ty sẽ chịu sự kiểm tra của cơ quan thuế. Do việc áp dụng luật và các qui định về thuế đối với nhiều loại giao dịch khác nhau có thể được giải thích theo nhiều cách khác nhau, số thuế được trình bày trên Báo cáo tài chính có thể bị thay đổi theo quyết định của cơ quan thuế. | S22: The Company’s tax settlements are subject to examination by the tax authorities. Because the application of tax laws and regulations on many types of transactions is susceptible to varying interpretations, amounts reported in the financial statements could be changed at a later date upon final determination by the tax authorities.

Sheet Vay va no thue TC
A1: ='Khai bao'!$C$3 -> CÔNG TY TNHH TƯ VẤN VÀ ĐÀO TẠO IVC | Q1: ='Khai bao'!$D$3 -> IVC CONSULTING AND TRAINING COMPANY LIMITED
P2: ="B"&RIGHT('Khai bao'!$C$13,16) -> Báo cáo tài chính | Q2: ='Khai bao'!$D$6 -> 0 | AF2: ='Khai bao'!$D$13 -> Financial statements
P3: ='Khai bao'!$C$15 -> Năm tài chính kết thúc ngày 31/12/2020 | AF3: ='Khai bao'!$D$15 -> For the fiscal year ended 31/12/2020 | AH3: =CDKT!$K$10 -> Công ty mẹ | AT3: =CDKT!$L$10 -> Công ty con 1 | BF3: =CDKT!$M$10 -> Công ty con 2
A5: ='Thuyet minh'!A1102 -> 1.15 | B5: =IF(AND(SUM(CDKT!P200:P201)=0,SUM(CDKT!U200:U201)=0,SUM(CDKT!P233:P234)=0,SUM(CDKT!U233:U234)=0),"",".") -> . | C5: ='Thuyet minh'!C1102 -> VAY VÀ NỢ THUÊ TÀI CHÍNH | Q5: =A5 -> 1.15 | R5: =B5 -> . | S5: LOAN AND FINANCE LEASE LIABILITES
F6: =CDKT!$U$10 -> Số đầu năm | J6: ="Trong "&'Khai bao'!C26 -> Trong năm | N6: =CDKT!$P$10 -> Số cuối năm | V6: ='Thuyet minh'!$BM$1883 -> Beginning Balance | Z6: In this year | AD6: ='Thuyet minh'!$BF$1883 -> Ending Balance | AH6: =CDKT!$U$10 -> Số đầu năm | AL6: Trong kỳ | AP6: =CDKT!$P$10 -> Số cuối năm | AT6: =CDKT!$U$10 -> Số đầu năm | AX6: Trong kỳ | BB6: =CDKT!$P$10 -> Số cuối năm | BF6: =CDKT!$U$10 -> Số đầu năm | BJ6: Trong kỳ | BN6: =CDKT!$P$10 -> Số cuối năm
F7: Giá trị | H7: Số có khả năng trả nợ | J7: Tăng | L7: Giảm | N7: Giá trị | P7: Số có khả năng trả nợ | V7: Principal amount | X7: Amount payable | Z7: Increase | AB7: Decrease | AD7: Principal amount | AF7: Amount payable | AH7: Giá trị | AJ7: Số có khả năng trả nợ | AL7: Tăng | AN7: Giảm | AP7: Giá trị | AR7: Số có khả năng trả nợ | AT7: Giá trị | AV7: Số có khả năng trả nợ | AX7: Tăng | AZ7: Giảm | BB7: Giá trị | BD7: Số có khả năng trả nợ | BF7: Giá trị | BH7: Số có khả năng trả nợ | BJ7: Tăng | BL7: Giảm | BN7: Giá trị | BP7: Số có khả năng trả nợ
BR8: Test TA/TV
F9: VND | H9: VND | J9: VND | L9: VND | N9: VND | P9: VND | V9: VND | X9: VND | Z9: VND | AB9: VND | AD9: VND | AF9: VND | AH9: VND | AJ9: VND | AL9: VND | AN9: VND | AP9: VND | AR9: VND | AT9: VND | AV9: VND | AX9: VND | AZ9: VND | BB9: VND | BD9: VND | BF9: VND | BH9: VND | BJ9: VND | BL9: VND | BN9: VND | BP9: VND | BQ9: =SUM(BQ10:BQ28) -> 6
A10: a) | C10: Vay ngắn hạn | F10: =SUBTOTAL(109,F11:F16) -> 2297612257214 | H10: =SUBTOTAL(109,H11:H16) -> 0 | J10: =SUBTOTAL(109,J11:J16) -> 821952156204 | L10: =SUBTOTAL(109,L11:L16) -> 2660041961976 | N10: =SUBTOTAL(109,N11:N16) -> 459522451442 | P10: =SUBTOTAL(109,P11:P16) -> 0 | Q10: =A10 -> a) | S10: Short-term loan | V10: =SUBTOTAL(109,V11:V16) -> 2297612257214 | X10: =SUBTOTAL(109,X11:X16) -> 0 | Z10: =SUBTOTAL(109,Z11:Z16) -> 821952156204 | AB10: =SUBTOTAL(109,AB11:AB16) -> 2660041961976 | AD10: =SUBTOTAL(109,AD11:AD16) -> 459522451442 | AF10: =SUBTOTAL(109,AF11:AF16) -> 0 | AH10: =SUBTOTAL(109,AH11:AH16) -> 2297612257214 | AJ10: =SUBTOTAL(109,AJ11:AJ16) -> 0 | AL10: =SUBTOTAL(109,AL11:AL16) -> 821952156204 | AN10: =SUBTOTAL(109,AN11:AN16) -> 2660041961976 | AP10: =SUBTOTAL(109,AP11:AP16) -> 459522451442 | AR10: =SUBTOTAL(109,AR11:AR16) -> 0 | AT10: =SUBTOTAL(109,AT11:AT16) -> 0 | AV10: =SUBTOTAL(109,AV11:AV16) -> 0 | AX10: =SUBTOTAL(109,AX11:AX16) -> 0 | AZ10: =SUBTOTAL(109,AZ11:AZ16) -> 0 | BB10: =SUBTOTAL(109,BB11:BB16) -> 0 | BD10: =SUBTOTAL(109,BD11:BD16) -> 0 | BF10: =SUBTOTAL(109,BF11:BF16) -> 0 | BH10: =SUBTOTAL(109,BH11:BH16) -> 0 | BJ10: =SUBTOTAL(109,BJ11:BJ16) -> 0 | BL10: =SUBTOTAL(109,BL11:BL16) -> 0 | BN10: =SUBTOTAL(109,BN11:BN16) -> 0 | BP10: =SUBTOTAL(109,BP11:BP16) -> 0 | BQ10: =IF(SUM(F10:P10)=0,0,1) -> 1 | BR10: =P10-AF10 -> 0 | BT10: =CDKT!P200 -> 459522451442 | BU10: =CDKT!U200 -> 2297612257214 | BV10: =BT10-BU10 -> -1838089805772 | BW10: =N10-BT10 -> 0 | BX10: =F10-BU10 -> 0 | BY10: =J10-L10-BV10 -> 0
C11: - | D11: Ngân hàng A | F11: =AH11+AT11+BF11 -> 268140894875 | H11: =AJ11+AV11+BH11 -> 0 | J11: =AL11+AX11+BJ11 -> 0 | L11: =AN11+AZ11+BL11 -> 214512715900 | N11: =F11+J11-L11 -> 53628178975 | P11: =AR11+BD11+BP11 -> 0 | S11: - | T11: Short- term loan of | V11: =F11 -> 268140894875 | X11: =H11 -> 0 | Z11: =J11 -> 0 | AB11: =L11 -> 214512715900 | AD11: =N11 -> 53628178975 | AF11: =P11 -> 0 | AH11: 268140894875 | AJ11: 0 | AL11: 0 | AN11: 214512715900 | AP11: =AH11+AL11-AN11 -> 53628178975 | AR11: 0 | AT11: 0 | AV11: 0 | AX11: 0 | AZ11: 0 | BB11: =AT11+AX11-AZ11 -> 0 | BD11: 0 | BF11: 0 | BH11: 0 | BJ11: 0 | BL11: 0 | BN11: =BF11+BJ11-BL11 -> 0 | BP11: 0 | BQ11: =IF(SUM(F11:P11)=0,0,1) -> 1 | BR11: 0
C12: - | D12: Ngân hàng B | F12: =AH12+AT12+BF12 -> 1142678369434 | H12: =AJ12+AV12+BH12 -> 0 | J12: =AL12+AX12+BJ12 -> 766182156204 | L12: =AN12+AZ12+BL12 -> 1680324851752 | N12: =F12+J12-L12 -> 228535673886 | P12: =AR12+BD12+BP12 -> 0 | S12: - | T12: Hoang Gia Security Services Company Limited | V12: =F12 -> 1142678369434 | X12: =H12 -> 0 | Z12: =J12 -> 766182156204 | AB12: =L12 -> 1680324851752 | AD12: =N12 -> 228535673886 | AF12: =P12 -> 0 | AH12: 1142678369434 | AJ12: 0 | AL12: 766182156204 | AN12: 1680324851752 | AP12: =AH12+AL12-AN12 -> 228535673886 | AR12: 0 | AT12: 0 | AV12: 0 | AX12: 0 | AZ12: 0 | BB12: =AT12+AX12-AZ12 -> 0 | BD12: 0 | BF12: 0 | BH12: 0 | BJ12: 0 | BL12: 0 | BN12: =BF12+BJ12-BL12 -> 0 | BP12: 0 | BQ12: =IF(SUM(F12:P12)=0,0,1) -> 1 | BR12: 0
C13: - | D13: Ngân hàng C | F13: =AH13+AT13+BF13 -> 243981572170 | H13: =AJ13+AV13+BH13 -> 0 | J13: =AL13+AX13+BJ13 -> 0 | L13: =AN13+AZ13+BL13 -> 195185257736 | N13: =F13+J13-L13 -> 48796314434 | P13: =AR13+BD13+BP13 -> 0 | S13: - | T13: Hoang Gia Security Services Company Limited | V13: =F13 -> 243981572170 | X13: =H13 -> 0 | Z13: =J13 -> 0 | AB13: =L13 -> 195185257736 | AD13: =N13 -> 48796314434 | AF13: =P13 -> 0 | AH13: 243981572170 | AJ13: 0 | AL13: 0 | AN13: 195185257736 | AP13: =AH13+AL13-AN13 -> 48796314434 | AR13: 0 | AT13: 0 | AV13: 0 | AX13: 0 | AZ13: 0 | BB13: =AT13+AX13-AZ13 -> 0 | BD13: 0 | BF13: 0 | BH13: 0 | BJ13: 0 | BL13: 0 | BN13: =BF13+BJ13-BL13 -> 0 | BP13: 0
C14: - | D14: Ngân hàng D | F14: 136999259244 | H14: 0 | J14: 0 | L14: 109599407395 | N14: 27399851849 | P14: 0 | S14: - | T14: Hoang Gia Security Services Company Limited | V14: 136999259244 | X14: 0 | Z14: 0 | AB14: 109599407395 | AD14: 27399851849 | AF14: 0 | AH14: 136999259244 | AJ14: 0 | AL14: 0 | AN14: 109599407395 | AP14: 27399851849 | AR14: 0 | AT14: 0 | AV14: 0 | AX14: 0 | AZ14: 0 | BB14: 0 | BD14: 0 | BF14: 0 | BH14: 0 | BJ14: 0 | BL14: 0 | BN14: 0 | BP14: 0
C15: - | D15: Ngân hàng E | F15: =AH15+AT15+BF15 -> 255812161491 | H15: =AJ15+AV15+BH15 -> 0 | J15: =AL15+AX15+BJ15 -> 55770000000 | L15: =AN15+AZ15+BL15 -> 260419729193 | N15: =F15+J15-L15 -> 51162432298 | P15: =AR15+BD15+BP15 -> 0 | S15: - | T15: Long- term loan which is nearly end | V15: =F15 -> 255812161491 | X15: =H15 -> 0 | Z15: =J15 -> 55770000000 | AB15: =L15 -> 260419729193 | AD15: =N15 -> 51162432298 | AF15: =P15 -> 0 | AH15: 255812161491 | AJ15: 0 | AL15: 55770000000 | AN15: 260419729193 | AP15: =AH15+AL15-AN15 -> 51162432298 | AR15: 0 | AT15: 0 | AV15: 0 | AX15: 0 | AZ15: 0 | BB15: =AT15+AX15-AZ15 -> 0 | BD15: 0 | BF15: 0 | BH15: 0 | BJ15: 0 | BL15: 0 | BN15: =BF15+BJ15-BL15 -> 0 | BP15: 0 | BQ15: =IF(SUM(F15:P15)=0,0,1) -> 1 | BR15: 0
C16: - | D16: Ngân hàng F | F16: =AH16+AT16+BF16 -> 250000000000 | H16: =AJ16+AV16+BH16 -> 0 | J16: =AL16+AX16+BJ16 -> 0 | L16: =AN16+AZ16+BL16 -> 200000000000 | N16: =F16+J16-L16 -> 50000000000 | P16: =AR16+BD16+BP16 -> 0 | S16: - | T16: Long- term loan which is nearly end | V16: =F16 -> 250000000000 | X16: =H16 -> 0 | Z16: =J16 -> 0 | AB16: =L16 -> 200000000000 | AD16: =N16 -> 50000000000 | AF16: =P16 -> 0 | AH16: 250000000000 | AJ16: 0 | AL16: 0 | AN16: 200000000000 | AP16: =AH16+AL16-AN16 -> 50000000000 | AR16: 0 | AT16: 0 | AV16: 0 | AX16: 0 | AZ16: 0 | BB16: =AT16+AX16-AZ16 -> 0 | BD16: 0 | BF16: 0 | BH16: 0 | BJ16: 0 | BL16: 0 | BN16: =BF16+BJ16-BL16 -> 0 | BP16: 0 | BQ16: =IF(SUM(F16:P16)=0,0,1) -> 1 | BR16: 0
BQ17: =BQ18 -> 0 | BR17: =P17-AF17 -> 0
A18: b) | C18: Vay dài hạn | F18: =SUBTOTAL(109,F19:F21) -> 0 | H18: =SUBTOTAL(109,H19:H21) -> 0 | J18: =SUBTOTAL(109,J19:J21) -> 0 | L18: =SUBTOTAL(109,L19:L21) -> 0 | N18: =SUBTOTAL(109,N19:N21) -> 0 | P18: =SUBTOTAL(109,P19:P21) -> 0 | Q18: =A18 -> b) | S18: Long-term loan | V18: =SUBTOTAL(109,V19:V21) -> 0 | X18: =SUBTOTAL(109,X19:X21) -> 0 | Z18: =SUBTOTAL(109,Z19:Z21) -> 0 | AB18: =SUBTOTAL(109,AB19:AB21) -> 0 | AD18: =SUBTOTAL(109,AD19:AD21) -> 0 | AF18: =SUBTOTAL(109,AF19:AF21) -> 0 | AH18: =SUBTOTAL(109,AH19:AH21) -> 0 | AJ18: =SUBTOTAL(109,AJ19:AJ21) -> 0 | AL18: =SUBTOTAL(109,AL19:AL21) -> 0 | AN18: =SUBTOTAL(109,AN19:AN21) -> 0 | AP18: =SUBTOTAL(109,AP19:AP21) -> 0 | AR18: =SUBTOTAL(109,AR19:AR21) -> 0 | AT18: =SUBTOTAL(109,AT19:AT21) -> 0 | AV18: =SUBTOTAL(109,AV19:AV21) -> 0 | AX18: =SUBTOTAL(109,AX19:AX21) -> 0 | AZ18: =SUBTOTAL(109,AZ19:AZ21) -> 0 | BB18: =SUBTOTAL(109,BB19:BB21) -> 0 | BD18: =SUBTOTAL(109,BD19:BD21) -> 0 | BF18: =SUBTOTAL(109,BF19:BF21) -> 0 | BH18: =SUBTOTAL(109,BH19:BH21) -> 0 | BJ18: =SUBTOTAL(109,BJ19:BJ21) -> 0 | BL18: =SUBTOTAL(109,BL19:BL21) -> 0 | BN18: =SUBTOTAL(109,BN19:BN21) -> 0 | BP18: =SUBTOTAL(109,BP19:BP21) -> 0 | BQ18: =SUM(BQ19:BQ21) -> 0 | BR18: 0 | BT18: =CDKT!P233 -> 0 | BU18: =CDKT!U233 -> 0 | BV18: =BT18-BU18 -> 0 | BW18: =N18-BT18 -> 0 | BX18: =F18-BU18 -> 0 | BY18: =J18-L18-BV18 -> 0
C19: - | D19: Nguyễn Bá Dũng (kỳ hạn 05 năm) | F19: =AH19+AT19+BF19 -> 0 | H19: =AJ19+AV19+BH19 -> 0 | J19: =AL19+AX19+BJ19 -> 0 | L19: =AN19+AZ19+BL19 -> 0 | N19: =F19+J19-L19 -> 0 | P19: =AR19+BD19+BP19 -> 0 | S19: - | T19: Nguyen Ba Dung (5 years) | V19: =F19 -> 0 | X19: =H19 -> 0 | Z19: =J19 -> 0 | AB19: =L19 -> 0 | AD19: =N19 -> 0 | AF19: =P19 -> 0 | AH19: 0 | AJ19: 0 | AL19: 0 | AN19: 0 | AP19: =AH19+AL19-AN19 -> 0 | AR19: 0 | AT19: 0 | AV19: 0 | AX19: 0 | AZ19: 0 | BB19: =AT19+AX19-AZ19 -> 0 | BD19: 0 | BF19: 0 | BH19: 0 | BJ19: 0 | BL19: 0 | BN19: =BF19+BJ19-BL19 -> 0 | BP19: 0 | BQ19: =IF(SUM(F19:P19)=0,0,1) -> 0 | BR19: 0
C20: - | D20: Kỳ hạn … | F20: =AH20+AT20+BF20 -> 0 | H20: =AJ20+AV20+BH20 -> 0 | J20: =AL20+AX20+BJ20 -> 0 | L20: =AN20+AZ20+BL20 -> 0 | N20: =F20+J20-L20 -> 0 | P20: =AR20+BD20+BP20 -> 0 | S20: - | T20: Period … | V20: =F20 -> 0 | X20: =H20 -> 0 | Z20: =J20 -> 0 | AB20: =L20 -> 0 | AD20: =N20 -> 0 | AF20: =P20 -> 0 | AH20: 0 | AJ20: 0 | AL20: 0 | AN20: 0 | AP20: =AH20+AL20-AN20 -> 0 | AR20: 0 | AT20: 0 | AV20: 0 | AX20: 0 | AZ20: 0 | BB20: =AT20+AX20-AZ20 -> 0 | BD20: 0 | BF20: 0 | BH20: 0 | BJ20: 0 | BL20: 0 | BN20: =BF20+BJ20-BL20 -> 0 | BP20: 0 | BQ20: =IF(SUM(F20:P20)=0,0,1) -> 0 | BR20: 0
C21: - | D21: Kỳ hạn … | F21: =AH21+AT21+BF21 -> 0 | H21: =AJ21+AV21+BH21 -> 0 | J21: =AL21+AX21+BJ21 -> 0 | L21: =AN21+AZ21+BL21 -> 0 | N21: =F21+J21-L21 -> 0 | P21: =AR21+BD21+BP21 -> 0 | S21: - | T21: Period … | V21: =F21 -> 0 | X21: =H21 -> 0 | Z21: =J21 -> 0 | AB21: =L21 -> 0 | AD21: =N21 -> 0 | AF21: =P21 -> 0 | AH21: 0 | AJ21: 0 | AL21: 0 | AN21: 0 | AP21: =AH21+AL21-AN21 -> 0 | AR21: 0 | AT21: 0 | AV21: 0 | AX21: 0 | AZ21: 0 | BB21: =AT21+AX21-AZ21 -> 0 | BD21: 0 | BF21: 0 | BH21: 0 | BJ21: 0 | BL21: 0 | BN21: =BF21+BJ21-BL21 -> 0 | BP21: 0 | BQ21: =IF(SUM(F21:P21)=0,0,1) -> 0 | BR21: 0
BQ22: =SUM(BQ18:BQ21) -> 0 | BR22: 0
A23: c) | C23: Nợ thuê tài chính | F23: =SUBTOTAL(109,F24:F26) -> 0 | H23: =SUBTOTAL(109,H24:H26) -> 0 | J23: =SUBTOTAL(109,J24:J26) -> 0 | L23: =SUBTOTAL(109,L24:L26) -> 0 | N23: =SUBTOTAL(109,N24:N26) -> 0 | P23: =SUBTOTAL(109,P24:P26) -> 0 | Q23: =A23 -> c) | S23: Finance lease liabilities | V23: =SUBTOTAL(109,V24:V26) -> 0 | X23: =SUBTOTAL(109,X24:X26) -> 0 | Z23: =SUBTOTAL(109,Z24:Z26) -> 0 | AB23: =SUBTOTAL(109,AB24:AB26) -> 0 | AD23: =SUBTOTAL(109,AD24:AD26) -> 0 | AF23: =SUBTOTAL(109,AF24:AF26) -> 0 | AH23: =SUBTOTAL(109,AH24:AH26) -> 0 | AJ23: =SUBTOTAL(109,AJ24:AJ26) -> 0 | AL23: =SUBTOTAL(109,AL24:AL26) -> 0 | AN23: =SUBTOTAL(109,AN24:AN26) -> 0 | AP23: =SUBTOTAL(109,AP24:AP26) -> 0 | AR23: =SUBTOTAL(109,AR24:AR26) -> 0 | AT23: =SUBTOTAL(109,AT24:AT26) -> 0 | AV23: =SUBTOTAL(109,AV24:AV26) -> 0 | AX23: =SUBTOTAL(109,AX24:AX26) -> 0 | AZ23: =SUBTOTAL(109,AZ24:AZ26) -> 0 | BB23: =SUBTOTAL(109,BB24:BB26) -> 0 | BD23: =SUBTOTAL(109,BD24:BD26) -> 0 | BF23: =SUBTOTAL(109,BF24:BF26) -> 0 | BH23: =SUBTOTAL(109,BH24:BH26) -> 0 | BJ23: =SUBTOTAL(109,BJ24:BJ26) -> 0 | BL23: =SUBTOTAL(109,BL24:BL26) -> 0 | BN23: =SUBTOTAL(109,BN24:BN26) -> 0 | BP23: =SUBTOTAL(109,BP24:BP26) -> 0 | BQ23: =SUM(BQ24:BQ26) -> 0 | BR23: 0
